Workbook

Sheet Cover Page
C8: Redbridge - Practice Clinical Trends (LDP) Report
B19: General Health | C19: The number and percentage of patients on GP register aged over 16 with BMI and smoking status recorded
B20: Hypertension | C20: The number and percentage of patients on hypertension registers. The number and percentage of patients on register with blood pressure measured within last 9 months is less than 150/90
B21: CHD | C21: The number and percentage of patients on CHD register. Indicators included: cholesterol, BP ≤ 150/90
B22: Stroke/TIA | C22: The number and percentage of patients on Stroke/TIA register. Indicators included: BP recorded - BP <140/90.
B23: CVD Risk | C23: The number and percentage of patients eligible for CVD risk score (aged 25 -84). Indicators included: QRISK score, QRISK greater than 20% and proxy review
B24: Diabetes | C24: The number and percentage of patients on diabetes register. Indicators include: blood pressure; cholesterol; HbA1c; flu vaccination
B25: Mental Health | C25: The number and percentage of patients on Mental Health register. Indicators included: severe mental illness review and smoking status
B26: CKD | C26: The number and percentage of patients on CKD register. Indicators included: blood pressure and new diagnosis within 6 months
B27: COPD | C27: The number and percentage of patients on COPD register. Indicators included: severe or very severe COPD (FEV1<50) and smoking status
C30: N/A indicates either that no usable data has been returned or that calculation of a proportion is impossible

Sheet Full Explanatory Notes
A5: Worksheet | B5: Description of column contents
A6: General Health | B6: Patients aged 16 and over on the GP register
B7: Patients aged 16 and over on the GP register, with a BMI recorded in the last 12 months
B8: Patients aged 16 and over on the GP register, with a BMI ≥30 & <35
B9: Patients aged 16 and over on the GP register, with a BMI ≥ 35 & <40
B10: Patients aged 16 and over on the GP register, with a BMI ≥ 40
B11: Patients aged 16 and over on the GP register with smoking status recorded in the last 12 months
B12: Patients aged 16 and over on the GP register with smoking status recorded in the last 12 months, recorded as being a smoker.
A14: Hypertension | B14: Patients on the Hypertension register.
B15: Patients on the Hypertension register with BP recorded in the last 12 months.
B16: Patients on the Hypertension register with BP < 140/90 (Patients aged under 80) < 150/90 ( Aged 80 and over) (last 12m)
A18: CHD | B18: Patients on the CHD register
B19: Patients on the CHD register with cholesterol recorded in the last 12 months.
B20: Patients on the CHD register with last measured cholesterol < 5mmol in the last 12 months
B21: Patients on the CHD register with BP ≤ 150/90 (last 9m)
A23: Stroke/TIA | B23: Patients on the Stroke/TIA register
B24: Patients on the Stroke/TIA register with a BP recorded in last 12 months
B25: Patients on the Stroke/TIA register with BP recorded in the last 12 months with BP < 140/90
A27: CVD Risk | B27: Patients eligible for a CVD risk score (aged 25 - 84 excluding CVD)
B28: Patients with a QRISK or Framingham risk score done.
B29: Patients with a Q Risk score of 20% or higher
B30: Patients with a Q Risk score of 20% or higher and an annual review or proxy annual review
A32: Diabetes | B32: Patients on the diabetes register
B33: Patients on the diabetes register with BP recorded in the last 12 months
B34: Patients on the diabetes register with latest BP < 145/85 in the last 12 months
B35: Patients on the diabetes register with last measured cholesterol, measured within the last 15 months < 5mmol/l
B36: Patients on the diabetes register with last HbA1c < 59in the last 12 months
B37: Patients on the diabetes register with a Flu Jab within the last 12 months.
A40: Mental Health | B40: Patients on the Mental Health register
B41: Patients on the Mental Health register with a review recorded within the last 12 months.
B42: Patients on the Mental Health register with smoking status recorded within the last 12 months
B43: Patients on the Mental Health register with smoking status recorded within the last 12 months recorded as a smoker
B44: Patients on the Mental Health register with smoking status recorded within the last 12 months referred to the stop smoking clinic
B45: Patients on the Mental Health register with smoking status recorded within the last 12 months who are recorded as quitters
B46: Patients with Mental Health with blood pressure recorded in the last 12m
B47: Patients with Mental Health with QRISK recorded in the last 12m
B48: Patients with Mental Health with QRISK 20% or higher in the last 12m
A50: CKD | B50: Patients on CKD register
B51: Patients on the CKD register with blood pressure recorded
B52: Patients on the CKD register with blood pressure < 140/90
B53: Patients on the CKD register with new diagnosis of CKD in the last 6 months
A55: COPD | B55: Patients on COPD register
B56: No of patients with severe or very severe COPD (FEV1<50)
B57: No. of COPD Patients with smoking status recorded (last 12m) or never smoked
B58: No. of COPD patients recorded as a Smoker
B59: No. of COPD Patients who are current smokers & referred to the Stop Smoking Clinic (12m)
B60: No of COPD with flu vaccination (12m)
B61: No of COPD with pneumococcal vaccination ever
B62: No of COPD patients referred to pulmonary rehab ever

Sheet 2019-20 Changes (hidden)
A1: OLD (2017-2018) | C1: NEW (2018-2019) | E1: NEW (2019-20)
A2: List Size | C2: List Size | E2: List Size
A3: Age 16+ | C3: Age 16+ | E3: Age 16+
A4: % list size | C4: % list size | E4: % list size
A5: 16+ and BMI (last 15m) | C5: 16+ and BMI (last 12m) | E5: 16+ and BMI (last 12m)
A6: % 16+ | C6: % 16+ | E6: % 16+
A7: BMI 25 to 29 | C7: BMI ≥30 & <35 | E7: BMI ≥30 & <35
A8: % 16+ | C8: % 16+ | E8: % 16+
A9: BMI ≥ 30 | C9: BMI ≥ 35 & <40 | E9: BMI ≥ 35 & <40
A10: %16+ | C10: %16+ | E10: %16+
A11: BMI ≥ 40 | C11: BMI ≥ 40 | E11: BMI ≥ 40
A12: %16+ | C12: %16+ | E12: %16+
A13: Smoking status (last 15m) incl. never smoked | C13: Smoking status (last 12m) incl. never smoked | E13: Smoking status (last 12m) incl. never smoked
A14: % 16+ | C14: % 16+ | E14: % 16+
A15: Age 16+ and current smoker (last 15m) | C15: Age 16+ and current smoker (last 12m) | E15: Age 16+ and current smoker (last 12m)
A16: % 16+ | C16: % 16+ | E16: % 16+
A18: Hypertension Register | C18: Hypertension Register | E18: Hypertension Register
A19: % list size | C19: % list size | E19: % list size
A20: Hypertension and BP (last 9m) | C20: Hypertension and BP (last 12m) | E20: Hypertension and BP (last 12m)
A21: % Hypertension Register | C21: % Hypertension Register | E21: % Hypertension Register
A22: Hypertension and BP ≤ 150/90 (last 9m) | C22: Hypertension and BP < 140/90 (Patients aged under 80) < 150/90 ( Aged 80 and over) (last 12m) | E22: Hypertension and BP < 140/90 (Patients aged under 80) < 150/90 ( Aged 80 and over) (last 12m)
A23: % Hypertension Register | C23: % Hypertension Register | E23: % Hypertension Register
A25: CHD register | C25: CHD register | E25: CHD register
A26: % list size | C26: % list size | E26: % list size
A27: Cholesterol (last 15m) | C27: Cholesterol (last 12m) | E27: Cholesterol (last 12m)
A28: % CHD register | C28: % CHD register | E28: % CHD register
A29: Cholesterol ≤ 5 (last 15m) | C29: Cholesterol < 5 (last 12m) | E29: Cholesterol < 5 (last 12m)
A30: % CHD register | C30: % CHD register | E30: % CHD register
A31: BP (last 9m) | C31: BP ≤ 150/90 (last 9m) | E31: BP ≤ 150/90 (last 9m)
A32: % CHD register | C32: % CHD register | E32: % CHD register
A33: BP ≤ 150/90 (last 9m)
A34: % CHD register | E34: Stroke/TIA register
A35: CHD annual review or proxy review | E35: % list size
A36: % CHD register | E36: BP Recorded
A37: CHD diagnosed in last 6 months | E37: % Stroke/TIA register
A38: % CHD register | E38: BP <140/90 (last 12m)
E39: % Stroke/TIA register
A41: Aged 35 to 74 (exc CVD) | C41: Aged 25 to 84 (exc CVD) | E41: Aged 25 to 84 (exc CVD)
A42: CVD (QRISK or Framingham) risk score done | C42: QRISK recorded (5 years) | E42: QRISK recorded (5 years)
A43: % of patients aged 35 to 74 (exc CVD) | C43: % of patients aged 25 to 84 (exc CVD) | E43: % of patients aged 25 to 84 (exc CVD)
A44: QRISK ≥ 20% | C44: QRISK ≥ 20% | E44: QRISK ≥ 20%
A45: % QRISK Score recorded | C45: % QRISK Score recorded | E45: % QRISK Score recorded
A46: QRISK ≥ 20% and proxy review (BP and Chol last 15m) | C46: QRISK ≥ 20% and proxy review (BP and Chol last 12m) | E46: QRISK ≥ 20% and proxy review (BP and Chol last 12m)
A47: % Patients with QRISK ≥ 20% | C47: % Patients with QRISK ≥ 20% | E47: % Patients with QRISK ≥ 20%
A49: Diabetes register | C49: Diabetes register | E49: Diabetes register
A50: % List size | C50: % List size | E50: % List size
A51: BP (last 15m) | C51: BP (last 12m) | E51: BP (last 12m)
A52: % Diabetes Register | C52: % Diabetes Register | E52: % Diabetes Register
A53: BP ≤ 145/85 (last 15m) | C53: BP < 145/85 (last 12m) | E53: BP < 145/85 (last 12m)
A54: % Diabetes Register | C54: % Diabetes Register | E54: % Diabetes Register
A55: Cholesterol < 5mmols (last 15m) | C55: Cholesterol < 5mmols (last 12m) | E55: Cholesterol < 5mmols (last 12m)
A56: % Diabetes Register | C56: % Diabetes Register | E56: % Diabetes Register
A57: HbA1c ≤ 59(last 15m) | C57: HbA1c < 59 (last 12m) | E57: HbA1c < 59 (last 12m)
A58: % Diabetes register | C58: % Diabetes register | E58: % Diabetes register
A59: Flu jab (last 15m) | C59: Flu jab (last 12m) | E59: Flu jab (From August 2019)
A60: % Diabetes Register | C60: % Diabetes Register | E60: % Diabetes Register
A61: Annual review/ called or proxy (last 15m)
A62: % Diabetes register
A63: Cholesterol (last 15m)
A64: % Diabetes Register
A65: HbA1c ≤ 86 (last 15m)
A66: % Diabetes Register
A67: Diabetes retinal screening (last 15m)
A68: % Diabetes register
A69: Retinal screening (last 15m)
A70: % Diabetes register
A71: Neuropathy testing (last 15m)
A72: % Diabetes Register
A73: Microalbuminuria (last 15m)
A74: % Diabetes Register
A75: Type 1 Diabetes
A76: % Diabetes Register
A77: Type 2 Diabetes
A78: % Diabetes Register
A79: No Type Recorded
A80: % Diabetes Register
A81: Type 2 diabetes excluding insulin prescriptions (last 15 m)
A82: % Type 2 Diabetes
A83: Newly Diagnosed Diabetes (Last 1m)
A84: Newly Diagnosed Diabetes - Type 1
A85: Newly Diagnosed Diabetes - Type 2
A86: Newly Diagnosed Diabetes - Type Not Recorded
A87: Diabetics under 18 years old
A88: Diabetics Under 18 with HbA1c ≤ 59 (last 15m)
A89: % of Diabetics under 18
A90: No. of patients with diabetes diagnosed with CKD in the last 15m
A91: % Diabetes Register
A92: No. of patients with diabetes diagnosed with CHD and/or Stroke/TIA in the last 12 months
A93: % Diabetes Register
A94: No. of patients with diabetes diagnosed with Depression in the last 12 months
A95: %Diabetes Register
A96: No. of patients who have ever had gestational diabetes
A97: No. of patients who have ever had gestational diabetes who are also on diabetes register
A98: % of patients with gestational diabetes
A100: SMI register (QOF) | C100: Mental Health register | E100: Mental Health register
A101: % list size | C101: % list size | E101: % list size
A102: No. of SMI Patients with smoking status recorded (last 12m) or never smoked | C102: No. of Mental Health Patients with smoking status recorded (last 12m) or never smoked | E102: No. of Mental Health Patients with smoking status recorded (last 12m) or never smoked
A103: % SMI Register | C103: % Mental Health Register | E103: % Mental Health Register
A104: No. of SMI patients recorded as a Smoker | C104: No. of Mental Health patients recorded as a Smoker | E104: No. of Mental Health patients recorded as a Smoker
A105: % SMI Register | C105: % Mental Health Register | E105: % Mental Health Register
A106: No. of SMI Patients who are current smokers & referred to the Stop Smoking Clinic | C106: No. of Mental Health Patients who are current smokers & referred to the Stop Smoking Clinic | E106: No. of Mental Health Patients who are current smokers & referred to the Stop Smoking Clinic
A107: % SMI Register | C107: % Mental Health Register | E107: % Mental Health Register
A108: No. Of SMI Patients who are recorded as quitters | C108: No. Of Mental Health Patients who are recorded as quitters | E108: No. Of Mental Health Patients who are recorded as quitters
A109: % SMI Register | C109: % Mental Health Register | E109: % Mental Health Register
A110: Patients with SMI with QRISK recorded in the last 12m | C110: Patients with Mental Health with QRISK recorded in the last 12m | E110: Patients with Mental Health with QRISK recorded in the last 12m
A111: % SMI Register | C111: % Mental Health Register | E111: % Mental Health Register
A112: Patients with SMI with QRISK 20% or higher in the last 12m | C112: Patients with Mental Health with QRISK 20% or higher in the last 12m | E112: Patients with Mental Health with QRISK 20% or higher in the last 12m
A113: % patients with QRISK recorded 20% or higher | C113: % patients with QRISK recorded | E113: % patients with QRISK recorded
A114: Patients with SMI with BP & QRisk on the same day in the last 12m | C114: Patients with Mental Health with BP & QRisk on the same day in the last 12m | E114: Patients with Mental Health with BP & QRisk on the same day in the last 12m
A115: % Patients with SMI with BP & QRisk on the same day in the last 12m | C115: % Mental Health Register | E115: % Mental Health Register
A117: No. of patients on CKD register (QOF definition) | C117: No. of patients on CKD register | E117: No. of patients on CKD register
A118: % List Size | C118: % List Size | E118: % List Size
A119: BP Recorded (last 15m) | C119: BP Recorded (last 12m) | E119: BP Recorded (last 12m)
A120: % CKD register | C120: % CKD register | E120: % CKD register
A121: BP ≤ 140/90 | C121: BP < 140/90 | E121: BP < 140/90
A122: % CKD register | C122: % CKD register | E122: % CKD register
A123: No of patients with new diagnosis of CKD (last 6m) | C123: No of patients with new diagnosis of CKD (last 6m) | E123: No of patients with new diagnosis of CKD (last 6m)
A124: % CKD register | C124: % CKD register | E124: % CKD register
C126: No. of patients on COPD register | E126: No. of patients on COPD register
C127: % List Size | E127: % List Size
C128: No of patients with severe or very severe COPD (FEV1<50) | E128: No of patients with severe or very severe COPD (FEV1<50)
C129: % COPD register | E129: % COPD register
C130: No. of COPD Patients with smoking status recorded (last 12m) or never smoked | E130: No. of COPD Patients with smoking status recorded (last 12m) or never smoked
C131: % COPD | E131: % COPD
C132: No. of COPD patients recorded as a Smoker | E132: No. of COPD patients recorded as a Smoker
C133: % COPD | E133: % COPD
C134: No. of COPD Patients who are current smokers & referred to the Stop Smoking Clinic | E134: No. of COPD Patients who are current smokers & referred to the Stop Smoking Clinic
C135: % of current COPD smokers | E135: % of current COPD smokers
C136: No of COPD with flu vaccination (12m) | E136: No of COPD with flu vaccination (From August 2019)
C137: % of COPD register | E137: % of COPD register
C138: No of COPD with pneumococcal vaccination ever | E138: No of COPD with pneumococcal vaccination ever
C139: % of COPD register | E139: % of COPD register
C140: No of COPD patients referred to pulmonary rehab ever | E140: No of COPD patients referred to pulmonary rehab ever
C141: % of COPD register | E141: % of COPD register

Sheet Data (hidden)
A1: 2019-04-01 | C1: 01 LDP | E1: Last Run: | G1: Population Count | H1: 1456922 | K1: Search | L1: 01. Listsize | M1: LDP.04.11: Diabetes and BP in last 12 months | N1: LDP.05: CVD 25-84yrs (excl CVD) | O1: LDP.08.02 CKD Diagnosed (Last 6m) | P1: LDP.08.03 CKD and BP Recorded (last 12 m) | Q1: CSPMH. 01.03 QRisk Recorded (12m) | R1: CSPMH. 01.03.01 BP recorded on same day as QRisk (12m) | S1: CSPMH. 01.03.02 Qrisk>=20 (12m) | T1: LDP.08.01 CKD and BP less than 140/90 (last 12 m) | U1: LDP.08 CKD Register | V1: LDP.05.01: CVD QRISK greater than or equal 20% | W1: LDP.05.01.01: CVD Proxy Annual Review (last 12m) | X1: LDP.05.02: Cardiovascular Risk Score Done (5y) | Y1: LDP.04.09: Diabetes BP less than 145/85 (last 12m) | Z1: LDP.04.08: Diabetes Chol less than 5mmol (last 12m) | AA1: LDP.01.01.01: Obesity BMI more than or equal to 35 less than 40 (last 12m) | AB1: LDP.01.01.02: Obesity BMI between 30-35 (last 12m) | AC1: LDP.01.01.03: Obesity BMI equal to or over 40 (last 12m) | AD1: LDP.01.02: Smoking Status (last 12m) or Never Smoked (25yrs+) | AE1: LDP.01.03: Current Smoker (last 12m) | AF1: LDP.01.01: Obesity BMI recorded (last 12m) | AG1: LDP.01: Aged 16yrs+ | AH1: CSPMH.01 SMI Register | AI1: CSPMH.01.02 Smoking Status Recorded (12m) | AJ1: CSPMH.01.02.01 Current Smoker (12m) | AK1: CSPMH 01.02.01.01 Ref to clinic 12m | AL1: CSPMH.01.02.02 Ex-smoker Recorded (latest 12m) | AM1: LDP.02: Hypertension Register | AN1: LDP.02.01: Hypertension and BP < 140/90 (age under 80) < 150/90 (Age 80+) | AO1: LDP.04.07: Diabetes Influenza Vaccinations (From August 2018) | AP1: LDP.04.01: Diabetes HbA1c <7.5% OR <59mmol (last 12m) | AQ1: LDP.02.02: Hypertension BP recorded (last 12m) | AR1: LDP.03: CHD Register | AS1: LDP.03.01: CHD Chol less than 5mmol (last 12m) | AT1: LDP.03.04: CHD Cholesterol recorded (last 12m) | AU1: LDP.04: Diabetes Register | AV1: LDP.09 COPD Register | AW1: LDP.09.01 Patients with severe or very severe COPD (FEV1<50) | AX1: LDP.09.02 Patients with smoking status recorded (last 12m) or never smoked | AY1: LDP.09.03 COPD patients recorded as a Smoker | AZ1: LDP.09.04 COPD Patients who are current smokers & referred to the Stop Smoking C | BA1: LDP.09.05 No of COPD with flu vaccination (From August 2018) | BB1: LDP.09.06 No of COPD with pneumococcal vaccination ever | BC1: LDP.09.07 No of COPD patients referred to pulmonary rehab ever | BD1: LDP.03.02: CHD BP less than or equal 150/90 (last 9m) | BE1: LDP.10 Stroke or TIA register | BF1: LDP.10.01: Stroke/TIA BP recorded (last 12m) | BG1: LDP.10.02 Patients on Stroke/TIA register with BP <140/90 (12m)
A2: 2019-04-01 | E2: 2019-05-03T14:53:00 | G2: Males | H2: 707613 | J2: Organisation Code
A3: 2019-04-01 | E3: Relative Date: | G3: Females | H3: 749309 | J3: F84003 | L3: 13677 | M3: 786 | N3: 9215 | O3: 11 | P3: 228 | Q3: 143 | R3: 48 | S3: 20 | T3: 159 | U3: 237 | V3: 657 | W3: 432 | X3: 4526 | Y3: 701 | Z3: 530 | AA3: 318 | AB3: 631 | AC3: 156 | AD3: 7063 | AE3: 1040 | AF3: 3245 | AG3: 11049 | AH3: 257 | AI3: 185 | AJ3: 84 | AK3: 3 | AL3: 39 | AM3: 1608 | AN3: 1130 | AO3: 506 | AP3: 442 | AQ3: 1533 | AR3: 314 | AS3: 167 | AT3: 214 | AU3: 816 | AV3: 200 | AW3: 47 | AX3: 176 | AY3: 78 | AZ3: 4 | BA3: 139 | BB3: 124 | BC3: 153 | BD3: 256 | BE3: 189 | BF3: 173 | BG3: 130
A4: 2019-04-01 | E4: 2019-05-01 | J4: F84008 | L4: 12556 | M4: 552 | N4: 8927 | O4: 15 | P4: 202 | Q4: 114 | R4: 52 | S4: 13 | T4: 149 | U4: 218 | V4: 589 | W4: 371 | X4: 5248 | Y4: 459 | Z4: 392 | AA4: 178 | AB4: 422 | AC4: 114 | AD4: 6115 | AE4: 677 | AF4: 3059 | AG4: 10309 | AH4: 226 | AI4: 165 | AJ4: 67 | AK4: 2 | AL4: 43 | AM4: 1285 | AN4: 802 | AO4: 369 | AP4: 334 | AQ4: 1138 | AR4: 220 | AS4: 130 | AT4: 152 | AU4: 579 | AV4: 164 | AW4: 46 | AX4: 141 | AY4: 70 | AZ4: 1 | BA4: 118 | BB4: 112 | BC4: 116 | BD4: 153 | BE4: 139 | BF4: 130 | BG4: 96
A5: 2019-04-01 | J5: F84013 | L5: 15146 | M5: 487 | N5: 6548 | O5: 19 | P5: 175 | Q5: 61 | R5: 40 | S5: 10 | T5: 139 | U5: 185 | V5: 473 | W5: 367 | X5: 2749 | Y5: 438 | Z5: 391 | AA5: 225 | AB5: 477 | AC5: 98 | AD5: 5578 | AE5: 362 | AF5: 2341 | AG5: 9076 | AH5: 151 | AI5: 109 | AJ5: 36 | AK5: 4 | AL5: 14 | AM5: 991 | AN5: 741 | AO5: 286 | AP5: 290 | AQ5: 911 | AR5: 181 | AS5: 115 | AT5: 136 | AU5: 512 | AV5: 88 | AW5: 23 | AX5: 73 | AY5: 28 | AZ5: 3 | BA5: 57 | BB5: 62 | BC5: 57 | BD5: 136 | BE5: 90 | BF5: 84 | BG5: 70
A6: 2019-04-01 | J6: F84015 | L6: 5446 | M6: 414 | N6: 3423 | O6: 4 | P6: 156 | Q6: 54 | R6: 38 | S6: 11 | T6: 119 | U6: 165 | V6: 270 | W6: 231 | X6: 2272 | Y6: 383 | Z6: 313 | AA6: 178 | AB6: 421 | AC6: 143 | AD6: 3122 | AE6: 474 | AF6: 1945 | AG6: 4304 | AH6: 87 | AI6: 76 | AJ6: 39 | AK6: 2 | AL6: 17 | AM6: 837 | AN6: 601 | AO6: 303 | AP6: 245 | AQ6: 789 | AR6: 104 | AS6: 73 | AT6: 92 | AU6: 428 | AV6: 90 | AW6: 15 | AX6: 86 | AY6: 30 | AZ6: 7 | BA6: 70 | BB6: 51 | BC6: 45 | BD6: 90 | BE6: 66 | BF6: 64 | BG6: 46
A7: 2019-04-01 | J7: F84018 | L7: 11727 | M7: 588 | N7: 7986 | O7: 4 | P7: 186 | Q7: 94 | R7: 72 | S7: 15 | T7: 136 | U7: 189 | V7: 472 | W7: 388 | X7: 5088 | Y7: 533 | Z7: 419 | AA7: 252 | AB7: 591 | AC7: 179 | AD7: 6300 | AE7: 902 | AF7: 3599 | AG7: 9391 | AH7: 190 | AI7: 169 | AJ7: 75 | AK7: 9 | AL7: 33 | AM7: 1106 | AN7: 795 | AO7: 386 | AP7: 339 | AQ7: 1043 | AR7: 186 | AS7: 120 | AT7: 167 | AU7: 610 | AV7: 121 | AW7: 33 | AX7: 114 | AY7: 47 | AZ7: 3 | BA7: 91 | BB7: 75 | BC7: 84 | BD7: 150 | BE7: 94 | BF7: 92 | BG7: 66
A8: 2019-04-01 | J8: F84021 | L8: 10368 | M8: 432 | N8: 7679 | O8: 8 | P8: 176 | Q8: 64 | R8: 42 | S8: 9 | T8: 131 | U8: 189 | V8: 384 | W8: 299 | X8: 3578 | Y8: 378 | Z8: 331 | AA8: 168 | AB8: 376 | AC8: 92 | AD8: 5687 | AE8: 746 | AF8: 2470 | AG8: 8686 | AH8: 153 | AI8: 111 | AJ8: 54 | AK8: 5 | AL8: 23 | AM8: 870 | AN8: 584 | AO8: 311 | AP8: 282 | AQ8: 801 | AR8: 144 | AS8: 83 | AT8: 100 | AU8: 459 | AV8: 109 | AW8: 30 | AX8: 98 | AY8: 43 | AZ8: 2 | BA8: 79 | BB8: 79 | BC8: 83 | BD8: 110 | BE8: 84 | BF8: 73 | BG8: 56
A9: 2019-04-01 | J9: F84033 | L9: 12012 | M9: 583 | N9: 8593 | O9: 1 | P9: 203 | Q9: 77 | R9: 43 | S9: 9 | T9: 161 | U9: 217 | V9: 468 | W9: 345 | X9: 4733 | Y9: 535 | Z9: 443 | AA9: 253 | AB9: 644 | AC9: 164 | AD9: 6638 | AE9: 1188 | AF9: 3565 | AG9: 9999 | AH9: 166 | AI9: 139 | AJ9: 71 | AK9: 4 | AL9: 30 | AM9: 1220 | AN9: 898 | AO9: 439 | AP9: 340 | AQ9: 1123 | AR9: 199 | AS9: 135 | AT9: 173 | AU9: 601 | AV9: 131 | AW9: 36 | AX9: 127 | AY9: 63 | AZ9: 4 | BA9: 101 | BB9: 92 | BC9: 96 | BD9: 161 | BE9: 111 | BF9: 110 | BG9: 100
A10: 2019-04-01 | J10: F84035 | L10: 7864 | M10: 239 | N10: 6276 | O10: 4 | P10: 63 | Q10: 20 | R10: 16 | S10: 4 | T10: 53 | U10: 66 | V10: 186 | W10: 132 | X10: 1827 | Y10: 219 | Z10: 182 | AA10: 103 | AB10: 228 | AC10: 72 | AD10: 5413 | AE10: 595 | AF10: 2896 | AG10: 7052 | AH10: 48 | AI10: 39 | AJ10: 9 | AK10: 1 | AL10: 6 | AM10: 479 | AN10: 311 | AO10: 203 | AP10: 140 | AQ10: 448 | AR10: 69 | AS10: 30 | AT10: 41 | AU10: 258 | AV10: 66 | AW10: 11 | AX10: 66 | AY10: 29 | AZ10: 4 | BA10: 56 | BB10: 58 | BC10: 27 | BD10: 52 | BE10: 50 | BF10: 47 | BG10: 33
A11: 2019-04-01 | J11: F84036 | L11: 7140 | M11: 311 | N11: 5103 | O11: 3 | P11: 98 | Q11: 90 | R11: 57 | S11: 17 | T11: 73 | U11: 107 | V11: 314 | W11: 219 | X11: 4800 | Y11: 268 | Z11: 235 | AA11: 128 | AB11: 363 | AC11: 83 | AD11: 3983 | AE11: 500 | AF11: 2099 | AG11: 6000 | AH11: 159 | AI11: 130 | AJ11: 67 | AK11: 1 | AL11: 31 | AM11: 722 | AN11: 464 | AO11: 181 | AP11: 184 | AQ11: 639 | AR11: 123 | AS11: 81 | AT11: 93 | AU11: 346 | AV11: 91 | AW11: 19 | AX11: 80 | AY11: 28 | AZ11: 2 | BA11: 57 | BB11: 63 | BC11: 70 | BD11: 93 | BE11: 59 | BF11: 53 | BG11: 39
A12: 2019-04-01 | J12: F84038 | L12: 4050 | M12: 232 | N12: 2937 | O12: 0 | P12: 56 | Q12: 50 | R12: 38 | S12: 5 | T12: 53 | U12: 61 | V12: 191 | W12: 128 | X12: 2106 | Y12: 224 | Z12: 152 | AA12: 102 | AB12: 251 | AC12: 58 | AD12: 2493 | AE12: 442 | AF12: 1611 | AG12: 3479 | AH12: 96 | AI12: 81 | AJ12: 50 | AK12: 3 | AL12: 10 | AM12: 491 | AN12: 347 | AO12: 180 | AP12: 124 | AQ12: 402 | AR12: 89 | AS12: 38 | AT12: 53 | AU12: 262 | AV12: 71 | AW12: 8 | AX12: 59 | AY12: 23 | AZ12: 4 | BA12: 47 | BB12: 40 | BC12: 31 | BD12: 55 | BE12: 46 | BF12: 40 | BG12: 36
A13: 2019-04-01 | J13: F84041 | L13: 7744 | M13: 447 | N13: 5811 | O13: 7 | P13: 174 | Q13: 45 | R13: 32 | S13: 6 | T13: 129 | U13: 180 | V13: 384 | W13: 294 | X13: 3542 | Y13: 414 | Z13: 351 | AA13: 215 | AB13: 434 | AC13: 111 | AD13: 4601 | AE13: 534 | AF13: 2508 | AG13: 6701 | AH13: 113 | AI13: 82 | AJ13: 35 | AK13: 3 | AL13: 20 | AM13: 904 | AN13: 598 | AO13: 323 | AP13: 263 | AQ13: 817 | AR13: 139 | AS13: 93 | AT13: 103 | AU13: 476 | AV13: 87 | AW13: 27 | AX13: 81 | AY13: 25 | AZ13: 3 | BA13: 61 | BB13: 45 | BC13: 59 | BD13: 106 | BE13: 67 | BF13: 64 | BG13: 53
A14: 2019-04-01 | J14: F84043 | L14: 2896 | M14: 168 | N14: 1735 | O14: 1 | P14: 42 | Q14: 31 | R14: 7 | S14: 5 | T14: 31 | U14: 46 | V14: 119 | W14: 80 | X14: 877 | Y14: 151 | Z14: 114 | AA14: 55 | AB14: 107 | AC14: 35 | AD14: 1313 | AE14: 209 | AF14: 511 | AG14: 2250 | AH14: 62 | AI14: 40 | AJ14: 19 | AK14: 0 | AL14: 10 | AM14: 337 | AN14: 217 | AO14: 101 | AP14: 96 | AQ14: 314 | AR14: 51 | AS14: 23 | AT14: 33 | AU14: 177 | AV14: 30 | AW14: 6 | AX14: 24 | AY14: 15 | AZ14: 0 | BA14: 15 | BB14: 19 | BC14: 23 | BD14: 37 | BE14: 35 | BF14: 35 | BG14: 25
A15: 2019-04-01 | J15: F84060 | L15: 4753 | M15: 279 | N15: 3347 | O15: 2 | P15: 76 | Q15: 36 | R15: 24 | S15: 6 | T15: 54 | U15: 81 | V15: 179 | W15: 143 | X15: 1747 | Y15: 245 | Z15: 202 | AA15: 106 | AB15: 241 | AC15: 69 | AD15: 2675 | AE15: 304 | AF15: 1293 | AG15: 3953 | AH15: 68 | AI15: 56 | AJ15: 19 | AK15: 0 | AL15: 15 | AM15: 502 | AN15: 299 | AO15: 185 | AP15: 171 | AQ15: 458 | AR15: 60 | AS15: 38 | AT15: 44 | AU15: 291 | AV15: 29 | AW15: 10 | AX15: 27 | AY15: 7 | AZ15: 1 | BA15: 20 | BB15: 18 | BC15: 14 | BD15: 41 | BE15: 46 | BF15: 41 | BG15: 29
A16: 2019-04-01 | J16: F84063 | L16: 6033 | M16: 411 | N16: 4384 | O16: 4 | P16: 138 | Q16: 47 | R16: 25 | S16: 7 | T16: 116 | U16: 143 | V16: 266 | W16: 205 | X16: 2058 | Y16: 347 | Z16: 281 | AA16: 144 | AB16: 353 | AC16: 86 | AD16: 3684 | AE16: 703 | AF16: 2215 | AG16: 5174 | AH16: 84 | AI16: 69 | AJ16: 22 | AK16: 0 | AL16: 23 | AM16: 672 | AN16: 472 | AO16: 306 | AP16: 250 | AQ16: 619 | AR16: 123 | AS16: 86 | AT16: 105 | AU16: 435 | AV16: 70 | AW16: 16 | AX16: 64 | AY16: 31 | AZ16: 0 | BA16: 58 | BB16: 49 | BC16: 22 | BD16: 95 | BE16: 58 | BF16: 53 | BG16: 39
A17: 2019-04-01 | J17: F84069 | L17: 14524 | M17: 654 | N17: 10266 | O17: 3 | P17: 213 | Q17: 122 | R17: 85 | S17: 22 | T17: 166 | U17: 223 | V17: 591 | W17: 425 | X17: 4378 | Y17: 559 | Z17: 460 | AA17: 295 | AB17: 620 | AC17: 194 | AD17: 7263 | AE17: 1108 | AF17: 3575 | AG17: 11843 | AH17: 268 | AI17: 226 | AJ17: 98 | AK17: 3 | AL17: 51 | AM17: 1360 | AN17: 960 | AO17: 439 | AP17: 355 | AQ17: 1274 | AR17: 217 | AS17: 129 | AT17: 161 | AU17: 677 | AV17: 245 | AW17: 53 | AX17: 217 | AY17: 108 | AZ17: 3 | BA17: 164 | BB17: 172 | BC17: 192 | BD17: 175 | BE17: 118 | BF17: 110 | BG17: 89
A18: 2019-04-01 | J18: F84072 | L18: 10731 | M18: 241 | N18: 8619 | O18: 8 | P18: 67 | Q18: 29 | R18: 20 | S18: 5 | T18: 50 | U18: 72 | V18: 192 | W18: 131 | X18: 2392 | Y18: 212 | Z18: 164 | AA18: 92 | AB18: 227 | AC18: 64 | AD18: 5993 | AE18: 544 | AF18: 2284 | AG18: 9301 | AH18: 93 | AI18: 87 | AJ18: 31 | AK18: 1 | AL18: 19 | AM18: 490 | AN18: 279 | AO18: 144 | AP18: 140 | AQ18: 451 | AR18: 56 | AS18: 30 | AT18: 37 | AU18: 247 | AV18: 59 | AW18: 14 | AX18: 58 | AY18: 32 | AZ18: 2 | BA18: 34 | BB18: 25 | BC18: 34 | BD18: 45 | BE18: 48 | BF18: 42 | BG18: 26
A19: 2019-04-01 | J19: F84080 | L19: 4823 | M19: 322 | N19: 2898 | O19: 2 | P19: 93 | Q19: 28 | R19: 20 | S19: 6 | T19: 74 | U19: 102 | V19: 303 | W19: 233 | X19: 1439 | Y19: 293 | Z19: 240 | AA19: 99 | AB19: 267 | AC19: 68 | AD19: 2601 | AE19: 265 | AF19: 1313 | AG19: 3622 | AH19: 61 | AI19: 38 | AJ19: 18 | AK19: 1 | AL19: 2 | AM19: 687 | AN19: 467 | AO19: 204 | AP19: 189 | AQ19: 622 | AR19: 106 | AS19: 68 | AT19: 87 | AU19: 345 | AV19: 68 | AW19: 24 | AX19: 63 | AY19: 27 | AZ19: 5 | BA19: 43 | BB19: 41 | BC19: 30 | BD19: 92 | BE19: 35 | BF19: 33 | BG19: 25
A20: 2019-04-01 | J20: F84096 | L20: 13172 | M20: 628 | N20: 9134 | O20: 8 | P20: 277 | Q20: 145 | R20: 63 | S20: 29 | T20: 217 | U20: 298 | V20: 616 | W20: 429 | X20: 4388 | Y20: 565 | Z20: 455 | AA20: 233 | AB20: 579 | AC20: 161 | AD20: 7059 | AE20: 968 | AF20: 2942 | AG20: 10896 | AH20: 231 | AI20: 172 | AJ20: 81 | AK20: 5 | AL20: 38 | AM20: 1189 | AN20: 838 | AO20: 473 | AP20: 352 | AQ20: 1106 | AR20: 228 | AS20: 117 | AT20: 157 | AU20: 660 | AV20: 240 | AW20: 47 | AX20: 213 | AY20: 86 | AZ20: 9 | BA20: 174 | BB20: 193 | BC20: 173 | BD20: 179 | BE20: 128 | BF20: 113 | BG20: 92
A21: 2019-04-01 | J21: F84105 | L21: 11604 | M21: 590 | N21: 7988 | O21: 13 | P21: 158 | Q21: 55 | R21: 47 | S21: 7 | T21: 120 | U21: 167 | V21: 420 | W21: 265 | X21: 4502 | Y21: 550 | Z21: 399 | AA21: 216 | AB21: 562 | AC21: 148 | AD21: 6608 | AE21: 730 | AF21: 3267 | AG21: 9338 | AH21: 135 | AI21: 111 | AJ21: 43 | AK21: 3 | AL21: 22 | AM21: 1078 | AN21: 725 | AO21: 437 | AP21: 366 | AQ21: 1002 | AR21: 144 | AS21: 62 | AT21: 82 | AU21: 623 | AV21: 101 | AW21: 28 | AX21: 89 | AY21: 31 | AZ21: 3 | BA21: 80 | BB21: 58 | BC21: 54 | BD21: 105 | BE21: 102 | BF21: 97 | BG21: 70
A22: 2019-04-01 | J22: F84115 | L22: 8688 | M22: 284 | N22: 6398 | O22: 6 | P22: 100 | Q22: 28 | R22: 15 | S22: 7 | T22: 78 | U22: 110 | V22: 277 | W22: 176 | X22: 2647 | Y22: 244 | Z22: 201 | AA22: 76 | AB22: 187 | AC22: 70 | AD22: 4491 | AE22: 456 | AF22: 1557 | AG22: 7323 | AH22: 95 | AI22: 71 | AJ22: 28 | AK22: 1 | AL22: 26 | AM22: 614 | AN22: 413 | AO22: 188 | AP22: 162 | AQ22: 566 | AR22: 144 | AS22: 80 | AT22: 97 | AU22: 300 | AV22: 138 | AW22: 29 | AX22: 114 | AY22: 50 | AZ22: 7 | BA22: 94 | BB22: 101 | BC22: 103 | BD22: 103 | BE22: 71 | BF22: 66 | BG22: 52
A23: 2019-04-01 | J23: F84117 | L23: 10064 | M23: 438 | N23: 7331 | O23: 4 | P23: 120 | Q23: 54 | R23: 27 | S23: 11 | T23: 100 | U23: 125 | V23: 376 | W23: 262 | X23: 3001 | Y23: 377 | Z23: 330 | AA23: 131 | AB23: 338 | AC23: 87 | AD23: 5368 | AE23: 613 | AF23: 2203 | AG23: 8462 | AH23: 138 | AI23: 102 | AJ23: 40 | AK23: 1 | AL23: 36 | AM23: 866 | AN23: 626 | AO23: 303 | AP23: 272 | AQ23: 802 | AR23: 164 | AS23: 93 | AT23: 121 | AU23: 454 | AV23: 112 | AW23: 36 | AX23: 100 | AY23: 38 | AZ23: 3 | BA23: 81 | BB23: 70 | BC23: 75 | BD23: 136 | BE23: 121 | BF23: 112 | BG23: 103
A24: 2019-04-01 | J24: F84119 | L24: 12349 | M24: 541 | N24: 8961 | O24: 8 | P24: 179 | Q24: 109 | R24: 58 | S24: 18 | T24: 162 | U24: 185 | V24: 463 | W24: 388 | X24: 4856 | Y24: 498 | Z24: 385 | AA24: 242 | AB24: 607 | AC24: 152 | AD24: 7371 | AE24: 851 | AF24: 4079 | AG24: 10327 | AH24: 184 | AI24: 164 | AJ24: 79 | AK24: 12 | AL24: 41 | AM24: 1083 | AN24: 833 | AO24: 364 | AP24: 321 | AQ24: 967 | AR24: 171 | AS24: 113 | AT24: 154 | AU24: 561 | AV24: 145 | AW24: 23 | AX24: 135 | AY24: 59 | AZ24: 6 | BA24: 102 | BB24: 82 | BC24: 74 | BD24: 136 | BE24: 92 | BF24: 90 | BG24: 73
A25: 2019-04-01 | J25: F84601 | L25: 6849 | M25: 299 | N25: 4522 | O25: 5 | P25: 109 | Q25: 65 | R25: 53 | S25: 6 | T25: 91 | U25: 113 | V25: 232 | W25: 186 | X25: 3520 | Y25: 278 | Z25: 234 | AA25: 121 | AB25: 321 | AC25: 85 | AD25: 3134 | AE25: 430 | AF25: 1613 | AG25: 5525 | AH25: 113 | AI25: 93 | AJ25: 51 | AK25: 4 | AL25: 18 | AM25: 592 | AN25: 471 | AO25: 178 | AP25: 176 | AQ25: 533 | AR25: 92 | AS25: 64 | AT25: 78 | AU25: 311 | AV25: 73 | AW25: 17 | AX25: 70 | AY25: 37 | AZ25: 0 | BA25: 47 | BB25: 33 | BC25: 56 | BD25: 70 | BE25: 45 | BF25: 41 | BG25: 37
A26: 2019-04-01 | J26: F84619 | L26: 4450 | M26: 219 | N26: 2956 | O26: 0 | P26: 59 | Q26: 26 | R26: 19 | S26: 3 | T26: 41 | U26: 65 | V26: 183 | W26: 132 | X26: 1705 | Y26: 200 | Z26: 176 | AA26: 125 | AB26: 207 | AC26: 42 | AD26: 2452 | AE26: 400 | AF26: 1374 | AG26: 3513 | AH26: 56 | AI26: 43 | AJ26: 20 | AK26: 1 | AL26: 10 | AM26: 414 | AN26: 257 | AO26: 160 | AP26: 129 | AQ26: 371 | AR26: 67 | AS26: 40 | AT26: 49 | AU26: 235 | AV26: 33 | AW26: 13 | AX26: 31 | AY26: 7 | AZ26: 0 | BA26: 26 | BB26: 24 | BC26: 16 | BD26: 50 | BE26: 58 | BF26: 52 | BG26: 44
A27: 2019-04-01 | J27: F84620 | L27: 6358 | M27: 381 | N27: 4152 | O27: 4 | P27: 136 | Q27: 45 | R27: 37 | S27: 8 | T27: 108 | U27: 142 | V27: 291 | W27: 210 | X27: 2158 | Y27: 341 | Z27: 293 | AA27: 156 | AB27: 367 | AC27: 100 | AD27: 3363 | AE27: 491 | AF27: 1749 | AG27: 5127 | AH27: 109 | AI27: 90 | AJ27: 39 | AK27: 3 | AL27: 21 | AM27: 747 | AN27: 538 | AO27: 224 | AP27: 242 | AQ27: 690 | AR27: 128 | AS27: 68 | AT27: 85 | AU27: 395 | AV27: 77 | AW27: 35 | AX27: 72 | AY27: 29 | AZ27: 1 | BA27: 49 | BB27: 56 | BC27: 70 | BD27: 94 | BE27: 81 | BF27: 68 | BG27: 52
A28: 2019-04-01 | J28: F84621 | L28: 3732 | M28: 296 | N28: 2596 | O28: 4 | P28: 83 | Q28: 53 | R28: 39 | S28: 8 | T28: 64 | U28: 89 | V28: 207 | W28: 173 | X28: 1759 | Y28: 255 | Z28: 206 | AA28: 100 | AB28: 233 | AC28: 62 | AD28: 2101 | AE28: 301 | AF28: 1221 | AG28: 3109 | AH28: 86 | AI28: 68 | AJ28: 25 | AK28: 1 | AL28: 16 | AM28: 588 | AN28: 429 | AO28: 204 | AP28: 168 | AQ28: 555 | AR28: 70 | AS28: 47 | AT28: 55 | AU28: 301 | AV28: 51 | AW28: 17 | AX28: 45 | AY28: 20 | AZ28: 2 | BA28: 38 | BB28: 31 | BC28: 33 | BD28: 58 | BE28: 57 | BF28: 54 | BG28: 40
A29: 2019-04-01 | J29: F84624 | L29: 2717 | M29: 147 | N29: 2059 | O29: 1 | P29: 54 | Q29: 30 | R29: 15 | S29: 4 | T29: 43 | U29: 56 | V29: 79 | W29: 57 | X29: 994 | Y29: 131 | Z29: 105 | AA29: 42 | AB29: 89 | AC29: 24 | AD29: 1450 | AE29: 115 | AF29: 630 | AG29: 2352 | AH29: 48 | AI29: 31 | AJ29: 6 | AK29: 0 | AL29: 11 | AM29: 294 | AN29: 204 | AO29: 103 | AP29: 78 | AQ29: 261 | AR29: 70 | AS29: 39 | AT29: 48 | AU29: 156 | AV29: 46 | AW29: 25 | AX29: 41 | AY29: 11 | AZ29: 1 | BA29: 31 | BB29: 33 | BC29: 23 | BD29: 42 | BE29: 45 | BF29: 38 | BG29: 34
A30: 2019-04-01 | J30: F84632 | L30: 1065 | M30: 54 | N30: 983 | O30: 3 | P30: 14 | Q30: 39 | R30: 19 | S30: 2 | T30: 11 | U30: 15 | V30: 49 | W30: 36 | X30: 608 | Y30: 44 | Z30: 42 | AA30: 29 | AB30: 88 | AC30: 12 | AD30: 732 | AE30: 362 | AF30: 610 | AG30: 1065 | AH30: 89 | AI30: 83 | AJ30: 62 | AK30: 5 | AL30: 9 | AM30: 121 | AN30: 58 | AO30: 37 | AP30: 32 | AQ30: 103 | AR30: 23 | AS30: 14 | AT30: 18 | AU30: 59 | AV30: 38 | AW30: 14 | AX30: 36 | AY30: 23 | AZ30: 1 | BA30: 26 | BB30: 30 | BC30: 22 | BD30: 14 | BE30: 10 | BF30: 10 | BG30: 5
A31: 2019-04-01 | J31: F84635 | L31: 8849 | M31: 315 | N31: 6214 | O31: 5 | P31: 83 | Q31: 35 | R31: 21 | S31: 4 | T31: 55 | U31: 87 | V31: 276 | W31: 174 | X31: 2202 | Y31: 263 | Z31: 214 | AA31: 137 | AB31: 352 | AC31: 81 | AD31: 5214 | AE31: 747 | AF31: 2373 | AG31: 7512 | AH31: 122 | AI31: 77 | AJ31: 37 | AK31: 1 | AL31: 12 | AM31: 690 | AN31: 421 | AO31: 227 | AP31: 174 | AQ31: 631 | AR31: 100 | AS31: 58 | AT31: 67 | AU31: 330 | AV31: 98 | AW31: 19 | AX31: 78 | AY31: 31 | AZ31: 2 | BA31: 76 | BB31: 77 | BC31: 81 | BD31: 77 | BE31: 66 | BF31: 60 | BG31: 44
A32: 2019-04-01 | J32: F84636 | L32: 4929 | M32: 182 | N32: 3771 | O32: 5 | P32: 42 | Q32: 29 | R32: 17 | S32: 6 | T32: 33 | U32: 48 | V32: 140 | W32: 99 | X32: 1553 | Y32: 160 | Z32: 132 | AA32: 71 | AB32: 161 | AC32: 39 | AD32: 2880 | AE32: 402 | AF32: 1503 | AG32: 4328 | AH32: 68 | AI32: 53 | AJ32: 18 | AK32: 1 | AL32: 13 | AM32: 376 | AN32: 258 | AO32: 145 | AP32: 93 | AQ32: 337 | AR32: 43 | AS32: 23 | AT32: 28 | AU32: 197 | AV32: 22 | AW32: 8 | AX32: 20 | AY32: 4 | AZ32: 0 | BA32: 12 | BB32: 13 | BC32: 12 | BD32: 32 | BE32: 37 | BF32: 33 | BG32: 28
A33: 2019-04-01 | J33: F84640 | L33: 9272 | M33: 245 | N33: 7213 | O33: 35 | P33: 238 | Q33: 24 | R33: 9 | S33: 6 | T33: 204 | U33: 264 | V33: 412 | W33: 271 | X33: 3050 | Y33: 219 | Z33: 174 | AA33: 93 | AB33: 239 | AC33: 41 | AD33: 6143 | AE33: 325 | AF33: 2015 | AG33: 8517 | AH33: 85 | AI33: 64 | AJ33: 16 | AK33: 1 | AL33: 25 | AM33: 951 | AN33: 729 | AO33: 174 | AP33: 170 | AQ33: 882 | AR33: 181 | AS33: 92 | AT33: 117 | AU33: 255 | AV33: 65 | AW33: 9 | AX33: 64 | AY33: 19 | AZ33: 2 | BA33: 51 | BB33: 51 | BC33: 29 | BD33: 147 | BE33: 118 | BF33: 111 | BG33: 96
A34: 2019-04-01 | J34: F84668 | L34: 6589 | M34: 273 | N34: 3227 | O34: 2 | P34: 87 | Q34: 32 | R34: 29 | S34: 4 | T34: 65 | U34: 97 | V34: 217 | W34: 165 | X34: 1782 | Y34: 253 | Z34: 204 | AA34: 164 | AB34: 370 | AC34: 82 | AD34: 3139 | AE34: 278 | AF34: 1781 | AG34: 4360 | AH34: 65 | AI34: 58 | AJ34: 19 | AK34: 11 | AL34: 7 | AM34: 489 | AN34: 340 | AO34: 219 | AP34: 176 | AQ34: 454 | AR34: 56 | AS34: 36 | AT34: 41 | AU34: 297 | AV34: 27 | AW34: 7 | AX34: 24 | AY34: 9 | AZ34: 5 | BA34: 23 | BB34: 24 | BC34: 23 | BD34: 33 | BE34: 38 | BF34: 37 | BG34: 27
A35: 2019-04-01 | J35: F84685 | L35: 2965 | M35: 133 | N35: 1917 | O35: 1 | P35: 39 | Q35: 12 | R35: 10 | S35: 2 | T35: 36 | U35: 43 | V35: 138 | W35: 94 | X35: 895 | Y35: 129 | Z35: 90 | AA35: 52 | AB35: 106 | AC35: 18 | AD35: 1499 | AE35: 142 | AF35: 678 | AG35: 2270 | AH35: 38 | AI35: 24 | AJ35: 7 | AK35: 0 | AL35: 5 | AM35: 261 | AN35: 193 | AO35: 86 | AP35: 82 | AQ35: 238 | AR35: 39 | AS35: 22 | AT35: 32 | AU35: 138 | AV35: 26 | AW35: 8 | AX35: 21 | AY35: 8 | AZ35: 1 | BA35: 19 | BB35: 15 | BC35: 17 | BD35: 34 | BE35: 20 | BF35: 16 | BG35: 15
A36: 2019-04-01 | J36: F84686 | L36: 7820 | M36: 180 | N36: 2862 | O36: 0 | P36: 53 | Q36: 21 | R36: 19 | S36: 4 | T36: 46 | U36: 56 | V36: 167 | W36: 140 | X36: 1057 | Y36: 159 | Z36: 136 | AA36: 104 | AB36: 246 | AC36: 50 | AD36: 2709 | AE36: 128 | AF36: 1054 | AG36: 4258 | AH36: 50 | AI36: 39 | AJ36: 5 | AK36: 0 | AL36: 7 | AM36: 367 | AN36: 295 | AO36: 112 | AP36: 99 | AQ36: 355 | AR36: 74 | AS36: 54 | AT36: 62 | AU36: 183 | AV36: 8 | AW36: 1 | AX36: 7 | AY36: 4 | AZ36: 0 | BA36: 5 | BB36: 4 | BC36: 7 | BD36: 46 | BE36: 30 | BF36: 27 | BG36: 26
A37: 2019-04-01 | J37: F84692 | L37: 7157 | M37: 213 | N37: 4644 | O37: 3 | P37: 60 | Q37: 37 | R37: 8 | S37: 3 | T37: 47 | U37: 64 | V37: 224 | W37: 119 | X37: 1957 | Y37: 189 | Z37: 140 | AA37: 105 | AB37: 227 | AC37: 43 | AD37: 3730 | AE37: 447 | AF37: 1640 | AG37: 6215 | AH37: 69 | AI37: 50 | AJ37: 26 | AK37: 3 | AL37: 9 | AM37: 447 | AN37: 310 | AO37: 159 | AP37: 125 | AQ37: 393 | AR37: 76 | AS37: 32 | AT37: 39 | AU37: 230 | AV37: 78 | AW37: 18 | AX37: 69 | AY37: 31 | AZ37: 2 | BA37: 61 | BB37: 66 | BC37: 49 | BD37: 61 | BE37: 45 | BF37: 40 | BG37: 33
A38: 2019-04-01 | J38: F84694 | L38: 4578 | M38: 210 | N38: 3501 | O38: 1 | P38: 58 | Q38: 29 | R38: 24 | S38: 2 | T38: 45 | U38: 59 | V38: 172 | W38: 139 | X38: 1885 | Y38: 176 | Z38: 165 | AA38: 76 | AB38: 217 | AC38: 44 | AD38: 2849 | AE38: 476 | AF38: 1931 | AG38: 4042 | AH38: 50 | AI38: 41 | AJ38: 12 | AK38: 0 | AL38: 7 | AM38: 367 | AN38: 213 | AO38: 163 | AP38: 128 | AQ38: 328 | AR38: 58 | AS38: 43 | AT38: 45 | AU38: 221 | AV38: 32 | AW38: 7 | AX38: 28 | AY38: 12 | AZ38: 1 | BA38: 22 | BB38: 17 | BC38: 24 | BD38: 33 | BE38: 22 | BF38: 19 | BG38: 16
A39: 2019-04-01 | J39: F84711 | L39: 1928 | M39: 162 | N39: 1315 | O39: 1 | P39: 38 | Q39: 17 | R39: 14 | S39: 6 | T39: 29 | U39: 40 | V39: 116 | W39: 87 | X39: 757 | Y39: 141 | Z39: 121 | AA39: 56 | AB39: 116 | AC39: 37 | AD39: 1179 | AE39: 152 | AF39: 621 | AG39: 1611 | AH39: 26 | AI39: 23 | AJ39: 8 | AK39: 2 | AL39: 4 | AM39: 282 | AN39: 171 | AO39: 151 | AP39: 91 | AQ39: 269 | AR39: 31 | AS39: 13 | AT39: 18 | AU39: 166 | AV39: 27 | AW39: 8 | AX39: 26 | AY39: 13 | AZ39: 5 | BA39: 25 | BB39: 13 | BC39: 9 | BD39: 22 | BE39: 22 | BF39: 19 | BG39: 13
A40: 2019-04-01 | J40: F84716 | L40: 5608 | M40: 195 | N40: 3434 | O40: 2 | P40: 94 | Q40: 49 | R40: 22 | S40: 10 | T40: 74 | U40: 101 | V40: 191 | W40: 140 | X40: 1550 | Y40: 182 | Z40: 144 | AA40: 85 | AB40: 222 | AC40: 57 | AD40: 3022 | AE40: 276 | AF40: 1525 | AG40: 4199 | AH40: 91 | AI40: 77 | AJ40: 24 | AK40: 3 | AL40: 11 | AM40: 386 | AN40: 285 | AO40: 116 | AP40: 117 | AQ40: 364 | AR40: 70 | AS40: 41 | AT40: 50 | AU40: 202 | AV40: 43 | AW40: 10 | AX40: 42 | AY40: 14 | AZ40: 1 | BA40: 32 | BB40: 35 | BC40: 11 | BD40: 55 | BE40: 39 | BF40: 37 | BG40: 31
A41: 2019-04-01 | J41: F84719 | L41: 5170 | M41: 295 | N41: 3612 | O41: 9 | P41: 98 | Q41: 40 | R41: 31 | S41: 12 | T41: 82 | U41: 102 | V41: 222 | W41: 161 | X41: 1605 | Y41: 277 | Z41: 222 | AA41: 101 | AB41: 256 | AC41: 74 | AD41: 3348 | AE41: 352 | AF41: 1736 | AG41: 4388 | AH41: 81 | AI41: 73 | AJ41: 20 | AK41: 4 | AL41: 10 | AM41: 617 | AN41: 452 | AO41: 239 | AP41: 182 | AQ41: 563 | AR41: 138 | AS41: 86 | AT41: 103 | AU41: 313 | AV41: 83 | AW41: 25 | AX41: 77 | AY41: 25 | AZ41: 3 | BA41: 76 | BB41: 59 | BC41: 55 | BD41: 89 | BE41: 84 | BF41: 81 | BG41: 71
A42: 2019-04-01 | J42: F84720 | L42: 5475 | M42: 335 | N42: 3247 | O42: 5 | P42: 131 | Q42: 48 | R42: 36 | S42: 8 | T42: 106 | U42: 143 | V42: 313 | W42: 224 | X42: 2053 | Y42: 292 | Z42: 257 | AA42: 136 | AB42: 317 | AC42: 85 | AD42: 2826 | AE42: 390 | AF42: 1582 | AG42: 4161 | AH42: 88 | AI42: 66 | AJ42: 29 | AK42: 1 | AL42: 13 | AM42: 800 | AN42: 555 | AO42: 210 | AP42: 180 | AQ42: 743 | AR42: 152 | AS42: 97 | AT42: 125 | AU42: 370 | AV42: 81 | AW42: 15 | AX42: 75 | AY42: 21 | AZ42: 2 | BA42: 56 | BB42: 44 | BC42: 74 | BD42: 117 | BE42: 81 | BF42: 77 | BG42: 62
A43: 2019-04-01 | J43: Y00403 | L43: 6364 | M43: 188 | N43: 4712 | O43: 2 | P43: 46 | Q43: 45 | R43: 22 | S43: 8 | T43: 36 | U43: 50 | V43: 105 | W43: 69 | X43: 1521 | Y43: 176 | Z43: 149 | AA43: 95 | AB43: 193 | AC43: 63 | AD43: 3450 | AE43: 546 | AF43: 1684 | AG43: 5362 | AH43: 81 | AI43: 64 | AJ43: 27 | AK43: 2 | AL43: 13 | AM43: 400 | AN43: 276 | AO43: 143 | AP43: 116 | AQ43: 368 | AR43: 48 | AS43: 26 | AT43: 29 | AU43: 194 | AV43: 36 | AW43: 11 | AX43: 35 | AY43: 16 | AZ43: 2 | BA43: 33 | BB43: 24 | BC43: 24 | BD43: 38 | BE43: 28 | BF43: 28 | BG43: 22
A44: 2019-04-01 | J44: Y03049 | L44: 14372 | M44: 608 | N44: 8826 | O44: 7 | P44: 188 | Q44: 96 | R44: 56 | S44: 20 | T44: 132 | U44: 195 | V44: 492 | W44: 362 | X44: 4608 | Y44: 549 | Z44: 462 | AA44: 251 | AB44: 612 | AC44: 154 | AD44: 6897 | AE44: 811 | AF44: 3272 | AG44: 10559 | AH44: 190 | AI44: 160 | AJ44: 70 | AK44: 8 | AL44: 27 | AM44: 1122 | AN44: 766 | AO44: 405 | AP44: 347 | AQ44: 1076 | AR44: 179 | AS44: 103 | AT44: 123 | AU44: 620 | AV44: 96 | AW44: 22 | AX44: 87 | AY44: 44 | AZ44: 9 | BA44: 70 | BB44: 60 | BC44: 79 | BD44: 145 | BE44: 76 | BF44: 74 | BG44: 55
A45: 2019-04-01 | J45: Total | L45: 323614 | M45: 14557 | N45: 219322 | O45: 230 | P45: 4890 | Q45: 2268 | R45: 1369 | S45: 368 | T45: 3818 | U45: 5195 | V45: 12416 | W45: 8981 | X45: 109973 | Y45: 13007 | Z45: 10636 | AA45: 5908 | AB45: 13865 | AC45: 3597 | AD45: 173536 | AE45: 21782 | AF45: 85169 | AG45: 261008 | AH45: 4670 | AI45: 3699 | AJ45: 1586 | AK45: 115 | AL45: 797 | AM45: 29702 | AN45: 20621 | AO45: 10086 | AP45: 8562 | AQ45: 27339 | AR45: 4927 | AS45: 2902 | AT45: 3614 | AU45: 15290 | AV45: 3495 | AW45: 870 | AX45: 3153 | AY45: 1326 | AZ45: 116 | BA45: 2519 | BB45: 2338 | BC45: 2329 | BD45: 3763 | BE45: 2851 | BF45: 2644 | BG45: 2099

Sheet Data 17-18 (hidden)
A1: 2019-03-01 | C1: 01 LDP | E1: Last Run: | G1: Population Count | H1: 1465547 | K1: Search | L1: 01. Listsize | M1: LDP.04.15.01 Diabetes HbA1C <=7.5% OR <=59mmol (15m) *REMOVE* | N1: LDP.04.11: Diabetes and BP in last 12 months | O1: LDP.05: CVD 25-84yrs (excl CVD) | P1: LDP.08.02 CKD Diagnosed (Last 6m) | Q1: LDP.08.03 CKD and BP Recorded (last 12 m) | R1: CSPMH. 01.03 QRisk Recorded (12m) | S1: CSPMH. 01.03.01 BP recorded on same day as QRisk (12m) | T1: CSPMH. 01.03.02 Qrisk>=20 (12m) | U1: LDP.08.01 CKD and BP less than 140/90 (last 12 m) | V1: LDP.08 CKD Register | W1: LDP.05.01: CVD QRISK greater than or equal 20% | X1: LDP.05.01.01: CVD Proxy Annual Review (last 12m) | Y1: LDP.05.02: Cardiovascular Risk Score Done (5y) | Z1: LDP.04.09: Diabetes BP less than 145/85 (last 12m) | AA1: LDP.04.08: Diabetes Chol less than 5mmol (last 12m) | AB1: LDP.01.01.01: Obesity BMI more than or equal to 35 less than 40 (last 12m) | AC1: LDP.01.01.02: Obesity BMI between 30-35 (last 12m) | AD1: LDP.01.01.03: Obesity BMI equal to or over 40 (last 12m) | AE1: LDP.01.02: Smoking Status (last 12m) or Never Smoked (25yrs+) | AF1: LDP.01.03: Current Smoker (last 12m) | AG1: LDP.01.01: Obesity BMI recorded (last 12m) | AH1: LDP.01: Aged 16yrs+ | AI1: CSPMH.01 SMI Register | AJ1: CSPMH.01.02 Smoking Status Recorded (12m) | AK1: CSPMH.01.02.01 Current Smoker (15m) | AL1: CSPMH 01.02.01.01 Ref to clinic 15m | AM1: CSPMH.01.02.02 Ex-smoker Recorded (latest 15m) | AN1: LDP.02: Hypertension Register | AO1: LDP.02.01: Hypertension and BP < 140/90 (age under 80) < 150/90 (Age 80+) | AP1: LDP.04.03: Diabetes Digital retinal screening or Seen by retinal screener *REMOV | AQ1: LDP.04.07: Diabetes Influenza Vaccinations (last 12m) | AR1: LDP.04.01: Diabetes HbA1c <7.5% OR <59mmol (last 12m) | AS1: LDP.02.02: Hypertension BP recorded (last 12m) | AT1: LDP.03: CHD Register | AU1: LDP.03.01: CHD Chol less than 5mmol (last 12m) | AV1: LDP.03.04: CHD Cholesterol recorded (last 12m) | AW1: LDP.04: Diabetes Register | AX1: LDP.09 COPD Register | AY1: LDP.09.01 Patients with severe or very severe COPD (FEV1<50) | AZ1: LDP.09.02 Patients with smoking status recorded (last 12m) or never smoked | BA1: LDP.09.03 COPD patients recorded as a Smoker | BB1: LDP.09.04 COPD Patients who are current smokers & referred to the Stop Smoking C | BC1: LDP.09.05 No of COPD with flu vaccination (12m) | BD1: LDP.09.06 No of COPD with pneumococcal vaccination ever | BE1: LDP.09.07 No of COPD patients referred to pulmonary rehab ever | BF1: LDP.03.02: CHD BP less than or equal 150/90 (last 9m)
A2: 2019-03-01 | E2: 2019-04-02T10:56:00 | G2: Males | H2: 711969 | J2: Organisation Code
A3: 2019-03-01 | E3: Relative Date: | G3: Females | H3: 753578 | J3: F84003 | L3: 12716 | M3: 1 | N3: 693 | O3: 8617 | P3: 12 | Q3: 205 | R3: 125 | S3: 38 | T3: 16 | U3: 150 | V3: 215 | W3: 586 | X3: 391 | Y3: 4205 | Z3: 636 | AA3: 493 | AB3: 274 | AC3: 567 | AD3: 139 | AE3: 6594 | AF3: 1015 | AG3: 2979 | AH3: 10265 | AI3: 237 | AJ3: 174 | AK3: 86 | AL3: 2 | AM3: 35 | AN3: 1385 | AO3: 1005 | AP3: 473 | AQ3: 441 | AR3: 388 | AS3: 1317 | AT3: 274 | AU3: 156 | AV3: 192 | AW3: 711 | AX3: 171 | AY3: 39 | AZ3: 155 | BA3: 70 | BB3: 3 | BC3: 119 | BD3: 106 | BE3: 136 | BF3: 227
A4: 2019-03-01 | E4: 2019-04-01 | J4: F84008 | L4: 12659 | M4: 3 | N4: 568 | O4: 9008 | P4: 17 | Q4: 221 | R4: 123 | S4: 54 | T4: 17 | U4: 163 | V4: 229 | W4: 585 | X4: 396 | Y4: 5266 | Z4: 491 | AA4: 428 | AB4: 186 | AC4: 434 | AD4: 115 | AE4: 6227 | AF4: 702 | AG4: 3182 | AH4: 10408 | AI4: 245 | AJ4: 184 | AK4: 77 | AL4: 4 | AM4: 51 | AN4: 1286 | AO4: 863 | AP4: 355 | AQ4: 374 | AR4: 362 | AS4: 1191 | AT4: 224 | AU4: 138 | AV4: 162 | AW4: 584 | AX4: 160 | AY4: 47 | AZ4: 149 | BA4: 74 | BB4: 1 | BC4: 118 | BD4: 112 | BE4: 115 | BF4: 152
A5: 2019-03-01 | J5: F84013 | L5: 15006 | M5: 0 | N5: 496 | O5: 6496 | P5: 17 | Q5: 178 | R5: 63 | S5: 40 | T5: 10 | U5: 145 | V5: 185 | W5: 477 | X5: 366 | Y5: 2726 | Z5: 459 | AA5: 401 | AB5: 215 | AC5: 469 | AD5: 102 | AE5: 5545 | AF5: 356 | AG5: 2280 | AH5: 9000 | AI5: 162 | AJ5: 110 | AK5: 34 | AL5: 4 | AM5: 13 | AN5: 990 | AO5: 748 | AP5: 377 | AQ5: 295 | AR5: 296 | AS5: 908 | AT5: 181 | AU5: 118 | AV5: 137 | AW5: 520 | AX5: 88 | AY5: 22 | AZ5: 80 | BA5: 32 | BB5: 3 | BC5: 59 | BD5: 65 | BE5: 58 | BF5: 145
A6: 2019-03-01 | J6: F84015 | L6: 5403 | M6: 0 | N6: 413 | O6: 3387 | P6: 5 | Q6: 164 | R6: 52 | S6: 35 | T6: 10 | U6: 134 | V6: 171 | W6: 265 | X6: 238 | Y6: 2231 | Z6: 393 | AA6: 329 | AB6: 174 | AC6: 428 | AD6: 144 | AE6: 3116 | AF6: 479 | AG6: 1927 | AH6: 4269 | AI6: 87 | AJ6: 77 | AK6: 40 | AL6: 4 | AM6: 15 | AN6: 832 | AO6: 637 | AP6: 48 | AQ6: 303 | AR6: 259 | AS6: 798 | AT6: 106 | AU6: 79 | AV6: 98 | AW6: 420 | AX6: 87 | AY6: 14 | AZ6: 84 | BA6: 30 | BB6: 9 | BC6: 69 | BD6: 52 | BE6: 43 | BF6: 94
A7: 2019-03-01 | J7: F84018 | L7: 11693 | M7: 0 | N7: 606 | O7: 7954 | P7: 4 | Q7: 188 | R7: 101 | S7: 76 | T7: 17 | U7: 143 | V7: 190 | W7: 469 | X7: 394 | Y7: 5038 | Z7: 563 | AA7: 432 | AB7: 251 | AC7: 608 | AD7: 187 | AE7: 6319 | AF7: 911 | AG7: 3678 | AH7: 9368 | AI7: 200 | AJ7: 180 | AK7: 77 | AL7: 14 | AM7: 33 | AN7: 1100 | AO7: 823 | AP7: 416 | AQ7: 390 | AR7: 350 | AS7: 1051 | AT7: 188 | AU7: 123 | AV7: 174 | AW7: 619 | AX7: 119 | AY7: 34 | AZ7: 115 | BA7: 47 | BB7: 3 | BC7: 89 | BD7: 73 | BE7: 83 | BF7: 151
A8: 2019-03-01 | J8: F84021 | L8: 10392 | M8: 0 | N8: 452 | O8: 7692 | P8: 8 | Q8: 183 | R8: 70 | S8: 46 | T8: 10 | U8: 143 | V8: 192 | W8: 387 | X8: 312 | Y8: 3551 | Z8: 409 | AA8: 344 | AB8: 170 | AC8: 378 | AD8: 96 | AE8: 5717 | AF8: 757 | AG8: 2519 | AH8: 8705 | AI8: 154 | AJ8: 113 | AK8: 53 | AL8: 4 | AM8: 24 | AN8: 877 | AO8: 614 | AP8: 377 | AQ8: 315 | AR8: 284 | AS8: 826 | AT8: 146 | AU8: 88 | AV8: 108 | AW8: 467 | AX8: 110 | AY8: 32 | AZ8: 101 | BA8: 47 | BB8: 1 | BC8: 80 | BD8: 78 | BE8: 84 | BF8: 114
A9: 2019-03-01 | J9: F84033 | L9: 12046 | M9: 4 | N9: 599 | O9: 8614 | P9: 0 | Q9: 209 | R9: 79 | S9: 39 | T9: 9 | U9: 174 | V9: 219 | W9: 467 | X9: 366 | Y9: 4727 | Z9: 578 | AA9: 454 | AB9: 250 | AC9: 668 | AD9: 170 | AE9: 6711 | AF9: 1211 | AG9: 3599 | AH9: 10030 | AI9: 174 | AJ9: 152 | AK9: 76 | AL9: 3 | AM9: 36 | AN9: 1228 | AO9: 962 | AP9: 490 | AQ9: 445 | AR9: 354 | AS9: 1165 | AT9: 203 | AU9: 135 | AV9: 177 | AW9: 612 | AX9: 128 | AY9: 37 | AZ9: 125 | BA9: 65 | BB9: 1 | BC9: 99 | BD9: 91 | BE9: 94 | BF9: 162
A10: 2019-03-01 | J10: F84035 | L10: 7673 | M10: 2 | N10: 248 | O10: 6113 | P10: 3 | Q10: 64 | R10: 20 | S10: 16 | T10: 5 | U10: 55 | V10: 64 | W10: 185 | X10: 133 | Y10: 1792 | Z10: 235 | AA10: 198 | AB10: 103 | AC10: 227 | AD10: 78 | AE10: 5264 | AF10: 589 | AG10: 2819 | AH10: 6877 | AI10: 48 | AJ10: 40 | AK10: 8 | AL10: 1 | AM10: 8 | AN10: 473 | AO10: 321 | AP10: 202 | AQ10: 204 | AR10: 151 | AS10: 455 | AT10: 68 | AU10: 35 | AV10: 45 | AW10: 257 | AX10: 67 | AY10: 12 | AZ10: 66 | BA10: 31 | BB10: 3 | BC10: 57 | BD10: 59 | BE10: 28 | BF10: 51
A11: 2019-03-01 | J11: F84036 | L11: 7163 | M11: 2 | N11: 324 | O11: 5113 | P11: 1 | Q11: 103 | R11: 124 | S11: 59 | T11: 20 | U11: 76 | V11: 109 | W11: 313 | X11: 238 | Y11: 4819 | Z11: 298 | AA11: 253 | AB11: 138 | AC11: 368 | AD11: 84 | AE11: 4058 | AF11: 527 | AG11: 2176 | AH11: 6029 | AI11: 161 | AJ11: 138 | AK11: 72 | AL11: 2 | AM11: 33 | AN11: 728 | AO11: 485 | AP11: 235 | AQ11: 186 | AR11: 195 | AS11: 650 | AT11: 127 | AU11: 83 | AV11: 98 | AW11: 353 | AX11: 93 | AY11: 18 | AZ11: 87 | BA11: 32 | BB11: 2 | BC11: 58 | BD11: 62 | BE11: 72 | BF11: 101
A12: 2019-03-01 | J12: F84038 | L12: 4033 | M12: 0 | N12: 243 | O12: 2921 | P12: 0 | Q12: 62 | R12: 52 | S12: 42 | T12: 5 | U12: 57 | V12: 66 | W12: 188 | X12: 145 | Y12: 2081 | Z12: 234 | AA12: 165 | AB12: 114 | AC12: 282 | AD12: 68 | AE12: 2543 | AF12: 481 | AG12: 1717 | AH12: 3460 | AI12: 94 | AJ12: 86 | AK12: 51 | AL12: 3 | AM12: 12 | AN12: 490 | AO12: 393 | AP12: 178 | AQ12: 176 | AR12: 138 | AS12: 444 | AT12: 90 | AU12: 43 | AV12: 59 | AW12: 255 | AX12: 69 | AY12: 8 | AZ12: 66 | BA12: 29 | BB12: 5 | BC12: 47 | BD12: 39 | BE12: 32 | BF12: 50
A13: 2019-03-01 | J13: F84041 | L13: 7770 | M13: 0 | N13: 462 | O13: 5836 | P13: 6 | Q13: 176 | R13: 50 | S13: 37 | T13: 5 | U13: 132 | V13: 184 | W13: 383 | X13: 310 | Y13: 3545 | Z13: 439 | AA13: 372 | AB13: 224 | AC13: 447 | AD13: 114 | AE13: 4656 | AF13: 552 | AG13: 2592 | AH13: 6724 | AI13: 121 | AJ13: 87 | AK13: 36 | AL13: 4 | AM13: 21 | AN13: 908 | AO13: 629 | AP13: 336 | AQ13: 327 | AR13: 279 | AS13: 840 | AT13: 139 | AU13: 91 | AV13: 104 | AW13: 480 | AX13: 80 | AY13: 23 | AZ13: 76 | BA13: 25 | BB13: 2 | BC13: 57 | BD13: 41 | BE13: 59 | BF13: 119
A14: 2019-03-01 | J14: F84043 | L14: 3872 | M14: 0 | N14: 301 | O14: 2329 | P14: 2 | Q14: 80 | R14: 46 | S14: 12 | T14: 7 | U14: 57 | V14: 82 | W14: 210 | X14: 153 | Y14: 1281 | Z14: 282 | AA14: 222 | AB14: 94 | AC14: 194 | AD14: 59 | AE14: 1933 | AF14: 300 | AG14: 844 | AH14: 3032 | AI14: 91 | AJ14: 68 | AK14: 29 | AL14: 0 | AM14: 17 | AN14: 590 | AO14: 434 | AP14: 160 | AQ14: 187 | AR14: 181 | AS14: 577 | AT14: 99 | AU14: 58 | AV14: 73 | AW14: 306 | AX14: 65 | AY14: 16 | AZ14: 60 | BA14: 34 | BB14: 2 | BC14: 43 | BD14: 42 | BE14: 48 | BF14: 76
A15: 2019-03-01 | J15: F84060 | L15: 4699 | M15: 0 | N15: 284 | O15: 3311 | P15: 2 | Q15: 93 | R15: 35 | S15: 22 | T15: 5 | U15: 70 | V15: 97 | W15: 178 | X15: 144 | Y15: 1727 | Z15: 261 | AA15: 200 | AB15: 105 | AC15: 245 | AD15: 68 | AE15: 2663 | AF15: 313 | AG15: 1290 | AH15: 3910 | AI15: 65 | AJ15: 54 | AK15: 23 | AL15: 0 | AM15: 11 | AN15: 497 | AO15: 312 | AP15: 185 | AQ15: 185 | AR15: 170 | AS15: 468 | AT15: 58 | AU15: 34 | AV15: 41 | AW15: 287 | AX15: 23 | AY15: 9 | AZ15: 23 | BA15: 7 | BB15: 0 | BC15: 16 | BD15: 15 | BE15: 13 | BF15: 45
A16: 2019-03-01 | J16: F84063 | L16: 6029 | M16: 1 | N16: 423 | O16: 4376 | P16: 5 | Q16: 138 | R16: 52 | S16: 27 | T16: 8 | U16: 122 | V16: 143 | W16: 267 | X16: 228 | Y16: 2051 | Z16: 389 | AA16: 307 | AB16: 149 | AC16: 358 | AD16: 88 | AE16: 3695 | AF16: 705 | AG16: 2270 | AH16: 5166 | AI16: 86 | AJ16: 71 | AK16: 24 | AL16: 0 | AM16: 21 | AN16: 670 | AO16: 511 | AP16: 293 | AQ16: 306 | AR16: 266 | AS16: 628 | AT16: 122 | AU16: 89 | AV16: 111 | AW16: 433 | AX16: 70 | AY16: 17 | AZ16: 69 | BA16: 31 | BB16: 0 | BC16: 58 | BD16: 49 | BE16: 22 | BF16: 84
A17: 2019-03-01 | J17: F84069 | L17: 14475 | M17: 2 | N17: 664 | O17: 10226 | P17: 3 | Q17: 222 | R17: 129 | S17: 86 | T17: 23 | U17: 173 | V17: 229 | W17: 586 | X17: 434 | Y17: 4355 | Z17: 588 | AA17: 497 | AB17: 289 | AC17: 612 | AD17: 195 | AE17: 7199 | AF17: 1098 | AG17: 3525 | AH17: 11803 | AI17: 278 | AJ17: 233 | AK17: 97 | AL17: 2 | AM17: 54 | AN17: 1353 | AO17: 993 | AP17: 473 | AQ17: 445 | AR17: 396 | AS17: 1277 | AT17: 219 | AU17: 134 | AV17: 170 | AW17: 684 | AX17: 242 | AY17: 54 | AZ17: 223 | BA17: 108 | BB17: 4 | BC17: 162 | BD17: 174 | BE17: 195 | BF17: 181
A18: 2019-03-01 | J18: F84072 | L18: 10740 | M18: 3 | N18: 248 | O18: 8631 | P18: 8 | Q18: 70 | R18: 29 | S18: 20 | T18: 5 | U18: 52 | V18: 72 | W18: 193 | X18: 133 | Y18: 2401 | Z18: 235 | AA18: 168 | AB18: 87 | AC18: 224 | AD18: 69 | AE18: 6022 | AF18: 559 | AG18: 2332 | AH18: 9315 | AI18: 93 | AJ18: 84 | AK18: 31 | AL18: 1 | AM18: 19 | AN18: 505 | AO18: 299 | AP18: 33 | AQ18: 144 | AR18: 150 | AS18: 481 | AT18: 58 | AU18: 33 | AV18: 41 | AW18: 253 | AX18: 57 | AY18: 14 | AZ18: 56 | BA18: 32 | BB18: 1 | BC18: 35 | BD18: 26 | BE18: 35 | BF18: 46
A19: 2019-03-01 | J19: F84080 | L19: 4811 | M19: 1 | N19: 329 | O19: 2894 | P19: 13 | Q19: 96 | R19: 28 | S19: 20 | T19: 7 | U19: 79 | V19: 102 | W19: 303 | X19: 244 | Y19: 1437 | Z19: 308 | AA19: 244 | AB19: 98 | AC19: 264 | AD19: 67 | AE19: 2593 | AF19: 261 | AG19: 1317 | AH19: 3617 | AI19: 61 | AJ19: 39 | AK19: 17 | AL19: 2 | AM19: 3 | AN19: 687 | AO19: 477 | AP19: 244 | AQ19: 207 | AR19: 193 | AS19: 631 | AT19: 104 | AU19: 66 | AV19: 84 | AW19: 347 | AX19: 68 | AY19: 24 | AZ19: 63 | BA19: 27 | BB19: 4 | BC19: 43 | BD19: 41 | BE19: 30 | BF19: 89
A20: 2019-03-01 | J20: F84096 | L20: 13157 | M20: 4 | N20: 656 | O20: 9130 | P20: 10 | Q20: 279 | R20: 147 | S20: 59 | T20: 29 | U20: 235 | V20: 302 | W20: 609 | X20: 431 | Y20: 4366 | Z20: 614 | AA20: 480 | AB20: 228 | AC20: 583 | AD20: 157 | AE20: 7112 | AF20: 997 | AG20: 2968 | AH20: 10900 | AI20: 232 | AJ20: 180 | AK20: 84 | AL20: 6 | AM20: 40 | AN20: 1195 | AO20: 888 | AP20: 469 | AQ20: 482 | AR20: 373 | AS20: 1134 | AT20: 229 | AU20: 119 | AV20: 162 | AW20: 675 | AX20: 236 | AY20: 47 | AZ20: 222 | BA20: 95 | BB20: 10 | BC20: 174 | BD20: 191 | BE20: 174 | BF20: 188
A21: 2019-03-01 | J21: F84105 | L21: 11538 | M21: 0 | N21: 602 | O21: 7943 | P21: 12 | Q21: 158 | R21: 57 | S21: 49 | T21: 8 | U21: 126 | V21: 166 | W21: 419 | X21: 297 | Y21: 4486 | Z21: 572 | AA21: 478 | AB21: 222 | AC21: 558 | AD21: 146 | AE21: 6566 | AF21: 734 | AG21: 3287 | AH21: 9265 | AI21: 134 | AJ21: 116 | AK21: 46 | AL21: 5 | AM21: 24 | AN21: 1065 | AO21: 763 | AP21: 404 | AQ21: 435 | AR21: 386 | AS21: 1012 | AT21: 138 | AU21: 76 | AV21: 96 | AW21: 618 | AX21: 100 | AY21: 28 | AZ21: 95 | BA21: 30 | BB21: 4 | BC21: 80 | BD21: 57 | BE21: 47 | BF21: 91
A22: 2019-03-01 | J22: F84115 | L22: 8683 | M22: 0 | N22: 295 | O22: 6395 | P22: 8 | Q22: 107 | R22: 25 | S22: 14 | T22: 7 | U22: 93 | V22: 113 | W22: 278 | X22: 185 | Y22: 2657 | Z22: 269 | AA22: 213 | AB22: 70 | AC22: 187 | AD22: 68 | AE22: 4472 | AF22: 460 | AG22: 1569 | AH22: 7317 | AI22: 97 | AJ22: 74 | AK22: 30 | AL22: 2 | AM22: 28 | AN22: 624 | AO22: 449 | AP22: 165 | AQ22: 191 | AR22: 174 | AS22: 582 | AT22: 146 | AU22: 79 | AV22: 97 | AW22: 303 | AX22: 134 | AY22: 28 | AZ22: 115 | BA22: 54 | BB22: 7 | BC22: 92 | BD22: 100 | BE22: 102 | BF22: 109
A23: 2019-03-01 | J23: F84117 | L23: 10066 | M23: 2 | N23: 441 | O23: 7340 | P23: 4 | Q23: 144 | R23: 55 | S23: 26 | T23: 10 | U23: 125 | V23: 150 | W23: 376 | X23: 276 | Y23: 2984 | Z23: 400 | AA23: 338 | AB23: 136 | AC23: 332 | AD23: 86 | AE23: 5373 | AF23: 626 | AG23: 2200 | AH23: 8465 | AI23: 137 | AJ23: 106 | AK23: 39 | AL23: 2 | AM23: 39 | AN23: 864 | AO23: 666 | AP23: 346 | AQ23: 306 | AR23: 281 | AS23: 808 | AT23: 162 | AU23: 95 | AV23: 122 | AW23: 454 | AX23: 113 | AY23: 37 | AZ23: 105 | BA23: 44 | BB23: 3 | BC23: 81 | BD23: 71 | BE23: 77 | BF23: 140
A24: 2019-03-01 | J24: F84119 | L24: 12364 | M24: 0 | N24: 538 | O24: 8942 | P24: 5 | Q24: 190 | R24: 109 | S24: 62 | T24: 16 | U24: 175 | V24: 195 | W24: 465 | X24: 400 | Y24: 4862 | Z24: 507 | AA24: 407 | AB24: 243 | AC24: 606 | AD24: 152 | AE24: 7428 | AF24: 892 | AG24: 4176 | AH24: 10327 | AI24: 192 | AJ24: 168 | AK24: 78 | AL24: 16 | AM24: 43 | AN24: 1077 | AO24: 850 | AP24: 426 | AQ24: 364 | AR24: 325 | AS24: 964 | AT24: 172 | AU24: 123 | AV24: 162 | AW24: 554 | AX24: 140 | AY24: 22 | AZ24: 136 | BA24: 62 | BB24: 7 | BC24: 100 | BD24: 82 | BE24: 73 | BF24: 142
A25: 2019-03-01 | J25: F84601 | L25: 6847 | M25: 1 | N25: 298 | O25: 4508 | P25: 4 | Q25: 111 | R25: 65 | S25: 51 | T25: 6 | U25: 95 | V25: 113 | W25: 235 | X25: 190 | Y25: 3509 | Z25: 286 | AA25: 237 | AB25: 125 | AC25: 322 | AD25: 86 | AE25: 3152 | AF25: 450 | AG25: 1634 | AH25: 5509 | AI25: 115 | AJ25: 96 | AK25: 56 | AL25: 3 | AM25: 18 | AN25: 587 | AO25: 479 | AP25: 207 | AQ25: 175 | AR25: 167 | AS25: 538 | AT25: 92 | AU25: 66 | AV25: 81 | AW25: 311 | AX25: 72 | AY25: 19 | AZ25: 69 | BA25: 37 | BB25: 0 | BC25: 47 | BD25: 32 | BE25: 54 | BF25: 75
A26: 2019-03-01 | J26: F84619 | L26: 4424 | M26: 0 | N26: 226 | O26: 2941 | P26: 0 | Q26: 62 | R26: 30 | S26: 23 | T26: 6 | U26: 46 | V26: 65 | W26: 181 | X26: 133 | Y26: 1684 | Z26: 211 | AA26: 193 | AB26: 127 | AC26: 211 | AD26: 47 | AE26: 2452 | AF26: 404 | AG26: 1382 | AH26: 3492 | AI26: 55 | AJ26: 47 | AK26: 24 | AL26: 1 | AM26: 9 | AN26: 417 | AO26: 278 | AP26: 180 | AQ26: 159 | AR26: 139 | AS26: 381 | AT26: 66 | AU26: 45 | AV26: 53 | AW26: 234 | AX26: 33 | AY26: 13 | AZ26: 32 | BA26: 8 | BB26: 0 | BC26: 26 | BD26: 24 | BE26: 16 | BF26: 52
A27: 2019-03-01 | J27: F84620 | L27: 6323 | M27: 0 | N27: 388 | O27: 4122 | P27: 4 | Q27: 138 | R27: 44 | S27: 35 | T27: 9 | U27: 117 | V27: 142 | W27: 290 | X27: 209 | Y27: 2119 | Z27: 363 | AA27: 305 | AB27: 153 | AC27: 363 | AD27: 97 | AE27: 3326 | AF27: 478 | AG27: 1732 | AH27: 5093 | AI27: 110 | AJ27: 88 | AK27: 37 | AL27: 2 | AM27: 20 | AN27: 744 | AO27: 547 | AP27: 304 | AQ27: 224 | AR27: 244 | AS27: 695 | AT27: 126 | AU27: 76 | AV27: 92 | AW27: 396 | AX27: 72 | AY27: 33 | AZ27: 68 | BA27: 27 | BB27: 1 | BC27: 45 | BD27: 53 | BE27: 67 | BF27: 108
A28: 2019-03-01 | J28: F84621 | L28: 3737 | M28: 0 | N28: 300 | O28: 2592 | P28: 6 | Q28: 84 | R28: 52 | S28: 38 | T28: 7 | U28: 68 | V28: 92 | W28: 203 | X28: 174 | Y28: 1762 | Z28: 272 | AA28: 224 | AB28: 101 | AC28: 231 | AD28: 62 | AE28: 2118 | AF28: 315 | AG28: 1235 | AH28: 3111 | AI28: 85 | AJ28: 69 | AK28: 26 | AL28: 1 | AM28: 16 | AN28: 593 | AO28: 454 | AP28: 96 | AQ28: 207 | AR28: 179 | AS28: 563 | AT28: 73 | AU28: 49 | AV28: 59 | AW28: 303 | AX28: 48 | AY28: 17 | AZ28: 44 | BA28: 20 | BB28: 2 | BC28: 37 | BD28: 31 | BE28: 33 | BF28: 61
A29: 2019-03-01 | J29: F84624 | L29: 2720 | M29: 2 | N29: 155 | O29: 2061 | P29: 1 | Q29: 56 | R29: 29 | S29: 15 | T29: 4 | U29: 44 | V29: 56 | W29: 79 | X29: 55 | Y29: 992 | Z29: 145 | AA29: 114 | AB29: 47 | AC29: 101 | AD29: 23 | AE29: 1473 | AF29: 124 | AG29: 670 | AH29: 2353 | AI29: 48 | AJ29: 33 | AK29: 6 | AL29: 0 | AM29: 11 | AN29: 299 | AO29: 227 | AP29: 109 | AQ29: 102 | AR29: 88 | AS29: 276 | AT29: 69 | AU29: 40 | AV29: 50 | AW29: 160 | AX29: 44 | AY29: 24 | AZ29: 43 | BA29: 11 | BB29: 0 | BC29: 30 | BD29: 32 | BE29: 23 | BF29: 43
A30: 2019-03-01 | J30: F84632 | L30: 1051 | M30: 0 | N30: 50 | O30: 973 | P30: 3 | Q30: 14 | R30: 39 | S30: 17 | T30: 3 | U30: 11 | V30: 15 | W30: 48 | X30: 36 | Y30: 606 | Z30: 46 | AA30: 38 | AB30: 29 | AC30: 85 | AD30: 10 | AE30: 743 | AF30: 375 | AG30: 628 | AH30: 1051 | AI30: 87 | AJ30: 83 | AK30: 63 | AL30: 5 | AM30: 9 | AN30: 120 | AO30: 64 | AP30: 19 | AQ30: 36 | AR30: 29 | AS30: 106 | AT30: 22 | AU30: 14 | AV30: 18 | AW30: 53 | AX30: 38 | AY30: 14 | AZ30: 37 | BA30: 27 | BB30: 1 | BC30: 27 | BD30: 30 | BE30: 23 | BF30: 14
A31: 2019-03-01 | J31: F84635 | L31: 8830 | M31: 2 | N31: 325 | O31: 6210 | P31: 6 | Q31: 86 | R31: 36 | S31: 21 | T31: 3 | U31: 60 | V31: 88 | W31: 278 | X31: 172 | Y31: 2211 | Z31: 284 | AA31: 220 | AB31: 134 | AC31: 343 | AD31: 81 | AE31: 5301 | AF31: 797 | AG31: 2382 | AH31: 7495 | AI31: 124 | AJ31: 86 | AK31: 43 | AL31: 2 | AM31: 16 | AN31: 698 | AO31: 443 | AP31: 228 | AQ31: 230 | AR31: 178 | AS31: 651 | AT31: 103 | AU31: 61 | AV31: 69 | AW31: 337 | AX31: 99 | AY31: 19 | AZ31: 86 | BA31: 36 | BB31: 2 | BC31: 77 | BD31: 78 | BE31: 83 | BF31: 88
A32: 2019-03-01 | J32: F84636 | L32: 4847 | M32: 0 | N32: 185 | O32: 3695 | P32: 5 | Q32: 46 | R32: 29 | S32: 16 | T32: 6 | U32: 37 | V32: 48 | W32: 142 | X32: 107 | Y32: 1515 | Z32: 168 | AA32: 149 | AB32: 77 | AC32: 167 | AD32: 40 | AE32: 2852 | AF32: 409 | AG32: 1525 | AH32: 4255 | AI32: 67 | AJ32: 56 | AK32: 18 | AL32: 1 | AM32: 15 | AN32: 379 | AO32: 274 | AP32: 139 | AQ32: 145 | AR32: 105 | AS32: 344 | AT32: 45 | AU32: 30 | AV32: 36 | AW32: 197 | AX32: 22 | AY32: 9 | AZ32: 21 | BA32: 6 | BB32: 0 | BC32: 13 | BD32: 13 | BE32: 13 | BF32: 38
A33: 2019-03-01 | J33: F84640 | L33: 9312 | M33: 0 | N33: 250 | O33: 7237 | P33: 43 | Q33: 243 | R33: 23 | S33: 9 | T33: 6 | U33: 203 | V33: 266 | W33: 412 | X33: 274 | Y33: 3088 | Z33: 225 | AA33: 178 | AB33: 87 | AC33: 244 | AD33: 44 | AE33: 6188 | AF33: 343 | AG33: 2043 | AH33: 8557 | AI33: 80 | AJ33: 61 | AK33: 13 | AL33: 1 | AM33: 25 | AN33: 950 | AO33: 750 | AP33: 143 | AQ33: 173 | AR33: 175 | AS33: 896 | AT33: 178 | AU33: 95 | AV33: 120 | AW33: 255 | AX33: 65 | AY33: 10 | AZ33: 65 | BA33: 20 | BB33: 2 | BC33: 52 | BD33: 51 | BE33: 29 | BF33: 150
A34: 2019-03-01 | J34: F84668 | L34: 6565 | M34: 0 | N34: 288 | O34: 3216 | P34: 3 | Q34: 90 | R34: 36 | S34: 33 | T34: 5 | U34: 70 | V34: 98 | W34: 218 | X34: 185 | Y34: 1780 | Z34: 276 | AA34: 232 | AB34: 174 | AC34: 392 | AD34: 87 | AE34: 3183 | AF34: 298 | AG34: 1870 | AH34: 4343 | AI34: 68 | AJ34: 63 | AK34: 20 | AL34: 11 | AM34: 9 | AN34: 490 | AO34: 366 | AP34: 248 | AQ34: 221 | AR34: 196 | AS34: 474 | AT34: 57 | AU34: 42 | AV34: 48 | AW34: 300 | AX34: 25 | AY34: 7 | AZ34: 25 | BA34: 10 | BB34: 7 | BC34: 21 | BD34: 22 | BE34: 22 | BF34: 35
A35: 2019-03-01 | J35: F84685 | L35: 2972 | M35: 0 | N35: 133 | O35: 1928 | P35: 1 | Q35: 39 | R35: 11 | S35: 9 | T35: 2 | U35: 37 | V35: 43 | W35: 135 | X35: 96 | Y35: 900 | Z35: 129 | AA35: 98 | AB35: 51 | AC35: 106 | AD35: 21 | AE35: 1512 | AF35: 143 | AG35: 679 | AH35: 2274 | AI35: 38 | AJ35: 25 | AK35: 7 | AL35: 0 | AM35: 5 | AN35: 262 | AO35: 196 | AP35: 85 | AQ35: 85 | AR35: 86 | AS35: 241 | AT35: 39 | AU35: 21 | AV35: 32 | AW35: 136 | AX35: 22 | AY35: 7 | AZ35: 18 | BA35: 8 | BB35: 1 | BC35: 18 | BD35: 15 | BE35: 16 | BF35: 34
A36: 2019-03-01 | J36: F84686 | L36: 7784 | M36: 3 | N36: 184 | O36: 2845 | P36: 0 | Q36: 58 | R36: 20 | S36: 18 | T36: 4 | U36: 51 | V36: 60 | W36: 167 | X36: 138 | Y36: 1050 | Z36: 169 | AA36: 142 | AB36: 104 | AC36: 246 | AD36: 49 | AE36: 2691 | AF36: 130 | AG36: 1048 | AH36: 4241 | AI36: 48 | AJ36: 38 | AK36: 7 | AL36: 1 | AM36: 5 | AN36: 369 | AO36: 307 | AP36: 96 | AQ36: 112 | AR36: 106 | AS36: 360 | AT36: 73 | AU36: 54 | AV36: 61 | AW36: 188 | AX36: 8 | AY36: 1 | AZ36: 8 | BA36: 4 | BB36: 0 | BC36: 6 | BD36: 4 | BE36: 8 | BF36: 56
A37: 2019-03-01 | J37: F84692 | L37: 7150 | M37: 0 | N37: 223 | O37: 4629 | P37: 4 | Q37: 64 | R37: 38 | S37: 8 | T37: 3 | U37: 55 | V37: 65 | W37: 224 | X37: 134 | Y37: 1957 | Z37: 204 | AA37: 159 | AB37: 110 | AC37: 228 | AD37: 43 | AE37: 3748 | AF37: 466 | AG37: 1663 | AH37: 6215 | AI37: 69 | AJ37: 49 | AK37: 26 | AL37: 3 | AM37: 9 | AN37: 448 | AO37: 334 | AP37: 156 | AQ37: 160 | AR37: 138 | AS37: 409 | AT37: 74 | AU37: 36 | AV37: 42 | AW37: 229 | AX37: 77 | AY37: 18 | AZ37: 73 | BA37: 33 | BB37: 2 | BC37: 62 | BD37: 65 | BE37: 50 | BF37: 64
A38: 2019-03-01 | J38: F84694 | L38: 4533 | M38: 0 | N38: 209 | O38: 3455 | P38: 1 | Q38: 59 | R38: 30 | S38: 23 | T38: 3 | U38: 48 | V38: 60 | W38: 170 | X38: 141 | Y38: 1846 | Z38: 186 | AA38: 167 | AB38: 80 | AC38: 220 | AD38: 41 | AE38: 2841 | AF38: 480 | AG38: 1928 | AH38: 4001 | AI38: 51 | AJ38: 45 | AK38: 13 | AL38: 2 | AM38: 6 | AN38: 365 | AO38: 225 | AP38: 27 | AQ38: 163 | AR38: 130 | AS38: 331 | AT38: 59 | AU38: 44 | AV38: 47 | AW38: 219 | AX38: 31 | AY38: 6 | AZ38: 31 | BA38: 14 | BB38: 2 | BC38: 22 | BD38: 17 | BE38: 25 | BF38: 36
A39: 2019-03-01 | J39: F84711 | L39: 1929 | M39: 1 | N39: 169 | O39: 1316 | P39: 0 | Q39: 39 | R39: 17 | S39: 14 | T39: 6 | U39: 32 | V39: 40 | W39: 117 | X39: 98 | Y39: 751 | Z39: 153 | AA39: 137 | AB39: 62 | AC39: 115 | AD39: 38 | AE39: 1176 | AF39: 145 | AG39: 623 | AH39: 1608 | AI39: 26 | AJ39: 23 | AK39: 8 | AL39: 2 | AM39: 4 | AN39: 283 | AO39: 176 | AP39: 126 | AQ39: 153 | AR39: 103 | AS39: 274 | AT39: 31 | AU39: 20 | AV39: 23 | AW39: 169 | AX39: 26 | AY39: 8 | AZ39: 25 | BA39: 13 | BB39: 4 | BC39: 24 | BD39: 13 | BE39: 9 | BF39: 23
A40: 2019-03-01 | J40: F84716 | L40: 5586 | M40: 1 | N40: 200 | O40: 3425 | P40: 2 | Q40: 95 | R40: 52 | S40: 22 | T40: 11 | U40: 76 | V40: 99 | W40: 187 | X40: 143 | Y40: 1547 | Z40: 187 | AA40: 150 | AB40: 86 | AC40: 234 | AD40: 58 | AE40: 3049 | AF40: 303 | AG40: 1546 | AH40: 4182 | AI40: 100 | AJ40: 83 | AK40: 24 | AL40: 5 | AM40: 14 | AN40: 383 | AO40: 294 | AP40: 84 | AQ40: 119 | AR40: 118 | AS40: 367 | AT40: 69 | AU40: 41 | AV40: 51 | AW40: 204 | AX40: 41 | AY40: 11 | AZ40: 41 | BA40: 14 | BB40: 2 | BC40: 32 | BD40: 32 | BE40: 11 | BF40: 55
A41: 2019-03-01 | J41: F84719 | L41: 5144 | M41: 2 | N41: 303 | O41: 3592 | P41: 8 | Q41: 97 | R41: 43 | S41: 33 | T41: 15 | U41: 82 | V41: 98 | W41: 223 | X41: 177 | Y41: 1611 | Z41: 291 | AA41: 235 | AB41: 100 | AC41: 265 | AD41: 73 | AE41: 3353 | AF41: 370 | AG41: 1761 | AH41: 4361 | AI41: 80 | AJ41: 74 | AK41: 20 | AL41: 2 | AM41: 11 | AN41: 618 | AO41: 462 | AP41: 236 | AQ41: 243 | AR41: 185 | AS41: 585 | AT41: 136 | AU41: 91 | AV41: 106 | AW41: 313 | AX41: 81 | AY41: 26 | AZ41: 76 | BA41: 23 | BB41: 2 | BC41: 74 | BD41: 56 | BE41: 56 | BF41: 91
A42: 2019-03-01 | J42: F84720 | L42: 5443 | M42: 0 | N42: 367 | O42: 3238 | P42: 7 | Q42: 143 | R42: 56 | S42: 42 | T42: 12 | U42: 121 | V42: 148 | W42: 314 | X42: 250 | Y42: 2054 | Z42: 337 | AA42: 280 | AB42: 139 | AC42: 339 | AD42: 91 | AE42: 2885 | AF42: 424 | AG42: 1675 | AH42: 4140 | AI42: 91 | AJ42: 75 | AK42: 35 | AL42: 2 | AM42: 14 | AN42: 805 | AO42: 607 | AP42: 136 | AQ42: 213 | AR42: 204 | AS42: 773 | AT42: 152 | AU42: 102 | AV42: 127 | AW42: 372 | AX42: 80 | AY42: 14 | AZ42: 77 | BA42: 22 | BB42: 1 | BC42: 56 | BD42: 45 | BE42: 73 | BF42: 116
A43: 2019-03-01 | J43: Y00403 | L43: 6277 | M43: 0 | N43: 190 | O43: 4647 | P43: 0 | Q43: 43 | R43: 43 | S43: 19 | T43: 8 | U43: 38 | V43: 45 | W43: 105 | X43: 74 | Y43: 1527 | Z43: 182 | AA43: 161 | AB43: 98 | AC43: 194 | AD43: 59 | AE43: 3367 | AF43: 526 | AG43: 1638 | AH43: 5280 | AI43: 82 | AJ43: 62 | AK43: 28 | AL43: 1 | AM43: 12 | AN43: 392 | AO43: 287 | AP43: 56 | AQ43: 144 | AR43: 129 | AS43: 366 | AT43: 47 | AU43: 27 | AV43: 30 | AW43: 193 | AX43: 34 | AY43: 11 | AZ43: 33 | BA43: 13 | BB43: 1 | BC43: 32 | BD43: 24 | BE43: 22 | BF43: 39
A44: 2019-03-01 | J44: Y03049 | L44: 14427 | M44: 3 | N44: 618 | O44: 8866 | P44: 10 | Q44: 190 | R44: 95 | S44: 56 | T44: 20 | U44: 148 | V44: 196 | W44: 479 | X44: 339 | Y44: 4619 | Z44: 576 | AA44: 476 | AB44: 232 | AC44: 599 | AD44: 150 | AE44: 6927 | AF44: 818 | AG44: 3161 | AH44: 10610 | AI44: 194 | AJ44: 164 | AK44: 75 | AL44: 9 | AM44: 24 | AN44: 1138 | AO44: 813 | AP44: 322 | AQ44: 412 | AR44: 363 | AS44: 1104 | AT44: 179 | AU44: 106 | AV44: 126 | AW44: 624 | AX44: 97 | AY44: 23 | AZ44: 92 | BA44: 48 | BB44: 9 | BC44: 70 | BD44: 59 | BE44: 80 | BF44: 147
A45: 2019-03-01 | J45: Total | L45: 322889 | M45: 40 | N45: 14946 | O45: 218764 | P45: 253 | Q45: 5087 | R45: 2359 | S45: 1381 | T45: 388 | U45: 4118 | V45: 5312 | W45: 12396 | X45: 9339 | Y45: 109716 | Z45: 13850 | AA45: 11318 | AB45: 5936 | AC45: 14044 | AD45: 3652 | AE45: 174143 | AF45: 22323 | AG45: 86069 | AH45: 260423 | AI45: 4767 | AJ45: 3854 | AK45: 1657 | AL45: 135 | AM45: 832 | AN45: 29764 | AO45: 21705 | AP45: 9682 | AQ45: 10184 | AR45: 9013 | AS45: 27941 | AT45: 4943 | AU45: 3055 | AV45: 3784 | AW45: 15385 | AX45: 3435 | AY45: 872 | AZ45: 3235 | BA45: 1400 | BB45: 114 | BC45: 2507 | BD45: 2322 | BE45: 2333 | BF45: 3882

Sheet Month by month
C2: Redbridge | H2: Practice Clinical Trends (LDP) Report Summary 2022 / 2023
C3: RB | D3: 2021-04-01 | E3: 2022-04-01 | F3: 2022-05-01 | G3: 2022-06-01 | H3: 2022-07-01 | I3: 2022-08-01 | J3: 2022-09-01 | K3: 2022-10-01 | L3: 2022-11-01 | M3: 2022-12-01 | N3: 2023-01-01 | O3: 2023-02-01 | P3: 2023-03-01 | Q3: 2023-04-01 | R3: 2019-05-01
C4: =VLOOKUP(C2,'Control Panel'!H62:I113,2,FALSE) -> Total | D4: 2021-03-01 | E4: 2022-03-01 | F4: 2022-04-01 | G4: 2022-05-01 | H4: 2022-06-01 | I4: 2022-07-01 | J4: 2022-08-01 | K4: 2022-09-01 | L4: 2022-10-01 | M4: 2022-11-01 | N4: 2022-12-01 | O4: 2023-01-01 | P4: 2023-02-01 | Q4: 2023-03-01 | R4: 2019-04-01
C6: ='Control Panel'!B2 -> General Health
A7: ='Control Panel'!B3 -> 01. Listsize | B7: 01. Listsize | C7: ='Control Panel'!C3 -> List Size | D7: =IF($C$4="Total",SUMIFS(OFFSET(REL_D,,MATCH($A7,IND,0)-2),REL_D,D$3,NwID,$C$3),SUMIFS(OFFSET(REL_D,,MATCH($A7,IND,0)-2),REL_D,D$3,OrgID,$C$4)) -> 292103 | E7: =IF($C$4="Total",SUMIFS(OFFSET(REL_D,,MATCH($A7,IND,0)-2),REL_D,E$3,NwID,$C$3),SUMIFS(OFFSET(REL_D,,MATCH($A7,IND,0)-2),REL_D,E$3,OrgID,$C$4)) -> 300667 | F7: =IF($C$4="Total",SUMIFS(OFFSET(REL_D,,MATCH($A7,IND,0)-2),REL_D,F$3,NwID,$C$3),SUMIFS(OFFSET(REL_D,,MATCH($A7,IND,0)-2),REL_D,F$3,OrgID,$C$4)) -> 301222 | G7: =IF($C$4="Total",SUMIFS(OFFSET(REL_D,,MATCH($A7,IND,0)-2),REL_D,G$3,NwID,$C$3),SUMIFS(OFFSET(REL_D,,MATCH($A7,IND,0)-2),REL_D,G$3,OrgID,$C$4)) -> 301996 | H7: =IF($C$4="Total",SUMIFS(OFFSET(REL_D,,MATCH($A7,IND,0)-2),REL_D,H$3,NwID,$C$3),SUMIFS(OFFSET(REL_D,,MATCH($A7,IND,0)-2),REL_D,H$3,OrgID,$C$4)) -> 302711 | I7: =IF($C$4="Total",SUMIFS(OFFSET(REL_D,,MATCH($A7,IND,0)-2),REL_D,I$3,NwID,$C$3),SUMIFS(OFFSET(REL_D,,MATCH($A7,IND,0)-2),REL_D,I$3,OrgID,$C$4)) -> 303254 | J7: =IF($C$4="Total",SUMIFS(OFFSET(REL_D,,MATCH($A7,IND,0)-2),REL_D,J$3,NwID,$C$3),SUMIFS(OFFSET(REL_D,,MATCH($A7,IND,0)-2),REL_D,J$3,OrgID,$C$4)) -> 304303 | K7: =IF($C$4="Total",SUMIFS(OFFSET(REL_D,,MATCH($A7,IND,0)-2),REL_D,K$3,NwID,$C$3),SUMIFS(OFFSET(REL_D,,MATCH($A7,IND,0)-2),REL_D,K$3,OrgID,$C$4)) -> 305380 | L7: =IF($C$4="Total",SUMIFS(OFFSET(REL_D,,MATCH($A7,IND,0)-2),REL_D,L$3,NwID,$C$3),SUMIFS(OFFSET(REL_D,,MATCH($A7,IND,0)-2),REL_D,L$3,OrgID,$C$4)) -> 306258 | M7: =IF($C$4="Total",SUMIFS(OFFSET(REL_D,,MATCH($A7,IND,0)-2),REL_D,M$3,NwID,$C$3),SUMIFS(OFFSET(REL_D,,MATCH($A7,IND,0)-2),REL_D,M$3,OrgID,$C$4)) -> 307338 | N7: =IF($C$4="Total",SUMIFS(OFFSET(REL_D,,MATCH($A7,IND,0)-2),REL_D,N$3,NwID,$C$3),SUMIFS(OFFSET(REL_D,,MATCH($A7,IND,0)-2),REL_D,N$3,OrgID,$C$4)) -> 308025 | O7: =IF($C$4="Total",SUMIFS(OFFSET(REL_D,,MATCH($A7,IND,0)-2),REL_D,O$3,NwID,$C$3),SUMIFS(OFFSET(REL_D,,MATCH($A7,IND,0)-2),REL_D,O$3,OrgID,$C$4)) -> 308768 | P7: =IF($C$4="Total",SUMIFS(OFFSET(REL_D,,MATCH($A7,IND,0)-2),REL_D,P$3,NwID,$C$3),SUMIFS(OFFSET(REL_D,,MATCH($A7,IND,0)-2),REL_D,P$3,OrgID,$C$4)) -> 309571 | Q7: =IF($C$4="Total",SUMIFS(OFFSET(REL_D,,MATCH($A7,IND,0)-2),REL_D,Q$3,NwID,$C$3),SUMIFS(OFFSET(REL_D,,MATCH($A7,IND,0)-2),REL_D,Q$3,OrgID,$C$4)) -> 309500 | R7: =SUMIFS(OFFSET(REL_D,,MATCH($A7,IND,0)-1),REL_D,R$3,IF(LEFT($C$4,1)="N",NwID,OrgID),$C$4) -> 0
A8: ='Control Panel'!B4 -> LDP.01: Aged 16yrs+ | B8: LDP.01: Aged 16yrs+ | C8: ='Control Panel'!D4 -> Age 16+ | D8: =IF($C$4="Total",SUMIFS(OFFSET(REL_D,,MATCH($A8,IND,0)-2),REL_D,D$3,NwID,$C$3),SUMIFS(OFFSET(REL_D,,MATCH($A8,IND,0)-2),REL_D,D$3,OrgID,$C$4)) -> 229909 | E8: =IF($C$4="Total",SUMIFS(OFFSET(REL_D,,MATCH($A8,IND,0)-2),REL_D,E$3,NwID,$C$3),SUMIFS(OFFSET(REL_D,,MATCH($A8,IND,0)-2),REL_D,E$3,OrgID,$C$4)) -> 238191 | F8: =IF($C$4="Total",SUMIFS(OFFSET(REL_D,,MATCH($A8,IND,0)-2),REL_D,F$3,NwID,$C$3),SUMIFS(OFFSET(REL_D,,MATCH($A8,IND,0)-2),REL_D,F$3,OrgID,$C$4)) -> 238740 | G8: =IF($C$4="Total",SUMIFS(OFFSET(REL_D,,MATCH($A8,IND,0)-2),REL_D,G$3,NwID,$C$3),SUMIFS(OFFSET(REL_D,,MATCH($A8,IND,0)-2),REL_D,G$3,OrgID,$C$4)) -> 239377 | H8: =IF($C$4="Total",SUMIFS(OFFSET(REL_D,,MATCH($A8,IND,0)-2),REL_D,H$3,NwID,$C$3),SUMIFS(OFFSET(REL_D,,MATCH($A8,IND,0)-2),REL_D,H$3,OrgID,$C$4)) -> 239958 | I8: =IF($C$4="Total",SUMIFS(OFFSET(REL_D,,MATCH($A8,IND,0)-2),REL_D,I$3,NwID,$C$3),SUMIFS(OFFSET(REL_D,,MATCH($A8,IND,0)-2),REL_D,I$3,OrgID,$C$4)) -> 240441 | J8: =IF($C$4="Total",SUMIFS(OFFSET(REL_D,,MATCH($A8,IND,0)-2),REL_D,J$3,NwID,$C$3),SUMIFS(OFFSET(REL_D,,MATCH($A8,IND,0)-2),REL_D,J$3,OrgID,$C$4)) -> 241389 | K8: =IF($C$4="Total",SUMIFS(OFFSET(REL_D,,MATCH($A8,IND,0)-2),REL_D,K$3,NwID,$C$3),SUMIFS(OFFSET(REL_D,,MATCH($A8,IND,0)-2),REL_D,K$3,OrgID,$C$4)) -> 242332 | L8: =IF($C$4="Total",SUMIFS(OFFSET(REL_D,,MATCH($A8,IND,0)-2),REL_D,L$3,NwID,$C$3),SUMIFS(OFFSET(REL_D,,MATCH($A8,IND,0)-2),REL_D,L$3,OrgID,$C$4)) -> 243152 | M8: =IF($C$4="Total",SUMIFS(OFFSET(REL_D,,MATCH($A8,IND,0)-2),REL_D,M$3,NwID,$C$3),SUMIFS(OFFSET(REL_D,,MATCH($A8,IND,0)-2),REL_D,M$3,OrgID,$C$4)) -> 244114 | N8: =IF($C$4="Total",SUMIFS(OFFSET(REL_D,,MATCH($A8,IND,0)-2),REL_D,N$3,NwID,$C$3),SUMIFS(OFFSET(REL_D,,MATCH($A8,IND,0)-2),REL_D,N$3,OrgID,$C$4)) -> 244807 | O8: =IF($C$4="Total",SUMIFS(OFFSET(REL_D,,MATCH($A8,IND,0)-2),REL_D,O$3,NwID,$C$3),SUMIFS(OFFSET(REL_D,,MATCH($A8,IND,0)-2),REL_D,O$3,OrgID,$C$4)) -> 245516 | P8: =IF($C$4="Total",SUMIFS(OFFSET(REL_D,,MATCH($A8,IND,0)-2),REL_D,P$3,NwID,$C$3),SUMIFS(OFFSET(REL_D,,MATCH($A8,IND,0)-2),REL_D,P$3,OrgID,$C$4)) -> 246273 | Q8: =IF($C$4="Total",SUMIFS(OFFSET(REL_D,,MATCH($A8,IND,0)-2),REL_D,Q$3,NwID,$C$3),SUMIFS(OFFSET(REL_D,,MATCH($A8,IND,0)-2),REL_D,Q$3,OrgID,$C$4)) -> 246531 | R8: =SUMIFS(OFFSET(REL_D,,MATCH($A8,IND,0)-1),REL_D,R$3,IF(LEFT($C$4,1)="N",NwID,OrgID),$C$4) -> 0
A9: ='Control Panel'!B5 -> %LDP.01: Aged 16yrs+ | B9: %LDP.01: Aged 16yrs+ | C9: ='Control Panel'!D5 -> % list size | D9: =IFERROR(D8/D7,"N/A") -> 0.787 | E9: 0.792 | F9: =IFERROR(F8/F7,"N/A") -> 0.793 | G9: =IFERROR(G8/G7,"N/A") -> 0.793 | H9: 0.793 | I9: 0.793 | J9: 0.793 | K9: 0.794 | L9: 0.794 | M9: 0.794 | N9: 0.795 | O9: 0.795 | P9: 0.796 | Q9: 0.797 | R9: =IFERROR(R8/R7,"N/A") -> N/A
A10: ='Control Panel'!B6 -> LDP.01.01: Obesity BMI recorded (last 12m) | B10: LDP.01.01: Obesity BMI recorded (last 12m) | C10: ='Control Panel'!D6 -> 16+ and BMI (last 12m) | D10: =IF($C$4="Total",SUMIFS(OFFSET(REL_D,,MATCH($A10,IND,0)-2),REL_D,D$3,NwID,$C$3),SUMIFS(OFFSET(REL_D,,MATCH($A10,IND,0)-2),REL_D,D$3,OrgID,$C$4)) -> 39333 | E10: =IF($C$4="Total",SUMIFS(OFFSET(REL_D,,MATCH($A10,IND,0)-2),REL_D,E$3,NwID,$C$3),SUMIFS(OFFSET(REL_D,,MATCH($A10,IND,0)-2),REL_D,E$3,OrgID,$C$4)) -> 55938 | F10: =IF($C$4="Total",SUMIFS(OFFSET(REL_D,,MATCH($A10,IND,0)-2),REL_D,F$3,NwID,$C$3),SUMIFS(OFFSET(REL_D,,MATCH($A10,IND,0)-2),REL_D,F$3,OrgID,$C$4)) -> 56255 | G10: =IF($C$4="Total",SUMIFS(OFFSET(REL_D,,MATCH($A10,IND,0)-2),REL_D,G$3,NwID,$C$3),SUMIFS(OFFSET(REL_D,,MATCH($A10,IND,0)-2),REL_D,G$3,OrgID,$C$4)) -> 56938 | H10: =IF($C$4="Total",SUMIFS(OFFSET(REL_D,,MATCH($A10,IND,0)-2),REL_D,H$3,NwID,$C$3),SUMIFS(OFFSET(REL_D,,MATCH($A10,IND,0)-2),REL_D,H$3,OrgID,$C$4)) -> 57326 | I10: =IF($C$4="Total",SUMIFS(OFFSET(REL_D,,MATCH($A10,IND,0)-2),REL_D,I$3,NwID,$C$3),SUMIFS(OFFSET(REL_D,,MATCH($A10,IND,0)-2),REL_D,I$3,OrgID,$C$4)) -> 58128 | J10: =IF($C$4="Total",SUMIFS(OFFSET(REL_D,,MATCH($A10,IND,0)-2),REL_D,J$3,NwID,$C$3),SUMIFS(OFFSET(REL_D,,MATCH($A10,IND,0)-2),REL_D,J$3,OrgID,$C$4)) -> 59587 | K10: =IF($C$4="Total",SUMIFS(OFFSET(REL_D,,MATCH($A10,IND,0)-2),REL_D,K$3,NwID,$C$3),SUMIFS(OFFSET(REL_D,,MATCH($A10,IND,0)-2),REL_D,K$3,OrgID,$C$4)) -> 60322 | L10: =IF($C$4="Total",SUMIFS(OFFSET(REL_D,,MATCH($A10,IND,0)-2),REL_D,L$3,NwID,$C$3),SUMIFS(OFFSET(REL_D,,MATCH($A10,IND,0)-2),REL_D,L$3,OrgID,$C$4)) -> 61616 | M10: =IF($C$4="Total",SUMIFS(OFFSET(REL_D,,MATCH($A10,IND,0)-2),REL_D,M$3,NwID,$C$3),SUMIFS(OFFSET(REL_D,,MATCH($A10,IND,0)-2),REL_D,M$3,OrgID,$C$4)) -> 63876 | N10: =IF($C$4="Total",SUMIFS(OFFSET(REL_D,,MATCH($A10,IND,0)-2),REL_D,N$3,NwID,$C$3),SUMIFS(OFFSET(REL_D,,MATCH($A10,IND,0)-2),REL_D,N$3,OrgID,$C$4)) -> 65293 | O10: =IF($C$4="Total",SUMIFS(OFFSET(REL_D,,MATCH($A10,IND,0)-2),REL_D,O$3,NwID,$C$3),SUMIFS(OFFSET(REL_D,,MATCH($A10,IND,0)-2),REL_D,O$3,OrgID,$C$4)) -> 67186 | P10: =IF($C$4="Total",SUMIFS(OFFSET(REL_D,,MATCH($A10,IND,0)-2),REL_D,P$3,NwID,$C$3),SUMIFS(OFFSET(REL_D,,MATCH($A10,IND,0)-2),REL_D,P$3,OrgID,$C$4)) -> 68948 | Q10: =IF($C$4="Total",SUMIFS(OFFSET(REL_D,,MATCH($A10,IND,0)-2),REL_D,Q$3,NwID,$C$3),SUMIFS(OFFSET(REL_D,,MATCH($A10,IND,0)-2),REL_D,Q$3,OrgID,$C$4)) -> 70973 | R10: =SUMIFS(OFFSET(REL_D,,MATCH($A10,IND,0)-1),REL_D,R$3,IF(LEFT($C$4,1)="N",NwID,OrgID),$C$4) -> 0
A11: ='Control Panel'!B7 -> %LDP.01.01: Obesity BMI recorded (last 12m) | B11: %LDP.01.01: Obesity BMI recorded (last 12m) | C11: ='Control Panel'!D7 -> % 16+ | D11: =IFERROR(D10/D8,"N/A") -> 0.171 | E11: 0.235 | F11: =IFERROR(F10/F8,"N/A") -> 0.236 | G11: =IFERROR(G10/G8,"N/A") -> 0.238 | H11: 0.239 | I11: 0.242 | J11: 0.247 | K11: 0.249 | L11: 0.253 | M11: 0.262 | N11: 0.267 | O11: 0.274 | P11: 0.28 | Q11: 0.288 | R11: =IFERROR(R10/R8,"N/A") -> N/A
A12: ='Control Panel'!B8 -> LDP.01.01.02: Obesity BMI between 30-35 (last 12m) | B12: LDP.01.01.02: Obesity BMI between 30-35 (last 12m) | C12: ='Control Panel'!D8 -> BMI ≥30 & <35 | D12: =IF($C$4="Total",SUMIFS(OFFSET(REL_D,,MATCH($A12,IND,0)-2),REL_D,D$3,NwID,$C$3),SUMIFS(OFFSET(REL_D,,MATCH($A12,IND,0)-2),REL_D,D$3,OrgID,$C$4)) -> 7034 | E12: =IF($C$4="Total",SUMIFS(OFFSET(REL_D,,MATCH($A12,IND,0)-2),REL_D,E$3,NwID,$C$3),SUMIFS(OFFSET(REL_D,,MATCH($A12,IND,0)-2),REL_D,E$3,OrgID,$C$4)) -> 10113 | F12: =IF($C$4="Total",SUMIFS(OFFSET(REL_D,,MATCH($A12,IND,0)-2),REL_D,F$3,NwID,$C$3),SUMIFS(OFFSET(REL_D,,MATCH($A12,IND,0)-2),REL_D,F$3,OrgID,$C$4)) -> 10182 | G12: =IF($C$4="Total",SUMIFS(OFFSET(REL_D,,MATCH($A12,IND,0)-2),REL_D,G$3,NwID,$C$3),SUMIFS(OFFSET(REL_D,,MATCH($A12,IND,0)-2),REL_D,G$3,OrgID,$C$4)) -> 10345 | H12: =IF($C$4="Total",SUMIFS(OFFSET(REL_D,,MATCH($A12,IND,0)-2),REL_D,H$3,NwID,$C$3),SUMIFS(OFFSET(REL_D,,MATCH($A12,IND,0)-2),REL_D,H$3,OrgID,$C$4)) -> 10403 | I12: =IF($C$4="Total",SUMIFS(OFFSET(REL_D,,MATCH($A12,IND,0)-2),REL_D,I$3,NwID,$C$3),SUMIFS(OFFSET(REL_D,,MATCH($A12,IND,0)-2),REL_D,I$3,OrgID,$C$4)) -> 10490 | J12: =IF($C$4="Total",SUMIFS(OFFSET(REL_D,,MATCH($A12,IND,0)-2),REL_D,J$3,NwID,$C$3),SUMIFS(OFFSET(REL_D,,MATCH($A12,IND,0)-2),REL_D,J$3,OrgID,$C$4)) -> 10737 | K12: =IF($C$4="Total",SUMIFS(OFFSET(REL_D,,MATCH($A12,IND,0)-2),REL_D,K$3,NwID,$C$3),SUMIFS(OFFSET(REL_D,,MATCH($A12,IND,0)-2),REL_D,K$3,OrgID,$C$4)) -> 10927 | L12: =IF($C$4="Total",SUMIFS(OFFSET(REL_D,,MATCH($A12,IND,0)-2),REL_D,L$3,NwID,$C$3),SUMIFS(OFFSET(REL_D,,MATCH($A12,IND,0)-2),REL_D,L$3,OrgID,$C$4)) -> 11188 | M12: =IF($C$4="Total",SUMIFS(OFFSET(REL_D,,MATCH($A12,IND,0)-2),REL_D,M$3,NwID,$C$3),SUMIFS(OFFSET(REL_D,,MATCH($A12,IND,0)-2),REL_D,M$3,OrgID,$C$4)) -> 11586 | N12: =IF($C$4="Total",SUMIFS(OFFSET(REL_D,,MATCH($A12,IND,0)-2),REL_D,N$3,NwID,$C$3),SUMIFS(OFFSET(REL_D,,MATCH($A12,IND,0)-2),REL_D,N$3,OrgID,$C$4)) -> 11865 | O12: =IF($C$4="Total",SUMIFS(OFFSET(REL_D,,MATCH($A12,IND,0)-2),REL_D,O$3,NwID,$C$3),SUMIFS(OFFSET(REL_D,,MATCH($A12,IND,0)-2),REL_D,O$3,OrgID,$C$4)) -> 12187 | P12: =IF($C$4="Total",SUMIFS(OFFSET(REL_D,,MATCH($A12,IND,0)-2),REL_D,P$3,NwID,$C$3),SUMIFS(OFFSET(REL_D,,MATCH($A12,IND,0)-2),REL_D,P$3,OrgID,$C$4)) -> 12536 | Q12: =IF($C$4="Total",SUMIFS(OFFSET(REL_D,,MATCH($A12,IND,0)-2),REL_D,Q$3,NwID,$C$3),SUMIFS(OFFSET(REL_D,,MATCH($A12,IND,0)-2),REL_D,Q$3,OrgID,$C$4)) -> 12918 | R12: =SUMIFS(OFFSET(REL_D,,MATCH($A12,IND,0)-1),REL_D,R$3,IF(LEFT($C$4,1)="N",NwID,OrgID),$C$4) -> 0
A13: ='Control Panel'!B9 -> %LDP.01.01.02: Obesity BMI between 30-35 (last 12m) | B13: %LDP.01.01.02: Obesity BMI between 30-35 (last 12m) | C13: ='Control Panel'!D9 -> % 16+ | D13: =IFERROR(D12/D8,"N/A") -> 0.031 | E13: 0.042 | F13: =IFERROR(F12/F8,"N/A") -> 0.043 | G13: =IFERROR(G12/G8,"N/A") -> 0.043 | H13: 0.043 | I13: 0.044 | J13: 0.044 | K13: 0.045 | L13: 0.046 | M13: 0.047 | N13: 0.048 | O13: 0.05 | P13: 0.051 | Q13: 0.052 | R13: =IFERROR(R12/R8,"N/A") -> N/A
A14: ='Control Panel'!B10 -> LDP.01.01.01: Obesity BMI more than or equal to 35 less than 40 (last 12m) | B14: LDP.01.01.01: Obesity BMI more than or equal to 35 less than 40 (last 12m) | C14: ='Control Panel'!D10 -> BMI ≥ 35 & <40 | D14: =IF($C$4="Total",SUMIFS(OFFSET(REL_D,,MATCH($A14,IND,0)-2),REL_D,D$3,NwID,$C$3),SUMIFS(OFFSET(REL_D,,MATCH($A14,IND,0)-2),REL_D,D$3,OrgID,$C$4)) -> 2665 | E14: =IF($C$4="Total",SUMIFS(OFFSET(REL_D,,MATCH($A14,IND,0)-2),REL_D,E$3,NwID,$C$3),SUMIFS(OFFSET(REL_D,,MATCH($A14,IND,0)-2),REL_D,E$3,OrgID,$C$4)) -> 3787 | F14: =IF($C$4="Total",SUMIFS(OFFSET(REL_D,,MATCH($A14,IND,0)-2),REL_D,F$3,NwID,$C$3),SUMIFS(OFFSET(REL_D,,MATCH($A14,IND,0)-2),REL_D,F$3,OrgID,$C$4)) -> 3783 | G14: =IF($C$4="Total",SUMIFS(OFFSET(REL_D,,MATCH($A14,IND,0)-2),REL_D,G$3,NwID,$C$3),SUMIFS(OFFSET(REL_D,,MATCH($A14,IND,0)-2),REL_D,G$3,OrgID,$C$4)) -> 3826 | H14: =IF($C$4="Total",SUMIFS(OFFSET(REL_D,,MATCH($A14,IND,0)-2),REL_D,H$3,NwID,$C$3),SUMIFS(OFFSET(REL_D,,MATCH($A14,IND,0)-2),REL_D,H$3,OrgID,$C$4)) -> 3849 | I14: =IF($C$4="Total",SUMIFS(OFFSET(REL_D,,MATCH($A14,IND,0)-2),REL_D,I$3,NwID,$C$3),SUMIFS(OFFSET(REL_D,,MATCH($A14,IND,0)-2),REL_D,I$3,OrgID,$C$4)) -> 3925 | J14: =IF($C$4="Total",SUMIFS(OFFSET(REL_D,,MATCH($A14,IND,0)-2),REL_D,J$3,NwID,$C$3),SUMIFS(OFFSET(REL_D,,MATCH($A14,IND,0)-2),REL_D,J$3,OrgID,$C$4)) -> 3999 | K14: =IF($C$4="Total",SUMIFS(OFFSET(REL_D,,MATCH($A14,IND,0)-2),REL_D,K$3,NwID,$C$3),SUMIFS(OFFSET(REL_D,,MATCH($A14,IND,0)-2),REL_D,K$3,OrgID,$C$4)) -> 4035 | L14: =IF($C$4="Total",SUMIFS(OFFSET(REL_D,,MATCH($A14,IND,0)-2),REL_D,L$3,NwID,$C$3),SUMIFS(OFFSET(REL_D,,MATCH($A14,IND,0)-2),REL_D,L$3,OrgID,$C$4)) -> 4108 | M14: =IF($C$4="Total",SUMIFS(OFFSET(REL_D,,MATCH($A14,IND,0)-2),REL_D,M$3,NwID,$C$3),SUMIFS(OFFSET(REL_D,,MATCH($A14,IND,0)-2),REL_D,M$3,OrgID,$C$4)) -> 4240 | N14: =IF($C$4="Total",SUMIFS(OFFSET(REL_D,,MATCH($A14,IND,0)-2),REL_D,N$3,NwID,$C$3),SUMIFS(OFFSET(REL_D,,MATCH($A14,IND,0)-2),REL_D,N$3,OrgID,$C$4)) -> 4316 | O14: =IF($C$4="Total",SUMIFS(OFFSET(REL_D,,MATCH($A14,IND,0)-2),REL_D,O$3,NwID,$C$3),SUMIFS(OFFSET(REL_D,,MATCH($A14,IND,0)-2),REL_D,O$3,OrgID,$C$4)) -> 4446 | P14: =IF($C$4="Total",SUMIFS(OFFSET(REL_D,,MATCH($A14,IND,0)-2),REL_D,P$3,NwID,$C$3),SUMIFS(OFFSET(REL_D,,MATCH($A14,IND,0)-2),REL_D,P$3,OrgID,$C$4)) -> 4552 | Q14: =IF($C$4="Total",SUMIFS(OFFSET(REL_D,,MATCH($A14,IND,0)-2),REL_D,Q$3,NwID,$C$3),SUMIFS(OFFSET(REL_D,,MATCH($A14,IND,0)-2),REL_D,Q$3,OrgID,$C$4)) -> 4684 | R14: =SUMIFS(OFFSET(REL_D,,MATCH($A14,IND,0)-1),REL_D,R$3,IF(LEFT($C$4,1)="N",NwID,OrgID),$C$4) -> 0
A15: ='Control Panel'!B11 -> %LDP.01.01.01: Obesity BMI more than or equal to 35 less than 40 (last 12m) | B15: %LDP.01.01.01: Obesity BMI more than or equal to 35 less than 40 (last 12m) | C15: ='Control Panel'!D11 -> %16+ | D15: =IFERROR(D14/D8,"N/A") -> 0.012 | E15: 0.016 | F15: =IFERROR(F14/F8,"N/A") -> 0.016 | G15: =IFERROR(G14/G8,"N/A") -> 0.016 | H15: 0.016 | I15: 0.016 | J15: 0.017 | K15: 0.017 | L15: 0.017 | M15: 0.017 | N15: 0.018 | O15: 0.018 | P15: 0.018 | Q15: 0.019 | R15: =IFERROR(R14/R8,"N/A") -> N/A
A16: ='Control Panel'!B12 -> LDP.01.01.03: Obesity BMI equal to or over 40 (last 12m) | B16: LDP.01.01.03: Obesity BMI equal to or over 40 (last 12m) | C16: ='Control Panel'!D12 -> BMI ≥ 40 | D16: =IF($C$4="Total",SUMIFS(OFFSET(REL_D,,MATCH($A16,IND,0)-2),REL_D,D$3,NwID,$C$3),SUMIFS(OFFSET(REL_D,,MATCH($A16,IND,0)-2),REL_D,D$3,OrgID,$C$4)) -> 1403 | E16: =IF($C$4="Total",SUMIFS(OFFSET(REL_D,,MATCH($A16,IND,0)-2),REL_D,E$3,NwID,$C$3),SUMIFS(OFFSET(REL_D,,MATCH($A16,IND,0)-2),REL_D,E$3,OrgID,$C$4)) -> 2231 | F16: =IF($C$4="Total",SUMIFS(OFFSET(REL_D,,MATCH($A16,IND,0)-2),REL_D,F$3,NwID,$C$3),SUMIFS(OFFSET(REL_D,,MATCH($A16,IND,0)-2),REL_D,F$3,OrgID,$C$4)) -> 2242 | G16: =IF($C$4="Total",SUMIFS(OFFSET(REL_D,,MATCH($A16,IND,0)-2),REL_D,G$3,NwID,$C$3),SUMIFS(OFFSET(REL_D,,MATCH($A16,IND,0)-2),REL_D,G$3,OrgID,$C$4)) -> 2246 | H16: =IF($C$4="Total",SUMIFS(OFFSET(REL_D,,MATCH($A16,IND,0)-2),REL_D,H$3,NwID,$C$3),SUMIFS(OFFSET(REL_D,,MATCH($A16,IND,0)-2),REL_D,H$3,OrgID,$C$4)) -> 2255 | I16: =IF($C$4="Total",SUMIFS(OFFSET(REL_D,,MATCH($A16,IND,0)-2),REL_D,I$3,NwID,$C$3),SUMIFS(OFFSET(REL_D,,MATCH($A16,IND,0)-2),REL_D,I$3,OrgID,$C$4)) -> 2273 | J16: =IF($C$4="Total",SUMIFS(OFFSET(REL_D,,MATCH($A16,IND,0)-2),REL_D,J$3,NwID,$C$3),SUMIFS(OFFSET(REL_D,,MATCH($A16,IND,0)-2),REL_D,J$3,OrgID,$C$4)) -> 2309 | K16: =IF($C$4="Total",SUMIFS(OFFSET(REL_D,,MATCH($A16,IND,0)-2),REL_D,K$3,NwID,$C$3),SUMIFS(OFFSET(REL_D,,MATCH($A16,IND,0)-2),REL_D,K$3,OrgID,$C$4)) -> 2330 | L16: =IF($C$4="Total",SUMIFS(OFFSET(REL_D,,MATCH($A16,IND,0)-2),REL_D,L$3,NwID,$C$3),SUMIFS(OFFSET(REL_D,,MATCH($A16,IND,0)-2),REL_D,L$3,OrgID,$C$4)) -> 2391 | M16: =IF($C$4="Total",SUMIFS(OFFSET(REL_D,,MATCH($A16,IND,0)-2),REL_D,M$3,NwID,$C$3),SUMIFS(OFFSET(REL_D,,MATCH($A16,IND,0)-2),REL_D,M$3,OrgID,$C$4)) -> 2436 | N16: =IF($C$4="Total",SUMIFS(OFFSET(REL_D,,MATCH($A16,IND,0)-2),REL_D,N$3,NwID,$C$3),SUMIFS(OFFSET(REL_D,,MATCH($A16,IND,0)-2),REL_D,N$3,OrgID,$C$4)) -> 2445 | O16: =IF($C$4="Total",SUMIFS(OFFSET(REL_D,,MATCH($A16,IND,0)-2),REL_D,O$3,NwID,$C$3),SUMIFS(OFFSET(REL_D,,MATCH($A16,IND,0)-2),REL_D,O$3,OrgID,$C$4)) -> 2481 | P16: =IF($C$4="Total",SUMIFS(OFFSET(REL_D,,MATCH($A16,IND,0)-2),REL_D,P$3,NwID,$C$3),SUMIFS(OFFSET(REL_D,,MATCH($A16,IND,0)-2),REL_D,P$3,OrgID,$C$4)) -> 2545 | Q16: =IF($C$4="Total",SUMIFS(OFFSET(REL_D,,MATCH($A16,IND,0)-2),REL_D,Q$3,NwID,$C$3),SUMIFS(OFFSET(REL_D,,MATCH($A16,IND,0)-2),REL_D,Q$3,OrgID,$C$4)) -> 2626 | R16: =SUMIFS(OFFSET(REL_D,,MATCH($A16,IND,0)-1),REL_D,R$3,IF(LEFT($C$4,1)="N",NwID,OrgID),$C$4) -> 0
A17: ='Control Panel'!B13 -> %LDP.01.01.03: Obesity BMI equal to or over 40 (last 12m) | B17: %LDP.01.01.03: Obesity BMI equal to or over 40 (last 12m) | C17: ='Control Panel'!D13 -> %16+ | D17: =IFERROR(D16/D8,"N/A") -> 0.006 | E17: 0.009 | F17: =IFERROR(F16/F8,"N/A") -> 0.009 | G17: =IFERROR(G16/G8,"N/A") -> 0.009 | H17: 0.009 | I17: 0.009 | J17: 0.01 | K17: 0.01 | L17: 0.01 | M17: 0.01 | N17: 0.01 | O17: 0.01 | P17: 0.01 | Q17: 0.011 | R17: =IFERROR(R16/R8,"N/A") -> N/A
A18: ='Control Panel'!B14 -> LDP.01.02: Smoking Status (last 12m) or Never Smoked (25yrs+) | B18: LDP.01.02: Smoking Status (last 12m) or Never Smoked (25yrs+) | C18: ='Control Panel'!D14 -> Smoking status (last 12m) incl. never smoked | D18: =IF($C$4="Total",SUMIFS(OFFSET(REL_D,,MATCH($A18,IND,0)-2),REL_D,D$3,NwID,$C$3),SUMIFS(OFFSET(REL_D,,MATCH($A18,IND,0)-2),REL_D,D$3,OrgID,$C$4)) -> 153107 | E18: =IF($C$4="Total",SUMIFS(OFFSET(REL_D,,MATCH($A18,IND,0)-2),REL_D,E$3,NwID,$C$3),SUMIFS(OFFSET(REL_D,,MATCH($A18,IND,0)-2),REL_D,E$3,OrgID,$C$4)) -> 159472 | F18: =IF($C$4="Total",SUMIFS(OFFSET(REL_D,,MATCH($A18,IND,0)-2),REL_D,F$3,NwID,$C$3),SUMIFS(OFFSET(REL_D,,MATCH($A18,IND,0)-2),REL_D,F$3,OrgID,$C$4)) -> 159469 | G18: =IF($C$4="Total",SUMIFS(OFFSET(REL_D,,MATCH($A18,IND,0)-2),REL_D,G$3,NwID,$C$3),SUMIFS(OFFSET(REL_D,,MATCH($A18,IND,0)-2),REL_D,G$3,OrgID,$C$4)) -> 159720 | H18: =IF($C$4="Total",SUMIFS(OFFSET(REL_D,,MATCH($A18,IND,0)-2),REL_D,H$3,NwID,$C$3),SUMIFS(OFFSET(REL_D,,MATCH($A18,IND,0)-2),REL_D,H$3,OrgID,$C$4)) -> 159627 | I18: =IF($C$4="Total",SUMIFS(OFFSET(REL_D,,MATCH($A18,IND,0)-2),REL_D,I$3,NwID,$C$3),SUMIFS(OFFSET(REL_D,,MATCH($A18,IND,0)-2),REL_D,I$3,OrgID,$C$4)) -> 160647 | J18: =IF($C$4="Total",SUMIFS(OFFSET(REL_D,,MATCH($A18,IND,0)-2),REL_D,J$3,NwID,$C$3),SUMIFS(OFFSET(REL_D,,MATCH($A18,IND,0)-2),REL_D,J$3,OrgID,$C$4)) -> 162199 | K18: =IF($C$4="Total",SUMIFS(OFFSET(REL_D,,MATCH($A18,IND,0)-2),REL_D,K$3,NwID,$C$3),SUMIFS(OFFSET(REL_D,,MATCH($A18,IND,0)-2),REL_D,K$3,OrgID,$C$4)) -> 162650 | L18: =IF($C$4="Total",SUMIFS(OFFSET(REL_D,,MATCH($A18,IND,0)-2),REL_D,L$3,NwID,$C$3),SUMIFS(OFFSET(REL_D,,MATCH($A18,IND,0)-2),REL_D,L$3,OrgID,$C$4)) -> 163042 | M18: =IF($C$4="Total",SUMIFS(OFFSET(REL_D,,MATCH($A18,IND,0)-2),REL_D,M$3,NwID,$C$3),SUMIFS(OFFSET(REL_D,,MATCH($A18,IND,0)-2),REL_D,M$3,OrgID,$C$4)) -> 164268 | N18: =IF($C$4="Total",SUMIFS(OFFSET(REL_D,,MATCH($A18,IND,0)-2),REL_D,N$3,NwID,$C$3),SUMIFS(OFFSET(REL_D,,MATCH($A18,IND,0)-2),REL_D,N$3,OrgID,$C$4)) -> 164705 | O18: =IF($C$4="Total",SUMIFS(OFFSET(REL_D,,MATCH($A18,IND,0)-2),REL_D,O$3,NwID,$C$3),SUMIFS(OFFSET(REL_D,,MATCH($A18,IND,0)-2),REL_D,O$3,OrgID,$C$4)) -> 165839 | P18: =IF($C$4="Total",SUMIFS(OFFSET(REL_D,,MATCH($A18,IND,0)-2),REL_D,P$3,NwID,$C$3),SUMIFS(OFFSET(REL_D,,MATCH($A18,IND,0)-2),REL_D,P$3,OrgID,$C$4)) -> 166620 | Q18: =IF($C$4="Total",SUMIFS(OFFSET(REL_D,,MATCH($A18,IND,0)-2),REL_D,Q$3,NwID,$C$3),SUMIFS(OFFSET(REL_D,,MATCH($A18,IND,0)-2),REL_D,Q$3,OrgID,$C$4)) -> 167159 | R18: =SUMIFS(OFFSET(REL_D,,MATCH($A18,IND,0)-1),REL_D,R$3,IF(LEFT($C$4,1)="N",NwID,OrgID),$C$4) -> 0
A19: ='Control Panel'!B15 -> %LDP.01.02: Smoking Status (last 12m) or Never Smoked (25yrs+) | B19: %LDP.01.02: Smoking Status (last 12m) or Never Smoked (25yrs+) | C19: ='Control Panel'!D15 -> % 16+ | D19: =IFERROR(D18/D8,"N/A") -> 0.666 | E19: 0.67 | F19: =IFERROR(F18/F8,"N/A") -> 0.668 | G19: =IFERROR(G18/G8,"N/A") -> 0.667 | H19: 0.665 | I19: 0.668 | J19: 0.672 | K19: 0.671 | L19: 0.671 | M19: 0.673 | N19: 0.673 | O19: 0.675 | P19: 0.677 | Q19: 0.678 | R19: =IFERROR(R18/R8,"N/A") -> N/A
A20: ='Control Panel'!B16 -> LDP.01.03: Current Smoker (last 12m) | B20: LDP.01.03: Current Smoker (last 12m) | C20: ='Control Panel'!D16 -> Age 16+ and current smoker (last 12m) | D20: =IF($C$4="Total",SUMIFS(OFFSET(REL_D,,MATCH($A20,IND,0)-2),REL_D,D$3,NwID,$C$3),SUMIFS(OFFSET(REL_D,,MATCH($A20,IND,0)-2),REL_D,D$3,OrgID,$C$4)) -> 7588 | E20: =IF($C$4="Total",SUMIFS(OFFSET(REL_D,,MATCH($A20,IND,0)-2),REL_D,E$3,NwID,$C$3),SUMIFS(OFFSET(REL_D,,MATCH($A20,IND,0)-2),REL_D,E$3,OrgID,$C$4)) -> 9162 | F20: =IF($C$4="Total",SUMIFS(OFFSET(REL_D,,MATCH($A20,IND,0)-2),REL_D,F$3,NwID,$C$3),SUMIFS(OFFSET(REL_D,,MATCH($A20,IND,0)-2),REL_D,F$3,OrgID,$C$4)) -> 9063 | G20: =IF($C$4="Total",SUMIFS(OFFSET(REL_D,,MATCH($A20,IND,0)-2),REL_D,G$3,NwID,$C$3),SUMIFS(OFFSET(REL_D,,MATCH($A20,IND,0)-2),REL_D,G$3,OrgID,$C$4)) -> 9054 | H20: =IF($C$4="Total",SUMIFS(OFFSET(REL_D,,MATCH($A20,IND,0)-2),REL_D,H$3,NwID,$C$3),SUMIFS(OFFSET(REL_D,,MATCH($A20,IND,0)-2),REL_D,H$3,OrgID,$C$4)) -> 8887 | I20: =IF($C$4="Total",SUMIFS(OFFSET(REL_D,,MATCH($A20,IND,0)-2),REL_D,I$3,NwID,$C$3),SUMIFS(OFFSET(REL_D,,MATCH($A20,IND,0)-2),REL_D,I$3,OrgID,$C$4)) -> 9019 | J20: =IF($C$4="Total",SUMIFS(OFFSET(REL_D,,MATCH($A20,IND,0)-2),REL_D,J$3,NwID,$C$3),SUMIFS(OFFSET(REL_D,,MATCH($A20,IND,0)-2),REL_D,J$3,OrgID,$C$4)) -> 9263 | K20: =IF($C$4="Total",SUMIFS(OFFSET(REL_D,,MATCH($A20,IND,0)-2),REL_D,K$3,NwID,$C$3),SUMIFS(OFFSET(REL_D,,MATCH($A20,IND,0)-2),REL_D,K$3,OrgID,$C$4)) -> 9212 | L20: =IF($C$4="Total",SUMIFS(OFFSET(REL_D,,MATCH($A20,IND,0)-2),REL_D,L$3,NwID,$C$3),SUMIFS(OFFSET(REL_D,,MATCH($A20,IND,0)-2),REL_D,L$3,OrgID,$C$4)) -> 9259 | M20: =IF($C$4="Total",SUMIFS(OFFSET(REL_D,,MATCH($A20,IND,0)-2),REL_D,M$3,NwID,$C$3),SUMIFS(OFFSET(REL_D,,MATCH($A20,IND,0)-2),REL_D,M$3,OrgID,$C$4)) -> 9552 | N20: =IF($C$4="Total",SUMIFS(OFFSET(REL_D,,MATCH($A20,IND,0)-2),REL_D,N$3,NwID,$C$3),SUMIFS(OFFSET(REL_D,,MATCH($A20,IND,0)-2),REL_D,N$3,OrgID,$C$4)) -> 9544 | O20: =IF($C$4="Total",SUMIFS(OFFSET(REL_D,,MATCH($A20,IND,0)-2),REL_D,O$3,NwID,$C$3),SUMIFS(OFFSET(REL_D,,MATCH($A20,IND,0)-2),REL_D,O$3,OrgID,$C$4)) -> 9836 | P20: =IF($C$4="Total",SUMIFS(OFFSET(REL_D,,MATCH($A20,IND,0)-2),REL_D,P$3,NwID,$C$3),SUMIFS(OFFSET(REL_D,,MATCH($A20,IND,0)-2),REL_D,P$3,OrgID,$C$4)) -> 10024 | Q20: =IF($C$4="Total",SUMIFS(OFFSET(REL_D,,MATCH($A20,IND,0)-2),REL_D,Q$3,NwID,$C$3),SUMIFS(OFFSET(REL_D,,MATCH($A20,IND,0)-2),REL_D,Q$3,OrgID,$C$4)) -> 10168 | R20: =SUMIFS(OFFSET(REL_D,,MATCH($A20,IND,0)-1),REL_D,R$3,IF(LEFT($C$4,1)="N",NwID,OrgID),$C$4) -> 0
A21: ='Control Panel'!B17 -> %LDP.01.03: Current Smoker (last 12m) | B21: %LDP.01.03: Current Smoker (last 12m) | C21: ='Control Panel'!D17 -> % 16+ | D21: =IFERROR(D20/D8,"N/A") -> 0.033 | E21: 0.038 | F21: =IFERROR(F20/F8,"N/A") -> 0.038 | G21: =IFERROR(G20/G8,"N/A") -> 0.038 | H21: 0.037 | I21: 0.038 | J21: 0.038 | K21: 0.038 | L21: 0.038 | M21: 0.039 | N21: 0.039 | O21: 0.04 | P21: 0.041 | Q21: 0.041 | R21: =IFERROR(R20/R8,"N/A") -> N/A
A22: ='Control Panel'!B18 -> Hypertension | B22: Hypertension | C22: ='Control Panel'!B18 -> Hypertension
A23: ='Control Panel'!B19 -> LDP.02: Hypertension Register | B23: LDP.02: Hypertension Register | C23: ='Control Panel'!D19 -> Hypertension Register | D23: =IF($C$4="Total",SUMIFS(OFFSET(REL_D,,MATCH($A23,IND,0)-2),REL_D,D$3,NwID,$C$3),SUMIFS(OFFSET(REL_D,,MATCH($A23,IND,0)-2),REL_D,D$3,OrgID,$C$4)) -> 35319 | E23: =IF($C$4="Total",SUMIFS(OFFSET(REL_D,,MATCH($A23,IND,0)-2),REL_D,E$3,NwID,$C$3),SUMIFS(OFFSET(REL_D,,MATCH($A23,IND,0)-2),REL_D,E$3,OrgID,$C$4)) -> 35740 | F23: =IF($C$4="Total",SUMIFS(OFFSET(REL_D,,MATCH($A23,IND,0)-2),REL_D,F$3,NwID,$C$3),SUMIFS(OFFSET(REL_D,,MATCH($A23,IND,0)-2),REL_D,F$3,OrgID,$C$4)) -> 35736 | G23: =IF($C$4="Total",SUMIFS(OFFSET(REL_D,,MATCH($A23,IND,0)-2),REL_D,G$3,NwID,$C$3),SUMIFS(OFFSET(REL_D,,MATCH($A23,IND,0)-2),REL_D,G$3,OrgID,$C$4)) -> 35774 | H23: =IF($C$4="Total",SUMIFS(OFFSET(REL_D,,MATCH($A23,IND,0)-2),REL_D,H$3,NwID,$C$3),SUMIFS(OFFSET(REL_D,,MATCH($A23,IND,0)-2),REL_D,H$3,OrgID,$C$4)) -> 35812 | I23: =IF($C$4="Total",SUMIFS(OFFSET(REL_D,,MATCH($A23,IND,0)-2),REL_D,I$3,NwID,$C$3),SUMIFS(OFFSET(REL_D,,MATCH($A23,IND,0)-2),REL_D,I$3,OrgID,$C$4)) -> 35841 | J23: =IF($C$4="Total",SUMIFS(OFFSET(REL_D,,MATCH($A23,IND,0)-2),REL_D,J$3,NwID,$C$3),SUMIFS(OFFSET(REL_D,,MATCH($A23,IND,0)-2),REL_D,J$3,OrgID,$C$4)) -> 35870 | K23: =IF($C$4="Total",SUMIFS(OFFSET(REL_D,,MATCH($A23,IND,0)-2),REL_D,K$3,NwID,$C$3),SUMIFS(OFFSET(REL_D,,MATCH($A23,IND,0)-2),REL_D,K$3,OrgID,$C$4)) -> 35965 | L23: =IF($C$4="Total",SUMIFS(OFFSET(REL_D,,MATCH($A23,IND,0)-2),REL_D,L$3,NwID,$C$3),SUMIFS(OFFSET(REL_D,,MATCH($A23,IND,0)-2),REL_D,L$3,OrgID,$C$4)) -> 36034 | M23: =IF($C$4="Total",SUMIFS(OFFSET(REL_D,,MATCH($A23,IND,0)-2),REL_D,M$3,NwID,$C$3),SUMIFS(OFFSET(REL_D,,MATCH($A23,IND,0)-2),REL_D,M$3,OrgID,$C$4)) -> 36222 | N23: =IF($C$4="Total",SUMIFS(OFFSET(REL_D,,MATCH($A23,IND,0)-2),REL_D,N$3,NwID,$C$3),SUMIFS(OFFSET(REL_D,,MATCH($A23,IND,0)-2),REL_D,N$3,OrgID,$C$4)) -> 36327 | O23: =IF($C$4="Total",SUMIFS(OFFSET(REL_D,,MATCH($A23,IND,0)-2),REL_D,O$3,NwID,$C$3),SUMIFS(OFFSET(REL_D,,MATCH($A23,IND,0)-2),REL_D,O$3,OrgID,$C$4)) -> 36465 | P23: =IF($C$4="Total",SUMIFS(OFFSET(REL_D,,MATCH($A23,IND,0)-2),REL_D,P$3,NwID,$C$3),SUMIFS(OFFSET(REL_D,,MATCH($A23,IND,0)-2),REL_D,P$3,OrgID,$C$4)) -> 36771 | Q23: =IF($C$4="Total",SUMIFS(OFFSET(REL_D,,MATCH($A23,IND,0)-2),REL_D,Q$3,NwID,$C$3),SUMIFS(OFFSET(REL_D,,MATCH($A23,IND,0)-2),REL_D,Q$3,OrgID,$C$4)) -> 37069 | R23: =SUMIFS(OFFSET(REL_D,,MATCH($A23,IND,0)-1),REL_D,R$3,IF(LEFT($C$4,1)="N",NwID,OrgID),$C$4) -> 0
A24: ='Control Panel'!B20 -> %LDP.02: Hypertension Register | B24: %LDP.02: Hypertension Register | C24: ='Control Panel'!D20 -> % list size | D24: =IFERROR(D23/D7,"N/A") -> 0.121 | E24: 0.119 | F24: =IFERROR(F23/F7,"N/A") -> 0.119 | G24: =IFERROR(G23/G7,"N/A") -> 0.118 | H24: 0.118 | I24: 0.118 | J24: 0.118 | K24: 0.118 | L24: 0.118 | M24: 0.118 | N24: 0.118 | O24: 0.118 | P24: 0.119 | Q24: 0.12 | R24: =IFERROR(R23/R7,"N/A") -> N/A
A25: ='Control Panel'!B21 -> LDP.02.02: Hypertension BP recorded (last 12m) | B25: LDP.02.02: Hypertension BP recorded (last 12m) | C25: ='Control Panel'!D21 -> Hypertension and BP (last 12m) | D25: =IF($C$4="Total",SUMIFS(OFFSET(REL_D,,MATCH($A25,IND,0)-2),REL_D,D$3,NwID,$C$3),SUMIFS(OFFSET(REL_D,,MATCH($A25,IND,0)-2),REL_D,D$3,OrgID,$C$4)) -> 20013 | E25: =IF($C$4="Total",SUMIFS(OFFSET(REL_D,,MATCH($A25,IND,0)-2),REL_D,E$3,NwID,$C$3),SUMIFS(OFFSET(REL_D,,MATCH($A25,IND,0)-2),REL_D,E$3,OrgID,$C$4)) -> 26058 | F25: =IF($C$4="Total",SUMIFS(OFFSET(REL_D,,MATCH($A25,IND,0)-2),REL_D,F$3,NwID,$C$3),SUMIFS(OFFSET(REL_D,,MATCH($A25,IND,0)-2),REL_D,F$3,OrgID,$C$4)) -> 25869 | G25: =IF($C$4="Total",SUMIFS(OFFSET(REL_D,,MATCH($A25,IND,0)-2),REL_D,G$3,NwID,$C$3),SUMIFS(OFFSET(REL_D,,MATCH($A25,IND,0)-2),REL_D,G$3,OrgID,$C$4)) -> 25757 | H25: =IF($C$4="Total",SUMIFS(OFFSET(REL_D,,MATCH($A25,IND,0)-2),REL_D,H$3,NwID,$C$3),SUMIFS(OFFSET(REL_D,,MATCH($A25,IND,0)-2),REL_D,H$3,OrgID,$C$4)) -> 25569 | I25: =IF($C$4="Total",SUMIFS(OFFSET(REL_D,,MATCH($A25,IND,0)-2),REL_D,I$3,NwID,$C$3),SUMIFS(OFFSET(REL_D,,MATCH($A25,IND,0)-2),REL_D,I$3,OrgID,$C$4)) -> 25763 | J25: =IF($C$4="Total",SUMIFS(OFFSET(REL_D,,MATCH($A25,IND,0)-2),REL_D,J$3,NwID,$C$3),SUMIFS(OFFSET(REL_D,,MATCH($A25,IND,0)-2),REL_D,J$3,OrgID,$C$4)) -> 25927 | K25: =IF($C$4="Total",SUMIFS(OFFSET(REL_D,,MATCH($A25,IND,0)-2),REL_D,K$3,NwID,$C$3),SUMIFS(OFFSET(REL_D,,MATCH($A25,IND,0)-2),REL_D,K$3,OrgID,$C$4)) -> 26119 | L25: =IF($C$4="Total",SUMIFS(OFFSET(REL_D,,MATCH($A25,IND,0)-2),REL_D,L$3,NwID,$C$3),SUMIFS(OFFSET(REL_D,,MATCH($A25,IND,0)-2),REL_D,L$3,OrgID,$C$4)) -> 26651 | M25: =IF($C$4="Total",SUMIFS(OFFSET(REL_D,,MATCH($A25,IND,0)-2),REL_D,M$3,NwID,$C$3),SUMIFS(OFFSET(REL_D,,MATCH($A25,IND,0)-2),REL_D,M$3,OrgID,$C$4)) -> 27225 | N25: =IF($C$4="Total",SUMIFS(OFFSET(REL_D,,MATCH($A25,IND,0)-2),REL_D,N$3,NwID,$C$3),SUMIFS(OFFSET(REL_D,,MATCH($A25,IND,0)-2),REL_D,N$3,OrgID,$C$4)) -> 27779 | O25: =IF($C$4="Total",SUMIFS(OFFSET(REL_D,,MATCH($A25,IND,0)-2),REL_D,O$3,NwID,$C$3),SUMIFS(OFFSET(REL_D,,MATCH($A25,IND,0)-2),REL_D,O$3,OrgID,$C$4)) -> 29059 | P25: =IF($C$4="Total",SUMIFS(OFFSET(REL_D,,MATCH($A25,IND,0)-2),REL_D,P$3,NwID,$C$3),SUMIFS(OFFSET(REL_D,,MATCH($A25,IND,0)-2),REL_D,P$3,OrgID,$C$4)) -> 30202 | Q25: =IF($C$4="Total",SUMIFS(OFFSET(REL_D,,MATCH($A25,IND,0)-2),REL_D,Q$3,NwID,$C$3),SUMIFS(OFFSET(REL_D,,MATCH($A25,IND,0)-2),REL_D,Q$3,OrgID,$C$4)) -> 31488 | R25: =SUMIFS(OFFSET(REL_D,,MATCH($A25,IND,0)-1),REL_D,R$3,IF(LEFT($C$4,1)="N",NwID,OrgID),$C$4) -> 0
A26: ='Control Panel'!B22 -> %LDP.02.02: Hypertension BP recorded (last 12m) | B26: %LDP.02.02: Hypertension BP recorded (last 12m) | C26: ='Control Panel'!D22 -> % Hypertension Register | D26: =IFERROR(D25/D23,"N/A") -> 0.567 | E26: 0.729 | F26: =IFERROR(F25/F23,"N/A") -> 0.724 | G26: =IFERROR(G25/G23,"N/A") -> 0.72 | H26: 0.714 | I26: 0.719 | J26: 0.723 | K26: 0.726 | L26: 0.74 | M26: 0.752 | N26: 0.765 | O26: 0.797 | P26: 0.821 | Q26: 0.849 | R26: =IFERROR(R25/R23,"N/A") -> N/A
A27: ='Control Panel'!B23 -> LDP.02.01: Hypertension and BP < 140/90 (age under 80) < 150/90 (Age 80+) | B27: LDP.02.01: Hypertension and BP < 140/90 (age under 80) < 150/90 (Age 80+) | C27: ='Control Panel'!D23 -> Hypertension and BP < 140/90 (Patients aged under 80) < 150/90 ( Aged 80 and over) (last 12m) | D27: =IF($C$4="Total",SUMIFS(OFFSET(REL_D,,MATCH($A27,IND,0)-2),REL_D,D$3,NwID,$C$3),SUMIFS(OFFSET(REL_D,,MATCH($A27,IND,0)-2),REL_D,D$3,OrgID,$C$4)) -> 12964 | E27: =IF($C$4="Total",SUMIFS(OFFSET(REL_D,,MATCH($A27,IND,0)-2),REL_D,E$3,NwID,$C$3),SUMIFS(OFFSET(REL_D,,MATCH($A27,IND,0)-2),REL_D,E$3,OrgID,$C$4)) -> 16845 | F27: =IF($C$4="Total",SUMIFS(OFFSET(REL_D,,MATCH($A27,IND,0)-2),REL_D,F$3,NwID,$C$3),SUMIFS(OFFSET(REL_D,,MATCH($A27,IND,0)-2),REL_D,F$3,OrgID,$C$4)) -> 16584 | G27: =IF($C$4="Total",SUMIFS(OFFSET(REL_D,,MATCH($A27,IND,0)-2),REL_D,G$3,NwID,$C$3),SUMIFS(OFFSET(REL_D,,MATCH($A27,IND,0)-2),REL_D,G$3,OrgID,$C$4)) -> 16491 | H27: =IF($C$4="Total",SUMIFS(OFFSET(REL_D,,MATCH($A27,IND,0)-2),REL_D,H$3,NwID,$C$3),SUMIFS(OFFSET(REL_D,,MATCH($A27,IND,0)-2),REL_D,H$3,OrgID,$C$4)) -> 16348 | I27: =IF($C$4="Total",SUMIFS(OFFSET(REL_D,,MATCH($A27,IND,0)-2),REL_D,I$3,NwID,$C$3),SUMIFS(OFFSET(REL_D,,MATCH($A27,IND,0)-2),REL_D,I$3,OrgID,$C$4)) -> 16548 | J27: =IF($C$4="Total",SUMIFS(OFFSET(REL_D,,MATCH($A27,IND,0)-2),REL_D,J$3,NwID,$C$3),SUMIFS(OFFSET(REL_D,,MATCH($A27,IND,0)-2),REL_D,J$3,OrgID,$C$4)) -> 16823 | K27: =IF($C$4="Total",SUMIFS(OFFSET(REL_D,,MATCH($A27,IND,0)-2),REL_D,K$3,NwID,$C$3),SUMIFS(OFFSET(REL_D,,MATCH($A27,IND,0)-2),REL_D,K$3,OrgID,$C$4)) -> 16938 | L27: =IF($C$4="Total",SUMIFS(OFFSET(REL_D,,MATCH($A27,IND,0)-2),REL_D,L$3,NwID,$C$3),SUMIFS(OFFSET(REL_D,,MATCH($A27,IND,0)-2),REL_D,L$3,OrgID,$C$4)) -> 17358 | M27: =IF($C$4="Total",SUMIFS(OFFSET(REL_D,,MATCH($A27,IND,0)-2),REL_D,M$3,NwID,$C$3),SUMIFS(OFFSET(REL_D,,MATCH($A27,IND,0)-2),REL_D,M$3,OrgID,$C$4)) -> 17720 | N27: =IF($C$4="Total",SUMIFS(OFFSET(REL_D,,MATCH($A27,IND,0)-2),REL_D,N$3,NwID,$C$3),SUMIFS(OFFSET(REL_D,,MATCH($A27,IND,0)-2),REL_D,N$3,OrgID,$C$4)) -> 18093 | O27: =IF($C$4="Total",SUMIFS(OFFSET(REL_D,,MATCH($A27,IND,0)-2),REL_D,O$3,NwID,$C$3),SUMIFS(OFFSET(REL_D,,MATCH($A27,IND,0)-2),REL_D,O$3,OrgID,$C$4)) -> 19076 | P27: =IF($C$4="Total",SUMIFS(OFFSET(REL_D,,MATCH($A27,IND,0)-2),REL_D,P$3,NwID,$C$3),SUMIFS(OFFSET(REL_D,,MATCH($A27,IND,0)-2),REL_D,P$3,OrgID,$C$4)) -> 20069 | Q27: =IF($C$4="Total",SUMIFS(OFFSET(REL_D,,MATCH($A27,IND,0)-2),REL_D,Q$3,NwID,$C$3),SUMIFS(OFFSET(REL_D,,MATCH($A27,IND,0)-2),REL_D,Q$3,OrgID,$C$4)) -> 21383 | R27: =SUMIFS(OFFSET(REL_D,,MATCH($A27,IND,0)-1),REL_D,R$3,IF(LEFT($C$4,1)="N",NwID,OrgID),$C$4) -> 0
A28: ='Control Panel'!B24 -> %LDP.02.01: Hypertension and BP < 140/90 (age under 80) < 150/90 (Age 80+) | B28: %LDP.02.01: Hypertension and BP < 140/90 (age under 80) < 150/90 (Age 80+) | C28: ='Control Panel'!D24 -> % Hypertension Register | D28: =IFERROR(D27/D23,"N/A") -> 0.367 | E28: 0.471 | F28: =IFERROR(F27/F23,"N/A") -> 0.464 | G28: =IFERROR(G27/G23,"N/A") -> 0.461 | H28: 0.456 | I28: 0.462 | J28: 0.469 | K28: 0.471 | L28: 0.482 | M28: 0.489 | N28: 0.498 | O28: 0.523 | P28: 0.546 | Q28: 0.577 | R28: =IFERROR(R27/R23,"N/A") -> N/A
A29: ='Control Panel'!B25 -> CHD | B29: CHD | C29: ='Control Panel'!B25 -> CHD
A30: ='Control Panel'!B26 -> LDP.03: CHD Register | B30: LDP.03: CHD Register | C30: ='Control Panel'!D26 -> CHD register | D30: =IF($C$4="Total",SUMIFS(OFFSET(REL_D,,MATCH($A30,IND,0)-2),REL_D,D$3,NwID,$C$3),SUMIFS(OFFSET(REL_D,,MATCH($A30,IND,0)-2),REL_D,D$3,OrgID,$C$4)) -> 6856 | E30: =IF($C$4="Total",SUMIFS(OFFSET(REL_D,,MATCH($A30,IND,0)-2),REL_D,E$3,NwID,$C$3),SUMIFS(OFFSET(REL_D,,MATCH($A30,IND,0)-2),REL_D,E$3,OrgID,$C$4)) -> 6892 | F30: =IF($C$4="Total",SUMIFS(OFFSET(REL_D,,MATCH($A30,IND,0)-2),REL_D,F$3,NwID,$C$3),SUMIFS(OFFSET(REL_D,,MATCH($A30,IND,0)-2),REL_D,F$3,OrgID,$C$4)) -> 6893 | G30: =IF($C$4="Total",SUMIFS(OFFSET(REL_D,,MATCH($A30,IND,0)-2),REL_D,G$3,NwID,$C$3),SUMIFS(OFFSET(REL_D,,MATCH($A30,IND,0)-2),REL_D,G$3,OrgID,$C$4)) -> 6878 | H30: =IF($C$4="Total",SUMIFS(OFFSET(REL_D,,MATCH($A30,IND,0)-2),REL_D,H$3,NwID,$C$3),SUMIFS(OFFSET(REL_D,,MATCH($A30,IND,0)-2),REL_D,H$3,OrgID,$C$4)) -> 6878 | I30: =IF($C$4="Total",SUMIFS(OFFSET(REL_D,,MATCH($A30,IND,0)-2),REL_D,I$3,NwID,$C$3),SUMIFS(OFFSET(REL_D,,MATCH($A30,IND,0)-2),REL_D,I$3,OrgID,$C$4)) -> 6879 | J30: =IF($C$4="Total",SUMIFS(OFFSET(REL_D,,MATCH($A30,IND,0)-2),REL_D,J$3,NwID,$C$3),SUMIFS(OFFSET(REL_D,,MATCH($A30,IND,0)-2),REL_D,J$3,OrgID,$C$4)) -> 6882 | K30: =IF($C$4="Total",SUMIFS(OFFSET(REL_D,,MATCH($A30,IND,0)-2),REL_D,K$3,NwID,$C$3),SUMIFS(OFFSET(REL_D,,MATCH($A30,IND,0)-2),REL_D,K$3,OrgID,$C$4)) -> 6877 | L30: =IF($C$4="Total",SUMIFS(OFFSET(REL_D,,MATCH($A30,IND,0)-2),REL_D,L$3,NwID,$C$3),SUMIFS(OFFSET(REL_D,,MATCH($A30,IND,0)-2),REL_D,L$3,OrgID,$C$4)) -> 6839 | M30: =IF($C$4="Total",SUMIFS(OFFSET(REL_D,,MATCH($A30,IND,0)-2),REL_D,M$3,NwID,$C$3),SUMIFS(OFFSET(REL_D,,MATCH($A30,IND,0)-2),REL_D,M$3,OrgID,$C$4)) -> 6830 | N30: =IF($C$4="Total",SUMIFS(OFFSET(REL_D,,MATCH($A30,IND,0)-2),REL_D,N$3,NwID,$C$3),SUMIFS(OFFSET(REL_D,,MATCH($A30,IND,0)-2),REL_D,N$3,OrgID,$C$4)) -> 6841 | O30: =IF($C$4="Total",SUMIFS(OFFSET(REL_D,,MATCH($A30,IND,0)-2),REL_D,O$3,NwID,$C$3),SUMIFS(OFFSET(REL_D,,MATCH($A30,IND,0)-2),REL_D,O$3,OrgID,$C$4)) -> 6810 | P30: =IF($C$4="Total",SUMIFS(OFFSET(REL_D,,MATCH($A30,IND,0)-2),REL_D,P$3,NwID,$C$3),SUMIFS(OFFSET(REL_D,,MATCH($A30,IND,0)-2),REL_D,P$3,OrgID,$C$4)) -> 6780 | Q30: =IF($C$4="Total",SUMIFS(OFFSET(REL_D,,MATCH($A30,IND,0)-2),REL_D,Q$3,NwID,$C$3),SUMIFS(OFFSET(REL_D,,MATCH($A30,IND,0)-2),REL_D,Q$3,OrgID,$C$4)) -> 6783 | R30: =SUMIFS(OFFSET(REL_D,,MATCH($A30,IND,0)-1),REL_D,R$3,IF(LEFT($C$4,1)="N",NwID,OrgID),$C$4) -> 0
A31: ='Control Panel'!B27 -> %LDP.03: CHD Register | B31: %LDP.03: CHD Register | C31: ='Control Panel'!D27 -> % list size | D31: =IFERROR(D30/D7,"N/A") -> 0.023 | E31: 0.023 | F31: =IFERROR(F30/F7,"N/A") -> 0.023 | G31: =IFERROR(G30/G7,"N/A") -> 0.023 | H31: 0.023 | I31: 0.023 | J31: 0.023 | K31: 0.023 | L31: 0.022 | M31: 0.022 | N31: 0.022 | O31: 0.022 | P31: 0.022 | Q31: 0.022 | R31: =IFERROR(R30/R7,"N/A") -> N/A
A32: ='Control Panel'!B28 -> LDP.03.04: CHD Cholesterol recorded (last 12m) | B32: LDP.03.04: CHD Cholesterol recorded (last 12m) | C32: ='Control Panel'!D28 -> Cholesterol (last 12m) | D32: =IF($C$4="Total",SUMIFS(OFFSET(REL_D,,MATCH($A32,IND,0)-2),REL_D,D$3,NwID,$C$3),SUMIFS(OFFSET(REL_D,,MATCH($A32,IND,0)-2),REL_D,D$3,OrgID,$C$4)) -> 979 | E32: =IF($C$4="Total",SUMIFS(OFFSET(REL_D,,MATCH($A32,IND,0)-2),REL_D,E$3,NwID,$C$3),SUMIFS(OFFSET(REL_D,,MATCH($A32,IND,0)-2),REL_D,E$3,OrgID,$C$4)) -> 1039 | F32: =IF($C$4="Total",SUMIFS(OFFSET(REL_D,,MATCH($A32,IND,0)-2),REL_D,F$3,NwID,$C$3),SUMIFS(OFFSET(REL_D,,MATCH($A32,IND,0)-2),REL_D,F$3,OrgID,$C$4)) -> 1033 | G32: =IF($C$4="Total",SUMIFS(OFFSET(REL_D,,MATCH($A32,IND,0)-2),REL_D,G$3,NwID,$C$3),SUMIFS(OFFSET(REL_D,,MATCH($A32,IND,0)-2),REL_D,G$3,OrgID,$C$4)) -> 1005 | H32: =IF($C$4="Total",SUMIFS(OFFSET(REL_D,,MATCH($A32,IND,0)-2),REL_D,H$3,NwID,$C$3),SUMIFS(OFFSET(REL_D,,MATCH($A32,IND,0)-2),REL_D,H$3,OrgID,$C$4)) -> 1022 | I32: =IF($C$4="Total",SUMIFS(OFFSET(REL_D,,MATCH($A32,IND,0)-2),REL_D,I$3,NwID,$C$3),SUMIFS(OFFSET(REL_D,,MATCH($A32,IND,0)-2),REL_D,I$3,OrgID,$C$4)) -> 1015 | J32: =IF($C$4="Total",SUMIFS(OFFSET(REL_D,,MATCH($A32,IND,0)-2),REL_D,J$3,NwID,$C$3),SUMIFS(OFFSET(REL_D,,MATCH($A32,IND,0)-2),REL_D,J$3,OrgID,$C$4)) -> 1023 | K32: =IF($C$4="Total",SUMIFS(OFFSET(REL_D,,MATCH($A32,IND,0)-2),REL_D,K$3,NwID,$C$3),SUMIFS(OFFSET(REL_D,,MATCH($A32,IND,0)-2),REL_D,K$3,OrgID,$C$4)) -> 1044 | L32: =IF($C$4="Total",SUMIFS(OFFSET(REL_D,,MATCH($A32,IND,0)-2),REL_D,L$3,NwID,$C$3),SUMIFS(OFFSET(REL_D,,MATCH($A32,IND,0)-2),REL_D,L$3,OrgID,$C$4)) -> 1069 | M32: =IF($C$4="Total",SUMIFS(OFFSET(REL_D,,MATCH($A32,IND,0)-2),REL_D,M$3,NwID,$C$3),SUMIFS(OFFSET(REL_D,,MATCH($A32,IND,0)-2),REL_D,M$3,OrgID,$C$4)) -> 1099 | N32: =IF($C$4="Total",SUMIFS(OFFSET(REL_D,,MATCH($A32,IND,0)-2),REL_D,N$3,NwID,$C$3),SUMIFS(OFFSET(REL_D,,MATCH($A32,IND,0)-2),REL_D,N$3,OrgID,$C$4)) -> 1125 | O32: =IF($C$4="Total",SUMIFS(OFFSET(REL_D,,MATCH($A32,IND,0)-2),REL_D,O$3,NwID,$C$3),SUMIFS(OFFSET(REL_D,,MATCH($A32,IND,0)-2),REL_D,O$3,OrgID,$C$4)) -> 1141 | P32: =IF($C$4="Total",SUMIFS(OFFSET(REL_D,,MATCH($A32,IND,0)-2),REL_D,P$3,NwID,$C$3),SUMIFS(OFFSET(REL_D,,MATCH($A32,IND,0)-2),REL_D,P$3,OrgID,$C$4)) -> 1158 | Q32: =IF($C$4="Total",SUMIFS(OFFSET(REL_D,,MATCH($A32,IND,0)-2),REL_D,Q$3,NwID,$C$3),SUMIFS(OFFSET(REL_D,,MATCH($A32,IND,0)-2),REL_D,Q$3,OrgID,$C$4)) -> 1187 | R32: =SUMIFS(OFFSET(REL_D,,MATCH($A32,IND,0)-1),REL_D,R$3,IF(LEFT($C$4,1)="N",NwID,OrgID),$C$4) -> 0
A33: ='Control Panel'!B29 -> %LDP.03.04: CHD Cholesterol recorded (last 12m) | B33: %LDP.03.04: CHD Cholesterol recorded (last 12m) | C33: ='Control Panel'!D29 -> % CHD register | D33: =IFERROR(D32/D30,"N/A") -> 0.143 | E33: 0.151 | F33: =IFERROR(F32/F30,"N/A") -> 0.15 | G33: =IFERROR(G32/G30,"N/A") -> 0.146 | H33: 0.149 | I33: 0.148 | J33: 0.149 | K33: 0.152 | L33: 0.156 | M33: 0.161 | N33: 0.164 | O33: 0.168 | P33: 0.171 | Q33: 0.175 | R33: =IFERROR(R32/R30,"N/A") -> N/A
A34: ='Control Panel'!B30 -> LDP.03.01: CHD Chol less than 5mmol (last 12m) | B34: LDP.03.01: CHD Chol less than 5mmol (last 12m) | C34: ='Control Panel'!D30 -> Cholesterol < 5 (last 12m) | D34: =IF($C$4="Total",SUMIFS(OFFSET(REL_D,,MATCH($A34,IND,0)-2),REL_D,D$3,NwID,$C$3),SUMIFS(OFFSET(REL_D,,MATCH($A34,IND,0)-2),REL_D,D$3,OrgID,$C$4)) -> 854 | E34: =IF($C$4="Total",SUMIFS(OFFSET(REL_D,,MATCH($A34,IND,0)-2),REL_D,E$3,NwID,$C$3),SUMIFS(OFFSET(REL_D,,MATCH($A34,IND,0)-2),REL_D,E$3,OrgID,$C$4)) -> 861 | F34: =IF($C$4="Total",SUMIFS(OFFSET(REL_D,,MATCH($A34,IND,0)-2),REL_D,F$3,NwID,$C$3),SUMIFS(OFFSET(REL_D,,MATCH($A34,IND,0)-2),REL_D,F$3,OrgID,$C$4)) -> 865 | G34: =IF($C$4="Total",SUMIFS(OFFSET(REL_D,,MATCH($A34,IND,0)-2),REL_D,G$3,NwID,$C$3),SUMIFS(OFFSET(REL_D,,MATCH($A34,IND,0)-2),REL_D,G$3,OrgID,$C$4)) -> 836 | H34: =IF($C$4="Total",SUMIFS(OFFSET(REL_D,,MATCH($A34,IND,0)-2),REL_D,H$3,NwID,$C$3),SUMIFS(OFFSET(REL_D,,MATCH($A34,IND,0)-2),REL_D,H$3,OrgID,$C$4)) -> 846 | I34: =IF($C$4="Total",SUMIFS(OFFSET(REL_D,,MATCH($A34,IND,0)-2),REL_D,I$3,NwID,$C$3),SUMIFS(OFFSET(REL_D,,MATCH($A34,IND,0)-2),REL_D,I$3,OrgID,$C$4)) -> 845 | J34: =IF($C$4="Total",SUMIFS(OFFSET(REL_D,,MATCH($A34,IND,0)-2),REL_D,J$3,NwID,$C$3),SUMIFS(OFFSET(REL_D,,MATCH($A34,IND,0)-2),REL_D,J$3,OrgID,$C$4)) -> 848 | K34: =IF($C$4="Total",SUMIFS(OFFSET(REL_D,,MATCH($A34,IND,0)-2),REL_D,K$3,NwID,$C$3),SUMIFS(OFFSET(REL_D,,MATCH($A34,IND,0)-2),REL_D,K$3,OrgID,$C$4)) -> 866 | L34: =IF($C$4="Total",SUMIFS(OFFSET(REL_D,,MATCH($A34,IND,0)-2),REL_D,L$3,NwID,$C$3),SUMIFS(OFFSET(REL_D,,MATCH($A34,IND,0)-2),REL_D,L$3,OrgID,$C$4)) -> 897 | M34: =IF($C$4="Total",SUMIFS(OFFSET(REL_D,,MATCH($A34,IND,0)-2),REL_D,M$3,NwID,$C$3),SUMIFS(OFFSET(REL_D,,MATCH($A34,IND,0)-2),REL_D,M$3,OrgID,$C$4)) -> 918 | N34: =IF($C$4="Total",SUMIFS(OFFSET(REL_D,,MATCH($A34,IND,0)-2),REL_D,N$3,NwID,$C$3),SUMIFS(OFFSET(REL_D,,MATCH($A34,IND,0)-2),REL_D,N$3,OrgID,$C$4)) -> 936 | O34: =IF($C$4="Total",SUMIFS(OFFSET(REL_D,,MATCH($A34,IND,0)-2),REL_D,O$3,NwID,$C$3),SUMIFS(OFFSET(REL_D,,MATCH($A34,IND,0)-2),REL_D,O$3,OrgID,$C$4)) -> 958 | P34: =IF($C$4="Total",SUMIFS(OFFSET(REL_D,,MATCH($A34,IND,0)-2),REL_D,P$3,NwID,$C$3),SUMIFS(OFFSET(REL_D,,MATCH($A34,IND,0)-2),REL_D,P$3,OrgID,$C$4)) -> 978 | Q34: =IF($C$4="Total",SUMIFS(OFFSET(REL_D,,MATCH($A34,IND,0)-2),REL_D,Q$3,NwID,$C$3),SUMIFS(OFFSET(REL_D,,MATCH($A34,IND,0)-2),REL_D,Q$3,OrgID,$C$4)) -> 1004 | R34: =SUMIFS(OFFSET(REL_D,,MATCH($A34,IND,0)-1),REL_D,R$3,IF(LEFT($C$4,1)="N",NwID,OrgID),$C$4) -> 0
A35: ='Control Panel'!B31 -> %LDP.03.01: CHD Chol less than 5mmol (last 12m) | B35: %LDP.03.01: CHD Chol less than 5mmol (last 12m) | C35: ='Control Panel'!D31 -> % CHD register | D35: =IFERROR(D34/D30,"N/A") -> 0.125 | E35: 0.125 | F35: =IFERROR(F34/F30,"N/A") -> 0.125 | G35: =IFERROR(G34/G30,"N/A") -> 0.122 | H35: 0.123 | I35: 0.123 | J35: 0.123 | K35: 0.126 | L35: 0.131 | M35: 0.134 | N35: 0.137 | O35: 0.141 | P35: 0.144 | Q35: 0.148 | R35: =IFERROR(R34/R30,"N/A") -> N/A
A36: ='Control Panel'!B32 -> LDP.03.02: CHD BP less than or equal 150/90 (last 9m) | B36: LDP.03.02: CHD BP less than or equal 150/90 (last 9m) | C36: ='Control Panel'!D32 -> BP ≤ 150/90 (last 9m) | D36: =IF($C$4="Total",SUMIFS(OFFSET(REL_D,,MATCH($A36,IND,0)-2),REL_D,D$3,NwID,$C$3),SUMIFS(OFFSET(REL_D,,MATCH($A36,IND,0)-2),REL_D,D$3,OrgID,$C$4)) -> 2969 | E36: =IF($C$4="Total",SUMIFS(OFFSET(REL_D,,MATCH($A36,IND,0)-2),REL_D,E$3,NwID,$C$3),SUMIFS(OFFSET(REL_D,,MATCH($A36,IND,0)-2),REL_D,E$3,OrgID,$C$4)) -> 3591 | F36: =IF($C$4="Total",SUMIFS(OFFSET(REL_D,,MATCH($A36,IND,0)-2),REL_D,F$3,NwID,$C$3),SUMIFS(OFFSET(REL_D,,MATCH($A36,IND,0)-2),REL_D,F$3,OrgID,$C$4)) -> 3541 | G36: =IF($C$4="Total",SUMIFS(OFFSET(REL_D,,MATCH($A36,IND,0)-2),REL_D,G$3,NwID,$C$3),SUMIFS(OFFSET(REL_D,,MATCH($A36,IND,0)-2),REL_D,G$3,OrgID,$C$4)) -> 3500 | H36: =IF($C$4="Total",SUMIFS(OFFSET(REL_D,,MATCH($A36,IND,0)-2),REL_D,H$3,NwID,$C$3),SUMIFS(OFFSET(REL_D,,MATCH($A36,IND,0)-2),REL_D,H$3,OrgID,$C$4)) -> 3486 | I36: =IF($C$4="Total",SUMIFS(OFFSET(REL_D,,MATCH($A36,IND,0)-2),REL_D,I$3,NwID,$C$3),SUMIFS(OFFSET(REL_D,,MATCH($A36,IND,0)-2),REL_D,I$3,OrgID,$C$4)) -> 3536 | J36: =IF($C$4="Total",SUMIFS(OFFSET(REL_D,,MATCH($A36,IND,0)-2),REL_D,J$3,NwID,$C$3),SUMIFS(OFFSET(REL_D,,MATCH($A36,IND,0)-2),REL_D,J$3,OrgID,$C$4)) -> 3602 | K36: =IF($C$4="Total",SUMIFS(OFFSET(REL_D,,MATCH($A36,IND,0)-2),REL_D,K$3,NwID,$C$3),SUMIFS(OFFSET(REL_D,,MATCH($A36,IND,0)-2),REL_D,K$3,OrgID,$C$4)) -> 3638 | L36: =IF($C$4="Total",SUMIFS(OFFSET(REL_D,,MATCH($A36,IND,0)-2),REL_D,L$3,NwID,$C$3),SUMIFS(OFFSET(REL_D,,MATCH($A36,IND,0)-2),REL_D,L$3,OrgID,$C$4)) -> 3650 | M36: =IF($C$4="Total",SUMIFS(OFFSET(REL_D,,MATCH($A36,IND,0)-2),REL_D,M$3,NwID,$C$3),SUMIFS(OFFSET(REL_D,,MATCH($A36,IND,0)-2),REL_D,M$3,OrgID,$C$4)) -> 3732 | N36: =IF($C$4="Total",SUMIFS(OFFSET(REL_D,,MATCH($A36,IND,0)-2),REL_D,N$3,NwID,$C$3),SUMIFS(OFFSET(REL_D,,MATCH($A36,IND,0)-2),REL_D,N$3,OrgID,$C$4)) -> 3792 | O36: =IF($C$4="Total",SUMIFS(OFFSET(REL_D,,MATCH($A36,IND,0)-2),REL_D,O$3,NwID,$C$3),SUMIFS(OFFSET(REL_D,,MATCH($A36,IND,0)-2),REL_D,O$3,OrgID,$C$4)) -> 3898 | P36: =IF($C$4="Total",SUMIFS(OFFSET(REL_D,,MATCH($A36,IND,0)-2),REL_D,P$3,NwID,$C$3),SUMIFS(OFFSET(REL_D,,MATCH($A36,IND,0)-2),REL_D,P$3,OrgID,$C$4)) -> 4035 | Q36: =IF($C$4="Total",SUMIFS(OFFSET(REL_D,,MATCH($A36,IND,0)-2),REL_D,Q$3,NwID,$C$3),SUMIFS(OFFSET(REL_D,,MATCH($A36,IND,0)-2),REL_D,Q$3,OrgID,$C$4)) -> 4186 | R36: =SUMIFS(OFFSET(REL_D,,MATCH($A36,IND,0)-1),REL_D,R$3,IF(LEFT($C$4,1)="N",NwID,OrgID),$C$4) -> 0
A37: ='Control Panel'!B33 -> %LDP.03.02: CHD BP less than or equal 150/90 (last 9m) | B37: %LDP.03.02: CHD BP less than or equal 150/90 (last 9m) | C37: ='Control Panel'!D33 -> % CHD register | D37: =IFERROR(D36/D30,"N/A") -> 0.433 | E37: 0.521 | F37: =IFERROR(F36/F30,"N/A") -> 0.514 | G37: =IFERROR(G36/G30,"N/A") -> 0.509 | H37: 0.507 | I37: 0.514 | J37: 0.523 | K37: 0.529 | L37: 0.534 | M37: 0.546 | N37: 0.554 | O37: 0.572 | P37: 0.595 | Q37: 0.617 | R37: N/A
A38: Stroke/TIA | C38: Stroke/TIA
A39: LDP.10 Stroke or TIA register | C39: Stroke/TIA register | D39: =IF($C$4="Total",SUMIFS(OFFSET(REL_D,,MATCH($A39,IND,0)-2),REL_D,D$3,NwID,$C$3),SUMIFS(OFFSET(REL_D,,MATCH($A39,IND,0)-2),REL_D,D$3,OrgID,$C$4)) -> 3139 | E39: =IF($C$4="Total",SUMIFS(OFFSET(REL_D,,MATCH($A39,IND,0)-2),REL_D,E$3,NwID,$C$3),SUMIFS(OFFSET(REL_D,,MATCH($A39,IND,0)-2),REL_D,E$3,OrgID,$C$4)) -> 3231 | F39: =IF($C$4="Total",SUMIFS(OFFSET(REL_D,,MATCH($A39,IND,0)-2),REL_D,F$3,NwID,$C$3),SUMIFS(OFFSET(REL_D,,MATCH($A39,IND,0)-2),REL_D,F$3,OrgID,$C$4)) -> 3230 | G39: =IF($C$4="Total",SUMIFS(OFFSET(REL_D,,MATCH($A39,IND,0)-2),REL_D,G$3,NwID,$C$3),SUMIFS(OFFSET(REL_D,,MATCH($A39,IND,0)-2),REL_D,G$3,OrgID,$C$4)) -> 3227 | H39: =IF($C$4="Total",SUMIFS(OFFSET(REL_D,,MATCH($A39,IND,0)-2),REL_D,H$3,NwID,$C$3),SUMIFS(OFFSET(REL_D,,MATCH($A39,IND,0)-2),REL_D,H$3,OrgID,$C$4)) -> 3228 | I39: =IF($C$4="Total",SUMIFS(OFFSET(REL_D,,MATCH($A39,IND,0)-2),REL_D,I$3,NwID,$C$3),SUMIFS(OFFSET(REL_D,,MATCH($A39,IND,0)-2),REL_D,I$3,OrgID,$C$4)) -> 3224 | J39: =IF($C$4="Total",SUMIFS(OFFSET(REL_D,,MATCH($A39,IND,0)-2),REL_D,J$3,NwID,$C$3),SUMIFS(OFFSET(REL_D,,MATCH($A39,IND,0)-2),REL_D,J$3,OrgID,$C$4)) -> 3223 | K39: =IF($C$4="Total",SUMIFS(OFFSET(REL_D,,MATCH($A39,IND,0)-2),REL_D,K$3,NwID,$C$3),SUMIFS(OFFSET(REL_D,,MATCH($A39,IND,0)-2),REL_D,K$3,OrgID,$C$4)) -> 3240 | L39: =IF($C$4="Total",SUMIFS(OFFSET(REL_D,,MATCH($A39,IND,0)-2),REL_D,L$3,NwID,$C$3),SUMIFS(OFFSET(REL_D,,MATCH($A39,IND,0)-2),REL_D,L$3,OrgID,$C$4)) -> 3236 | M39: =IF($C$4="Total",SUMIFS(OFFSET(REL_D,,MATCH($A39,IND,0)-2),REL_D,M$3,NwID,$C$3),SUMIFS(OFFSET(REL_D,,MATCH($A39,IND,0)-2),REL_D,M$3,OrgID,$C$4)) -> 3240 | N39: =IF($C$4="Total",SUMIFS(OFFSET(REL_D,,MATCH($A39,IND,0)-2),REL_D,N$3,NwID,$C$3),SUMIFS(OFFSET(REL_D,,MATCH($A39,IND,0)-2),REL_D,N$3,OrgID,$C$4)) -> 3203 | O39: =IF($C$4="Total",SUMIFS(OFFSET(REL_D,,MATCH($A39,IND,0)-2),REL_D,O$3,NwID,$C$3),SUMIFS(OFFSET(REL_D,,MATCH($A39,IND,0)-2),REL_D,O$3,OrgID,$C$4)) -> 3197 | P39: =IF($C$4="Total",SUMIFS(OFFSET(REL_D,,MATCH($A39,IND,0)-2),REL_D,P$3,NwID,$C$3),SUMIFS(OFFSET(REL_D,,MATCH($A39,IND,0)-2),REL_D,P$3,OrgID,$C$4)) -> 3203 | Q39: =IF($C$4="Total",SUMIFS(OFFSET(REL_D,,MATCH($A39,IND,0)-2),REL_D,Q$3,NwID,$C$3),SUMIFS(OFFSET(REL_D,,MATCH($A39,IND,0)-2),REL_D,Q$3,OrgID,$C$4)) -> 3203 | R39: -
A40: %LDP.10 Stroke or TIA register | C40: % list size | D40: =IFERROR(D39/D7,"N/A") -> 0.011 | E40: 0.011 | F40: =IFERROR(F39/F7,"N/A") -> 0.011 | G40: =IFERROR(G39/G7,"N/A") -> 0.011 | H40: 0.011 | I40: 0.011 | J40: 0.011 | K40: 0.011 | L40: 0.011 | M40: 0.011 | N40: 0.01 | O40: 0.01 | P40: 0.01 | Q40: 0.01 | R40: -
A41: LDP.10.01: Stroke/TIA BP recorded (last 12m) | C41: Patients on Stroke/TIA register with BP recorded | D41: =IF($C$4="Total",SUMIFS(OFFSET(REL_D,,MATCH($A41,IND,0)-2),REL_D,D$3,NwID,$C$3),SUMIFS(OFFSET(REL_D,,MATCH($A41,IND,0)-2),REL_D,D$3,OrgID,$C$4)) -> 2057 | E41: =IF($C$4="Total",SUMIFS(OFFSET(REL_D,,MATCH($A41,IND,0)-2),REL_D,E$3,NwID,$C$3),SUMIFS(OFFSET(REL_D,,MATCH($A41,IND,0)-2),REL_D,E$3,OrgID,$C$4)) -> 2535 | F41: =IF($C$4="Total",SUMIFS(OFFSET(REL_D,,MATCH($A41,IND,0)-2),REL_D,F$3,NwID,$C$3),SUMIFS(OFFSET(REL_D,,MATCH($A41,IND,0)-2),REL_D,F$3,OrgID,$C$4)) -> 2517 | G41: =IF($C$4="Total",SUMIFS(OFFSET(REL_D,,MATCH($A41,IND,0)-2),REL_D,G$3,NwID,$C$3),SUMIFS(OFFSET(REL_D,,MATCH($A41,IND,0)-2),REL_D,G$3,OrgID,$C$4)) -> 2486 | H41: =IF($C$4="Total",SUMIFS(OFFSET(REL_D,,MATCH($A41,IND,0)-2),REL_D,H$3,NwID,$C$3),SUMIFS(OFFSET(REL_D,,MATCH($A41,IND,0)-2),REL_D,H$3,OrgID,$C$4)) -> 2486 | I41: =IF($C$4="Total",SUMIFS(OFFSET(REL_D,,MATCH($A41,IND,0)-2),REL_D,I$3,NwID,$C$3),SUMIFS(OFFSET(REL_D,,MATCH($A41,IND,0)-2),REL_D,I$3,OrgID,$C$4)) -> 2491 | J41: =IF($C$4="Total",SUMIFS(OFFSET(REL_D,,MATCH($A41,IND,0)-2),REL_D,J$3,NwID,$C$3),SUMIFS(OFFSET(REL_D,,MATCH($A41,IND,0)-2),REL_D,J$3,OrgID,$C$4)) -> 2510 | K41: =IF($C$4="Total",SUMIFS(OFFSET(REL_D,,MATCH($A41,IND,0)-2),REL_D,K$3,NwID,$C$3),SUMIFS(OFFSET(REL_D,,MATCH($A41,IND,0)-2),REL_D,K$3,OrgID,$C$4)) -> 2529 | L41: =IF($C$4="Total",SUMIFS(OFFSET(REL_D,,MATCH($A41,IND,0)-2),REL_D,L$3,NwID,$C$3),SUMIFS(OFFSET(REL_D,,MATCH($A41,IND,0)-2),REL_D,L$3,OrgID,$C$4)) -> 2587 | M41: =IF($C$4="Total",SUMIFS(OFFSET(REL_D,,MATCH($A41,IND,0)-2),REL_D,M$3,NwID,$C$3),SUMIFS(OFFSET(REL_D,,MATCH($A41,IND,0)-2),REL_D,M$3,OrgID,$C$4)) -> 2648 | N41: =IF($C$4="Total",SUMIFS(OFFSET(REL_D,,MATCH($A41,IND,0)-2),REL_D,N$3,NwID,$C$3),SUMIFS(OFFSET(REL_D,,MATCH($A41,IND,0)-2),REL_D,N$3,OrgID,$C$4)) -> 2652 | O41: =IF($C$4="Total",SUMIFS(OFFSET(REL_D,,MATCH($A41,IND,0)-2),REL_D,O$3,NwID,$C$3),SUMIFS(OFFSET(REL_D,,MATCH($A41,IND,0)-2),REL_D,O$3,OrgID,$C$4)) -> 2702 | P41: =IF($C$4="Total",SUMIFS(OFFSET(REL_D,,MATCH($A41,IND,0)-2),REL_D,P$3,NwID,$C$3),SUMIFS(OFFSET(REL_D,,MATCH($A41,IND,0)-2),REL_D,P$3,OrgID,$C$4)) -> 2784 | Q41: =IF($C$4="Total",SUMIFS(OFFSET(REL_D,,MATCH($A41,IND,0)-2),REL_D,Q$3,NwID,$C$3),SUMIFS(OFFSET(REL_D,,MATCH($A41,IND,0)-2),REL_D,Q$3,OrgID,$C$4)) -> 2839 | R41: -
A42: %LDP.10.01: Stroke/TIA BP recorded (last 12m) | C42: % of stroke register | D42: =IFERROR(D41/D39,"N/A") -> 0.655 | E42: 0.785 | F42: =IFERROR(F41/F39,"N/A") -> 0.779 | G42: =IFERROR(G41/G39,"N/A") -> 0.77 | H42: 0.77 | I42: 0.773 | J42: 0.779 | K42: 0.781 | L42: 0.799 | M42: 0.817 | N42: 0.828 | O42: 0.845 | P42: 0.869 | Q42: 0.886 | R42: -
A43: LDP.10.02 Patients on Stroke/TIA register with BP <140/90 (12m) | C43: Patients on Stroke/TIA register with BP <140/90 (12m) | D43: =IF($C$4="Total",SUMIFS(OFFSET(REL_D,,MATCH($A43,IND,0)-2),REL_D,D$3,NwID,$C$3),SUMIFS(OFFSET(REL_D,,MATCH($A43,IND,0)-2),REL_D,D$3,OrgID,$C$4)) -> 1419 | E43: =IF($C$4="Total",SUMIFS(OFFSET(REL_D,,MATCH($A43,IND,0)-2),REL_D,E$3,NwID,$C$3),SUMIFS(OFFSET(REL_D,,MATCH($A43,IND,0)-2),REL_D,E$3,OrgID,$C$4)) -> 1761 | F43: =IF($C$4="Total",SUMIFS(OFFSET(REL_D,,MATCH($A43,IND,0)-2),REL_D,F$3,NwID,$C$3),SUMIFS(OFFSET(REL_D,,MATCH($A43,IND,0)-2),REL_D,F$3,OrgID,$C$4)) -> 1757 | G43: =IF($C$4="Total",SUMIFS(OFFSET(REL_D,,MATCH($A43,IND,0)-2),REL_D,G$3,NwID,$C$3),SUMIFS(OFFSET(REL_D,,MATCH($A43,IND,0)-2),REL_D,G$3,OrgID,$C$4)) -> 1736 | H43: =IF($C$4="Total",SUMIFS(OFFSET(REL_D,,MATCH($A43,IND,0)-2),REL_D,H$3,NwID,$C$3),SUMIFS(OFFSET(REL_D,,MATCH($A43,IND,0)-2),REL_D,H$3,OrgID,$C$4)) -> 1734 | I43: =IF($C$4="Total",SUMIFS(OFFSET(REL_D,,MATCH($A43,IND,0)-2),REL_D,I$3,NwID,$C$3),SUMIFS(OFFSET(REL_D,,MATCH($A43,IND,0)-2),REL_D,I$3,OrgID,$C$4)) -> 1756 | J43: =IF($C$4="Total",SUMIFS(OFFSET(REL_D,,MATCH($A43,IND,0)-2),REL_D,J$3,NwID,$C$3),SUMIFS(OFFSET(REL_D,,MATCH($A43,IND,0)-2),REL_D,J$3,OrgID,$C$4)) -> 1788 | K43: =IF($C$4="Total",SUMIFS(OFFSET(REL_D,,MATCH($A43,IND,0)-2),REL_D,K$3,NwID,$C$3),SUMIFS(OFFSET(REL_D,,MATCH($A43,IND,0)-2),REL_D,K$3,OrgID,$C$4)) -> 1805 | L43: =IF($C$4="Total",SUMIFS(OFFSET(REL_D,,MATCH($A43,IND,0)-2),REL_D,L$3,NwID,$C$3),SUMIFS(OFFSET(REL_D,,MATCH($A43,IND,0)-2),REL_D,L$3,OrgID,$C$4)) -> 1866 | M43: =IF($C$4="Total",SUMIFS(OFFSET(REL_D,,MATCH($A43,IND,0)-2),REL_D,M$3,NwID,$C$3),SUMIFS(OFFSET(REL_D,,MATCH($A43,IND,0)-2),REL_D,M$3,OrgID,$C$4)) -> 1897 | N43: =IF($C$4="Total",SUMIFS(OFFSET(REL_D,,MATCH($A43,IND,0)-2),REL_D,N$3,NwID,$C$3),SUMIFS(OFFSET(REL_D,,MATCH($A43,IND,0)-2),REL_D,N$3,OrgID,$C$4)) -> 1901 | O43: =IF($C$4="Total",SUMIFS(OFFSET(REL_D,,MATCH($A43,IND,0)-2),REL_D,O$3,NwID,$C$3),SUMIFS(OFFSET(REL_D,,MATCH($A43,IND,0)-2),REL_D,O$3,OrgID,$C$4)) -> 1945 | P43: =IF($C$4="Total",SUMIFS(OFFSET(REL_D,,MATCH($A43,IND,0)-2),REL_D,P$3,NwID,$C$3),SUMIFS(OFFSET(REL_D,,MATCH($A43,IND,0)-2),REL_D,P$3,OrgID,$C$4)) -> 2029 | Q43: =IF($C$4="Total",SUMIFS(OFFSET(REL_D,,MATCH($A43,IND,0)-2),REL_D,Q$3,NwID,$C$3),SUMIFS(OFFSET(REL_D,,MATCH($A43,IND,0)-2),REL_D,Q$3,OrgID,$C$4)) -> 2106 | R43: -
A44: %LDP.10.02 Patients on Stroke/TIA register with BP <140/90 (12m) | C44: % of stroke register | D44: =IFERROR(D43/D39,"N/A") -> 0.452 | E44: 0.545 | F44: =IFERROR(F43/F39,"N/A") -> 0.544 | G44: =IFERROR(G43/G39,"N/A") -> 0.538 | H44: 0.537 | I44: 0.545 | J44: 0.555 | K44: 0.557 | L44: 0.577 | M44: 0.585 | N44: 0.594 | O44: 0.608 | P44: 0.633 | Q44: 0.658 | R44: -
A45: ='Control Panel'!B48 -> CVD Risk | B45: CVD Risk | C45: ='Control Panel'!B48 -> CVD Risk
A46: ='Control Panel'!B49 -> LDP.05: CVD 25-84yrs (excl CVD) | B46: LDP.05: CVD 25-84yrs (excl CVD) | C46: Aged 25 to 84 (exc CVD) | D46: =IF($C$4="Total",SUMIFS(OFFSET(REL_D,,MATCH($A46,IND,0)-2),REL_D,D$3,NwID,$C$3),SUMIFS(OFFSET(REL_D,,MATCH($A46,IND,0)-2),REL_D,D$3,OrgID,$C$4)) -> 186391 | E46: =IF($C$4="Total",SUMIFS(OFFSET(REL_D,,MATCH($A46,IND,0)-2),REL_D,E$3,NwID,$C$3),SUMIFS(OFFSET(REL_D,,MATCH($A46,IND,0)-2),REL_D,E$3,OrgID,$C$4)) -> 192601 | F46: =IF($C$4="Total",SUMIFS(OFFSET(REL_D,,MATCH($A46,IND,0)-2),REL_D,F$3,NwID,$C$3),SUMIFS(OFFSET(REL_D,,MATCH($A46,IND,0)-2),REL_D,F$3,OrgID,$C$4)) -> 193013 | G46: =IF($C$4="Total",SUMIFS(OFFSET(REL_D,,MATCH($A46,IND,0)-2),REL_D,G$3,NwID,$C$3),SUMIFS(OFFSET(REL_D,,MATCH($A46,IND,0)-2),REL_D,G$3,OrgID,$C$4)) -> 193581 | H46: =IF($C$4="Total",SUMIFS(OFFSET(REL_D,,MATCH($A46,IND,0)-2),REL_D,H$3,NwID,$C$3),SUMIFS(OFFSET(REL_D,,MATCH($A46,IND,0)-2),REL_D,H$3,OrgID,$C$4)) -> 194056 | I46: =IF($C$4="Total",SUMIFS(OFFSET(REL_D,,MATCH($A46,IND,0)-2),REL_D,I$3,NwID,$C$3),SUMIFS(OFFSET(REL_D,,MATCH($A46,IND,0)-2),REL_D,I$3,OrgID,$C$4)) -> 194442 | J46: =IF($C$4="Total",SUMIFS(OFFSET(REL_D,,MATCH($A46,IND,0)-2),REL_D,J$3,NwID,$C$3),SUMIFS(OFFSET(REL_D,,MATCH($A46,IND,0)-2),REL_D,J$3,OrgID,$C$4)) -> 195171 | K46: =IF($C$4="Total",SUMIFS(OFFSET(REL_D,,MATCH($A46,IND,0)-2),REL_D,K$3,NwID,$C$3),SUMIFS(OFFSET(REL_D,,MATCH($A46,IND,0)-2),REL_D,K$3,OrgID,$C$4)) -> 195986 | L46: =IF($C$4="Total",SUMIFS(OFFSET(REL_D,,MATCH($A46,IND,0)-2),REL_D,L$3,NwID,$C$3),SUMIFS(OFFSET(REL_D,,MATCH($A46,IND,0)-2),REL_D,L$3,OrgID,$C$4)) -> 196688 | M46: =IF($C$4="Total",SUMIFS(OFFSET(REL_D,,MATCH($A46,IND,0)-2),REL_D,M$3,NwID,$C$3),SUMIFS(OFFSET(REL_D,,MATCH($A46,IND,0)-2),REL_D,M$3,OrgID,$C$4)) -> 197392 | N46: =IF($C$4="Total",SUMIFS(OFFSET(REL_D,,MATCH($A46,IND,0)-2),REL_D,N$3,NwID,$C$3),SUMIFS(OFFSET(REL_D,,MATCH($A46,IND,0)-2),REL_D,N$3,OrgID,$C$4)) -> 197957 | O46: =IF($C$4="Total",SUMIFS(OFFSET(REL_D,,MATCH($A46,IND,0)-2),REL_D,O$3,NwID,$C$3),SUMIFS(OFFSET(REL_D,,MATCH($A46,IND,0)-2),REL_D,O$3,OrgID,$C$4)) -> 198509 | P46: =IF($C$4="Total",SUMIFS(OFFSET(REL_D,,MATCH($A46,IND,0)-2),REL_D,P$3,NwID,$C$3),SUMIFS(OFFSET(REL_D,,MATCH($A46,IND,0)-2),REL_D,P$3,OrgID,$C$4)) -> 199101 | Q46: =IF($C$4="Total",SUMIFS(OFFSET(REL_D,,MATCH($A46,IND,0)-2),REL_D,Q$3,NwID,$C$3),SUMIFS(OFFSET(REL_D,,MATCH($A46,IND,0)-2),REL_D,Q$3,OrgID,$C$4)) -> 199177 | R46: =SUMIFS(OFFSET(REL_D,,MATCH($A46,IND,0)-1),REL_D,R$3,IF(LEFT($C$4,1)="N",NwID,OrgID),$C$4) -> 0
A47: ='Control Panel'!B50 -> LDP.05.02: Cardiovascular Risk Score Done (5y) | B47: LDP.05.02: Cardiovascular Risk Score Done (5y) | C47: QRISK recorded (5 years) | D47: =IF($C$4="Total",SUMIFS(OFFSET(REL_D,,MATCH($A47,IND,0)-2),REL_D,D$3,NwID,$C$3),SUMIFS(OFFSET(REL_D,,MATCH($A47,IND,0)-2),REL_D,D$3,OrgID,$C$4)) -> 63841 | E47: =IF($C$4="Total",SUMIFS(OFFSET(REL_D,,MATCH($A47,IND,0)-2),REL_D,E$3,NwID,$C$3),SUMIFS(OFFSET(REL_D,,MATCH($A47,IND,0)-2),REL_D,E$3,OrgID,$C$4)) -> 63285 | F47: =IF($C$4="Total",SUMIFS(OFFSET(REL_D,,MATCH($A47,IND,0)-2),REL_D,F$3,NwID,$C$3),SUMIFS(OFFSET(REL_D,,MATCH($A47,IND,0)-2),REL_D,F$3,OrgID,$C$4)) -> 63488 | G47: =IF($C$4="Total",SUMIFS(OFFSET(REL_D,,MATCH($A47,IND,0)-2),REL_D,G$3,NwID,$C$3),SUMIFS(OFFSET(REL_D,,MATCH($A47,IND,0)-2),REL_D,G$3,OrgID,$C$4)) -> 63514 | H47: =IF($C$4="Total",SUMIFS(OFFSET(REL_D,,MATCH($A47,IND,0)-2),REL_D,H$3,NwID,$C$3),SUMIFS(OFFSET(REL_D,,MATCH($A47,IND,0)-2),REL_D,H$3,OrgID,$C$4)) -> 63456 | I47: =IF($C$4="Total",SUMIFS(OFFSET(REL_D,,MATCH($A47,IND,0)-2),REL_D,I$3,NwID,$C$3),SUMIFS(OFFSET(REL_D,,MATCH($A47,IND,0)-2),REL_D,I$3,OrgID,$C$4)) -> 63583 | J47: =IF($C$4="Total",SUMIFS(OFFSET(REL_D,,MATCH($A47,IND,0)-2),REL_D,J$3,NwID,$C$3),SUMIFS(OFFSET(REL_D,,MATCH($A47,IND,0)-2),REL_D,J$3,OrgID,$C$4)) -> 63892 | K47: =IF($C$4="Total",SUMIFS(OFFSET(REL_D,,MATCH($A47,IND,0)-2),REL_D,K$3,NwID,$C$3),SUMIFS(OFFSET(REL_D,,MATCH($A47,IND,0)-2),REL_D,K$3,OrgID,$C$4)) -> 64240 | L47: =IF($C$4="Total",SUMIFS(OFFSET(REL_D,,MATCH($A47,IND,0)-2),REL_D,L$3,NwID,$C$3),SUMIFS(OFFSET(REL_D,,MATCH($A47,IND,0)-2),REL_D,L$3,OrgID,$C$4)) -> 68608 | M47: =IF($C$4="Total",SUMIFS(OFFSET(REL_D,,MATCH($A47,IND,0)-2),REL_D,M$3,NwID,$C$3),SUMIFS(OFFSET(REL_D,,MATCH($A47,IND,0)-2),REL_D,M$3,OrgID,$C$4)) -> 69003 | N47: =IF($C$4="Total",SUMIFS(OFFSET(REL_D,,MATCH($A47,IND,0)-2),REL_D,N$3,NwID,$C$3),SUMIFS(OFFSET(REL_D,,MATCH($A47,IND,0)-2),REL_D,N$3,OrgID,$C$4)) -> 69523 | O47: =IF($C$4="Total",SUMIFS(OFFSET(REL_D,,MATCH($A47,IND,0)-2),REL_D,O$3,NwID,$C$3),SUMIFS(OFFSET(REL_D,,MATCH($A47,IND,0)-2),REL_D,O$3,OrgID,$C$4)) -> 69709 | P47: =IF($C$4="Total",SUMIFS(OFFSET(REL_D,,MATCH($A47,IND,0)-2),REL_D,P$3,NwID,$C$3),SUMIFS(OFFSET(REL_D,,MATCH($A47,IND,0)-2),REL_D,P$3,OrgID,$C$4)) -> 69960 | Q47: =IF($C$4="Total",SUMIFS(OFFSET(REL_D,,MATCH($A47,IND,0)-2),REL_D,Q$3,NwID,$C$3),SUMIFS(OFFSET(REL_D,,MATCH($A47,IND,0)-2),REL_D,Q$3,OrgID,$C$4)) -> 70277 | R47: =SUMIFS(OFFSET(REL_D,,MATCH($A47,IND,0)-1),REL_D,R$3,IF(LEFT($C$4,1)="N",NwID,OrgID),$C$4) -> 0
A48: ='Control Panel'!B51 -> %LDP.05.02: Cardiovascular Risk Score Done (5y) | B48: %LDP.05.02: Cardiovascular Risk Score Done (5y) | C48: % of patients aged 25 to 84 (exc CVD) | D48: =IFERROR(D46/D7,"N/A") -> 0.638 | E48: 0.641 | F48: =IFERROR(F46/F7,"N/A") -> 0.641 | G48: =IFERROR(G46/G7,"N/A") -> 0.641 | H48: 0.641 | I48: 0.641 | J48: 0.641 | K48: 0.642 | L48: 0.642 | M48: 0.642 | N48: 0.643 | O48: 0.643 | P48: 0.643 | Q48: 0.644 | R48: =IFERROR(R47/R7,"N/A") -> N/A
A49: ='Control Panel'!B52 -> LDP.05.01: CVD QRISK greater than or equal 20% | B49: LDP.05.01: CVD QRISK greater than or equal 20% | C49: QRISK ≥ 20% | D49: =IF($C$4="Total",SUMIFS(OFFSET(REL_D,,MATCH($A49,IND,0)-2),REL_D,D$3,NwID,$C$3),SUMIFS(OFFSET(REL_D,,MATCH($A49,IND,0)-2),REL_D,D$3,OrgID,$C$4)) -> 10580 | E49: =IF($C$4="Total",SUMIFS(OFFSET(REL_D,,MATCH($A49,IND,0)-2),REL_D,E$3,NwID,$C$3),SUMIFS(OFFSET(REL_D,,MATCH($A49,IND,0)-2),REL_D,E$3,OrgID,$C$4)) -> 11496 | F49: =IF($C$4="Total",SUMIFS(OFFSET(REL_D,,MATCH($A49,IND,0)-2),REL_D,F$3,NwID,$C$3),SUMIFS(OFFSET(REL_D,,MATCH($A49,IND,0)-2),REL_D,F$3,OrgID,$C$4)) -> 11527 | G49: =IF($C$4="Total",SUMIFS(OFFSET(REL_D,,MATCH($A49,IND,0)-2),REL_D,G$3,NwID,$C$3),SUMIFS(OFFSET(REL_D,,MATCH($A49,IND,0)-2),REL_D,G$3,OrgID,$C$4)) -> 11618 | H49: =IF($C$4="Total",SUMIFS(OFFSET(REL_D,,MATCH($A49,IND,0)-2),REL_D,H$3,NwID,$C$3),SUMIFS(OFFSET(REL_D,,MATCH($A49,IND,0)-2),REL_D,H$3,OrgID,$C$4)) -> 11664 | I49: =IF($C$4="Total",SUMIFS(OFFSET(REL_D,,MATCH($A49,IND,0)-2),REL_D,I$3,NwID,$C$3),SUMIFS(OFFSET(REL_D,,MATCH($A49,IND,0)-2),REL_D,I$3,OrgID,$C$4)) -> 11734 | J49: =IF($C$4="Total",SUMIFS(OFFSET(REL_D,,MATCH($A49,IND,0)-2),REL_D,J$3,NwID,$C$3),SUMIFS(OFFSET(REL_D,,MATCH($A49,IND,0)-2),REL_D,J$3,OrgID,$C$4)) -> 11867 | K49: =IF($C$4="Total",SUMIFS(OFFSET(REL_D,,MATCH($A49,IND,0)-2),REL_D,K$3,NwID,$C$3),SUMIFS(OFFSET(REL_D,,MATCH($A49,IND,0)-2),REL_D,K$3,OrgID,$C$4)) -> 11963 | L49: =IF($C$4="Total",SUMIFS(OFFSET(REL_D,,MATCH($A49,IND,0)-2),REL_D,L$3,NwID,$C$3),SUMIFS(OFFSET(REL_D,,MATCH($A49,IND,0)-2),REL_D,L$3,OrgID,$C$4)) -> 12388 | M49: =IF($C$4="Total",SUMIFS(OFFSET(REL_D,,MATCH($A49,IND,0)-2),REL_D,M$3,NwID,$C$3),SUMIFS(OFFSET(REL_D,,MATCH($A49,IND,0)-2),REL_D,M$3,OrgID,$C$4)) -> 12534 | N49: =IF($C$4="Total",SUMIFS(OFFSET(REL_D,,MATCH($A49,IND,0)-2),REL_D,N$3,NwID,$C$3),SUMIFS(OFFSET(REL_D,,MATCH($A49,IND,0)-2),REL_D,N$3,OrgID,$C$4)) -> 12642 | O49: =IF($C$4="Total",SUMIFS(OFFSET(REL_D,,MATCH($A49,IND,0)-2),REL_D,O$3,NwID,$C$3),SUMIFS(OFFSET(REL_D,,MATCH($A49,IND,0)-2),REL_D,O$3,OrgID,$C$4)) -> 12708 | P49: =IF($C$4="Total",SUMIFS(OFFSET(REL_D,,MATCH($A49,IND,0)-2),REL_D,P$3,NwID,$C$3),SUMIFS(OFFSET(REL_D,,MATCH($A49,IND,0)-2),REL_D,P$3,OrgID,$C$4)) -> 12828 | Q49: =IF($C$4="Total",SUMIFS(OFFSET(REL_D,,MATCH($A49,IND,0)-2),REL_D,Q$3,NwID,$C$3),SUMIFS(OFFSET(REL_D,,MATCH($A49,IND,0)-2),REL_D,Q$3,OrgID,$C$4)) -> 12945 | R49: =SUMIFS(OFFSET(REL_D,,MATCH($A49,IND,0)-1),REL_D,R$3,IF(LEFT($C$4,1)="N",NwID,OrgID),$C$4) -> 0
A50: ='Control Panel'!B53 -> %LDP.05.01: CVD QRISK greater than or equal 20% | B50: %LDP.05.01: CVD QRISK greater than or equal 20% | C50: % QRISK Score recorded | D50: =IFERROR(D49/D47,"N/A") -> 0.166 | E50: 0.182 | F50: =IFERROR(F49/F47,"N/A") -> 0.182 | G50: =IFERROR(G49/G47,"N/A") -> 0.183 | H50: 0.184 | I50: 0.185 | J50: 0.186 | K50: 0.186 | L50: 0.181 | M50: 0.182 | N50: 0.182 | O50: 0.182 | P50: 0.183 | Q50: 0.184 | R50: =IFERROR(R49/R47,"N/A") -> N/A
A51: ='Control Panel'!B54 -> LDP.05.01.01: CVD Proxy Annual Review (last 12m) | B51: LDP.05.01.01: CVD Proxy Annual Review (last 12m) | C51: QRISK ≥ 20% and proxy review (BP and Chol last 12m) | D51: =IF($C$4="Total",SUMIFS(OFFSET(REL_D,,MATCH($A51,IND,0)-2),REL_D,D$3,NwID,$C$3),SUMIFS(OFFSET(REL_D,,MATCH($A51,IND,0)-2),REL_D,D$3,OrgID,$C$4)) -> 880 | E51: =IF($C$4="Total",SUMIFS(OFFSET(REL_D,,MATCH($A51,IND,0)-2),REL_D,E$3,NwID,$C$3),SUMIFS(OFFSET(REL_D,,MATCH($A51,IND,0)-2),REL_D,E$3,OrgID,$C$4)) -> 1426 | F51: =IF($C$4="Total",SUMIFS(OFFSET(REL_D,,MATCH($A51,IND,0)-2),REL_D,F$3,NwID,$C$3),SUMIFS(OFFSET(REL_D,,MATCH($A51,IND,0)-2),REL_D,F$3,OrgID,$C$4)) -> 1444 | G51: =IF($C$4="Total",SUMIFS(OFFSET(REL_D,,MATCH($A51,IND,0)-2),REL_D,G$3,NwID,$C$3),SUMIFS(OFFSET(REL_D,,MATCH($A51,IND,0)-2),REL_D,G$3,OrgID,$C$4)) -> 1440 | H51: =IF($C$4="Total",SUMIFS(OFFSET(REL_D,,MATCH($A51,IND,0)-2),REL_D,H$3,NwID,$C$3),SUMIFS(OFFSET(REL_D,,MATCH($A51,IND,0)-2),REL_D,H$3,OrgID,$C$4)) -> 1448 | I51: =IF($C$4="Total",SUMIFS(OFFSET(REL_D,,MATCH($A51,IND,0)-2),REL_D,I$3,NwID,$C$3),SUMIFS(OFFSET(REL_D,,MATCH($A51,IND,0)-2),REL_D,I$3,OrgID,$C$4)) -> 1450 | J51: =IF($C$4="Total",SUMIFS(OFFSET(REL_D,,MATCH($A51,IND,0)-2),REL_D,J$3,NwID,$C$3),SUMIFS(OFFSET(REL_D,,MATCH($A51,IND,0)-2),REL_D,J$3,OrgID,$C$4)) -> 1469 | K51: =IF($C$4="Total",SUMIFS(OFFSET(REL_D,,MATCH($A51,IND,0)-2),REL_D,K$3,NwID,$C$3),SUMIFS(OFFSET(REL_D,,MATCH($A51,IND,0)-2),REL_D,K$3,OrgID,$C$4)) -> 1478 | L51: =IF($C$4="Total",SUMIFS(OFFSET(REL_D,,MATCH($A51,IND,0)-2),REL_D,L$3,NwID,$C$3),SUMIFS(OFFSET(REL_D,,MATCH($A51,IND,0)-2),REL_D,L$3,OrgID,$C$4)) -> 1540 | M51: =IF($C$4="Total",SUMIFS(OFFSET(REL_D,,MATCH($A51,IND,0)-2),REL_D,M$3,NwID,$C$3),SUMIFS(OFFSET(REL_D,,MATCH($A51,IND,0)-2),REL_D,M$3,OrgID,$C$4)) -> 1609 | N51: =IF($C$4="Total",SUMIFS(OFFSET(REL_D,,MATCH($A51,IND,0)-2),REL_D,N$3,NwID,$C$3),SUMIFS(OFFSET(REL_D,,MATCH($A51,IND,0)-2),REL_D,N$3,OrgID,$C$4)) -> 1660 | O51: =IF($C$4="Total",SUMIFS(OFFSET(REL_D,,MATCH($A51,IND,0)-2),REL_D,O$3,NwID,$C$3),SUMIFS(OFFSET(REL_D,,MATCH($A51,IND,0)-2),REL_D,O$3,OrgID,$C$4)) -> 1743 | P51: =IF($C$4="Total",SUMIFS(OFFSET(REL_D,,MATCH($A51,IND,0)-2),REL_D,P$3,NwID,$C$3),SUMIFS(OFFSET(REL_D,,MATCH($A51,IND,0)-2),REL_D,P$3,OrgID,$C$4)) -> 1830 | Q51: =IF($C$4="Total",SUMIFS(OFFSET(REL_D,,MATCH($A51,IND,0)-2),REL_D,Q$3,NwID,$C$3),SUMIFS(OFFSET(REL_D,,MATCH($A51,IND,0)-2),REL_D,Q$3,OrgID,$C$4)) -> 1905 | R51: =SUMIFS(OFFSET(REL_D,,MATCH($A51,IND,0)-1),REL_D,R$3,IF(LEFT($C$4,1)="N",NwID,OrgID),$C$4) -> 0
A52: ='Control Panel'!B55 -> %LDP.05.01.01: CVD Proxy Annual Review (last 12m) | B52: %LDP.05.01.01: CVD Proxy Annual Review (last 12m) | C52: % Patients with QRISK ≥ 20% | D52: =IFERROR(D51/D47,"N/A") -> 0.014 | E52: 0.023 | F52: =IFERROR(F51/F47,"N/A") -> 0.023 | G52: =IFERROR(G51/G47,"N/A") -> 0.023 | H52: 0.023 | I52: 0.023 | J52: 0.023 | K52: 0.023 | L52: 0.022 | M52: 0.023 | N52: 0.024 | O52: 0.025 | P52: 0.026 | Q52: 0.027 | R52: =IFERROR(R51/R47,"N/A") -> N/A
A53: ='Control Panel'!B56 -> Diabetes | B53: Diabetes | C53: ='Control Panel'!B56 -> Diabetes
A54: ='Control Panel'!B57 -> LDP.04: Diabetes Register | B54: LDP.04: Diabetes Register | C54: Diabetes register | D54: =IF($C$4="Total",SUMIFS(OFFSET(REL_D,,MATCH($A54,IND,0)-2),REL_D,D$3,NwID,$C$3),SUMIFS(OFFSET(REL_D,,MATCH($A54,IND,0)-2),REL_D,D$3,OrgID,$C$4)) -> 20567 | E54: =IF($C$4="Total",SUMIFS(OFFSET(REL_D,,MATCH($A54,IND,0)-2),REL_D,E$3,NwID,$C$3),SUMIFS(OFFSET(REL_D,,MATCH($A54,IND,0)-2),REL_D,E$3,OrgID,$C$4)) -> 21951 | F54: =IF($C$4="Total",SUMIFS(OFFSET(REL_D,,MATCH($A54,IND,0)-2),REL_D,F$3,NwID,$C$3),SUMIFS(OFFSET(REL_D,,MATCH($A54,IND,0)-2),REL_D,F$3,OrgID,$C$4)) -> 22058 | G54: =IF($C$4="Total",SUMIFS(OFFSET(REL_D,,MATCH($A54,IND,0)-2),REL_D,G$3,NwID,$C$3),SUMIFS(OFFSET(REL_D,,MATCH($A54,IND,0)-2),REL_D,G$3,OrgID,$C$4)) -> 22166 | H54: =IF($C$4="Total",SUMIFS(OFFSET(REL_D,,MATCH($A54,IND,0)-2),REL_D,H$3,NwID,$C$3),SUMIFS(OFFSET(REL_D,,MATCH($A54,IND,0)-2),REL_D,H$3,OrgID,$C$4)) -> 22261 | I54: =IF($C$4="Total",SUMIFS(OFFSET(REL_D,,MATCH($A54,IND,0)-2),REL_D,I$3,NwID,$C$3),SUMIFS(OFFSET(REL_D,,MATCH($A54,IND,0)-2),REL_D,I$3,OrgID,$C$4)) -> 22326 | J54: =IF($C$4="Total",SUMIFS(OFFSET(REL_D,,MATCH($A54,IND,0)-2),REL_D,J$3,NwID,$C$3),SUMIFS(OFFSET(REL_D,,MATCH($A54,IND,0)-2),REL_D,J$3,OrgID,$C$4)) -> 22472 | K54: =IF($C$4="Total",SUMIFS(OFFSET(REL_D,,MATCH($A54,IND,0)-2),REL_D,K$3,NwID,$C$3),SUMIFS(OFFSET(REL_D,,MATCH($A54,IND,0)-2),REL_D,K$3,OrgID,$C$4)) -> 22577 | L54: =IF($C$4="Total",SUMIFS(OFFSET(REL_D,,MATCH($A54,IND,0)-2),REL_D,L$3,NwID,$C$3),SUMIFS(OFFSET(REL_D,,MATCH($A54,IND,0)-2),REL_D,L$3,OrgID,$C$4)) -> 22669 | M54: =IF($C$4="Total",SUMIFS(OFFSET(REL_D,,MATCH($A54,IND,0)-2),REL_D,M$3,NwID,$C$3),SUMIFS(OFFSET(REL_D,,MATCH($A54,IND,0)-2),REL_D,M$3,OrgID,$C$4)) -> 22826 | N54: =IF($C$4="Total",SUMIFS(OFFSET(REL_D,,MATCH($A54,IND,0)-2),REL_D,N$3,NwID,$C$3),SUMIFS(OFFSET(REL_D,,MATCH($A54,IND,0)-2),REL_D,N$3,OrgID,$C$4)) -> 22968 | O54: =IF($C$4="Total",SUMIFS(OFFSET(REL_D,,MATCH($A54,IND,0)-2),REL_D,O$3,NwID,$C$3),SUMIFS(OFFSET(REL_D,,MATCH($A54,IND,0)-2),REL_D,O$3,OrgID,$C$4)) -> 23057 | P54: =IF($C$4="Total",SUMIFS(OFFSET(REL_D,,MATCH($A54,IND,0)-2),REL_D,P$3,NwID,$C$3),SUMIFS(OFFSET(REL_D,,MATCH($A54,IND,0)-2),REL_D,P$3,OrgID,$C$4)) -> 23117 | Q54: =IF($C$4="Total",SUMIFS(OFFSET(REL_D,,MATCH($A54,IND,0)-2),REL_D,Q$3,NwID,$C$3),SUMIFS(OFFSET(REL_D,,MATCH($A54,IND,0)-2),REL_D,Q$3,OrgID,$C$4)) -> 23061 | R54: =SUMIFS(OFFSET(REL_D,,MATCH($A54,IND,0)-1),REL_D,R$3,IF(LEFT($C$4,1)="N",NwID,OrgID),$C$4) -> 0
A55: ='Control Panel'!B58 -> %LDP.04: Diabetes Register | B55: %LDP.04: Diabetes Register | C55: % List size | D55: =IFERROR(D54/D7,"N/A") -> 0.07 | E55: 0.073 | F55: =IFERROR(F54/F7,"N/A") -> 0.073 | G55: =IFERROR(G54/G7,"N/A") -> 0.073 | H55: 0.074 | I55: 0.074 | J55: 0.074 | K55: 0.074 | L55: 0.074 | M55: 0.074 | N55: 0.075 | O55: 0.075 | P55: 0.075 | Q55: 0.075 | R55: N/A
A56: ='Control Panel'!B61 -> LDP.04.11: Diabetes and BP in last 12 months | B56: LDP.04.11: Diabetes and BP in last 12 months | C56: BP (last 12m) | D56: =IF($C$4="Total",SUMIFS(OFFSET(REL_D,,MATCH($A56,IND,0)-2),REL_D,D$3,NwID,$C$3),SUMIFS(OFFSET(REL_D,,MATCH($A56,IND,0)-2),REL_D,D$3,OrgID,$C$4)) -> 12974 | E56: =IF($C$4="Total",SUMIFS(OFFSET(REL_D,,MATCH($A56,IND,0)-2),REL_D,E$3,NwID,$C$3),SUMIFS(OFFSET(REL_D,,MATCH($A56,IND,0)-2),REL_D,E$3,OrgID,$C$4)) -> 17520 | F56: =IF($C$4="Total",SUMIFS(OFFSET(REL_D,,MATCH($A56,IND,0)-2),REL_D,F$3,NwID,$C$3),SUMIFS(OFFSET(REL_D,,MATCH($A56,IND,0)-2),REL_D,F$3,OrgID,$C$4)) -> 17383 | G56: =IF($C$4="Total",SUMIFS(OFFSET(REL_D,,MATCH($A56,IND,0)-2),REL_D,G$3,NwID,$C$3),SUMIFS(OFFSET(REL_D,,MATCH($A56,IND,0)-2),REL_D,G$3,OrgID,$C$4)) -> 17379 | H56: =IF($C$4="Total",SUMIFS(OFFSET(REL_D,,MATCH($A56,IND,0)-2),REL_D,H$3,NwID,$C$3),SUMIFS(OFFSET(REL_D,,MATCH($A56,IND,0)-2),REL_D,H$3,OrgID,$C$4)) -> 17346 | I56: =IF($C$4="Total",SUMIFS(OFFSET(REL_D,,MATCH($A56,IND,0)-2),REL_D,I$3,NwID,$C$3),SUMIFS(OFFSET(REL_D,,MATCH($A56,IND,0)-2),REL_D,I$3,OrgID,$C$4)) -> 17418 | J56: =IF($C$4="Total",SUMIFS(OFFSET(REL_D,,MATCH($A56,IND,0)-2),REL_D,J$3,NwID,$C$3),SUMIFS(OFFSET(REL_D,,MATCH($A56,IND,0)-2),REL_D,J$3,OrgID,$C$4)) -> 17565 | K56: =IF($C$4="Total",SUMIFS(OFFSET(REL_D,,MATCH($A56,IND,0)-2),REL_D,K$3,NwID,$C$3),SUMIFS(OFFSET(REL_D,,MATCH($A56,IND,0)-2),REL_D,K$3,OrgID,$C$4)) -> 17732 | L56: =IF($C$4="Total",SUMIFS(OFFSET(REL_D,,MATCH($A56,IND,0)-2),REL_D,L$3,NwID,$C$3),SUMIFS(OFFSET(REL_D,,MATCH($A56,IND,0)-2),REL_D,L$3,OrgID,$C$4)) -> 18054 | M56: =IF($C$4="Total",SUMIFS(OFFSET(REL_D,,MATCH($A56,IND,0)-2),REL_D,M$3,NwID,$C$3),SUMIFS(OFFSET(REL_D,,MATCH($A56,IND,0)-2),REL_D,M$3,OrgID,$C$4)) -> 18706 | N56: =IF($C$4="Total",SUMIFS(OFFSET(REL_D,,MATCH($A56,IND,0)-2),REL_D,N$3,NwID,$C$3),SUMIFS(OFFSET(REL_D,,MATCH($A56,IND,0)-2),REL_D,N$3,OrgID,$C$4)) -> 19184 | O56: =IF($C$4="Total",SUMIFS(OFFSET(REL_D,,MATCH($A56,IND,0)-2),REL_D,O$3,NwID,$C$3),SUMIFS(OFFSET(REL_D,,MATCH($A56,IND,0)-2),REL_D,O$3,OrgID,$C$4)) -> 19883 | P56: =IF($C$4="Total",SUMIFS(OFFSET(REL_D,,MATCH($A56,IND,0)-2),REL_D,P$3,NwID,$C$3),SUMIFS(OFFSET(REL_D,,MATCH($A56,IND,0)-2),REL_D,P$3,OrgID,$C$4)) -> 20382 | Q56: =IF($C$4="Total",SUMIFS(OFFSET(REL_D,,MATCH($A56,IND,0)-2),REL_D,Q$3,NwID,$C$3),SUMIFS(OFFSET(REL_D,,MATCH($A56,IND,0)-2),REL_D,Q$3,OrgID,$C$4)) -> 20998 | R56: =SUMIFS(OFFSET(REL_D,,MATCH($A56,IND,0)-1),REL_D,R$3,IF(LEFT($C$4,1)="N",NwID,OrgID),$C$4) -> 0
A57: ='Control Panel'!B62 -> %LDP.04.11: Diabetes and BP in last 12 months | B57: %LDP.04.11: Diabetes and BP in last 12 months | C57: % Diabetes Register | D57: =IFERROR(D56/D54,"N/A") -> 0.631 | E57: 0.798 | F57: =IFERROR(F56/F54,"N/A") -> 0.788 | G57: =IFERROR(G56/G54,"N/A") -> 0.784 | H57: 0.779 | I57: 0.78 | J57: 0.782 | K57: 0.785 | L57: 0.796 | M57: 0.82 | N57: 0.835 | O57: 0.862 | P57: 0.882 | Q57: 0.911 | R57: =IFERROR(R56/R54,"N/A") -> N/A
A58: ='Control Panel'!B63 -> LDP.04.09: Diabetes BP less than 145/85 (last 12m) | B58: LDP.04.09: Diabetes BP less than 145/85 (last 12m) | C58: BP < 145/85 (last 12m) | D58: =IF($C$4="Total",SUMIFS(OFFSET(REL_D,,MATCH($A58,IND,0)-2),REL_D,D$3,NwID,$C$3),SUMIFS(OFFSET(REL_D,,MATCH($A58,IND,0)-2),REL_D,D$3,OrgID,$C$4)) -> 10086 | E58: =IF($C$4="Total",SUMIFS(OFFSET(REL_D,,MATCH($A58,IND,0)-2),REL_D,E$3,NwID,$C$3),SUMIFS(OFFSET(REL_D,,MATCH($A58,IND,0)-2),REL_D,E$3,OrgID,$C$4)) -> 13574 | F58: =IF($C$4="Total",SUMIFS(OFFSET(REL_D,,MATCH($A58,IND,0)-2),REL_D,F$3,NwID,$C$3),SUMIFS(OFFSET(REL_D,,MATCH($A58,IND,0)-2),REL_D,F$3,OrgID,$C$4)) -> 13383 | G58: =IF($C$4="Total",SUMIFS(OFFSET(REL_D,,MATCH($A58,IND,0)-2),REL_D,G$3,NwID,$C$3),SUMIFS(OFFSET(REL_D,,MATCH($A58,IND,0)-2),REL_D,G$3,OrgID,$C$4)) -> 13341 | H58: =IF($C$4="Total",SUMIFS(OFFSET(REL_D,,MATCH($A58,IND,0)-2),REL_D,H$3,NwID,$C$3),SUMIFS(OFFSET(REL_D,,MATCH($A58,IND,0)-2),REL_D,H$3,OrgID,$C$4)) -> 13363 | I58: =IF($C$4="Total",SUMIFS(OFFSET(REL_D,,MATCH($A58,IND,0)-2),REL_D,I$3,NwID,$C$3),SUMIFS(OFFSET(REL_D,,MATCH($A58,IND,0)-2),REL_D,I$3,OrgID,$C$4)) -> 13428 | J58: =IF($C$4="Total",SUMIFS(OFFSET(REL_D,,MATCH($A58,IND,0)-2),REL_D,J$3,NwID,$C$3),SUMIFS(OFFSET(REL_D,,MATCH($A58,IND,0)-2),REL_D,J$3,OrgID,$C$4)) -> 13744 | K58: =IF($C$4="Total",SUMIFS(OFFSET(REL_D,,MATCH($A58,IND,0)-2),REL_D,K$3,NwID,$C$3),SUMIFS(OFFSET(REL_D,,MATCH($A58,IND,0)-2),REL_D,K$3,OrgID,$C$4)) -> 13932 | L58: =IF($C$4="Total",SUMIFS(OFFSET(REL_D,,MATCH($A58,IND,0)-2),REL_D,L$3,NwID,$C$3),SUMIFS(OFFSET(REL_D,,MATCH($A58,IND,0)-2),REL_D,L$3,OrgID,$C$4)) -> 14256 | M58: =IF($C$4="Total",SUMIFS(OFFSET(REL_D,,MATCH($A58,IND,0)-2),REL_D,M$3,NwID,$C$3),SUMIFS(OFFSET(REL_D,,MATCH($A58,IND,0)-2),REL_D,M$3,OrgID,$C$4)) -> 14691 | N58: =IF($C$4="Total",SUMIFS(OFFSET(REL_D,,MATCH($A58,IND,0)-2),REL_D,N$3,NwID,$C$3),SUMIFS(OFFSET(REL_D,,MATCH($A58,IND,0)-2),REL_D,N$3,OrgID,$C$4)) -> 15067 | O58: =IF($C$4="Total",SUMIFS(OFFSET(REL_D,,MATCH($A58,IND,0)-2),REL_D,O$3,NwID,$C$3),SUMIFS(OFFSET(REL_D,,MATCH($A58,IND,0)-2),REL_D,O$3,OrgID,$C$4)) -> 15796 | P58: =IF($C$4="Total",SUMIFS(OFFSET(REL_D,,MATCH($A58,IND,0)-2),REL_D,P$3,NwID,$C$3),SUMIFS(OFFSET(REL_D,,MATCH($A58,IND,0)-2),REL_D,P$3,OrgID,$C$4)) -> 16419 | Q58: =IF($C$4="Total",SUMIFS(OFFSET(REL_D,,MATCH($A58,IND,0)-2),REL_D,Q$3,NwID,$C$3),SUMIFS(OFFSET(REL_D,,MATCH($A58,IND,0)-2),REL_D,Q$3,OrgID,$C$4)) -> 17383 | R58: =SUMIFS(OFFSET(REL_D,,MATCH($A58,IND,0)-1),REL_D,R$3,IF(LEFT($C$4,1)="N",NwID,OrgID),$C$4) -> 0
A59: ='Control Panel'!B64 -> %LDP.04.09: Diabetes BP less than 145/85 (last 12m) | B59: %LDP.04.09: Diabetes BP less than 145/85 (last 12m) | C59: % Diabetes Register | D59: =IFERROR(D58/D54,"N/A") -> 0.49 | E59: 0.618 | F59: =IFERROR(F58/F54,"N/A") -> 0.607 | G59: =IFERROR(G58/G54,"N/A") -> 0.602 | H59: 0.6 | I59: 0.601 | J59: 0.612 | K59: 0.617 | L59: 0.629 | M59: 0.644 | N59: 0.656 | O59: 0.685 | P59: 0.71 | Q59: 0.754 | R59: =IFERROR(R58/R54,"N/A") -> N/A
A60: ='Control Panel'!B67 -> LDP.04.08: Diabetes Chol less than 5mmol (last 12m) | B60: LDP.04.08: Diabetes Chol less than 5mmol (last 12m) | C60: Cholesterol < 5mmols (last 12m) | D60: =IF($C$4="Total",SUMIFS(OFFSET(REL_D,,MATCH($A60,IND,0)-2),REL_D,D$3,NwID,$C$3),SUMIFS(OFFSET(REL_D,,MATCH($A60,IND,0)-2),REL_D,D$3,OrgID,$C$4)) -> 2198 | E60: =IF($C$4="Total",SUMIFS(OFFSET(REL_D,,MATCH($A60,IND,0)-2),REL_D,E$3,NwID,$C$3),SUMIFS(OFFSET(REL_D,,MATCH($A60,IND,0)-2),REL_D,E$3,OrgID,$C$4)) -> 2404 | F60: =IF($C$4="Total",SUMIFS(OFFSET(REL_D,,MATCH($A60,IND,0)-2),REL_D,F$3,NwID,$C$3),SUMIFS(OFFSET(REL_D,,MATCH($A60,IND,0)-2),REL_D,F$3,OrgID,$C$4)) -> 2370 | G60: =IF($C$4="Total",SUMIFS(OFFSET(REL_D,,MATCH($A60,IND,0)-2),REL_D,G$3,NwID,$C$3),SUMIFS(OFFSET(REL_D,,MATCH($A60,IND,0)-2),REL_D,G$3,OrgID,$C$4)) -> 2329 | H60: =IF($C$4="Total",SUMIFS(OFFSET(REL_D,,MATCH($A60,IND,0)-2),REL_D,H$3,NwID,$C$3),SUMIFS(OFFSET(REL_D,,MATCH($A60,IND,0)-2),REL_D,H$3,OrgID,$C$4)) -> 2333 | I60: =IF($C$4="Total",SUMIFS(OFFSET(REL_D,,MATCH($A60,IND,0)-2),REL_D,I$3,NwID,$C$3),SUMIFS(OFFSET(REL_D,,MATCH($A60,IND,0)-2),REL_D,I$3,OrgID,$C$4)) -> 2290 | J60: =IF($C$4="Total",SUMIFS(OFFSET(REL_D,,MATCH($A60,IND,0)-2),REL_D,J$3,NwID,$C$3),SUMIFS(OFFSET(REL_D,,MATCH($A60,IND,0)-2),REL_D,J$3,OrgID,$C$4)) -> 2243 | K60: =IF($C$4="Total",SUMIFS(OFFSET(REL_D,,MATCH($A60,IND,0)-2),REL_D,K$3,NwID,$C$3),SUMIFS(OFFSET(REL_D,,MATCH($A60,IND,0)-2),REL_D,K$3,OrgID,$C$4)) -> 2214 | L60: =IF($C$4="Total",SUMIFS(OFFSET(REL_D,,MATCH($A60,IND,0)-2),REL_D,L$3,NwID,$C$3),SUMIFS(OFFSET(REL_D,,MATCH($A60,IND,0)-2),REL_D,L$3,OrgID,$C$4)) -> 2248 | M60: =IF($C$4="Total",SUMIFS(OFFSET(REL_D,,MATCH($A60,IND,0)-2),REL_D,M$3,NwID,$C$3),SUMIFS(OFFSET(REL_D,,MATCH($A60,IND,0)-2),REL_D,M$3,OrgID,$C$4)) -> 2319 | N60: =IF($C$4="Total",SUMIFS(OFFSET(REL_D,,MATCH($A60,IND,0)-2),REL_D,N$3,NwID,$C$3),SUMIFS(OFFSET(REL_D,,MATCH($A60,IND,0)-2),REL_D,N$3,OrgID,$C$4)) -> 2354 | O60: =IF($C$4="Total",SUMIFS(OFFSET(REL_D,,MATCH($A60,IND,0)-2),REL_D,O$3,NwID,$C$3),SUMIFS(OFFSET(REL_D,,MATCH($A60,IND,0)-2),REL_D,O$3,OrgID,$C$4)) -> 2412 | P60: =IF($C$4="Total",SUMIFS(OFFSET(REL_D,,MATCH($A60,IND,0)-2),REL_D,P$3,NwID,$C$3),SUMIFS(OFFSET(REL_D,,MATCH($A60,IND,0)-2),REL_D,P$3,OrgID,$C$4)) -> 2504 | Q60: =IF($C$4="Total",SUMIFS(OFFSET(REL_D,,MATCH($A60,IND,0)-2),REL_D,Q$3,NwID,$C$3),SUMIFS(OFFSET(REL_D,,MATCH($A60,IND,0)-2),REL_D,Q$3,OrgID,$C$4)) -> 2637 | R60: =SUMIFS(OFFSET(REL_D,,MATCH($A60,IND,0)-1),REL_D,R$3,IF(LEFT($C$4,1)="N",NwID,OrgID),$C$4) -> 0
A61: ='Control Panel'!B68 -> %LDP.04.08: Diabetes Chol less than 5mmol (last 12m) | B61: %LDP.04.08: Diabetes Chol less than 5mmol (last 12m) | C61: % Diabetes Register | D61: =IFERROR(D60/D54,"N/A") -> 0.107 | E61: 0.11 | F61: =IFERROR(F60/F54,"N/A") -> 0.107 | G61: =IFERROR(G60/G54,"N/A") -> 0.105 | H61: 0.105 | I61: 0.103 | J61: 0.1 | K61: 0.098 | L61: 0.099 | M61: 0.102 | N61: 0.102 | O61: 0.105 | P61: 0.108 | Q61: 0.114 | R61: =IFERROR(R60/R54,"N/A") -> N/A
A62: ='Control Panel'!B69 -> LDP.04.01: Diabetes HbA1c <7.5% OR <59mmol (last 12m) | B62: LDP.04.01: Diabetes HbA1c <7.5% OR <59mmol (last 12m) | C62: HbA1c < 59 (last 12m) | D62: =IF($C$4="Total",SUMIFS(OFFSET(REL_D,,MATCH($A62,IND,0)-2),REL_D,D$3,NwID,$C$3),SUMIFS(OFFSET(REL_D,,MATCH($A62,IND,0)-2),REL_D,D$3,OrgID,$C$4)) -> 9208 | E62: =IF($C$4="Total",SUMIFS(OFFSET(REL_D,,MATCH($A62,IND,0)-2),REL_D,E$3,NwID,$C$3),SUMIFS(OFFSET(REL_D,,MATCH($A62,IND,0)-2),REL_D,E$3,OrgID,$C$4)) -> 10829 | F62: =IF($C$4="Total",SUMIFS(OFFSET(REL_D,,MATCH($A62,IND,0)-2),REL_D,F$3,NwID,$C$3),SUMIFS(OFFSET(REL_D,,MATCH($A62,IND,0)-2),REL_D,F$3,OrgID,$C$4)) -> 10682 | G62: =IF($C$4="Total",SUMIFS(OFFSET(REL_D,,MATCH($A62,IND,0)-2),REL_D,G$3,NwID,$C$3),SUMIFS(OFFSET(REL_D,,MATCH($A62,IND,0)-2),REL_D,G$3,OrgID,$C$4)) -> 10682 | H62: =IF($C$4="Total",SUMIFS(OFFSET(REL_D,,MATCH($A62,IND,0)-2),REL_D,H$3,NwID,$C$3),SUMIFS(OFFSET(REL_D,,MATCH($A62,IND,0)-2),REL_D,H$3,OrgID,$C$4)) -> 10489 | I62: =IF($C$4="Total",SUMIFS(OFFSET(REL_D,,MATCH($A62,IND,0)-2),REL_D,I$3,NwID,$C$3),SUMIFS(OFFSET(REL_D,,MATCH($A62,IND,0)-2),REL_D,I$3,OrgID,$C$4)) -> 10375 | J62: =IF($C$4="Total",SUMIFS(OFFSET(REL_D,,MATCH($A62,IND,0)-2),REL_D,J$3,NwID,$C$3),SUMIFS(OFFSET(REL_D,,MATCH($A62,IND,0)-2),REL_D,J$3,OrgID,$C$4)) -> 10536 | K62: =IF($C$4="Total",SUMIFS(OFFSET(REL_D,,MATCH($A62,IND,0)-2),REL_D,K$3,NwID,$C$3),SUMIFS(OFFSET(REL_D,,MATCH($A62,IND,0)-2),REL_D,K$3,OrgID,$C$4)) -> 10790 | L62: =IF($C$4="Total",SUMIFS(OFFSET(REL_D,,MATCH($A62,IND,0)-2),REL_D,L$3,NwID,$C$3),SUMIFS(OFFSET(REL_D,,MATCH($A62,IND,0)-2),REL_D,L$3,OrgID,$C$4)) -> 10985 | M62: =IF($C$4="Total",SUMIFS(OFFSET(REL_D,,MATCH($A62,IND,0)-2),REL_D,M$3,NwID,$C$3),SUMIFS(OFFSET(REL_D,,MATCH($A62,IND,0)-2),REL_D,M$3,OrgID,$C$4)) -> 11372 | N62: =IF($C$4="Total",SUMIFS(OFFSET(REL_D,,MATCH($A62,IND,0)-2),REL_D,N$3,NwID,$C$3),SUMIFS(OFFSET(REL_D,,MATCH($A62,IND,0)-2),REL_D,N$3,OrgID,$C$4)) -> 11581 | O62: =IF($C$4="Total",SUMIFS(OFFSET(REL_D,,MATCH($A62,IND,0)-2),REL_D,O$3,NwID,$C$3),SUMIFS(OFFSET(REL_D,,MATCH($A62,IND,0)-2),REL_D,O$3,OrgID,$C$4)) -> 11837 | P62: =IF($C$4="Total",SUMIFS(OFFSET(REL_D,,MATCH($A62,IND,0)-2),REL_D,P$3,NwID,$C$3),SUMIFS(OFFSET(REL_D,,MATCH($A62,IND,0)-2),REL_D,P$3,OrgID,$C$4)) -> 12060 | Q62: =IF($C$4="Total",SUMIFS(OFFSET(REL_D,,MATCH($A62,IND,0)-2),REL_D,Q$3,NwID,$C$3),SUMIFS(OFFSET(REL_D,,MATCH($A62,IND,0)-2),REL_D,Q$3,OrgID,$C$4)) -> 12373 | R62: =SUMIFS(OFFSET(REL_D,,MATCH($A62,IND,0)-1),REL_D,R$3,IF(LEFT($C$4,1)="N",NwID,OrgID),$C$4) -> 0
A63: ='Control Panel'!B70 -> %LDP.04.01: Diabetes HbA1c <7.5% OR <59mmol (last 12m) | B63: %LDP.04.01: Diabetes HbA1c <7.5% OR <59mmol (last 12m) | C63: % Diabetes register | D63: =IFERROR(D62/D54,"N/A") -> 0.448 | E63: 0.493 | F63: =IFERROR(F62/F54,"N/A") -> 0.484 | G63: =IFERROR(G62/G54,"N/A") -> 0.482 | H63: 0.471 | I63: 0.465 | J63: 0.469 | K63: 0.478 | L63: 0.485 | M63: 0.498 | N63: 0.504 | O63: 0.513 | P63: 0.522 | Q63: 0.537 | R63: =IFERROR(R62/R54,"N/A") -> N/A
A64: ='Control Panel'!B81 -> LDP.04.07: Diabetes Influenza Vaccinations (From August 2018) | B64: LDP.04.07: Diabetes Influenza Vaccinations (last 12m) | C64: Flu jab (From August 2022) | D64: =IF($C$4="Total",SUMIFS(OFFSET(REL_D,,MATCH($A64,IND,0)-2),REL_D,D$3,NwID,$C$3),SUMIFS(OFFSET(REL_D,,MATCH($A64,IND,0)-2),REL_D,D$3,OrgID,$C$4)) -> 0 | E64: =IF($C$4="Total",SUMIFS(OFFSET(REL_D,,MATCH($A64,IND,0)-2),REL_D,E$3,NwID,$C$3),SUMIFS(OFFSET(REL_D,,MATCH($A64,IND,0)-2),REL_D,E$3,OrgID,$C$4)) -> 0 | F64: =IF($C$4="Total",SUMIFS(OFFSET(REL_D,,MATCH($A64,IND,0)-2),REL_D,F$3,NwID,$C$3),SUMIFS(OFFSET(REL_D,,MATCH($A64,IND,0)-2),REL_D,F$3,OrgID,$C$4)) -> 0 | G64: =IF($C$4="Total",SUMIFS(OFFSET(REL_D,,MATCH($A64,IND,0)-2),REL_D,G$3,NwID,$C$3),SUMIFS(OFFSET(REL_D,,MATCH($A64,IND,0)-2),REL_D,G$3,OrgID,$C$4)) -> 0 | H64: =IF($C$4="Total",SUMIFS(OFFSET(REL_D,,MATCH($A64,IND,0)-2),REL_D,H$3,NwID,$C$3),SUMIFS(OFFSET(REL_D,,MATCH($A64,IND,0)-2),REL_D,H$3,OrgID,$C$4)) -> 0 | I64: =IF($C$4="Total",SUMIFS(OFFSET(REL_D,,MATCH($A64,IND,0)-2),REL_D,I$3,NwID,$C$3),SUMIFS(OFFSET(REL_D,,MATCH($A64,IND,0)-2),REL_D,I$3,OrgID,$C$4)) -> 0 | J64: =IF($C$4="Total",SUMIFS(OFFSET(REL_D,,MATCH($A64,IND,0)-2),REL_D,J$3,NwID,$C$3),SUMIFS(OFFSET(REL_D,,MATCH($A64,IND,0)-2),REL_D,J$3,OrgID,$C$4)) -> 3 | K64: =IF($C$4="Total",SUMIFS(OFFSET(REL_D,,MATCH($A64,IND,0)-2),REL_D,K$3,NwID,$C$3),SUMIFS(OFFSET(REL_D,,MATCH($A64,IND,0)-2),REL_D,K$3,OrgID,$C$4)) -> 5225 | L64: =IF($C$4="Total",SUMIFS(OFFSET(REL_D,,MATCH($A64,IND,0)-2),REL_D,L$3,NwID,$C$3),SUMIFS(OFFSET(REL_D,,MATCH($A64,IND,0)-2),REL_D,L$3,OrgID,$C$4)) -> 12241 | M64: =IF($C$4="Total",SUMIFS(OFFSET(REL_D,,MATCH($A64,IND,0)-2),REL_D,M$3,NwID,$C$3),SUMIFS(OFFSET(REL_D,,MATCH($A64,IND,0)-2),REL_D,M$3,OrgID,$C$4)) -> 14075 | N64: =IF($C$4="Total",SUMIFS(OFFSET(REL_D,,MATCH($A64,IND,0)-2),REL_D,N$3,NwID,$C$3),SUMIFS(OFFSET(REL_D,,MATCH($A64,IND,0)-2),REL_D,N$3,OrgID,$C$4)) -> 14793 | O64: =IF($C$4="Total",SUMIFS(OFFSET(REL_D,,MATCH($A64,IND,0)-2),REL_D,O$3,NwID,$C$3),SUMIFS(OFFSET(REL_D,,MATCH($A64,IND,0)-2),REL_D,O$3,OrgID,$C$4)) -> 15121 | P64: =IF($C$4="Total",SUMIFS(OFFSET(REL_D,,MATCH($A64,IND,0)-2),REL_D,P$3,NwID,$C$3),SUMIFS(OFFSET(REL_D,,MATCH($A64,IND,0)-2),REL_D,P$3,OrgID,$C$4)) -> 15285 | Q64: =IF($C$4="Total",SUMIFS(OFFSET(REL_D,,MATCH($A64,IND,0)-2),REL_D,Q$3,NwID,$C$3),SUMIFS(OFFSET(REL_D,,MATCH($A64,IND,0)-2),REL_D,Q$3,OrgID,$C$4)) -> 15370 | R64: =SUMIFS(OFFSET(REL_D,,MATCH($A64,IND,0)-1),REL_D,R$3,IF(LEFT($C$4,1)="N",NwID,OrgID),$C$4) -> 0
A65: ='Control Panel'!B82 -> %LDP.04.07: Diabetes Influenza Vaccinations (From August 2018) | B65: %LDP.04.07: Diabetes Influenza Vaccinations (last 12m) | C65: % Diabetes Register | D65: =IFERROR(D64/D54,"N/A") -> 0 | E65: 0 | F65: =IFERROR(F64/F54,"N/A") -> 0 | G65: =IFERROR(G64/G54,"N/A") -> 0 | H65: 0 | I65: 0 | J65: 0 | K65: 0.231 | L65: 0.54 | M65: 0.617 | N65: 0.644 | O65: 0.656 | P65: 0.661 | Q65: 0.666 | R65: =IFERROR(R64/R54,"N/A") -> N/A
C66: ='Control Panel'!B107 -> Mental Health
A67: ='Control Panel'!B108 -> CSPMH.01 SMI Register | B67: CSPMH.01 SMI Register | C67: ='Control Panel'!D108 -> Mental Health register | D67: =IF($C$4="Total",SUMIFS(OFFSET(REL_D,,MATCH($A67,IND,0)-2),REL_D,D$3,NwID,$C$3),SUMIFS(OFFSET(REL_D,,MATCH($A67,IND,0)-2),REL_D,D$3,OrgID,$C$4)) -> 2637 | E67: =IF($C$4="Total",SUMIFS(OFFSET(REL_D,,MATCH($A67,IND,0)-2),REL_D,E$3,NwID,$C$3),SUMIFS(OFFSET(REL_D,,MATCH($A67,IND,0)-2),REL_D,E$3,OrgID,$C$4)) -> 2704 | F67: =IF($C$4="Total",SUMIFS(OFFSET(REL_D,,MATCH($A67,IND,0)-2),REL_D,F$3,NwID,$C$3),SUMIFS(OFFSET(REL_D,,MATCH($A67,IND,0)-2),REL_D,F$3,OrgID,$C$4)) -> 2712 | G67: =IF($C$4="Total",SUMIFS(OFFSET(REL_D,,MATCH($A67,IND,0)-2),REL_D,G$3,NwID,$C$3),SUMIFS(OFFSET(REL_D,,MATCH($A67,IND,0)-2),REL_D,G$3,OrgID,$C$4)) -> 2720 | H67: =IF($C$4="Total",SUMIFS(OFFSET(REL_D,,MATCH($A67,IND,0)-2),REL_D,H$3,NwID,$C$3),SUMIFS(OFFSET(REL_D,,MATCH($A67,IND,0)-2),REL_D,H$3,OrgID,$C$4)) -> 2725 | I67: =IF($C$4="Total",SUMIFS(OFFSET(REL_D,,MATCH($A67,IND,0)-2),REL_D,I$3,NwID,$C$3),SUMIFS(OFFSET(REL_D,,MATCH($A67,IND,0)-2),REL_D,I$3,OrgID,$C$4)) -> 2725 | J67: =IF($C$4="Total",SUMIFS(OFFSET(REL_D,,MATCH($A67,IND,0)-2),REL_D,J$3,NwID,$C$3),SUMIFS(OFFSET(REL_D,,MATCH($A67,IND,0)-2),REL_D,J$3,OrgID,$C$4)) -> 2740 | K67: =IF($C$4="Total",SUMIFS(OFFSET(REL_D,,MATCH($A67,IND,0)-2),REL_D,K$3,NwID,$C$3),SUMIFS(OFFSET(REL_D,,MATCH($A67,IND,0)-2),REL_D,K$3,OrgID,$C$4)) -> 2750 | L67: =IF($C$4="Total",SUMIFS(OFFSET(REL_D,,MATCH($A67,IND,0)-2),REL_D,L$3,NwID,$C$3),SUMIFS(OFFSET(REL_D,,MATCH($A67,IND,0)-2),REL_D,L$3,OrgID,$C$4)) -> 2756 | M67: =IF($C$4="Total",SUMIFS(OFFSET(REL_D,,MATCH($A67,IND,0)-2),REL_D,M$3,NwID,$C$3),SUMIFS(OFFSET(REL_D,,MATCH($A67,IND,0)-2),REL_D,M$3,OrgID,$C$4)) -> 2752 | N67: =IF($C$4="Total",SUMIFS(OFFSET(REL_D,,MATCH($A67,IND,0)-2),REL_D,N$3,NwID,$C$3),SUMIFS(OFFSET(REL_D,,MATCH($A67,IND,0)-2),REL_D,N$3,OrgID,$C$4)) -> 2764 | O67: =IF($C$4="Total",SUMIFS(OFFSET(REL_D,,MATCH($A67,IND,0)-2),REL_D,O$3,NwID,$C$3),SUMIFS(OFFSET(REL_D,,MATCH($A67,IND,0)-2),REL_D,O$3,OrgID,$C$4)) -> 2767 | P67: =IF($C$4="Total",SUMIFS(OFFSET(REL_D,,MATCH($A67,IND,0)-2),REL_D,P$3,NwID,$C$3),SUMIFS(OFFSET(REL_D,,MATCH($A67,IND,0)-2),REL_D,P$3,OrgID,$C$4)) -> 2754 | Q67: =IF($C$4="Total",SUMIFS(OFFSET(REL_D,,MATCH($A67,IND,0)-2),REL_D,Q$3,NwID,$C$3),SUMIFS(OFFSET(REL_D,,MATCH($A67,IND,0)-2),REL_D,Q$3,OrgID,$C$4)) -> 2717 | R67: =SUMIFS(OFFSET(REL_D,,MATCH($A67,IND,0)-1),REL_D,R$3,IF(LEFT($C$4,1)="N",NwID,OrgID),$C$4) -> 0
A68: ='Control Panel'!B109 -> %CSPMH.01 SMI Register | B68: %CSPMH.01 SMI Register | C68: ='Control Panel'!D109 -> % list size | D68: =IFERROR(D67/D7,"N/A") -> 0.009 | E68: 0.009 | F68: =IFERROR(F67/F7,"N/A") -> 0.009 | G68: =IFERROR(G67/G7,"N/A") -> 0.009 | H68: 0.009 | I68: 0.009 | J68: 0.009 | K68: 0.009 | L68: 0.009 | M68: 0.009 | N68: 0.009 | O68: 0.009 | P68: 0.009 | Q68: 0.009 | R68: N/A
A69: ='Control Panel'!B110 -> CSPMH.01.02 Smoking Status Recorded (12m) | B69: CSPMH.01.02 Smoking Status Recorded (12m) | C69: ='Control Panel'!D110 -> No. of Mental Health Patients with smoking status recorded (last 12m) or never smoked | D69: =IF($C$4="Total",SUMIFS(OFFSET(REL_D,,MATCH($A69,IND,0)-2),REL_D,D$3,NwID,$C$3),SUMIFS(OFFSET(REL_D,,MATCH($A69,IND,0)-2),REL_D,D$3,OrgID,$C$4)) -> 2229 | E69: =IF($C$4="Total",SUMIFS(OFFSET(REL_D,,MATCH($A69,IND,0)-2),REL_D,E$3,NwID,$C$3),SUMIFS(OFFSET(REL_D,,MATCH($A69,IND,0)-2),REL_D,E$3,OrgID,$C$4)) -> 2309 | F69: =IF($C$4="Total",SUMIFS(OFFSET(REL_D,,MATCH($A69,IND,0)-2),REL_D,F$3,NwID,$C$3),SUMIFS(OFFSET(REL_D,,MATCH($A69,IND,0)-2),REL_D,F$3,OrgID,$C$4)) -> 2319 | G69: =IF($C$4="Total",SUMIFS(OFFSET(REL_D,,MATCH($A69,IND,0)-2),REL_D,G$3,NwID,$C$3),SUMIFS(OFFSET(REL_D,,MATCH($A69,IND,0)-2),REL_D,G$3,OrgID,$C$4)) -> 2331 | H69: =IF($C$4="Total",SUMIFS(OFFSET(REL_D,,MATCH($A69,IND,0)-2),REL_D,H$3,NwID,$C$3),SUMIFS(OFFSET(REL_D,,MATCH($A69,IND,0)-2),REL_D,H$3,OrgID,$C$4)) -> 2328 | I69: =IF($C$4="Total",SUMIFS(OFFSET(REL_D,,MATCH($A69,IND,0)-2),REL_D,I$3,NwID,$C$3),SUMIFS(OFFSET(REL_D,,MATCH($A69,IND,0)-2),REL_D,I$3,OrgID,$C$4)) -> 2322 | J69: =IF($C$4="Total",SUMIFS(OFFSET(REL_D,,MATCH($A69,IND,0)-2),REL_D,J$3,NwID,$C$3),SUMIFS(OFFSET(REL_D,,MATCH($A69,IND,0)-2),REL_D,J$3,OrgID,$C$4)) -> 2356 | K69: =IF($C$4="Total",SUMIFS(OFFSET(REL_D,,MATCH($A69,IND,0)-2),REL_D,K$3,NwID,$C$3),SUMIFS(OFFSET(REL_D,,MATCH($A69,IND,0)-2),REL_D,K$3,OrgID,$C$4)) -> 2382 | L69: =IF($C$4="Total",SUMIFS(OFFSET(REL_D,,MATCH($A69,IND,0)-2),REL_D,L$3,NwID,$C$3),SUMIFS(OFFSET(REL_D,,MATCH($A69,IND,0)-2),REL_D,L$3,OrgID,$C$4)) -> 2389 | M69: =IF($C$4="Total",SUMIFS(OFFSET(REL_D,,MATCH($A69,IND,0)-2),REL_D,M$3,NwID,$C$3),SUMIFS(OFFSET(REL_D,,MATCH($A69,IND,0)-2),REL_D,M$3,OrgID,$C$4)) -> 2394 | N69: =IF($C$4="Total",SUMIFS(OFFSET(REL_D,,MATCH($A69,IND,0)-2),REL_D,N$3,NwID,$C$3),SUMIFS(OFFSET(REL_D,,MATCH($A69,IND,0)-2),REL_D,N$3,OrgID,$C$4)) -> 2418 | O69: =IF($C$4="Total",SUMIFS(OFFSET(REL_D,,MATCH($A69,IND,0)-2),REL_D,O$3,NwID,$C$3),SUMIFS(OFFSET(REL_D,,MATCH($A69,IND,0)-2),REL_D,O$3,OrgID,$C$4)) -> 2426 | P69: =IF($C$4="Total",SUMIFS(OFFSET(REL_D,,MATCH($A69,IND,0)-2),REL_D,P$3,NwID,$C$3),SUMIFS(OFFSET(REL_D,,MATCH($A69,IND,0)-2),REL_D,P$3,OrgID,$C$4)) -> 2431 | Q69: =IF($C$4="Total",SUMIFS(OFFSET(REL_D,,MATCH($A69,IND,0)-2),REL_D,Q$3,NwID,$C$3),SUMIFS(OFFSET(REL_D,,MATCH($A69,IND,0)-2),REL_D,Q$3,OrgID,$C$4)) -> 2427 | R69: =SUMIFS(OFFSET(REL_D,,MATCH($A69,IND,0)-1),REL_D,R$3,IF(LEFT($C$4,1)="N",NwID,OrgID),$C$4) -> 0
A70: ='Control Panel'!B111 -> %CSPMH.01.02 Smoking Status Recorded (12m) | B70: %CSPMH.01.02 Smoking Status Recorded (12m) | C70: ='Control Panel'!D111 -> % Mental Health Register | D70: =IFERROR(D69/D67,"N/A") -> 0.845 | E70: 0.854 | F70: =IFERROR(F69/F67,"N/A") -> 0.855 | G70: =IFERROR(G69/G67,"N/A") -> 0.857 | H70: 0.854 | I70: 0.852 | J70: 0.86 | K70: 0.866 | L70: 0.867 | M70: 0.87 | N70: 0.875 | O70: 0.877 | P70: 0.883 | Q70: 0.893 | R70: =IFERROR(R69/R67,"N/A") -> N/A
A71: ='Control Panel'!B112 -> CSPMH.01.02.01 Current Smoker (12m) | B71: CSPMH.01.02.01 Current Smoker (15m) | C71: ='Control Panel'!D112 -> No. of Mental Health patients recorded as a Smoker | D71: =IF($C$4="Total",SUMIFS(OFFSET(REL_D,,MATCH($A71,IND,0)-2),REL_D,D$3,NwID,$C$3),SUMIFS(OFFSET(REL_D,,MATCH($A71,IND,0)-2),REL_D,D$3,OrgID,$C$4)) -> 496 | E71: =IF($C$4="Total",SUMIFS(OFFSET(REL_D,,MATCH($A71,IND,0)-2),REL_D,E$3,NwID,$C$3),SUMIFS(OFFSET(REL_D,,MATCH($A71,IND,0)-2),REL_D,E$3,OrgID,$C$4)) -> 505 | F71: =IF($C$4="Total",SUMIFS(OFFSET(REL_D,,MATCH($A71,IND,0)-2),REL_D,F$3,NwID,$C$3),SUMIFS(OFFSET(REL_D,,MATCH($A71,IND,0)-2),REL_D,F$3,OrgID,$C$4)) -> 508 | G71: =IF($C$4="Total",SUMIFS(OFFSET(REL_D,,MATCH($A71,IND,0)-2),REL_D,G$3,NwID,$C$3),SUMIFS(OFFSET(REL_D,,MATCH($A71,IND,0)-2),REL_D,G$3,OrgID,$C$4)) -> 513 | H71: =IF($C$4="Total",SUMIFS(OFFSET(REL_D,,MATCH($A71,IND,0)-2),REL_D,H$3,NwID,$C$3),SUMIFS(OFFSET(REL_D,,MATCH($A71,IND,0)-2),REL_D,H$3,OrgID,$C$4)) -> 513 | I71: =IF($C$4="Total",SUMIFS(OFFSET(REL_D,,MATCH($A71,IND,0)-2),REL_D,I$3,NwID,$C$3),SUMIFS(OFFSET(REL_D,,MATCH($A71,IND,0)-2),REL_D,I$3,OrgID,$C$4)) -> 496 | J71: =IF($C$4="Total",SUMIFS(OFFSET(REL_D,,MATCH($A71,IND,0)-2),REL_D,J$3,NwID,$C$3),SUMIFS(OFFSET(REL_D,,MATCH($A71,IND,0)-2),REL_D,J$3,OrgID,$C$4)) -> 514 | K71: =IF($C$4="Total",SUMIFS(OFFSET(REL_D,,MATCH($A71,IND,0)-2),REL_D,K$3,NwID,$C$3),SUMIFS(OFFSET(REL_D,,MATCH($A71,IND,0)-2),REL_D,K$3,OrgID,$C$4)) -> 516 | L71: =IF($C$4="Total",SUMIFS(OFFSET(REL_D,,MATCH($A71,IND,0)-2),REL_D,L$3,NwID,$C$3),SUMIFS(OFFSET(REL_D,,MATCH($A71,IND,0)-2),REL_D,L$3,OrgID,$C$4)) -> 515 | M71: =IF($C$4="Total",SUMIFS(OFFSET(REL_D,,MATCH($A71,IND,0)-2),REL_D,M$3,NwID,$C$3),SUMIFS(OFFSET(REL_D,,MATCH($A71,IND,0)-2),REL_D,M$3,OrgID,$C$4)) -> 531 | N71: =IF($C$4="Total",SUMIFS(OFFSET(REL_D,,MATCH($A71,IND,0)-2),REL_D,N$3,NwID,$C$3),SUMIFS(OFFSET(REL_D,,MATCH($A71,IND,0)-2),REL_D,N$3,OrgID,$C$4)) -> 536 | O71: =IF($C$4="Total",SUMIFS(OFFSET(REL_D,,MATCH($A71,IND,0)-2),REL_D,O$3,NwID,$C$3),SUMIFS(OFFSET(REL_D,,MATCH($A71,IND,0)-2),REL_D,O$3,OrgID,$C$4)) -> 554 | P71: =IF($C$4="Total",SUMIFS(OFFSET(REL_D,,MATCH($A71,IND,0)-2),REL_D,P$3,NwID,$C$3),SUMIFS(OFFSET(REL_D,,MATCH($A71,IND,0)-2),REL_D,P$3,OrgID,$C$4)) -> 573 | Q71: =IF($C$4="Total",SUMIFS(OFFSET(REL_D,,MATCH($A71,IND,0)-2),REL_D,Q$3,NwID,$C$3),SUMIFS(OFFSET(REL_D,,MATCH($A71,IND,0)-2),REL_D,Q$3,OrgID,$C$4)) -> 603 | R71: =SUMIFS(OFFSET(REL_D,,MATCH($A71,IND,0)-1),REL_D,R$3,IF(LEFT($C$4,1)="N",NwID,OrgID),$C$4) -> 0
A72: ='Control Panel'!B113 -> %CSPMH.01.02.01 Current Smoker (12m) | B72: %CSPMH.01.02.01 Current Smoker (15m) | C72: ='Control Panel'!D113 -> % Mental Health Register | D72: =IFERROR(D71/D67,"N/A") -> 0.188 | E72: 0.187 | F72: =IFERROR(F71/F67,"N/A") -> 0.187 | G72: =IFERROR(G71/G67,"N/A") -> 0.189 | H72: 0.188 | I72: 0.182 | J72: 0.188 | K72: 0.188 | L72: 0.187 | M72: 0.193 | N72: 0.194 | O72: 0.2 | P72: 0.208 | Q72: 0.222 | R72: =IFERROR(R71/R67,"N/A") -> N/A
A73: ='Control Panel'!B114 -> CSPMH 01.02.01.01 Ref to clinic 12m | B73: CSPMH 01.02.01.01 Ref to clinic 15m | C73: ='Control Panel'!D114 -> No. of Mental Health Patients who are current smokers & referred to the Stop Smoking Clinic | D73: =IF($C$4="Total",SUMIFS(OFFSET(REL_D,,MATCH($A73,IND,0)-2),REL_D,D$3,NwID,$C$3),SUMIFS(OFFSET(REL_D,,MATCH($A73,IND,0)-2),REL_D,D$3,OrgID,$C$4)) -> 6 | E73: =IF($C$4="Total",SUMIFS(OFFSET(REL_D,,MATCH($A73,IND,0)-2),REL_D,E$3,NwID,$C$3),SUMIFS(OFFSET(REL_D,,MATCH($A73,IND,0)-2),REL_D,E$3,OrgID,$C$4)) -> 4 | F73: =IF($C$4="Total",SUMIFS(OFFSET(REL_D,,MATCH($A73,IND,0)-2),REL_D,F$3,NwID,$C$3),SUMIFS(OFFSET(REL_D,,MATCH($A73,IND,0)-2),REL_D,F$3,OrgID,$C$4)) -> 6 | G73: =IF($C$4="Total",SUMIFS(OFFSET(REL_D,,MATCH($A73,IND,0)-2),REL_D,G$3,NwID,$C$3),SUMIFS(OFFSET(REL_D,,MATCH($A73,IND,0)-2),REL_D,G$3,OrgID,$C$4)) -> 6 | H73: =IF($C$4="Total",SUMIFS(OFFSET(REL_D,,MATCH($A73,IND,0)-2),REL_D,H$3,NwID,$C$3),SUMIFS(OFFSET(REL_D,,MATCH($A73,IND,0)-2),REL_D,H$3,OrgID,$C$4)) -> 7 | I73: =IF($C$4="Total",SUMIFS(OFFSET(REL_D,,MATCH($A73,IND,0)-2),REL_D,I$3,NwID,$C$3),SUMIFS(OFFSET(REL_D,,MATCH($A73,IND,0)-2),REL_D,I$3,OrgID,$C$4)) -> 9 | J73: =IF($C$4="Total",SUMIFS(OFFSET(REL_D,,MATCH($A73,IND,0)-2),REL_D,J$3,NwID,$C$3),SUMIFS(OFFSET(REL_D,,MATCH($A73,IND,0)-2),REL_D,J$3,OrgID,$C$4)) -> 9 | K73: =IF($C$4="Total",SUMIFS(OFFSET(REL_D,,MATCH($A73,IND,0)-2),REL_D,K$3,NwID,$C$3),SUMIFS(OFFSET(REL_D,,MATCH($A73,IND,0)-2),REL_D,K$3,OrgID,$C$4)) -> 11 | L73: =IF($C$4="Total",SUMIFS(OFFSET(REL_D,,MATCH($A73,IND,0)-2),REL_D,L$3,NwID,$C$3),SUMIFS(OFFSET(REL_D,,MATCH($A73,IND,0)-2),REL_D,L$3,OrgID,$C$4)) -> 11 | M73: =IF($C$4="Total",SUMIFS(OFFSET(REL_D,,MATCH($A73,IND,0)-2),REL_D,M$3,NwID,$C$3),SUMIFS(OFFSET(REL_D,,MATCH($A73,IND,0)-2),REL_D,M$3,OrgID,$C$4)) -> 11 | N73: =IF($C$4="Total",SUMIFS(OFFSET(REL_D,,MATCH($A73,IND,0)-2),REL_D,N$3,NwID,$C$3),SUMIFS(OFFSET(REL_D,,MATCH($A73,IND,0)-2),REL_D,N$3,OrgID,$C$4)) -> 11 | O73: =IF($C$4="Total",SUMIFS(OFFSET(REL_D,,MATCH($A73,IND,0)-2),REL_D,O$3,NwID,$C$3),SUMIFS(OFFSET(REL_D,,MATCH($A73,IND,0)-2),REL_D,O$3,OrgID,$C$4)) -> 11 | P73: =IF($C$4="Total",SUMIFS(OFFSET(REL_D,,MATCH($A73,IND,0)-2),REL_D,P$3,NwID,$C$3),SUMIFS(OFFSET(REL_D,,MATCH($A73,IND,0)-2),REL_D,P$3,OrgID,$C$4)) -> 13 | Q73: =IF($C$4="Total",SUMIFS(OFFSET(REL_D,,MATCH($A73,IND,0)-2),REL_D,Q$3,NwID,$C$3),SUMIFS(OFFSET(REL_D,,MATCH($A73,IND,0)-2),REL_D,Q$3,OrgID,$C$4)) -> 12 | R73: =SUMIFS(OFFSET(REL_D,,MATCH($A73,IND,0)-1),REL_D,R$3,IF(LEFT($C$4,1)="N",NwID,OrgID),$C$4) -> 0
A74: ='Control Panel'!B115 -> %CSPMH 01.02.01.01 Ref to clinic 12m | B74: %CSPMH 01.02.01.01 Ref to clinic 15m | C74: ='Control Panel'!D115 -> % Mental Health Register | D74: =IFERROR(D73/D67,"N/A") -> 0.002 | E74: 0.001 | F74: =IFERROR(F73/F67,"N/A") -> 0.002 | G74: =IFERROR(G73/G67,"N/A") -> 0.002 | H74: 0.003 | I74: 0.003 | J74: 0.003 | K74: 0.004 | L74: 0.004 | M74: 0.004 | N74: 0.004 | O74: 0.004 | P74: 0.005 | Q74: 0.004 | R74: =IFERROR(R73/R67,"N/A") -> N/A
A75: ='Control Panel'!B116 -> CSPMH.01.02.02 Ex-smoker Recorded (latest 12m) | B75: CSPMH.01.02.02 Ex-smoker Recorded (latest 15m) | C75: ='Control Panel'!D116 -> No. Of Mental Health Patients who are recorded as quitters | D75: =IF($C$4="Total",SUMIFS(OFFSET(REL_D,,MATCH($A75,IND,0)-2),REL_D,D$3,NwID,$C$3),SUMIFS(OFFSET(REL_D,,MATCH($A75,IND,0)-2),REL_D,D$3,OrgID,$C$4)) -> 155 | E75: =IF($C$4="Total",SUMIFS(OFFSET(REL_D,,MATCH($A75,IND,0)-2),REL_D,E$3,NwID,$C$3),SUMIFS(OFFSET(REL_D,,MATCH($A75,IND,0)-2),REL_D,E$3,OrgID,$C$4)) -> 157 | F75: =IF($C$4="Total",SUMIFS(OFFSET(REL_D,,MATCH($A75,IND,0)-2),REL_D,F$3,NwID,$C$3),SUMIFS(OFFSET(REL_D,,MATCH($A75,IND,0)-2),REL_D,F$3,OrgID,$C$4)) -> 154 | G75: =IF($C$4="Total",SUMIFS(OFFSET(REL_D,,MATCH($A75,IND,0)-2),REL_D,G$3,NwID,$C$3),SUMIFS(OFFSET(REL_D,,MATCH($A75,IND,0)-2),REL_D,G$3,OrgID,$C$4)) -> 156 | H75: =IF($C$4="Total",SUMIFS(OFFSET(REL_D,,MATCH($A75,IND,0)-2),REL_D,H$3,NwID,$C$3),SUMIFS(OFFSET(REL_D,,MATCH($A75,IND,0)-2),REL_D,H$3,OrgID,$C$4)) -> 156 | I75: =IF($C$4="Total",SUMIFS(OFFSET(REL_D,,MATCH($A75,IND,0)-2),REL_D,I$3,NwID,$C$3),SUMIFS(OFFSET(REL_D,,MATCH($A75,IND,0)-2),REL_D,I$3,OrgID,$C$4)) -> 162 | J75: =IF($C$4="Total",SUMIFS(OFFSET(REL_D,,MATCH($A75,IND,0)-2),REL_D,J$3,NwID,$C$3),SUMIFS(OFFSET(REL_D,,MATCH($A75,IND,0)-2),REL_D,J$3,OrgID,$C$4)) -> 169 | K75: =IF($C$4="Total",SUMIFS(OFFSET(REL_D,,MATCH($A75,IND,0)-2),REL_D,K$3,NwID,$C$3),SUMIFS(OFFSET(REL_D,,MATCH($A75,IND,0)-2),REL_D,K$3,OrgID,$C$4)) -> 167 | L75: =IF($C$4="Total",SUMIFS(OFFSET(REL_D,,MATCH($A75,IND,0)-2),REL_D,L$3,NwID,$C$3),SUMIFS(OFFSET(REL_D,,MATCH($A75,IND,0)-2),REL_D,L$3,OrgID,$C$4)) -> 168 | M75: =IF($C$4="Total",SUMIFS(OFFSET(REL_D,,MATCH($A75,IND,0)-2),REL_D,M$3,NwID,$C$3),SUMIFS(OFFSET(REL_D,,MATCH($A75,IND,0)-2),REL_D,M$3,OrgID,$C$4)) -> 185 | N75: =IF($C$4="Total",SUMIFS(OFFSET(REL_D,,MATCH($A75,IND,0)-2),REL_D,N$3,NwID,$C$3),SUMIFS(OFFSET(REL_D,,MATCH($A75,IND,0)-2),REL_D,N$3,OrgID,$C$4)) -> 192 | O75: =IF($C$4="Total",SUMIFS(OFFSET(REL_D,,MATCH($A75,IND,0)-2),REL_D,O$3,NwID,$C$3),SUMIFS(OFFSET(REL_D,,MATCH($A75,IND,0)-2),REL_D,O$3,OrgID,$C$4)) -> 194 | P75: =IF($C$4="Total",SUMIFS(OFFSET(REL_D,,MATCH($A75,IND,0)-2),REL_D,P$3,NwID,$C$3),SUMIFS(OFFSET(REL_D,,MATCH($A75,IND,0)-2),REL_D,P$3,OrgID,$C$4)) -> 191 | Q75: =IF($C$4="Total",SUMIFS(OFFSET(REL_D,,MATCH($A75,IND,0)-2),REL_D,Q$3,NwID,$C$3),SUMIFS(OFFSET(REL_D,,MATCH($A75,IND,0)-2),REL_D,Q$3,OrgID,$C$4)) -> 201 | R75: =SUMIFS(OFFSET(REL_D,,MATCH($A75,IND,0)-1),REL_D,R$3,IF(LEFT($C$4,1)="N",NwID,OrgID),$C$4) -> 0
A76: ='Control Panel'!B117 -> %CSPMH.01.02.02 Ex-smoker Recorded (latest 12m) | B76: %CSPMH.01.02.02 Ex-smoker Recorded (latest 15m) | C76: ='Control Panel'!D117 -> % Mental Health Register | D76: =IFERROR(D75/D67,"N/A") -> 0.059 | E76: 0.058 | F76: =IFERROR(F75/F67,"N/A") -> 0.057 | G76: =IFERROR(G75/G67,"N/A") -> 0.057 | H76: 0.057 | I76: 0.059 | J76: 0.062 | K76: 0.061 | L76: 0.061 | M76: 0.067 | N76: 0.069 | O76: 0.07 | P76: 0.069 | Q76: 0.074 | R76: =IFERROR(R75/R67,"N/A") -> N/A
A77: ='Control Panel'!B118 -> CSPMH. 01.03 QRisk Recorded (12m) | B77: CSPMH. 01.03 QRisk Recorded (12m) | C77: ='Control Panel'!D118 -> Patients with Mental Health with QRISK recorded in the last 12m | D77: =IF($C$4="Total",SUMIFS(OFFSET(REL_D,,MATCH($A77,IND,0)-2),REL_D,D$3,NwID,$C$3),SUMIFS(OFFSET(REL_D,,MATCH($A77,IND,0)-2),REL_D,D$3,OrgID,$C$4)) -> 696 | E77: =IF($C$4="Total",SUMIFS(OFFSET(REL_D,,MATCH($A77,IND,0)-2),REL_D,E$3,NwID,$C$3),SUMIFS(OFFSET(REL_D,,MATCH($A77,IND,0)-2),REL_D,E$3,OrgID,$C$4)) -> 572 | F77: =IF($C$4="Total",SUMIFS(OFFSET(REL_D,,MATCH($A77,IND,0)-2),REL_D,F$3,NwID,$C$3),SUMIFS(OFFSET(REL_D,,MATCH($A77,IND,0)-2),REL_D,F$3,OrgID,$C$4)) -> 577 | G77: =IF($C$4="Total",SUMIFS(OFFSET(REL_D,,MATCH($A77,IND,0)-2),REL_D,G$3,NwID,$C$3),SUMIFS(OFFSET(REL_D,,MATCH($A77,IND,0)-2),REL_D,G$3,OrgID,$C$4)) -> 597 | H77: =IF($C$4="Total",SUMIFS(OFFSET(REL_D,,MATCH($A77,IND,0)-2),REL_D,H$3,NwID,$C$3),SUMIFS(OFFSET(REL_D,,MATCH($A77,IND,0)-2),REL_D,H$3,OrgID,$C$4)) -> 598 | I77: =IF($C$4="Total",SUMIFS(OFFSET(REL_D,,MATCH($A77,IND,0)-2),REL_D,I$3,NwID,$C$3),SUMIFS(OFFSET(REL_D,,MATCH($A77,IND,0)-2),REL_D,I$3,OrgID,$C$4)) -> 634 | J77: =IF($C$4="Total",SUMIFS(OFFSET(REL_D,,MATCH($A77,IND,0)-2),REL_D,J$3,NwID,$C$3),SUMIFS(OFFSET(REL_D,,MATCH($A77,IND,0)-2),REL_D,J$3,OrgID,$C$4)) -> 684 | K77: =IF($C$4="Total",SUMIFS(OFFSET(REL_D,,MATCH($A77,IND,0)-2),REL_D,K$3,NwID,$C$3),SUMIFS(OFFSET(REL_D,,MATCH($A77,IND,0)-2),REL_D,K$3,OrgID,$C$4)) -> 679 | L77: =IF($C$4="Total",SUMIFS(OFFSET(REL_D,,MATCH($A77,IND,0)-2),REL_D,L$3,NwID,$C$3),SUMIFS(OFFSET(REL_D,,MATCH($A77,IND,0)-2),REL_D,L$3,OrgID,$C$4)) -> 703 | M77: =IF($C$4="Total",SUMIFS(OFFSET(REL_D,,MATCH($A77,IND,0)-2),REL_D,M$3,NwID,$C$3),SUMIFS(OFFSET(REL_D,,MATCH($A77,IND,0)-2),REL_D,M$3,OrgID,$C$4)) -> 731 | N77: =IF($C$4="Total",SUMIFS(OFFSET(REL_D,,MATCH($A77,IND,0)-2),REL_D,N$3,NwID,$C$3),SUMIFS(OFFSET(REL_D,,MATCH($A77,IND,0)-2),REL_D,N$3,OrgID,$C$4)) -> 751 | O77: =IF($C$4="Total",SUMIFS(OFFSET(REL_D,,MATCH($A77,IND,0)-2),REL_D,O$3,NwID,$C$3),SUMIFS(OFFSET(REL_D,,MATCH($A77,IND,0)-2),REL_D,O$3,OrgID,$C$4)) -> 791 | P77: =IF($C$4="Total",SUMIFS(OFFSET(REL_D,,MATCH($A77,IND,0)-2),REL_D,P$3,NwID,$C$3),SUMIFS(OFFSET(REL_D,,MATCH($A77,IND,0)-2),REL_D,P$3,OrgID,$C$4)) -> 815 | Q77: =IF($C$4="Total",SUMIFS(OFFSET(REL_D,,MATCH($A77,IND,0)-2),REL_D,Q$3,NwID,$C$3),SUMIFS(OFFSET(REL_D,,MATCH($A77,IND,0)-2),REL_D,Q$3,OrgID,$C$4)) -> 834 | R77: =SUMIFS(OFFSET(REL_D,,MATCH($A77,IND,0)-1),REL_D,R$3,IF(LEFT($C$4,1)="N",NwID,OrgID),$C$4) -> 0
A78: ='Control Panel'!B119 -> %CSPMH. 01.03 QRisk Recorded (12m) | B78: %CSPMH. 01.03 QRisk Recorded (12m) | C78: ='Control Panel'!D119 -> % Mental Health Register | D78: =IFERROR(D77/D67,"N/A") -> 0.264 | E78: 0.212 | F78: =IFERROR(F77/F67,"N/A") -> 0.213 | G78: =IFERROR(G77/G67,"N/A") -> 0.219 | H78: 0.219 | I78: 0.233 | J78: 0.25 | K78: 0.247 | L78: 0.255 | M78: 0.266 | N78: 0.272 | O78: 0.286 | P78: 0.296 | Q78: 0.307 | R78: =IFERROR(R77/R67,"N/A") -> N/A
A79: ='Control Panel'!B120 -> CSPMH. 01.03.02 Qrisk>=20 (12m) | B79: CSPMH. 01.03.02 Qrisk>=20 (12m) | C79: ='Control Panel'!D120 -> Patients with Mental Health with QRISK 20% or higher in the last 12m | D79: =IF($C$4="Total",SUMIFS(OFFSET(REL_D,,MATCH($A79,IND,0)-2),REL_D,D$3,NwID,$C$3),SUMIFS(OFFSET(REL_D,,MATCH($A79,IND,0)-2),REL_D,D$3,OrgID,$C$4)) -> 134 | E79: =IF($C$4="Total",SUMIFS(OFFSET(REL_D,,MATCH($A79,IND,0)-2),REL_D,E$3,NwID,$C$3),SUMIFS(OFFSET(REL_D,,MATCH($A79,IND,0)-2),REL_D,E$3,OrgID,$C$4)) -> 114 | F79: =IF($C$4="Total",SUMIFS(OFFSET(REL_D,,MATCH($A79,IND,0)-2),REL_D,F$3,NwID,$C$3),SUMIFS(OFFSET(REL_D,,MATCH($A79,IND,0)-2),REL_D,F$3,OrgID,$C$4)) -> 119 | G79: =IF($C$4="Total",SUMIFS(OFFSET(REL_D,,MATCH($A79,IND,0)-2),REL_D,G$3,NwID,$C$3),SUMIFS(OFFSET(REL_D,,MATCH($A79,IND,0)-2),REL_D,G$3,OrgID,$C$4)) -> 122 | H79: =IF($C$4="Total",SUMIFS(OFFSET(REL_D,,MATCH($A79,IND,0)-2),REL_D,H$3,NwID,$C$3),SUMIFS(OFFSET(REL_D,,MATCH($A79,IND,0)-2),REL_D,H$3,OrgID,$C$4)) -> 121 | I79: =IF($C$4="Total",SUMIFS(OFFSET(REL_D,,MATCH($A79,IND,0)-2),REL_D,I$3,NwID,$C$3),SUMIFS(OFFSET(REL_D,,MATCH($A79,IND,0)-2),REL_D,I$3,OrgID,$C$4)) -> 127 | J79: =IF($C$4="Total",SUMIFS(OFFSET(REL_D,,MATCH($A79,IND,0)-2),REL_D,J$3,NwID,$C$3),SUMIFS(OFFSET(REL_D,,MATCH($A79,IND,0)-2),REL_D,J$3,OrgID,$C$4)) -> 142 | K79: =IF($C$4="Total",SUMIFS(OFFSET(REL_D,,MATCH($A79,IND,0)-2),REL_D,K$3,NwID,$C$3),SUMIFS(OFFSET(REL_D,,MATCH($A79,IND,0)-2),REL_D,K$3,OrgID,$C$4)) -> 145 | L79: =IF($C$4="Total",SUMIFS(OFFSET(REL_D,,MATCH($A79,IND,0)-2),REL_D,L$3,NwID,$C$3),SUMIFS(OFFSET(REL_D,,MATCH($A79,IND,0)-2),REL_D,L$3,OrgID,$C$4)) -> 154 | M79: =IF($C$4="Total",SUMIFS(OFFSET(REL_D,,MATCH($A79,IND,0)-2),REL_D,M$3,NwID,$C$3),SUMIFS(OFFSET(REL_D,,MATCH($A79,IND,0)-2),REL_D,M$3,OrgID,$C$4)) -> 156 | N79: =IF($C$4="Total",SUMIFS(OFFSET(REL_D,,MATCH($A79,IND,0)-2),REL_D,N$3,NwID,$C$3),SUMIFS(OFFSET(REL_D,,MATCH($A79,IND,0)-2),REL_D,N$3,OrgID,$C$4)) -> 166 | O79: =IF($C$4="Total",SUMIFS(OFFSET(REL_D,,MATCH($A79,IND,0)-2),REL_D,O$3,NwID,$C$3),SUMIFS(OFFSET(REL_D,,MATCH($A79,IND,0)-2),REL_D,O$3,OrgID,$C$4)) -> 170 | P79: =IF($C$4="Total",SUMIFS(OFFSET(REL_D,,MATCH($A79,IND,0)-2),REL_D,P$3,NwID,$C$3),SUMIFS(OFFSET(REL_D,,MATCH($A79,IND,0)-2),REL_D,P$3,OrgID,$C$4)) -> 176 | Q79: =IF($C$4="Total",SUMIFS(OFFSET(REL_D,,MATCH($A79,IND,0)-2),REL_D,Q$3,NwID,$C$3),SUMIFS(OFFSET(REL_D,,MATCH($A79,IND,0)-2),REL_D,Q$3,OrgID,$C$4)) -> 174 | R79: =SUMIFS(OFFSET(REL_D,,MATCH($A79,IND,0)-1),REL_D,R$3,IF(LEFT($C$4,1)="N",NwID,OrgID),$C$4) -> 0
A80: ='Control Panel'!B121 -> %CSPMH. 01.03.02 Qrisk>=20 (12m) | B80: %CSPMH. 01.03.02 Qrisk>=20 (12m) | C80: ='Control Panel'!D121 -> % patients with QRISK recorded | D80: =IFERROR(D79/D67,"N/A") -> 0.051 | E80: 0.042 | F80: =IFERROR(F79/F67,"N/A") -> 0.044 | G80: =IFERROR(G79/G67,"N/A") -> 0.045 | H80: 0.044 | I80: 0.047 | J80: 0.052 | K80: 0.053 | L80: 0.056 | M80: 0.057 | N80: 0.06 | O80: 0.061 | P80: 0.064 | Q80: 0.064 | R80: =IFERROR(R79/R67,"N/A") -> N/A
A81: ='Control Panel'!B122 -> CSPMH. 01.03.01 BP recorded on same day as QRisk (12m) | B81: CSPMH. 01.03.01 BP recorded on same day as QRisk (12m) | C81: ='Control Panel'!D122 -> Patients with Mental Health with BP & QRisk on the same day in the last 12m | D81: =IF($C$4="Total",SUMIFS(OFFSET(REL_D,,MATCH($A81,IND,0)-2),REL_D,D$3,NwID,$C$3),SUMIFS(OFFSET(REL_D,,MATCH($A81,IND,0)-2),REL_D,D$3,OrgID,$C$4)) -> 282 | E81: =IF($C$4="Total",SUMIFS(OFFSET(REL_D,,MATCH($A81,IND,0)-2),REL_D,E$3,NwID,$C$3),SUMIFS(OFFSET(REL_D,,MATCH($A81,IND,0)-2),REL_D,E$3,OrgID,$C$4)) -> 248 | F81: =IF($C$4="Total",SUMIFS(OFFSET(REL_D,,MATCH($A81,IND,0)-2),REL_D,F$3,NwID,$C$3),SUMIFS(OFFSET(REL_D,,MATCH($A81,IND,0)-2),REL_D,F$3,OrgID,$C$4)) -> 257 | G81: =IF($C$4="Total",SUMIFS(OFFSET(REL_D,,MATCH($A81,IND,0)-2),REL_D,G$3,NwID,$C$3),SUMIFS(OFFSET(REL_D,,MATCH($A81,IND,0)-2),REL_D,G$3,OrgID,$C$4)) -> 268 | H81: =IF($C$4="Total",SUMIFS(OFFSET(REL_D,,MATCH($A81,IND,0)-2),REL_D,H$3,NwID,$C$3),SUMIFS(OFFSET(REL_D,,MATCH($A81,IND,0)-2),REL_D,H$3,OrgID,$C$4)) -> 269 | I81: =IF($C$4="Total",SUMIFS(OFFSET(REL_D,,MATCH($A81,IND,0)-2),REL_D,I$3,NwID,$C$3),SUMIFS(OFFSET(REL_D,,MATCH($A81,IND,0)-2),REL_D,I$3,OrgID,$C$4)) -> 270 | J81: =IF($C$4="Total",SUMIFS(OFFSET(REL_D,,MATCH($A81,IND,0)-2),REL_D,J$3,NwID,$C$3),SUMIFS(OFFSET(REL_D,,MATCH($A81,IND,0)-2),REL_D,J$3,OrgID,$C$4)) -> 314 | K81: =IF($C$4="Total",SUMIFS(OFFSET(REL_D,,MATCH($A81,IND,0)-2),REL_D,K$3,NwID,$C$3),SUMIFS(OFFSET(REL_D,,MATCH($A81,IND,0)-2),REL_D,K$3,OrgID,$C$4)) -> 311 | L81: =IF($C$4="Total",SUMIFS(OFFSET(REL_D,,MATCH($A81,IND,0)-2),REL_D,L$3,NwID,$C$3),SUMIFS(OFFSET(REL_D,,MATCH($A81,IND,0)-2),REL_D,L$3,OrgID,$C$4)) -> 306 | M81: =IF($C$4="Total",SUMIFS(OFFSET(REL_D,,MATCH($A81,IND,0)-2),REL_D,M$3,NwID,$C$3),SUMIFS(OFFSET(REL_D,,MATCH($A81,IND,0)-2),REL_D,M$3,OrgID,$C$4)) -> 309 | N81: =IF($C$4="Total",SUMIFS(OFFSET(REL_D,,MATCH($A81,IND,0)-2),REL_D,N$3,NwID,$C$3),SUMIFS(OFFSET(REL_D,,MATCH($A81,IND,0)-2),REL_D,N$3,OrgID,$C$4)) -> 321 | O81: =IF($C$4="Total",SUMIFS(OFFSET(REL_D,,MATCH($A81,IND,0)-2),REL_D,O$3,NwID,$C$3),SUMIFS(OFFSET(REL_D,,MATCH($A81,IND,0)-2),REL_D,O$3,OrgID,$C$4)) -> 338 | P81: =IF($C$4="Total",SUMIFS(OFFSET(REL_D,,MATCH($A81,IND,0)-2),REL_D,P$3,NwID,$C$3),SUMIFS(OFFSET(REL_D,,MATCH($A81,IND,0)-2),REL_D,P$3,OrgID,$C$4)) -> 353 | Q81: =IF($C$4="Total",SUMIFS(OFFSET(REL_D,,MATCH($A81,IND,0)-2),REL_D,Q$3,NwID,$C$3),SUMIFS(OFFSET(REL_D,,MATCH($A81,IND,0)-2),REL_D,Q$3,OrgID,$C$4)) -> 362 | R81: =SUMIFS(OFFSET(REL_D,,MATCH($A81,IND,0)-1),REL_D,R$3,IF(LEFT($C$4,1)="N",NwID,OrgID),$C$4) -> 0
A82: ='Control Panel'!B123 -> %CSPMH. 01.03.01 BP recorded on same day as QRisk (12m) | B82: %CSPMH. 01.03.01 BP recorded on same day as QRisk (12m) | C82: ='Control Panel'!D123 -> % Mental Health Register | D82: =IFERROR(D81/D67,"N/A") -> 0.107 | E82: 0.092 | F82: =IFERROR(F81/F67,"N/A") -> 0.095 | G82: =IFERROR(G81/G67,"N/A") -> 0.099 | H82: 0.099 | I82: 0.099 | J82: 0.115 | K82: 0.113 | L82: 0.111 | M82: 0.112 | N82: 0.116 | O82: 0.122 | P82: 0.128 | Q82: 0.133 | R82: =IFERROR(R81/R67,"N/A") -> N/A
C83: ='Control Panel'!B124 -> CKD
A84: =VLOOKUP(C84,'Control Panel'!A124:B250,2,FALSE) -> LDP.08 CKD Register | B84: LDP.08 CKD Register | C84: ='Control Panel'!D125 -> No. of patients on CKD register | D84: =IF($C$4="Total",SUMIFS(OFFSET(REL_D,,MATCH($A84,IND,0)-2),REL_D,D$3,NwID,$C$3),SUMIFS(OFFSET(REL_D,,MATCH($A84,IND,0)-2),REL_D,D$3,OrgID,$C$4)) -> 5606 | E84: =IF($C$4="Total",SUMIFS(OFFSET(REL_D,,MATCH($A84,IND,0)-2),REL_D,E$3,NwID,$C$3),SUMIFS(OFFSET(REL_D,,MATCH($A84,IND,0)-2),REL_D,E$3,OrgID,$C$4)) -> 6087 | F84: =IF($C$4="Total",SUMIFS(OFFSET(REL_D,,MATCH($A84,IND,0)-2),REL_D,F$3,NwID,$C$3),SUMIFS(OFFSET(REL_D,,MATCH($A84,IND,0)-2),REL_D,F$3,OrgID,$C$4)) -> 6098 | G84: =IF($C$4="Total",SUMIFS(OFFSET(REL_D,,MATCH($A84,IND,0)-2),REL_D,G$3,NwID,$C$3),SUMIFS(OFFSET(REL_D,,MATCH($A84,IND,0)-2),REL_D,G$3,OrgID,$C$4)) -> 6106 | H84: =IF($C$4="Total",SUMIFS(OFFSET(REL_D,,MATCH($A84,IND,0)-2),REL_D,H$3,NwID,$C$3),SUMIFS(OFFSET(REL_D,,MATCH($A84,IND,0)-2),REL_D,H$3,OrgID,$C$4)) -> 6148 | I84: =IF($C$4="Total",SUMIFS(OFFSET(REL_D,,MATCH($A84,IND,0)-2),REL_D,I$3,NwID,$C$3),SUMIFS(OFFSET(REL_D,,MATCH($A84,IND,0)-2),REL_D,I$3,OrgID,$C$4)) -> 6213 | J84: =IF($C$4="Total",SUMIFS(OFFSET(REL_D,,MATCH($A84,IND,0)-2),REL_D,J$3,NwID,$C$3),SUMIFS(OFFSET(REL_D,,MATCH($A84,IND,0)-2),REL_D,J$3,OrgID,$C$4)) -> 6277 | K84: =IF($C$4="Total",SUMIFS(OFFSET(REL_D,,MATCH($A84,IND,0)-2),REL_D,K$3,NwID,$C$3),SUMIFS(OFFSET(REL_D,,MATCH($A84,IND,0)-2),REL_D,K$3,OrgID,$C$4)) -> 6348 | L84: =IF($C$4="Total",SUMIFS(OFFSET(REL_D,,MATCH($A84,IND,0)-2),REL_D,L$3,NwID,$C$3),SUMIFS(OFFSET(REL_D,,MATCH($A84,IND,0)-2),REL_D,L$3,OrgID,$C$4)) -> 6388 | M84: =IF($C$4="Total",SUMIFS(OFFSET(REL_D,,MATCH($A84,IND,0)-2),REL_D,M$3,NwID,$C$3),SUMIFS(OFFSET(REL_D,,MATCH($A84,IND,0)-2),REL_D,M$3,OrgID,$C$4)) -> 6524 | N84: =IF($C$4="Total",SUMIFS(OFFSET(REL_D,,MATCH($A84,IND,0)-2),REL_D,N$3,NwID,$C$3),SUMIFS(OFFSET(REL_D,,MATCH($A84,IND,0)-2),REL_D,N$3,OrgID,$C$4)) -> 6598 | O84: =IF($C$4="Total",SUMIFS(OFFSET(REL_D,,MATCH($A84,IND,0)-2),REL_D,O$3,NwID,$C$3),SUMIFS(OFFSET(REL_D,,MATCH($A84,IND,0)-2),REL_D,O$3,OrgID,$C$4)) -> 6700 | P84: =IF($C$4="Total",SUMIFS(OFFSET(REL_D,,MATCH($A84,IND,0)-2),REL_D,P$3,NwID,$C$3),SUMIFS(OFFSET(REL_D,,MATCH($A84,IND,0)-2),REL_D,P$3,OrgID,$C$4)) -> 6735 | Q84: =IF($C$4="Total",SUMIFS(OFFSET(REL_D,,MATCH($A84,IND,0)-2),REL_D,Q$3,NwID,$C$3),SUMIFS(OFFSET(REL_D,,MATCH($A84,IND,0)-2),REL_D,Q$3,OrgID,$C$4)) -> 6786 | R84: =SUMIFS(OFFSET(REL_D,,MATCH($A84,IND,0)-1),REL_D,R$3,IF(LEFT($C$4,1)="N",NwID,OrgID),$C$4) -> 0
A85: =VLOOKUP(C85,'Control Panel'!A125:B251,2,FALSE) -> %LDP.08 CKD Register | B85: %LDP.08 CKD Register | C85: ='Control Panel'!D126 -> % List Size | D85: =IFERROR(D84/D7,"N/A") -> 0.019 | E85: 0.02 | F85: =IFERROR(F84/F7,"N/A") -> 0.02 | G85: =IFERROR(G84/G7,"N/A") -> 0.02 | H85: 0.02 | I85: 0.02 | J85: 0.021 | K85: 0.021 | L85: 0.021 | M85: 0.021 | N85: 0.021 | O85: 0.022 | P85: 0.022 | Q85: 0.022 | R85: N/A
A86: =VLOOKUP(C86,'Control Panel'!A126:B252,2,FALSE) -> LDP.08.03 CKD and BP Recorded (last 12 m) | B86: LDP.08.03 CKD and BP Recorded (last 12 m) | C86: ='Control Panel'!D127 -> BP Recorded (last 12m) | D86: =IF($C$4="Total",SUMIFS(OFFSET(REL_D,,MATCH($A86,IND,0)-2),REL_D,D$3,NwID,$C$3),SUMIFS(OFFSET(REL_D,,MATCH($A86,IND,0)-2),REL_D,D$3,OrgID,$C$4)) -> 3577 | E86: =IF($C$4="Total",SUMIFS(OFFSET(REL_D,,MATCH($A86,IND,0)-2),REL_D,E$3,NwID,$C$3),SUMIFS(OFFSET(REL_D,,MATCH($A86,IND,0)-2),REL_D,E$3,OrgID,$C$4)) -> 4657 | F86: =IF($C$4="Total",SUMIFS(OFFSET(REL_D,,MATCH($A86,IND,0)-2),REL_D,F$3,NwID,$C$3),SUMIFS(OFFSET(REL_D,,MATCH($A86,IND,0)-2),REL_D,F$3,OrgID,$C$4)) -> 4628 | G86: =IF($C$4="Total",SUMIFS(OFFSET(REL_D,,MATCH($A86,IND,0)-2),REL_D,G$3,NwID,$C$3),SUMIFS(OFFSET(REL_D,,MATCH($A86,IND,0)-2),REL_D,G$3,OrgID,$C$4)) -> 4653 | H86: =IF($C$4="Total",SUMIFS(OFFSET(REL_D,,MATCH($A86,IND,0)-2),REL_D,H$3,NwID,$C$3),SUMIFS(OFFSET(REL_D,,MATCH($A86,IND,0)-2),REL_D,H$3,OrgID,$C$4)) -> 4658 | I86: =IF($C$4="Total",SUMIFS(OFFSET(REL_D,,MATCH($A86,IND,0)-2),REL_D,I$3,NwID,$C$3),SUMIFS(OFFSET(REL_D,,MATCH($A86,IND,0)-2),REL_D,I$3,OrgID,$C$4)) -> 4721 | J86: =IF($C$4="Total",SUMIFS(OFFSET(REL_D,,MATCH($A86,IND,0)-2),REL_D,J$3,NwID,$C$3),SUMIFS(OFFSET(REL_D,,MATCH($A86,IND,0)-2),REL_D,J$3,OrgID,$C$4)) -> 4807 | K86: =IF($C$4="Total",SUMIFS(OFFSET(REL_D,,MATCH($A86,IND,0)-2),REL_D,K$3,NwID,$C$3),SUMIFS(OFFSET(REL_D,,MATCH($A86,IND,0)-2),REL_D,K$3,OrgID,$C$4)) -> 4868 | L86: =IF($C$4="Total",SUMIFS(OFFSET(REL_D,,MATCH($A86,IND,0)-2),REL_D,L$3,NwID,$C$3),SUMIFS(OFFSET(REL_D,,MATCH($A86,IND,0)-2),REL_D,L$3,OrgID,$C$4)) -> 4934 | M86: =IF($C$4="Total",SUMIFS(OFFSET(REL_D,,MATCH($A86,IND,0)-2),REL_D,M$3,NwID,$C$3),SUMIFS(OFFSET(REL_D,,MATCH($A86,IND,0)-2),REL_D,M$3,OrgID,$C$4)) -> 5154 | N86: =IF($C$4="Total",SUMIFS(OFFSET(REL_D,,MATCH($A86,IND,0)-2),REL_D,N$3,NwID,$C$3),SUMIFS(OFFSET(REL_D,,MATCH($A86,IND,0)-2),REL_D,N$3,OrgID,$C$4)) -> 5308 | O86: =IF($C$4="Total",SUMIFS(OFFSET(REL_D,,MATCH($A86,IND,0)-2),REL_D,O$3,NwID,$C$3),SUMIFS(OFFSET(REL_D,,MATCH($A86,IND,0)-2),REL_D,O$3,OrgID,$C$4)) -> 5571 | P86: =IF($C$4="Total",SUMIFS(OFFSET(REL_D,,MATCH($A86,IND,0)-2),REL_D,P$3,NwID,$C$3),SUMIFS(OFFSET(REL_D,,MATCH($A86,IND,0)-2),REL_D,P$3,OrgID,$C$4)) -> 5738 | Q86: =IF($C$4="Total",SUMIFS(OFFSET(REL_D,,MATCH($A86,IND,0)-2),REL_D,Q$3,NwID,$C$3),SUMIFS(OFFSET(REL_D,,MATCH($A86,IND,0)-2),REL_D,Q$3,OrgID,$C$4)) -> 5901 | R86: =SUMIFS(OFFSET(REL_D,,MATCH($A86,IND,0)-1),REL_D,R$3,IF(LEFT($C$4,1)="N",NwID,OrgID),$C$4) -> 0
A87: =VLOOKUP(C87,'Control Panel'!A127:B253,2,FALSE) -> %LDP.08.03 CKD and BP Recorded (last 12 m) | B87: %LDP.08.03 CKD and BP Recorded (last 12 m) | C87: ='Control Panel'!D128 -> % CKD register | D87: =IFERROR(D86/D84,"N/A") -> 0.638 | E87: 0.765 | F87: =IFERROR(F86/F84,"N/A") -> 0.759 | G87: =IFERROR(G86/G84,"N/A") -> 0.762 | H87: 0.758 | I87: 0.76 | J87: 0.766 | K87: 0.767 | L87: 0.772 | M87: 0.79 | N87: 0.804 | O87: 0.831 | P87: 0.852 | Q87: 0.87 | R87: =IFERROR(R86/R84,"N/A") -> N/A
A88: LDP.08.01 CKD and BP less than 140/90 (last 12 m) | B88: LDP.08.01 CKD and BP less than 140/90 (last 12 m) | C88: ='Control Panel'!D129 -> BP < 140/90 | D88: =IF($C$4="Total",SUMIFS(OFFSET(REL_D,,MATCH($A88,IND,0)-2),REL_D,D$3,NwID,$C$3),SUMIFS(OFFSET(REL_D,,MATCH($A88,IND,0)-2),REL_D,D$3,OrgID,$C$4)) -> 2319 | E88: =IF($C$4="Total",SUMIFS(OFFSET(REL_D,,MATCH($A88,IND,0)-2),REL_D,E$3,NwID,$C$3),SUMIFS(OFFSET(REL_D,,MATCH($A88,IND,0)-2),REL_D,E$3,OrgID,$C$4)) -> 3054 | F88: =IF($C$4="Total",SUMIFS(OFFSET(REL_D,,MATCH($A88,IND,0)-2),REL_D,F$3,NwID,$C$3),SUMIFS(OFFSET(REL_D,,MATCH($A88,IND,0)-2),REL_D,F$3,OrgID,$C$4)) -> 2992 | G88: =IF($C$4="Total",SUMIFS(OFFSET(REL_D,,MATCH($A88,IND,0)-2),REL_D,G$3,NwID,$C$3),SUMIFS(OFFSET(REL_D,,MATCH($A88,IND,0)-2),REL_D,G$3,OrgID,$C$4)) -> 3025 | H88: =IF($C$4="Total",SUMIFS(OFFSET(REL_D,,MATCH($A88,IND,0)-2),REL_D,H$3,NwID,$C$3),SUMIFS(OFFSET(REL_D,,MATCH($A88,IND,0)-2),REL_D,H$3,OrgID,$C$4)) -> 3046 | I88: =IF($C$4="Total",SUMIFS(OFFSET(REL_D,,MATCH($A88,IND,0)-2),REL_D,I$3,NwID,$C$3),SUMIFS(OFFSET(REL_D,,MATCH($A88,IND,0)-2),REL_D,I$3,OrgID,$C$4)) -> 3128 | J88: =IF($C$4="Total",SUMIFS(OFFSET(REL_D,,MATCH($A88,IND,0)-2),REL_D,J$3,NwID,$C$3),SUMIFS(OFFSET(REL_D,,MATCH($A88,IND,0)-2),REL_D,J$3,OrgID,$C$4)) -> 3275 | K88: =IF($C$4="Total",SUMIFS(OFFSET(REL_D,,MATCH($A88,IND,0)-2),REL_D,K$3,NwID,$C$3),SUMIFS(OFFSET(REL_D,,MATCH($A88,IND,0)-2),REL_D,K$3,OrgID,$C$4)) -> 3327 | L88: =IF($C$4="Total",SUMIFS(OFFSET(REL_D,,MATCH($A88,IND,0)-2),REL_D,L$3,NwID,$C$3),SUMIFS(OFFSET(REL_D,,MATCH($A88,IND,0)-2),REL_D,L$3,OrgID,$C$4)) -> 3416 | M88: =IF($C$4="Total",SUMIFS(OFFSET(REL_D,,MATCH($A88,IND,0)-2),REL_D,M$3,NwID,$C$3),SUMIFS(OFFSET(REL_D,,MATCH($A88,IND,0)-2),REL_D,M$3,OrgID,$C$4)) -> 3559 | N88: =IF($C$4="Total",SUMIFS(OFFSET(REL_D,,MATCH($A88,IND,0)-2),REL_D,N$3,NwID,$C$3),SUMIFS(OFFSET(REL_D,,MATCH($A88,IND,0)-2),REL_D,N$3,OrgID,$C$4)) -> 3658 | O88: =IF($C$4="Total",SUMIFS(OFFSET(REL_D,,MATCH($A88,IND,0)-2),REL_D,O$3,NwID,$C$3),SUMIFS(OFFSET(REL_D,,MATCH($A88,IND,0)-2),REL_D,O$3,OrgID,$C$4)) -> 3879 | P88: =IF($C$4="Total",SUMIFS(OFFSET(REL_D,,MATCH($A88,IND,0)-2),REL_D,P$3,NwID,$C$3),SUMIFS(OFFSET(REL_D,,MATCH($A88,IND,0)-2),REL_D,P$3,OrgID,$C$4)) -> 4027 | Q88: =IF($C$4="Total",SUMIFS(OFFSET(REL_D,,MATCH($A88,IND,0)-2),REL_D,Q$3,NwID,$C$3),SUMIFS(OFFSET(REL_D,,MATCH($A88,IND,0)-2),REL_D,Q$3,OrgID,$C$4)) -> 4204 | R88: =SUMIFS(OFFSET(REL_D,,MATCH($A88,IND,0)-1),REL_D,R$3,IF(LEFT($C$4,1)="N",NwID,OrgID),$C$4) -> 0
A89: =VLOOKUP(C89,'Control Panel'!A129:B255,2,FALSE) -> %LDP.08.01 CKD and BP less than 140/90 (last 12 m) | B89: %LDP.08.01 CKD and BP less than 140/90 (last 12 m) | C89: ='Control Panel'!D130 -> % CKD register | D89: =IFERROR(D88/D84,"N/A") -> 0.414 | E89: 0.502 | F89: =IFERROR(F88/F84,"N/A") -> 0.491 | G89: =IFERROR(G88/G84,"N/A") -> 0.495 | H89: 0.495 | I89: 0.503 | J89: 0.522 | K89: 0.524 | L89: 0.535 | M89: 0.546 | N89: 0.554 | O89: 0.579 | P89: 0.598 | Q89: 0.62 | R89: =IFERROR(R88/R84,"N/A") -> N/A
A90: =VLOOKUP(C90,'Control Panel'!A130:B256,2,FALSE) -> LDP.08.02 CKD Diagnosed (Last 6m) | B90: LDP.08.02 CKD Diagnosed (Last 6m) | C90: ='Control Panel'!D131 -> No of patients with new diagnosis of CKD (last 6m) | D90: =IF($C$4="Total",SUMIFS(OFFSET(REL_D,,MATCH($A90,IND,0)-2),REL_D,D$3,NwID,$C$3),SUMIFS(OFFSET(REL_D,,MATCH($A90,IND,0)-2),REL_D,D$3,OrgID,$C$4)) -> 361 | E90: =IF($C$4="Total",SUMIFS(OFFSET(REL_D,,MATCH($A90,IND,0)-2),REL_D,E$3,NwID,$C$3),SUMIFS(OFFSET(REL_D,,MATCH($A90,IND,0)-2),REL_D,E$3,OrgID,$C$4)) -> 378 | F90: =IF($C$4="Total",SUMIFS(OFFSET(REL_D,,MATCH($A90,IND,0)-2),REL_D,F$3,NwID,$C$3),SUMIFS(OFFSET(REL_D,,MATCH($A90,IND,0)-2),REL_D,F$3,OrgID,$C$4)) -> 377 | G90: =IF($C$4="Total",SUMIFS(OFFSET(REL_D,,MATCH($A90,IND,0)-2),REL_D,G$3,NwID,$C$3),SUMIFS(OFFSET(REL_D,,MATCH($A90,IND,0)-2),REL_D,G$3,OrgID,$C$4)) -> 379 | H90: =IF($C$4="Total",SUMIFS(OFFSET(REL_D,,MATCH($A90,IND,0)-2),REL_D,H$3,NwID,$C$3),SUMIFS(OFFSET(REL_D,,MATCH($A90,IND,0)-2),REL_D,H$3,OrgID,$C$4)) -> 418 | I90: =IF($C$4="Total",SUMIFS(OFFSET(REL_D,,MATCH($A90,IND,0)-2),REL_D,I$3,NwID,$C$3),SUMIFS(OFFSET(REL_D,,MATCH($A90,IND,0)-2),REL_D,I$3,OrgID,$C$4)) -> 463 | J90: =IF($C$4="Total",SUMIFS(OFFSET(REL_D,,MATCH($A90,IND,0)-2),REL_D,J$3,NwID,$C$3),SUMIFS(OFFSET(REL_D,,MATCH($A90,IND,0)-2),REL_D,J$3,OrgID,$C$4)) -> 489 | K90: =IF($C$4="Total",SUMIFS(OFFSET(REL_D,,MATCH($A90,IND,0)-2),REL_D,K$3,NwID,$C$3),SUMIFS(OFFSET(REL_D,,MATCH($A90,IND,0)-2),REL_D,K$3,OrgID,$C$4)) -> 488 | L90: =IF($C$4="Total",SUMIFS(OFFSET(REL_D,,MATCH($A90,IND,0)-2),REL_D,L$3,NwID,$C$3),SUMIFS(OFFSET(REL_D,,MATCH($A90,IND,0)-2),REL_D,L$3,OrgID,$C$4)) -> 500 | M90: =IF($C$4="Total",SUMIFS(OFFSET(REL_D,,MATCH($A90,IND,0)-2),REL_D,M$3,NwID,$C$3),SUMIFS(OFFSET(REL_D,,MATCH($A90,IND,0)-2),REL_D,M$3,OrgID,$C$4)) -> 575 | N90: =IF($C$4="Total",SUMIFS(OFFSET(REL_D,,MATCH($A90,IND,0)-2),REL_D,N$3,NwID,$C$3),SUMIFS(OFFSET(REL_D,,MATCH($A90,IND,0)-2),REL_D,N$3,OrgID,$C$4)) -> 578 | O90: =IF($C$4="Total",SUMIFS(OFFSET(REL_D,,MATCH($A90,IND,0)-2),REL_D,O$3,NwID,$C$3),SUMIFS(OFFSET(REL_D,,MATCH($A90,IND,0)-2),REL_D,O$3,OrgID,$C$4)) -> 604 | P90: =IF($C$4="Total",SUMIFS(OFFSET(REL_D,,MATCH($A90,IND,0)-2),REL_D,P$3,NwID,$C$3),SUMIFS(OFFSET(REL_D,,MATCH($A90,IND,0)-2),REL_D,P$3,OrgID,$C$4)) -> 572 | Q90: =IF($C$4="Total",SUMIFS(OFFSET(REL_D,,MATCH($A90,IND,0)-2),REL_D,Q$3,NwID,$C$3),SUMIFS(OFFSET(REL_D,,MATCH($A90,IND,0)-2),REL_D,Q$3,OrgID,$C$4)) -> 554 | R90: =SUMIFS(OFFSET(REL_D,,MATCH($A90,IND,0)-1),REL_D,R$3,IF(LEFT($C$4,1)="N",NwID,OrgID),$C$4) -> 0
A91: =VLOOKUP(C91,'Control Panel'!A131:B257,2,FALSE) -> %LDP.08.02 CKD Diagnosed (Last 6m) | B91: %LDP.08.02 CKD Diagnosed (Last 6m) | C91: ='Control Panel'!D132 -> % CKD register | D91: =IFERROR(D90/D84,"N/A") -> 0.064 | E91: 0.062 | F91: =IFERROR(F90/F84,"N/A") -> 0.062 | G91: =IFERROR(G90/G84,"N/A") -> 0.062 | H91: 0.068 | I91: 0.075 | J91: 0.078 | K91: 0.077 | L91: 0.078 | M91: 0.088 | N91: 0.088 | O91: 0.09 | P91: 0.085 | Q91: 0.082 | R91: =IFERROR(R90/R84,"N/A") -> N/A
C92: ='Control Panel'!B133 -> COPD
A93: LDP.09 COPD Register | B93: LDP.09 COPD Register | C93: ='Control Panel'!C134 -> No. of patients on COPD register | D93: =IF($C$4="Total",SUMIFS(OFFSET(REL_D,,MATCH($A93,IND,0)-2),REL_D,D$3,NwID,$C$3),SUMIFS(OFFSET(REL_D,,MATCH($A93,IND,0)-2),REL_D,D$3,OrgID,$C$4)) -> 2263 | E93: =IF($C$4="Total",SUMIFS(OFFSET(REL_D,,MATCH($A93,IND,0)-2),REL_D,E$3,NwID,$C$3),SUMIFS(OFFSET(REL_D,,MATCH($A93,IND,0)-2),REL_D,E$3,OrgID,$C$4)) -> 2176 | F93: =IF($C$4="Total",SUMIFS(OFFSET(REL_D,,MATCH($A93,IND,0)-2),REL_D,F$3,NwID,$C$3),SUMIFS(OFFSET(REL_D,,MATCH($A93,IND,0)-2),REL_D,F$3,OrgID,$C$4)) -> 2177 | G93: =IF($C$4="Total",SUMIFS(OFFSET(REL_D,,MATCH($A93,IND,0)-2),REL_D,G$3,NwID,$C$3),SUMIFS(OFFSET(REL_D,,MATCH($A93,IND,0)-2),REL_D,G$3,OrgID,$C$4)) -> 2161 | H93: =IF($C$4="Total",SUMIFS(OFFSET(REL_D,,MATCH($A93,IND,0)-2),REL_D,H$3,NwID,$C$3),SUMIFS(OFFSET(REL_D,,MATCH($A93,IND,0)-2),REL_D,H$3,OrgID,$C$4)) -> 2148 | I93: =IF($C$4="Total",SUMIFS(OFFSET(REL_D,,MATCH($A93,IND,0)-2),REL_D,I$3,NwID,$C$3),SUMIFS(OFFSET(REL_D,,MATCH($A93,IND,0)-2),REL_D,I$3,OrgID,$C$4)) -> 2148 | J93: =IF($C$4="Total",SUMIFS(OFFSET(REL_D,,MATCH($A93,IND,0)-2),REL_D,J$3,NwID,$C$3),SUMIFS(OFFSET(REL_D,,MATCH($A93,IND,0)-2),REL_D,J$3,OrgID,$C$4)) -> 2126 | K93: =IF($C$4="Total",SUMIFS(OFFSET(REL_D,,MATCH($A93,IND,0)-2),REL_D,K$3,NwID,$C$3),SUMIFS(OFFSET(REL_D,,MATCH($A93,IND,0)-2),REL_D,K$3,OrgID,$C$4)) -> 2133 | L93: =IF($C$4="Total",SUMIFS(OFFSET(REL_D,,MATCH($A93,IND,0)-2),REL_D,L$3,NwID,$C$3),SUMIFS(OFFSET(REL_D,,MATCH($A93,IND,0)-2),REL_D,L$3,OrgID,$C$4)) -> 2119 | M93: =IF($C$4="Total",SUMIFS(OFFSET(REL_D,,MATCH($A93,IND,0)-2),REL_D,M$3,NwID,$C$3),SUMIFS(OFFSET(REL_D,,MATCH($A93,IND,0)-2),REL_D,M$3,OrgID,$C$4)) -> 2097 | N93: =IF($C$4="Total",SUMIFS(OFFSET(REL_D,,MATCH($A93,IND,0)-2),REL_D,N$3,NwID,$C$3),SUMIFS(OFFSET(REL_D,,MATCH($A93,IND,0)-2),REL_D,N$3,OrgID,$C$4)) -> 2092 | O93: =IF($C$4="Total",SUMIFS(OFFSET(REL_D,,MATCH($A93,IND,0)-2),REL_D,O$3,NwID,$C$3),SUMIFS(OFFSET(REL_D,,MATCH($A93,IND,0)-2),REL_D,O$3,OrgID,$C$4)) -> 2081 | P93: =IF($C$4="Total",SUMIFS(OFFSET(REL_D,,MATCH($A93,IND,0)-2),REL_D,P$3,NwID,$C$3),SUMIFS(OFFSET(REL_D,,MATCH($A93,IND,0)-2),REL_D,P$3,OrgID,$C$4)) -> 2062 | Q93: =IF($C$4="Total",SUMIFS(OFFSET(REL_D,,MATCH($A93,IND,0)-2),REL_D,Q$3,NwID,$C$3),SUMIFS(OFFSET(REL_D,,MATCH($A93,IND,0)-2),REL_D,Q$3,OrgID,$C$4)) -> 2054 | R93: =SUMIFS(OFFSET(REL_D,,MATCH($A93,IND,0)-1),REL_D,R$3,IF(LEFT($C$4,1)="N",NwID,OrgID),$C$4) -> 0
A94: ="%"&A93 -> %LDP.09 COPD Register | B94: %LDP.09 COPD Register | C94: ='Control Panel'!C135 -> % List Size | D94: =IFERROR(D93/D7,"N/A") -> 0.008 | E94: 0.007 | F94: =IFERROR(F93/F7,"N/A") -> 0.007 | G94: =IFERROR(G93/G7,"N/A") -> 0.007 | H94: 0.007 | I94: 0.007 | J94: 0.007 | K94: 0.007 | L94: 0.007 | M94: 0.007 | N94: 0.007 | O94: 0.007 | P94: 0.007 | Q94: 0.007 | R94: N/A
A95: LDP.09.01 Patients with severe or very severe COPD (FEV1<50) | B95: LDP.09.01 Patients with severe or very severe COPD (FEV1<50) | C95: ='Control Panel'!C136 -> No of patients with severe or very severe COPD (FEV1<50) | D95: =IF($C$4="Total",SUMIFS(OFFSET(REL_D,,MATCH($A95,IND,0)-2),REL_D,D$3,NwID,$C$3),SUMIFS(OFFSET(REL_D,,MATCH($A95,IND,0)-2),REL_D,D$3,OrgID,$C$4)) -> 376 | E95: =IF($C$4="Total",SUMIFS(OFFSET(REL_D,,MATCH($A95,IND,0)-2),REL_D,E$3,NwID,$C$3),SUMIFS(OFFSET(REL_D,,MATCH($A95,IND,0)-2),REL_D,E$3,OrgID,$C$4)) -> 345 | F95: =IF($C$4="Total",SUMIFS(OFFSET(REL_D,,MATCH($A95,IND,0)-2),REL_D,F$3,NwID,$C$3),SUMIFS(OFFSET(REL_D,,MATCH($A95,IND,0)-2),REL_D,F$3,OrgID,$C$4)) -> 348 | G95: =IF($C$4="Total",SUMIFS(OFFSET(REL_D,,MATCH($A95,IND,0)-2),REL_D,G$3,NwID,$C$3),SUMIFS(OFFSET(REL_D,,MATCH($A95,IND,0)-2),REL_D,G$3,OrgID,$C$4)) -> 342 | H95: =IF($C$4="Total",SUMIFS(OFFSET(REL_D,,MATCH($A95,IND,0)-2),REL_D,H$3,NwID,$C$3),SUMIFS(OFFSET(REL_D,,MATCH($A95,IND,0)-2),REL_D,H$3,OrgID,$C$4)) -> 338 | I95: =IF($C$4="Total",SUMIFS(OFFSET(REL_D,,MATCH($A95,IND,0)-2),REL_D,I$3,NwID,$C$3),SUMIFS(OFFSET(REL_D,,MATCH($A95,IND,0)-2),REL_D,I$3,OrgID,$C$4)) -> 338 | J95: =IF($C$4="Total",SUMIFS(OFFSET(REL_D,,MATCH($A95,IND,0)-2),REL_D,J$3,NwID,$C$3),SUMIFS(OFFSET(REL_D,,MATCH($A95,IND,0)-2),REL_D,J$3,OrgID,$C$4)) -> 334 | K95: =IF($C$4="Total",SUMIFS(OFFSET(REL_D,,MATCH($A95,IND,0)-2),REL_D,K$3,NwID,$C$3),SUMIFS(OFFSET(REL_D,,MATCH($A95,IND,0)-2),REL_D,K$3,OrgID,$C$4)) -> 333 | L95: =IF($C$4="Total",SUMIFS(OFFSET(REL_D,,MATCH($A95,IND,0)-2),REL_D,L$3,NwID,$C$3),SUMIFS(OFFSET(REL_D,,MATCH($A95,IND,0)-2),REL_D,L$3,OrgID,$C$4)) -> 327 | M95: =IF($C$4="Total",SUMIFS(OFFSET(REL_D,,MATCH($A95,IND,0)-2),REL_D,M$3,NwID,$C$3),SUMIFS(OFFSET(REL_D,,MATCH($A95,IND,0)-2),REL_D,M$3,OrgID,$C$4)) -> 325 | N95: =IF($C$4="Total",SUMIFS(OFFSET(REL_D,,MATCH($A95,IND,0)-2),REL_D,N$3,NwID,$C$3),SUMIFS(OFFSET(REL_D,,MATCH($A95,IND,0)-2),REL_D,N$3,OrgID,$C$4)) -> 323 | O95: =IF($C$4="Total",SUMIFS(OFFSET(REL_D,,MATCH($A95,IND,0)-2),REL_D,O$3,NwID,$C$3),SUMIFS(OFFSET(REL_D,,MATCH($A95,IND,0)-2),REL_D,O$3,OrgID,$C$4)) -> 316 | P95: =IF($C$4="Total",SUMIFS(OFFSET(REL_D,,MATCH($A95,IND,0)-2),REL_D,P$3,NwID,$C$3),SUMIFS(OFFSET(REL_D,,MATCH($A95,IND,0)-2),REL_D,P$3,OrgID,$C$4)) -> 315 | Q95: =IF($C$4="Total",SUMIFS(OFFSET(REL_D,,MATCH($A95,IND,0)-2),REL_D,Q$3,NwID,$C$3),SUMIFS(OFFSET(REL_D,,MATCH($A95,IND,0)-2),REL_D,Q$3,OrgID,$C$4)) -> 311 | R95: =SUMIFS(OFFSET(REL_D,,MATCH($A95,IND,0)-1),REL_D,R$3,IF(LEFT($C$4,1)="N",NwID,OrgID),$C$4) -> 0
A96: ="%"&A95 -> %LDP.09.01 Patients with severe or very severe COPD (FEV1<50) | B96: %LDP.09.01 Patients with severe or very severe COPD (FEV1<50) | C96: ='Control Panel'!C137 -> % COPD register | D96: =IFERROR(D95/D93,"N/A") -> 0.166 | E96: 0.159 | F96: =IFERROR(F95/F93,"N/A") -> 0.16 | G96: =IFERROR(G95/G93,"N/A") -> 0.158 | H96: 0.157 | I96: 0.157 | J96: 0.157 | K96: 0.156 | L96: 0.154 | M96: 0.155 | N96: 0.154 | O96: 0.152 | P96: 0.153 | Q96: 0.151 | R96: =IFERROR(R95/R93,"N/A") -> N/A
A97: LDP.09.02 Patients with smoking status recorded (last 12m) or never smoked | B97: LDP.09.02 Patients with smoking status recorded (last 12m) or never smoked | C97: ='Control Panel'!C138 -> No. of COPD Patients with smoking status recorded (last 12m) or never smoked | D97: =IF($C$4="Total",SUMIFS(OFFSET(REL_D,,MATCH($A97,IND,0)-2),REL_D,D$3,NwID,$C$3),SUMIFS(OFFSET(REL_D,,MATCH($A97,IND,0)-2),REL_D,D$3,OrgID,$C$4)) -> 1816 | E97: =IF($C$4="Total",SUMIFS(OFFSET(REL_D,,MATCH($A97,IND,0)-2),REL_D,E$3,NwID,$C$3),SUMIFS(OFFSET(REL_D,,MATCH($A97,IND,0)-2),REL_D,E$3,OrgID,$C$4)) -> 1891 | F97: =IF($C$4="Total",SUMIFS(OFFSET(REL_D,,MATCH($A97,IND,0)-2),REL_D,F$3,NwID,$C$3),SUMIFS(OFFSET(REL_D,,MATCH($A97,IND,0)-2),REL_D,F$3,OrgID,$C$4)) -> 1858 | G97: =IF($C$4="Total",SUMIFS(OFFSET(REL_D,,MATCH($A97,IND,0)-2),REL_D,G$3,NwID,$C$3),SUMIFS(OFFSET(REL_D,,MATCH($A97,IND,0)-2),REL_D,G$3,OrgID,$C$4)) -> 1856 | H97: =IF($C$4="Total",SUMIFS(OFFSET(REL_D,,MATCH($A97,IND,0)-2),REL_D,H$3,NwID,$C$3),SUMIFS(OFFSET(REL_D,,MATCH($A97,IND,0)-2),REL_D,H$3,OrgID,$C$4)) -> 1822 | I97: =IF($C$4="Total",SUMIFS(OFFSET(REL_D,,MATCH($A97,IND,0)-2),REL_D,I$3,NwID,$C$3),SUMIFS(OFFSET(REL_D,,MATCH($A97,IND,0)-2),REL_D,I$3,OrgID,$C$4)) -> 1823 | J97: =IF($C$4="Total",SUMIFS(OFFSET(REL_D,,MATCH($A97,IND,0)-2),REL_D,J$3,NwID,$C$3),SUMIFS(OFFSET(REL_D,,MATCH($A97,IND,0)-2),REL_D,J$3,OrgID,$C$4)) -> 1833 | K97: =IF($C$4="Total",SUMIFS(OFFSET(REL_D,,MATCH($A97,IND,0)-2),REL_D,K$3,NwID,$C$3),SUMIFS(OFFSET(REL_D,,MATCH($A97,IND,0)-2),REL_D,K$3,OrgID,$C$4)) -> 1849 | L97: =IF($C$4="Total",SUMIFS(OFFSET(REL_D,,MATCH($A97,IND,0)-2),REL_D,L$3,NwID,$C$3),SUMIFS(OFFSET(REL_D,,MATCH($A97,IND,0)-2),REL_D,L$3,OrgID,$C$4)) -> 1874 | M97: =IF($C$4="Total",SUMIFS(OFFSET(REL_D,,MATCH($A97,IND,0)-2),REL_D,M$3,NwID,$C$3),SUMIFS(OFFSET(REL_D,,MATCH($A97,IND,0)-2),REL_D,M$3,OrgID,$C$4)) -> 1877 | N97: =IF($C$4="Total",SUMIFS(OFFSET(REL_D,,MATCH($A97,IND,0)-2),REL_D,N$3,NwID,$C$3),SUMIFS(OFFSET(REL_D,,MATCH($A97,IND,0)-2),REL_D,N$3,OrgID,$C$4)) -> 1871 | O97: =IF($C$4="Total",SUMIFS(OFFSET(REL_D,,MATCH($A97,IND,0)-2),REL_D,O$3,NwID,$C$3),SUMIFS(OFFSET(REL_D,,MATCH($A97,IND,0)-2),REL_D,O$3,OrgID,$C$4)) -> 1895 | P97: =IF($C$4="Total",SUMIFS(OFFSET(REL_D,,MATCH($A97,IND,0)-2),REL_D,P$3,NwID,$C$3),SUMIFS(OFFSET(REL_D,,MATCH($A97,IND,0)-2),REL_D,P$3,OrgID,$C$4)) -> 1908 | Q97: =IF($C$4="Total",SUMIFS(OFFSET(REL_D,,MATCH($A97,IND,0)-2),REL_D,Q$3,NwID,$C$3),SUMIFS(OFFSET(REL_D,,MATCH($A97,IND,0)-2),REL_D,Q$3,OrgID,$C$4)) -> 1937 | R97: =SUMIFS(OFFSET(REL_D,,MATCH($A97,IND,0)-1),REL_D,R$3,IF(LEFT($C$4,1)="N",NwID,OrgID),$C$4) -> 0
A98: ="%"&A97 -> %LDP.09.02 Patients with smoking status recorded (last 12m) or never smoked | B98: %LDP.09.02 Patients with smoking status recorded (last 12m) or never smoked | C98: ='Control Panel'!C139 -> % COPD | D98: =IFERROR(D97/D93,"N/A") -> 0.802 | E98: 0.869 | F98: =IFERROR(F97/F93,"N/A") -> 0.853 | G98: =IFERROR(G97/G93,"N/A") -> 0.859 | H98: 0.848 | I98: 0.849 | J98: 0.862 | K98: 0.867 | L98: 0.884 | M98: 0.895 | N98: 0.894 | O98: 0.911 | P98: 0.925 | Q98: 0.943 | R98: =IFERROR(R97/R93,"N/A") -> N/A
A99: LDP.09.03 COPD patients recorded as a Smoker | B99: LDP.09.03 COPD patients recorded as a Smoker | C99: ='Control Panel'!C140 -> No. of COPD patients recorded as a Smoker | D99: =IF($C$4="Total",SUMIFS(OFFSET(REL_D,,MATCH($A99,IND,0)-2),REL_D,D$3,NwID,$C$3),SUMIFS(OFFSET(REL_D,,MATCH($A99,IND,0)-2),REL_D,D$3,OrgID,$C$4)) -> 452 | E99: =IF($C$4="Total",SUMIFS(OFFSET(REL_D,,MATCH($A99,IND,0)-2),REL_D,E$3,NwID,$C$3),SUMIFS(OFFSET(REL_D,,MATCH($A99,IND,0)-2),REL_D,E$3,OrgID,$C$4)) -> 493 | F99: =IF($C$4="Total",SUMIFS(OFFSET(REL_D,,MATCH($A99,IND,0)-2),REL_D,F$3,NwID,$C$3),SUMIFS(OFFSET(REL_D,,MATCH($A99,IND,0)-2),REL_D,F$3,OrgID,$C$4)) -> 480 | G99: =IF($C$4="Total",SUMIFS(OFFSET(REL_D,,MATCH($A99,IND,0)-2),REL_D,G$3,NwID,$C$3),SUMIFS(OFFSET(REL_D,,MATCH($A99,IND,0)-2),REL_D,G$3,OrgID,$C$4)) -> 482 | H99: =IF($C$4="Total",SUMIFS(OFFSET(REL_D,,MATCH($A99,IND,0)-2),REL_D,H$3,NwID,$C$3),SUMIFS(OFFSET(REL_D,,MATCH($A99,IND,0)-2),REL_D,H$3,OrgID,$C$4)) -> 472 | I99: =IF($C$4="Total",SUMIFS(OFFSET(REL_D,,MATCH($A99,IND,0)-2),REL_D,I$3,NwID,$C$3),SUMIFS(OFFSET(REL_D,,MATCH($A99,IND,0)-2),REL_D,I$3,OrgID,$C$4)) -> 456 | J99: =IF($C$4="Total",SUMIFS(OFFSET(REL_D,,MATCH($A99,IND,0)-2),REL_D,J$3,NwID,$C$3),SUMIFS(OFFSET(REL_D,,MATCH($A99,IND,0)-2),REL_D,J$3,OrgID,$C$4)) -> 465 | K99: =IF($C$4="Total",SUMIFS(OFFSET(REL_D,,MATCH($A99,IND,0)-2),REL_D,K$3,NwID,$C$3),SUMIFS(OFFSET(REL_D,,MATCH($A99,IND,0)-2),REL_D,K$3,OrgID,$C$4)) -> 469 | L99: =IF($C$4="Total",SUMIFS(OFFSET(REL_D,,MATCH($A99,IND,0)-2),REL_D,L$3,NwID,$C$3),SUMIFS(OFFSET(REL_D,,MATCH($A99,IND,0)-2),REL_D,L$3,OrgID,$C$4)) -> 478 | M99: =IF($C$4="Total",SUMIFS(OFFSET(REL_D,,MATCH($A99,IND,0)-2),REL_D,M$3,NwID,$C$3),SUMIFS(OFFSET(REL_D,,MATCH($A99,IND,0)-2),REL_D,M$3,OrgID,$C$4)) -> 479 | N99: =IF($C$4="Total",SUMIFS(OFFSET(REL_D,,MATCH($A99,IND,0)-2),REL_D,N$3,NwID,$C$3),SUMIFS(OFFSET(REL_D,,MATCH($A99,IND,0)-2),REL_D,N$3,OrgID,$C$4)) -> 480 | O99: =IF($C$4="Total",SUMIFS(OFFSET(REL_D,,MATCH($A99,IND,0)-2),REL_D,O$3,NwID,$C$3),SUMIFS(OFFSET(REL_D,,MATCH($A99,IND,0)-2),REL_D,O$3,OrgID,$C$4)) -> 492 | P99: =IF($C$4="Total",SUMIFS(OFFSET(REL_D,,MATCH($A99,IND,0)-2),REL_D,P$3,NwID,$C$3),SUMIFS(OFFSET(REL_D,,MATCH($A99,IND,0)-2),REL_D,P$3,OrgID,$C$4)) -> 500 | Q99: =IF($C$4="Total",SUMIFS(OFFSET(REL_D,,MATCH($A99,IND,0)-2),REL_D,Q$3,NwID,$C$3),SUMIFS(OFFSET(REL_D,,MATCH($A99,IND,0)-2),REL_D,Q$3,OrgID,$C$4)) -> 512 | R99: =SUMIFS(OFFSET(REL_D,,MATCH($A99,IND,0)-1),REL_D,R$3,IF(LEFT($C$4,1)="N",NwID,OrgID),$C$4) -> 0
A100: ="%"&A99 -> %LDP.09.03 COPD patients recorded as a Smoker | B100: %LDP.09.03 COPD patients recorded as a Smoker | C100: ='Control Panel'!C141 -> % COPD | D100: =IFERROR(D99/D93,"N/A") -> 0.2 | E100: 0.227 | F100: =IFERROR(F99/F93,"N/A") -> 0.22 | G100: =IFERROR(G99/G93,"N/A") -> 0.223 | H100: 0.22 | I100: 0.212 | J100: 0.219 | K100: 0.22 | L100: 0.226 | M100: 0.228 | N100: 0.229 | O100: 0.236 | P100: 0.242 | Q100: 0.249 | R100: =IFERROR(R99/R93,"N/A") -> N/A
A101: LDP.09.04 COPD Patients who are current smokers & referred to the Stop Smoking C | B101: LDP.09.04 COPD Patients who are current smokers & referred to the Stop Smoking C | C101: ='Control Panel'!C142 -> No. of COPD Patients who are current smokers & referred to the Stop Smoking Clinic (12m) | D101: =IF($C$4="Total",SUMIFS(OFFSET(REL_D,,MATCH($A101,IND,0)-2),REL_D,D$3,NwID,$C$3),SUMIFS(OFFSET(REL_D,,MATCH($A101,IND,0)-2),REL_D,D$3,OrgID,$C$4)) -> 12 | E101: =IF($C$4="Total",SUMIFS(OFFSET(REL_D,,MATCH($A101,IND,0)-2),REL_D,E$3,NwID,$C$3),SUMIFS(OFFSET(REL_D,,MATCH($A101,IND,0)-2),REL_D,E$3,OrgID,$C$4)) -> 9 | F101: =IF($C$4="Total",SUMIFS(OFFSET(REL_D,,MATCH($A101,IND,0)-2),REL_D,F$3,NwID,$C$3),SUMIFS(OFFSET(REL_D,,MATCH($A101,IND,0)-2),REL_D,F$3,OrgID,$C$4)) -> 9 | G101: =IF($C$4="Total",SUMIFS(OFFSET(REL_D,,MATCH($A101,IND,0)-2),REL_D,G$3,NwID,$C$3),SUMIFS(OFFSET(REL_D,,MATCH($A101,IND,0)-2),REL_D,G$3,OrgID,$C$4)) -> 11 | H101: =IF($C$4="Total",SUMIFS(OFFSET(REL_D,,MATCH($A101,IND,0)-2),REL_D,H$3,NwID,$C$3),SUMIFS(OFFSET(REL_D,,MATCH($A101,IND,0)-2),REL_D,H$3,OrgID,$C$4)) -> 11 | I101: =IF($C$4="Total",SUMIFS(OFFSET(REL_D,,MATCH($A101,IND,0)-2),REL_D,I$3,NwID,$C$3),SUMIFS(OFFSET(REL_D,,MATCH($A101,IND,0)-2),REL_D,I$3,OrgID,$C$4)) -> 12 | J101: =IF($C$4="Total",SUMIFS(OFFSET(REL_D,,MATCH($A101,IND,0)-2),REL_D,J$3,NwID,$C$3),SUMIFS(OFFSET(REL_D,,MATCH($A101,IND,0)-2),REL_D,J$3,OrgID,$C$4)) -> 12 | K101: =IF($C$4="Total",SUMIFS(OFFSET(REL_D,,MATCH($A101,IND,0)-2),REL_D,K$3,NwID,$C$3),SUMIFS(OFFSET(REL_D,,MATCH($A101,IND,0)-2),REL_D,K$3,OrgID,$C$4)) -> 11 | L101: =IF($C$4="Total",SUMIFS(OFFSET(REL_D,,MATCH($A101,IND,0)-2),REL_D,L$3,NwID,$C$3),SUMIFS(OFFSET(REL_D,,MATCH($A101,IND,0)-2),REL_D,L$3,OrgID,$C$4)) -> 10 | M101: =IF($C$4="Total",SUMIFS(OFFSET(REL_D,,MATCH($A101,IND,0)-2),REL_D,M$3,NwID,$C$3),SUMIFS(OFFSET(REL_D,,MATCH($A101,IND,0)-2),REL_D,M$3,OrgID,$C$4)) -> 9 | N101: =IF($C$4="Total",SUMIFS(OFFSET(REL_D,,MATCH($A101,IND,0)-2),REL_D,N$3,NwID,$C$3),SUMIFS(OFFSET(REL_D,,MATCH($A101,IND,0)-2),REL_D,N$3,OrgID,$C$4)) -> 8 | O101: =IF($C$4="Total",SUMIFS(OFFSET(REL_D,,MATCH($A101,IND,0)-2),REL_D,O$3,NwID,$C$3),SUMIFS(OFFSET(REL_D,,MATCH($A101,IND,0)-2),REL_D,O$3,OrgID,$C$4)) -> 7 | P101: =IF($C$4="Total",SUMIFS(OFFSET(REL_D,,MATCH($A101,IND,0)-2),REL_D,P$3,NwID,$C$3),SUMIFS(OFFSET(REL_D,,MATCH($A101,IND,0)-2),REL_D,P$3,OrgID,$C$4)) -> 8 | Q101: =IF($C$4="Total",SUMIFS(OFFSET(REL_D,,MATCH($A101,IND,0)-2),REL_D,Q$3,NwID,$C$3),SUMIFS(OFFSET(REL_D,,MATCH($A101,IND,0)-2),REL_D,Q$3,OrgID,$C$4)) -> 10 | R101: =SUMIFS(OFFSET(REL_D,,MATCH($A101,IND,0)-1),REL_D,R$3,IF(LEFT($C$4,1)="N",NwID,OrgID),$C$4) -> 0
A102: ="%"&A101 -> %LDP.09.04 COPD Patients who are current smokers & referred to the Stop Smoking C | B102: %LDP.09.04 COPD Patients who are current smokers & referred to the Stop Smoking C | C102: ='Control Panel'!C143 -> % of current COPD smokers | D102: =IFERROR(D101/D99,"N/A") -> 0.027 | E102: 0.018 | F102: =IFERROR(F101/F99,"N/A") -> 0.019 | G102: =IFERROR(G101/G99,"N/A") -> 0.023 | H102: 0.023 | I102: 0.026 | J102: 0.026 | K102: 0.023 | L102: 0.021 | M102: 0.019 | N102: 0.017 | O102: 0.014 | P102: 0.016 | Q102: 0.02 | R102: =IFERROR(R101/R99,"N/A") -> N/A
A103: LDP.09.05 No of COPD with flu vaccination (From August 2018) | B103: LDP.09.05 No of COPD with flu vaccination (12m) | C103: ='Control Panel'!C144 -> No of COPD with flu vaccination (From August 2022) | D103: =IF($C$4="Total",SUMIFS(OFFSET(REL_D,,MATCH($A103,IND,0)-2),REL_D,D$3,NwID,$C$3),SUMIFS(OFFSET(REL_D,,MATCH($A103,IND,0)-2),REL_D,D$3,OrgID,$C$4)) -> 0 | E103: =IF($C$4="Total",SUMIFS(OFFSET(REL_D,,MATCH($A103,IND,0)-2),REL_D,E$3,NwID,$C$3),SUMIFS(OFFSET(REL_D,,MATCH($A103,IND,0)-2),REL_D,E$3,OrgID,$C$4)) -> 0 | F103: =IF($C$4="Total",SUMIFS(OFFSET(REL_D,,MATCH($A103,IND,0)-2),REL_D,F$3,NwID,$C$3),SUMIFS(OFFSET(REL_D,,MATCH($A103,IND,0)-2),REL_D,F$3,OrgID,$C$4)) -> 0 | G103: =IF($C$4="Total",SUMIFS(OFFSET(REL_D,,MATCH($A103,IND,0)-2),REL_D,G$3,NwID,$C$3),SUMIFS(OFFSET(REL_D,,MATCH($A103,IND,0)-2),REL_D,G$3,OrgID,$C$4)) -> 0 | H103: =IF($C$4="Total",SUMIFS(OFFSET(REL_D,,MATCH($A103,IND,0)-2),REL_D,H$3,NwID,$C$3),SUMIFS(OFFSET(REL_D,,MATCH($A103,IND,0)-2),REL_D,H$3,OrgID,$C$4)) -> 0 | I103: =IF($C$4="Total",SUMIFS(OFFSET(REL_D,,MATCH($A103,IND,0)-2),REL_D,I$3,NwID,$C$3),SUMIFS(OFFSET(REL_D,,MATCH($A103,IND,0)-2),REL_D,I$3,OrgID,$C$4)) -> 0 | J103: =IF($C$4="Total",SUMIFS(OFFSET(REL_D,,MATCH($A103,IND,0)-2),REL_D,J$3,NwID,$C$3),SUMIFS(OFFSET(REL_D,,MATCH($A103,IND,0)-2),REL_D,J$3,OrgID,$C$4)) -> 4 | K103: =IF($C$4="Total",SUMIFS(OFFSET(REL_D,,MATCH($A103,IND,0)-2),REL_D,K$3,NwID,$C$3),SUMIFS(OFFSET(REL_D,,MATCH($A103,IND,0)-2),REL_D,K$3,OrgID,$C$4)) -> 530 | L103: =IF($C$4="Total",SUMIFS(OFFSET(REL_D,,MATCH($A103,IND,0)-2),REL_D,L$3,NwID,$C$3),SUMIFS(OFFSET(REL_D,,MATCH($A103,IND,0)-2),REL_D,L$3,OrgID,$C$4)) -> 1287 | M103: =IF($C$4="Total",SUMIFS(OFFSET(REL_D,,MATCH($A103,IND,0)-2),REL_D,M$3,NwID,$C$3),SUMIFS(OFFSET(REL_D,,MATCH($A103,IND,0)-2),REL_D,M$3,OrgID,$C$4)) -> 1463 | N103: =IF($C$4="Total",SUMIFS(OFFSET(REL_D,,MATCH($A103,IND,0)-2),REL_D,N$3,NwID,$C$3),SUMIFS(OFFSET(REL_D,,MATCH($A103,IND,0)-2),REL_D,N$3,OrgID,$C$4)) -> 1524 | O103: =IF($C$4="Total",SUMIFS(OFFSET(REL_D,,MATCH($A103,IND,0)-2),REL_D,O$3,NwID,$C$3),SUMIFS(OFFSET(REL_D,,MATCH($A103,IND,0)-2),REL_D,O$3,OrgID,$C$4)) -> 1555 | P103: =IF($C$4="Total",SUMIFS(OFFSET(REL_D,,MATCH($A103,IND,0)-2),REL_D,P$3,NwID,$C$3),SUMIFS(OFFSET(REL_D,,MATCH($A103,IND,0)-2),REL_D,P$3,OrgID,$C$4)) -> 1556 | Q103: =IF($C$4="Total",SUMIFS(OFFSET(REL_D,,MATCH($A103,IND,0)-2),REL_D,Q$3,NwID,$C$3),SUMIFS(OFFSET(REL_D,,MATCH($A103,IND,0)-2),REL_D,Q$3,OrgID,$C$4)) -> 1565 | R103: =SUMIFS(OFFSET(REL_D,,MATCH($A103,IND,0)-1),REL_D,R$3,IF(LEFT($C$4,1)="N",NwID,OrgID),$C$4) -> 0
A104: ="%"&A103 -> %LDP.09.05 No of COPD with flu vaccination (From August 2018) | B104: %LDP.09.05 No of COPD with flu vaccination (12m) | C104: ='Control Panel'!C145 -> % of COPD register | D104: =IFERROR(D103/D93,"N/A") -> 0 | E104: 0 | F104: =IFERROR(F103/F93,"N/A") -> 0 | G104: =IFERROR(G103/G93,"N/A") -> 0 | H104: 0 | I104: 0 | J104: 0.002 | K104: 0.248 | L104: 0.607 | M104: 0.698 | N104: 0.728 | O104: 0.747 | P104: 0.755 | Q104: 0.762 | R104: =IFERROR(R103/R93,"N/A") -> N/A
A105: LDP.09.06 No of COPD with pneumococcal vaccination ever | B105: LDP.09.06 No of COPD with pneumococcal vaccination ever | C105: ='Control Panel'!C146 -> No of COPD with pneumococcal vaccination ever | D105: =IF($C$4="Total",SUMIFS(OFFSET(REL_D,,MATCH($A105,IND,0)-2),REL_D,D$3,NwID,$C$3),SUMIFS(OFFSET(REL_D,,MATCH($A105,IND,0)-2),REL_D,D$3,OrgID,$C$4)) -> 1770 | E105: =IF($C$4="Total",SUMIFS(OFFSET(REL_D,,MATCH($A105,IND,0)-2),REL_D,E$3,NwID,$C$3),SUMIFS(OFFSET(REL_D,,MATCH($A105,IND,0)-2),REL_D,E$3,OrgID,$C$4)) -> 1755 | F105: =IF($C$4="Total",SUMIFS(OFFSET(REL_D,,MATCH($A105,IND,0)-2),REL_D,F$3,NwID,$C$3),SUMIFS(OFFSET(REL_D,,MATCH($A105,IND,0)-2),REL_D,F$3,OrgID,$C$4)) -> 1751 | G105: =IF($C$4="Total",SUMIFS(OFFSET(REL_D,,MATCH($A105,IND,0)-2),REL_D,G$3,NwID,$C$3),SUMIFS(OFFSET(REL_D,,MATCH($A105,IND,0)-2),REL_D,G$3,OrgID,$C$4)) -> 1736 | H105: =IF($C$4="Total",SUMIFS(OFFSET(REL_D,,MATCH($A105,IND,0)-2),REL_D,H$3,NwID,$C$3),SUMIFS(OFFSET(REL_D,,MATCH($A105,IND,0)-2),REL_D,H$3,OrgID,$C$4)) -> 1720 | I105: =IF($C$4="Total",SUMIFS(OFFSET(REL_D,,MATCH($A105,IND,0)-2),REL_D,I$3,NwID,$C$3),SUMIFS(OFFSET(REL_D,,MATCH($A105,IND,0)-2),REL_D,I$3,OrgID,$C$4)) -> 1721 | J105: =IF($C$4="Total",SUMIFS(OFFSET(REL_D,,MATCH($A105,IND,0)-2),REL_D,J$3,NwID,$C$3),SUMIFS(OFFSET(REL_D,,MATCH($A105,IND,0)-2),REL_D,J$3,OrgID,$C$4)) -> 1703 | K105: =IF($C$4="Total",SUMIFS(OFFSET(REL_D,,MATCH($A105,IND,0)-2),REL_D,K$3,NwID,$C$3),SUMIFS(OFFSET(REL_D,,MATCH($A105,IND,0)-2),REL_D,K$3,OrgID,$C$4)) -> 1714 | L105: =IF($C$4="Total",SUMIFS(OFFSET(REL_D,,MATCH($A105,IND,0)-2),REL_D,L$3,NwID,$C$3),SUMIFS(OFFSET(REL_D,,MATCH($A105,IND,0)-2),REL_D,L$3,OrgID,$C$4)) -> 1709 | M105: =IF($C$4="Total",SUMIFS(OFFSET(REL_D,,MATCH($A105,IND,0)-2),REL_D,M$3,NwID,$C$3),SUMIFS(OFFSET(REL_D,,MATCH($A105,IND,0)-2),REL_D,M$3,OrgID,$C$4)) -> 1708 | N105: =IF($C$4="Total",SUMIFS(OFFSET(REL_D,,MATCH($A105,IND,0)-2),REL_D,N$3,NwID,$C$3),SUMIFS(OFFSET(REL_D,,MATCH($A105,IND,0)-2),REL_D,N$3,OrgID,$C$4)) -> 1697 | O105: =IF($C$4="Total",SUMIFS(OFFSET(REL_D,,MATCH($A105,IND,0)-2),REL_D,O$3,NwID,$C$3),SUMIFS(OFFSET(REL_D,,MATCH($A105,IND,0)-2),REL_D,O$3,OrgID,$C$4)) -> 1682 | P105: =IF($C$4="Total",SUMIFS(OFFSET(REL_D,,MATCH($A105,IND,0)-2),REL_D,P$3,NwID,$C$3),SUMIFS(OFFSET(REL_D,,MATCH($A105,IND,0)-2),REL_D,P$3,OrgID,$C$4)) -> 1672 | Q105: =IF($C$4="Total",SUMIFS(OFFSET(REL_D,,MATCH($A105,IND,0)-2),REL_D,Q$3,NwID,$C$3),SUMIFS(OFFSET(REL_D,,MATCH($A105,IND,0)-2),REL_D,Q$3,OrgID,$C$4)) -> 1667 | R105: =SUMIFS(OFFSET(REL_D,,MATCH($A105,IND,0)-1),REL_D,R$3,IF(LEFT($C$4,1)="N",NwID,OrgID),$C$4) -> 0
A106: ="%"&A105 -> %LDP.09.06 No of COPD with pneumococcal vaccination ever | B106: %LDP.09.06 No of COPD with pneumococcal vaccination ever | C106: ='Control Panel'!C147 -> % of COPD register | D106: =IFERROR(D105/D93,"N/A") -> 0.782 | E106: 0.807 | F106: =IFERROR(F105/F93,"N/A") -> 0.804 | G106: =IFERROR(G105/G93,"N/A") -> 0.803 | H106: 0.801 | I106: 0.801 | J106: 0.801 | K106: 0.804 | L106: 0.807 | M106: 0.814 | N106: 0.811 | O106: 0.808 | P106: 0.811 | Q106: 0.812 | R106: =IFERROR(R105/R93,"N/A") -> N/A
A107: LDP.09.07 No of COPD patients referred to pulmonary rehab ever | B107: LDP.09.07 No of COPD patients referred to pulmonary rehab ever | C107: ='Control Panel'!C148 -> No of COPD patients referred to pulmonary rehab ever | D107: =IF($C$4="Total",SUMIFS(OFFSET(REL_D,,MATCH($A107,IND,0)-2),REL_D,D$3,NwID,$C$3),SUMIFS(OFFSET(REL_D,,MATCH($A107,IND,0)-2),REL_D,D$3,OrgID,$C$4)) -> 817 | E107: =IF($C$4="Total",SUMIFS(OFFSET(REL_D,,MATCH($A107,IND,0)-2),REL_D,E$3,NwID,$C$3),SUMIFS(OFFSET(REL_D,,MATCH($A107,IND,0)-2),REL_D,E$3,OrgID,$C$4)) -> 973 | F107: =IF($C$4="Total",SUMIFS(OFFSET(REL_D,,MATCH($A107,IND,0)-2),REL_D,F$3,NwID,$C$3),SUMIFS(OFFSET(REL_D,,MATCH($A107,IND,0)-2),REL_D,F$3,OrgID,$C$4)) -> 985 | G107: =IF($C$4="Total",SUMIFS(OFFSET(REL_D,,MATCH($A107,IND,0)-2),REL_D,G$3,NwID,$C$3),SUMIFS(OFFSET(REL_D,,MATCH($A107,IND,0)-2),REL_D,G$3,OrgID,$C$4)) -> 985 | H107: =IF($C$4="Total",SUMIFS(OFFSET(REL_D,,MATCH($A107,IND,0)-2),REL_D,H$3,NwID,$C$3),SUMIFS(OFFSET(REL_D,,MATCH($A107,IND,0)-2),REL_D,H$3,OrgID,$C$4)) -> 1004 | I107: =IF($C$4="Total",SUMIFS(OFFSET(REL_D,,MATCH($A107,IND,0)-2),REL_D,I$3,NwID,$C$3),SUMIFS(OFFSET(REL_D,,MATCH($A107,IND,0)-2),REL_D,I$3,OrgID,$C$4)) -> 1020 | J107: =IF($C$4="Total",SUMIFS(OFFSET(REL_D,,MATCH($A107,IND,0)-2),REL_D,J$3,NwID,$C$3),SUMIFS(OFFSET(REL_D,,MATCH($A107,IND,0)-2),REL_D,J$3,OrgID,$C$4)) -> 1026 | K107: =IF($C$4="Total",SUMIFS(OFFSET(REL_D,,MATCH($A107,IND,0)-2),REL_D,K$3,NwID,$C$3),SUMIFS(OFFSET(REL_D,,MATCH($A107,IND,0)-2),REL_D,K$3,OrgID,$C$4)) -> 1043 | L107: =IF($C$4="Total",SUMIFS(OFFSET(REL_D,,MATCH($A107,IND,0)-2),REL_D,L$3,NwID,$C$3),SUMIFS(OFFSET(REL_D,,MATCH($A107,IND,0)-2),REL_D,L$3,OrgID,$C$4)) -> 1059 | M107: =IF($C$4="Total",SUMIFS(OFFSET(REL_D,,MATCH($A107,IND,0)-2),REL_D,M$3,NwID,$C$3),SUMIFS(OFFSET(REL_D,,MATCH($A107,IND,0)-2),REL_D,M$3,OrgID,$C$4)) -> 1057 | N107: =IF($C$4="Total",SUMIFS(OFFSET(REL_D,,MATCH($A107,IND,0)-2),REL_D,N$3,NwID,$C$3),SUMIFS(OFFSET(REL_D,,MATCH($A107,IND,0)-2),REL_D,N$3,OrgID,$C$4)) -> 1064 | O107: =IF($C$4="Total",SUMIFS(OFFSET(REL_D,,MATCH($A107,IND,0)-2),REL_D,O$3,NwID,$C$3),SUMIFS(OFFSET(REL_D,,MATCH($A107,IND,0)-2),REL_D,O$3,OrgID,$C$4)) -> 1079 | P107: =IF($C$4="Total",SUMIFS(OFFSET(REL_D,,MATCH($A107,IND,0)-2),REL_D,P$3,NwID,$C$3),SUMIFS(OFFSET(REL_D,,MATCH($A107,IND,0)-2),REL_D,P$3,OrgID,$C$4)) -> 1103 | Q107: =IF($C$4="Total",SUMIFS(OFFSET(REL_D,,MATCH($A107,IND,0)-2),REL_D,Q$3,NwID,$C$3),SUMIFS(OFFSET(REL_D,,MATCH($A107,IND,0)-2),REL_D,Q$3,OrgID,$C$4)) -> 1163 | R107: =SUMIFS(OFFSET(REL_D,,MATCH($A107,IND,0)-1),REL_D,R$3,IF(LEFT($C$4,1)="N",NwID,OrgID),$C$4) -> 0
A108: ="%"&A107 -> %LDP.09.07 No of COPD patients referred to pulmonary rehab ever | B108: %LDP.09.07 No of COPD patients referred to pulmonary rehab ever | C108: ='Control Panel'!C149 -> % of COPD register | D108: =IFERROR(D107/D93,"N/A") -> 0.361 | E108: 0.447 | F108: =IFERROR(F107/F93,"N/A") -> 0.452 | G108: =IFERROR(G107/G93,"N/A") -> 0.456 | H108: 0.467 | I108: 0.475 | J108: 0.483 | K108: 0.489 | L108: 0.5 | M108: 0.504 | N108: 0.509 | O108: 0.519 | P108: 0.535 | Q108: 0.566 | R108: =IFERROR(R107/R93,"N/A") -> N/A

Sheet Control Panel (hidden)
B1: Control Panel | C1: 2018-06-30 | G1: Select Dates
B2: General Health | G2: 2022-04-01 | I2: - | J2: Select Practice | K2: DN Team | L2: Patch | M2: Network | O2: OrgID | P2: 4 | Q2: =$P$6&ADDRESS(1,P2)&":"&ADDRESS($P$7,P2) -> 'CH LDP TABLE'!$D$1:$D$100000 | T2: OrgID_A | U2: 10 | V2: =$U$6&ADDRESS(1,U2)&":"&ADDRESS($U$7,U2) -> 'Data 17-18'!$J$1:$J$1000
A3: List Size | B3: 01. Listsize | C3: List Size | G3: 2022-05-01 | H3: Bethnal Green Health Centre | I3: F84083 | J3: Bethnal Green Health Centre | M3: NW1 | O3: REL_D | P3: 2 | Q3: =$P$6&ADDRESS(1,P3)&":"&ADDRESS($P$7,P3) -> 'CH LDP TABLE'!$B$1:$B$100000 | T3: REL_DA | U3: 1 | V3: =$U$6&ADDRESS(1,U3)&":"&ADDRESS($U$7,U3) -> 'Data 17-18'!$A$1:$A$1000
A4: Age 16+ | B4: LDP.01: Aged 16yrs+ | C4: Age 16+ | D4: Age 16+ | G4: 2022-06-01 | H4: The Mission Practice | I4: F84016 | J4: The Mission Practice | M4: NW1 | O4: IND | P4: - | Q4: =$P$6&ADDRESS(P11,1)&":"&ADDRESS(P11,P8) -> 'CH LDP TABLE'!$A$1:$BU$1 | T4: IND_A | U4: - | V4: =$U$6&ADDRESS(U11,1)&":"&ADDRESS(U11,U8) -> 'Data 17-18'!$A$1:$BU$1
A5: % list size | B5: ="%"&B4 -> %LDP.01: Aged 16yrs+ | C5: % list size | D5: % list size | G5: 2022-07-01 | H5: Globe Town Surgery | I5: F84123 | J5: Globe Town Surgery | M5: NW1 | O5: NwID | P5: 54 | Q5: =$P$6&ADDRESS(1,P5)&":"&ADDRESS($P$7,P5) -> 'CH LDP TABLE'!$BB$1:$BB$100000 | T5: NwID_A | U5: 2 | V5: =$U$6&ADDRESS(1,U5)&":"&ADDRESS($U$7,U5) -> 'Data 17-18'!$B$1:$B$1000
A6: 16+ and BMI (last 12m) | B6: LDP.01.01: Obesity BMI recorded (last 12m) | C6: 16+ and BMI (last 12m) | D6: 16+ and BMI (last 12m) | G6: 2022-08-01 | H6: Pollard Row Surgery | I6: Y00212 | J6: Pollard Row Surgery | M6: NW1 | O6: Data | P6: =IF(P9="N","BLANK!","'"&P10&"'!") -> 'CH LDP TABLE'! | T6: Data | U6: =IF(U9="N","BLANK!","'"&U10&"'!") -> 'Data 17-18'!
A7: % 16+ | B7: ="%"&B6 -> %LDP.01.01: Obesity BMI recorded (last 12m) | C7: % 16+ | D7: % 16+ | G7: 2022-09-01 | H7: Strouts Place Medical Centre | I7: F84051 | J7: Strouts Place Medical Centre | M7: NW1 | O7: Rows | P7: 100000 | T7: Rows | U7: 1000
A8: BMI 25 to 29 | B8: LDP.01.01.02: Obesity BMI between 30-35 (last 12m) | C8: BMI 25 to 29 | D8: BMI ≥30 & <35 | G8: 2022-10-01 | H8: Spitalfields Practice | I8: F84081 | J8: Spitalfields Practice | M8: NW2 | O8: Columns | P8: 73 | T8: Columns | U8: 73
A9: % 16+ | B9: ="%"&B8 -> %LDP.01.01.02: Obesity BMI between 30-35 (last 12m) | C9: % 16+ | D9: % 16+ | G9: 2022-11-01 | H9: Blithehale Medical Centre | I9: F84718 | J9: Blithehale Medical Centre | M9: NW2 | O9: Data (Y/N) | P9: Y | T9: Data (Y/N) | U9: Y
A10: BMI ≥ 30 | B10: LDP.01.01.01: Obesity BMI more than or equal to 35 less than 40 (last 12m) | C10: BMI ≥ 30 | D10: BMI ≥ 35 & <40 | G10: 2022-12-01 | H10: Health E1 | I10: F84733 | J10: Health E1 | M10: NW2 | O10: Q Work Sheet | P10: CH LDP TABLE | Q10: =$P$6&ADDRESS(1,1)&":"&ADDRESS(P7,P8) -> 'CH LDP TABLE'!$A$1:$BU$100000 | T10: Q Work Sheet | U10: Data 17-18 | V10: =$U$6&ADDRESS(1,1)&":"&ADDRESS(U7,U8) -> 'Data 17-18'!$A$1:$BU$1000
A11: %16+ | B11: ="%"&B10 -> %LDP.01.01.01: Obesity BMI more than or equal to 35 less than 40 (last 12m) | C11: %16+ | D11: %16+ | G11: 2023-01-01 | H11: Albion Health Centre | I11: F84012 | J11: Albion Health Centre | M11: NW2 | O11: Header Row | P11: 1 | T11: Header Row | U11: 1
A12: BMI ≥ 40 | B12: LDP.01.01.03: Obesity BMI equal to or over 40 (last 12m) | C12: BMI ≥ 40 | D12: BMI ≥ 40 | G12: 2023-02-01 | H12: XX Place Surgery | I12: F84122 | J12: XX Place Surgery | M12: NW2 | O12: Header Row 2 | P12: 3 | T12: Header Row 2 | U12: 3
A13: %16+ | B13: ="%"&B12 -> %LDP.01.01.03: Obesity BMI equal to or over 40 (last 12m) | C13: %16+ | D13: %16+ | G13: 2023-03-01 | H13: Harford Health Centre | I13: F84087 | J13: Harford Health Centre | M13: NW3
A14: Smoking status (last 12m) incl. never smoked | B14: LDP.01.02: Smoking Status (last 12m) or Never Smoked (25yrs+) | C14: Smoking status (last 12m) incl. never smoked | D14: Smoking status (last 12m) incl. never smoked | H14: Brayford Square (Dr Varma) | I14: F84046 | J14: Brayford Square (Dr Varma) | M14: NW3
A15: % 16+ | B15: ="%"&B14 -> %LDP.01.02: Smoking Status (last 12m) or Never Smoked (25yrs+) | C15: % 16+ | D15: % 16+ | H15: Whitechapel Health (Shah Jalal) | I15: F84039 | J15: Whitechapel Health (Shah Jalal) | M15: NW3
A16: Age 16+ and current smoker (last 12m) | B16: LDP.01.03: Current Smoker (last 12m) | C16: Age 16+ and current smoker (last 12m) | D16: Age 16+ and current smoker (last 12m) | H16: City Wellbeing Practice (Tower Medical) | I16: F84114 | J16: City Wellbeing Practice (Tower Medical) | M16: NW3 | O16: April 2022 | P16: 2022-05-01
A17: % 16+ | B17: ="%"&B16 -> %LDP.01.03: Current Smoker (last 12m) | C17: % 16+ | D17: % 16+ | H17: Wapping Group Practice | I17: F84079 | J17: Wapping Group Practice | M17: NW4 | O17: May 2022 | P17: 2022-06-01
B18: Hypertension | H18: Jubilee Street Practice | I18: F84031 | J18: Jubilee Street Practice | M18: NW4 | O18: June 2022 | P18: 2022-07-01
A19: Hypertension Register | B19: LDP.02: Hypertension Register | C19: Hypertension Register | D19: Hypertension Register | H19: St Katharine Docks Practice | I19: F84731 | J19: St Katharine Docks Practice | M19: NW4 | O19: July 2022 | P19: 2022-08-01
A20: % list size | B20: ="%"&B19 -> %LDP.02: Hypertension Register | C20: % list size | D20: % list size | H20: East One Health | I20: F84682 | J20: East One Health | M20: NW4 | O20: August 2022 | P20: 2022-09-01
A21: Hypertension and BP (last 9m) | B21: LDP.02.02: Hypertension BP recorded (last 12m) | C21: Hypertension and BP (last 9m) | D21: Hypertension and BP (last 12m) | H21: Harley Grove Medical Centre | I21: F84044 | J21: Harley Grove Medical Centre | M21: NW5 | O21: September 2022 | P21: 2022-10-01
A22: % Hypertension Register | B22: ="%"&B21 -> %LDP.02.02: Hypertension BP recorded (last 12m) | C22: % Hypertension Register | D22: % Hypertension Register | H22: St Stephens Health Centre | I22: F84034 | J22: St Stephens Health Centre | M22: NW5 | O22: October 2022 | P22: 2022-11-01
A23: Hypertension and BP ≤ 150/90 (last 9m) | B23: LDP.02.01: Hypertension and BP < 140/90 (age under 80) < 150/90 (Age 80+) | C23: Hypertension and BP ≤ 150/90 (last 9m) | D23: Hypertension and BP < 140/90 (Patients aged under 80) < 150/90 ( Aged 80 and over) (last 12m) | H23: Ruston Street Clinic (Dr Amin) | I23: F84030 | J23: Ruston Street Clinic (Dr Amin) | M23: NW5 | O23: November 2022 | P23: 2022-12-01
A24: % Hypertension Register | B24: ="%"&B23 -> %LDP.02.01: Hypertension and BP < 140/90 (age under 80) < 150/90 (Age 80+) | C24: % Hypertension Register | D24: % Hypertension Register | H24: Grove Road Surgery (Dr Shah) | I24: F84055 | J24: Grove Road Surgery (Dr Shah) | M24: NW5 | O24: December 2022 | P24: 2023-01-01
B25: CHD | H25: The Tredegar Practice | I25: F84696 | J25: The Tredegar Practice | M25: NW5 | O25: January 2023 | P25: 2023-02-01
A26: CHD register | B26: LDP.03: CHD Register | C26: CHD register | D26: CHD register | H26: Stroudley Walk Centre | I26: F84676 | J26: Stroudley Walk Centre | M26: NW6 | O26: February 2023 | P26: 2023-03-01
A27: % list size | B27: ="%"&B26 -> %LDP.03: CHD Register | C27: % list size | D27: % list size | H27: St Andrews Health Centre | I27: Y03023 | J27: St Andrews Health Centre | M27: NW6 | O27: March 2023 | P27: 2023-04-01
A28: Cholesterol (last 12m) | B28: LDP.03.04: CHD Cholesterol recorded (last 12m) | C28: Cholesterol (last 12m) | D28: Cholesterol (last 12m) | H28: Merchant Street (Dr Rana) | I28: F84118 | J28: Merchant Street (Dr Rana) | M28: NW6
A29: % CHD register | B29: ="%"&B28 -> %LDP.03.04: CHD Cholesterol recorded (last 12m) | C29: % CHD register | D29: % CHD register | H29: St Pauls Way Medical Centre | I29: F84714 | J29: St Pauls Way Medical Centre | M29: NW6
A30: Cholesterol ≤ 5 (last 12m) | B30: LDP.03.01: CHD Chol less than 5mmol (last 12m) | C30: Cholesterol ≤ 5 (last 12m) | D30: Cholesterol < 5 (last 12m) | H30: Bromley-By-Bow Health Centre | I30: F84122 | J30: Bromley-By-Bow Health Centre | M30: NW6
A31: % CHD register | B31: ="%"&B30 -> %LDP.03.01: CHD Chol less than 5mmol (last 12m) | C31: % CHD register | D31: % CHD register | H31: Limehouse Practice (Gill Street) | I31: F84054 | J31: Limehouse Practice (Gill Street) | M31: NW7
A32: BP (last 9m) | B32: LDP.03.02: CHD BP less than or equal 150/90 (last 9m) | C32: BP (last 9m) | D32: BP ≤ 150/90 (last 9m) | H32: Chrisp Street Health Centre | I32: F84062 | J32: Chrisp Street Health Centre | M32: NW7
A33: % CHD register | B33: ="%"&B32 -> %LDP.03.02: CHD BP less than or equal 150/90 (last 9m) | C33: % CHD register | D33: % CHD register | H33: Aberfeldy Practice | I33: F84698 | J33: Aberfeldy Practice | M33: NW7
A34: BP ≤ 150/90 (last 9m) | B34: LDP.03.05: CHD BP recorded (last 9m) | C34: BP ≤ 150/90 (last 9m) | H34: All Saints Practice | I34: F84702 | J34: All Saints Practice | M34: NW7
A35: % CHD register | B35: ="%"&B34 -> %LDP.03.05: CHD BP recorded (last 9m) | C35: % CHD register | H35: Gough Walk (Dr Selvan) | I35: F84025 | J35: Gough Walk (Dr Selvan) | M35: NW7
A36: CHD annual review or proxy review | B36: LDP.03.03: CHD Annual Review & Proxy (last 12m) | C36: CHD annual review or proxy review | H36: Island Health | I36: F84710 | J36: Island Health | M36: NW8
A37: % CHD register | B37: ="%"&B36 -> %LDP.03.03: CHD Annual Review & Proxy (last 12m) | C37: % CHD register | H37: Docklands Medical Centre | I37: F84656 | J37: Docklands Medical Centre | M37: NW8
A38: CHD diagnosed in last 6 months | B38: LDP.03.06: CHD Diagnosed (Last 6 months) | C38: CHD diagnosed in last 6 months | H38: Island Medical Centre | I38: F84647 | J38: Island Medical Centre | M38: NW8
A39: % CHD register | B39: ="%"&B38 -> %LDP.03.06: CHD Diagnosed (Last 6 months) | C39: % CHD register | H39: Barkantine Practice | I39: F84747 | J39: Barkantine Practice | M39: NW8
H40: Tower Hamlets | I40: Total | J40: Tower Hamlets
B41: Stroke/TIA
B42: LDP.10 Stroke or TIA register | D42: Stroke/TIA register
B43: %LDP.10 Stroke or TIA register | D43: % list size
B44: LDP.10.01: Stroke/TIA BP recorded (last 12m) | D44: Patients on Stroke/TIA register with BP recorded
B45: %LDP.10.01: Stroke/TIA BP recorded (last 12m) | D45: % of stroke register
B46: LDP.10.02 Patients on Stroke/TIA register with BP <140/90 (12m) | D46: Patients on Stroke/TIA register with BP <140/90 (12m)
B47: %LDP.10.02 Patients on Stroke/TIA register with BP <140/90 (12m) | D47: % of stroke register
B48: CVD Risk | H48: The One Network | I48: NW1 | J48: The One Network | M48: NW1
A49: Aged 35 to 74 (exc CVD) | B49: LDP.05: CVD 25-84yrs (excl CVD) | C49: Aged 35 to 74 (exc CVD) | D49: Aged 25 to 84 (exc CVD) | H49: East End Health Network | I49: NW2 | J49: East End Health Network | M49: NW2
A50: CVD (QRISK or Framingham) risk score done | B50: LDP.05.02: Cardiovascular Risk Score Done (5y) | C50: CVD (QRISK or Framingham) risk score done | D50: QRISK recorded (5 years) | H50: Stepney and Whitechapel Network | I50: NW3 | J50: Stepney and Whitechapel Network | M50: NW3
A51: % of patients aged 35 to 74 (exc CVD) | B51: ="%"&B50 -> %LDP.05.02: Cardiovascular Risk Score Done (5y) | C51: % of patients aged 35 to 74 (exc CVD) | D51: % of patients aged 25 to 84 (exc CVD) | H51: The Highway Network | I51: NW4 | J51: The Highway Network | M51: NW4
A52: QRISK ≥ 20% | B52: LDP.05.01: CVD QRISK greater than or equal 20% | C52: QRISK ≥ 20% | D52: QRISK ≥ 20% | H52: Bow Health Network | I52: NW5 | J52: Bow Health Network | M52: NW5
A53: % QRISK Score recorded | B53: ="%"&B52 -> %LDP.05.01: CVD QRISK greater than or equal 20% | C53: % QRISK Score recorded | D53: % QRISK Score recorded | H53: Mile End East and Bromley by Bow Network | I53: NW6 | J53: Mile End East and Bromley by Bow Network | M53: NW6
A54: QRISK ≥ 20% and proxy review (BP and Chol last 12m) | B54: LDP.05.01.01: CVD Proxy Annual Review (last 12m) | C54: QRISK ≥ 20% and proxy review (BP and Chol last 12m) | D54: QRISK ≥ 20% and proxy review (BP and Chol last 12m) | H54: Poplar and Limehouse Network | I54: NW7 | J54: Poplar and Limehouse Network | M54: NW7
A55: % Patients with QRISK ≥ 20% | B55: ="%"&B54 -> %LDP.05.01.01: CVD Proxy Annual Review (last 12m) | C55: % Patients with QRISK ≥ 20% | D55: % Patients with QRISK ≥ 20% | H55: Healthy Island Network | I55: NW8 | J55: Healthy Island Network | M55: NW8
B56: Diabetes
A57: Diabetes register | B57: LDP.04: Diabetes Register | C57: Diabetes register | D57: Diabetes register
A58: % List size | B58: ="%"&B57 -> %LDP.04: Diabetes Register | C58: % List size | D58: % List size
A59: Annual review/ called or proxy (last 12m) | B59: LDP.04.02: Diabetes Called & Annual Review or Proxy (last 12m) | C59: Annual review/ called or proxy (last 12m) | D59: BP (last 12m)
A60: % Diabetes register | B60: ="%"&B59 -> %LDP.04.02: Diabetes Called & Annual Review or Proxy (last 12m) | C60: % Diabetes register | D60: % Diabetes Register
A61: BP (last 12m) | B61: LDP.04.11: Diabetes and BP in last 12 months | C61: BP (last 12m) | D61: BP < 145/85 (last 12m)
A62: % Diabetes Register | B62: ="%"&B61 -> %LDP.04.11: Diabetes and BP in last 12 months | C62: % Diabetes Register | D62: % Diabetes Register
A63: BP ≤ 145/85 (last 12m) | B63: LDP.04.09: Diabetes BP less than 145/85 (last 12m) | C63: BP ≤ 145/85 (last 12m) | D63: Cholesterol < 5mmols (last 12m) | H63: Drive Surgery | I63: F86652
A64: % Diabetes Register | B64: ="%"&B63 -> %LDP.04.09: Diabetes BP less than 145/85 (last 12m) | C64: % Diabetes Register | D64: % Diabetes Register | H64: St Clements Surgery | I64: F86702
A65: Cholesterol (last 12m) | B65: LDP.04.12: Diabetes and cholesterol in last 15 mths | C65: Cholesterol (last 12m) | D65: HbA1c < 59 (last 12m) | H65: Granville Medical Centre | I65: Y00918
A66: % Diabetes Register | B66: ="%"&B65 -> %LDP.04.12: Diabetes and cholesterol in last 15 mths | C66: % Diabetes Register | D66: % Diabetes register | H66: Balfour Road Surgery | I66: F86042
A67: Cholesterol < 5mmols (last 12m) | B67: LDP.04.08: Diabetes Chol less than 5mmol (last 12m) | C67: Cholesterol < 5mmols (last 12m) | D67: Flu jab (From August 2022) | H67: Cranbrook Surgery | I67: F86698
A68: % Diabetes Register | B68: ="%"&B67 -> %LDP.04.08: Diabetes Chol less than 5mmol (last 12m) | C68: % Diabetes Register | D68: % Diabetes Register | H68: Gants Hill Medical Centre | I68: F86008
A69: HbA1c ≤ 59(last 12m) | B69: LDP.04.01: Diabetes HbA1c <7.5% OR <59mmol (last 12m) | C69: HbA1c ≤ 59(last 12m) | H69: Redbridge Surgery | I69: F86703
A70: % Diabetes register | B70: ="%"&B69 -> %LDP.04.01: Diabetes HbA1c <7.5% OR <59mmol (last 12m) | C70: % Diabetes register | H70: York Road Surgery | I70: F86657
A71: HbA1c ≤ 86 (last 12m) | B71: LDP.04.10: Diabetes HbA1c <=10% OR <=86mmol (last 12m) | C71: HbA1c ≤ 86 (last 12m) | H71: Kenwood Medical Centre | I71: F86081
A72: % Diabetes Register | B72: ="%"&B71 -> %LDP.04.10: Diabetes HbA1c <=10% OR <=86mmol (last 12m) | C72: % Diabetes Register | H72: Eastern Avenue Medical Centre | I72: F86083
A73: Diabetes retinal screening (last 12m) | B73: LDP.04.03: Diabetes Digital retinal screening or Seen by retinal screener | C73: Diabetes retinal screening (last 12m) | H73: Fullwell Avenue Surgery | I73: F86612
A74: % Diabetes register | B74: ="%"&B73 -> %LDP.04.03: Diabetes Digital retinal screening or Seen by retinal screener | C74: % Diabetes register | H74: Heathcote Primary Care Centre | I74: F86624
A75: Retinal screening (last 12m) | B75: LDP.04.04: Diabetes Retinal Screening (QoF) (last 12m) | C75: Retinal screening (last 12m) | H75: Fencepiece Road Medical Practice | I75: F86707
A76: % Diabetes register | B76: ="%"&B75 -> %LDP.04.04: Diabetes Retinal Screening (QoF) (last 12m) | C76: % Diabetes register | H76: The Willows Practice | I76: F86057
A77: Neuropathy testing (last 12m) | B77: LDP.04.05: Diabetes Neuropathy Test (last 12m) | C77: Neuropathy testing (last 12m) | H77: Forest Edge Practice | I77: F86007
A78: % Diabetes Register | B78: ="%"&B77 -> %LDP.04.05: Diabetes Neuropathy Test (last 12m) | C78: % Diabetes Register | H78: The Palms Medical Centre | I78: F86009
A79: Microalbuminuria (last 12m) | B79: LDP.04.06: Diabetes Microalbuminuria Test (latest last 12m) | C79: Microalbuminuria (last 12m) | H79: Goodmayes Medical Centre | I79: F86087
A80: % Diabetes Register | B80: ="%"&B79 -> %LDP.04.06: Diabetes Microalbuminuria Test (latest last 12m) | C80: % Diabetes Register | H80: Seven Kings Practice | I80: F86637
A81: Flu jab (last 12m) | B81: LDP.04.07: Diabetes Influenza Vaccinations (From August 2018) | C81: Flu jab (last 12m) | H81: Doctor's House | I81: Y00090
A82: % Diabetes Register | B82: ="%"&B81 -> %LDP.04.07: Diabetes Influenza Vaccinations (From August 2018) | C82: % Diabetes Register | H82: Green Lane, Goodmayes Medical practice | I82: F86034
A83: Type 1 Diabetes | B83: LDP.04.13. Type 1 Diabetes | C83: Type 1 Diabetes | H83: Castleton Road Surgery | I83: F86642
A84: % Diabetes Register | B84: ="%"&B83 -> %LDP.04.13. Type 1 Diabetes | C84: % Diabetes Register | H84: Chadwell Heath Surgery | I84: F86028
A85: Type 2 Diabetes | B85: LDP.04.14. Type 2 Diabetes | C85: Type 2 Diabetes | H85: Grove Surgery | I85: Y00155
A86: % Diabetes Register | B86: ="%"&B85 -> %LDP.04.14. Type 2 Diabetes | C86: % Diabetes Register | H86: Broadway Surgery | I86: F86013
A87: No Type Recorded | B87: No Type Recorded | C87: No Type Recorded | H87: The Evergreen Practice | I87: F86023
A88: % Diabetes Register | B88: ="%"&B87 -> %No Type Recorded | C88: % Diabetes Register | H88: Wanstead Place Surgery | I88: F86032
A89: Type 2 diabetes excluding insulin prescriptions (last 15 m) | B89: LDP 04.14.01 Excl Insulin Prescription (12m) | C89: Type 2 diabetes excluding insulin prescriptions (last 15 m) | H89: Aldersbrook Medical Centre | I89: F86731
A90: % Type 2 Diabetes | B90: ="%"&B89 -> %LDP 04.14.01 Excl Insulin Prescription (12m) | C90: % Type 2 Diabetes | H90: Southdene Surgery | I90: F86066
A91: Newly Diagnosed Diabetes (Last 1m) | B91: LDP.04.19 Newly Diagnosed Diabetes (last 1m) | C91: Newly Diagnosed Diabetes (Last 1m) | H91: Shrubberies Medical Centre | I91: F86641
A92: Newly Diagnosed Diabetes - Type 1 | B92: LDP.04.19.01 Newly Diagnosed Type 1 | C92: Newly Diagnosed Diabetes - Type 1 | H92: Glebelands Practice | I92: F86020
A93: Newly Diagnosed Diabetes - Type 2 | B93: LDP.04.19.02 Newly Diagnosed Type 2 | C93: Newly Diagnosed Diabetes - Type 2 | H93: Elmhurst Practice | I93: F86064
A94: Newly Diagnosed Diabetes - Type Not Recorded | B94: ="%"&B93 -> %LDP.04.19.02 Newly Diagnosed Type 2 | C94: Newly Diagnosed Diabetes - Type Not Recorded | H94: Clayhall Clinic | I94: F86691
A95: Diabetics under 18 years old | B95: LDP.04.15 Diabetes (under 18) | C95: Diabetics under 18 years old | H95: Rydal Practice | I95: F86012
A96: Diabetics Under 18 with HbA1c ≤ 59 (last 12m) | B96: LDP.04.15.01 Diabetes HbA1C <=7.5% OR <=59mmol (12m) | C96: Diabetics Under 18 with HbA1c ≤ 59 (last 12m) | H96: Queen Mary Practice | I96: F86658
A97: % of Diabetics under 18 | B97: ="%"&B96 -> %LDP.04.15.01 Diabetes HbA1C <=7.5% OR <=59mmol (12m) | C97: % of Diabetics under 18 | H97: Ilford Medical Centre | I97: F86022
A98: No. of patients with diabetes diagnosed with CKD in the last 12m | B98: LDP.04.16 Diabetes and CKD Diagnosed (12m) | C98: No. of patients with diabetes diagnosed with CKD in the last 12m | H98: The Practice Loxford | I98: Y02987
A99: % Diabetes Register | B99: ="%"&B98 -> %LDP.04.16 Diabetes and CKD Diagnosed (12m) | C99: % Diabetes Register | H99: Mathukias Surgery | I99: F86692
A100: No. of patients with diabetes diagnosed with CHD and/or Stroke/TIA in the last 12 months | B100: LDP.04.17 Diabetes and Stroke or CHD Diagnosed (12m) | C100: No. of patients with diabetes diagnosed with CHD and/or Stroke/TIA in the last 12 months | H100: Ilford Lane Surgery | I100: F86082
A101: % Diabetes Register | B101: ="%"&B100 -> %LDP.04.17 Diabetes and Stroke or CHD Diagnosed (12m) | C101: % Diabetes Register | H101: Oak Tree Medical Practice | I101: F86025
A102: No. of patients with diabetes diagnosed with Depression in the last 12 months | B102: LDP.04.18 Diabetes and Depression (last 12m) | C102: No. of patients with diabetes diagnosed with Depression in the last 12 months | H102: Hainault Surgery | I102: F86085
A103: %Diabetes Register | B103: ="%"&B102 -> %LDP.04.18 Diabetes and Depression (last 12m) | C103: %Diabetes Register | H103: Fullwell Cross Medical Centre | I103: F86010
A104: No. of patients who have ever had gestational diabetes | B104: LDP.07 Gestational Diabetes | C104: No. of patients who have ever had gestational diabetes | H104: Newbury Group Practice | I104: F86060
A105: No. of patients who have ever had gestational diabetes who are also on diabetes register | B105: LDP.07.01 Diabetes dx after Gestational Diabetes | C105: No. of patients who have ever had gestational diabetes who are also on diabetes register | H105: Redbridge | I105: Total
A106: % of patients with gestational diabetes | B106: ="%"&B105 -> %LDP.07.01 Diabetes dx after Gestational Diabetes | C106: % of patients with gestational diabetes
B107: Mental Health
A108: SMI register (QOF) | B108: CSPMH.01 SMI Register | C108: SMI register (QOF) | D108: Mental Health register
A109: % list size | B109: ="%"&B108 -> %CSPMH.01 SMI Register | C109: % list size | D109: % list size
A110: No. of SMI Patients with smoking status recorded (last 12m) or never smoked | B110: CSPMH.01.02 Smoking Status Recorded (12m) | C110: No. of SMI Patients with smoking status recorded (last 12m) or never smoked | D110: No. of Mental Health Patients with smoking status recorded (last 12m) or never smoked
A111: % SMI Register | B111: ="%"&B110 -> %CSPMH.01.02 Smoking Status Recorded (12m) | C111: % SMI Register | D111: % Mental Health Register
A112: No. of SMI patients recorded as a Smoker | B112: CSPMH.01.02.01 Current Smoker (12m) | C112: No. of SMI patients recorded as a Smoker | D112: No. of Mental Health patients recorded as a Smoker
A113: % SMI Register | B113: ="%"&B112 -> %CSPMH.01.02.01 Current Smoker (12m) | C113: % SMI Register | D113: % Mental Health Register
A114: No. of SMI Patients who are current smokers & referred to the Stop Smoking Clinic | B114: CSPMH 01.02.01.01 Ref to clinic 12m | C114: No. of SMI Patients who are current smokers & referred to the Stop Smoking Clinic | D114: No. of Mental Health Patients who are current smokers & referred to the Stop Smoking Clinic
A115: % SMI Register | B115: ="%"&B114 -> %CSPMH 01.02.01.01 Ref to clinic 12m | C115: % SMI Register | D115: % Mental Health Register
A116: No. Of SMI Patients who are recorded as quitters | B116: CSPMH.01.02.02 Ex-smoker Recorded (latest 12m) | C116: No. Of SMI Patients who are recorded as quitters | D116: No. Of Mental Health Patients who are recorded as quitters
A117: % SMI Register | B117: ="%"&B116 -> %CSPMH.01.02.02 Ex-smoker Recorded (latest 12m) | C117: % SMI Register | D117: % Mental Health Register
A118: Patients with SMI with QRISK recorded in the last 12m | B118: CSPMH. 01.03 QRisk Recorded (12m) | C118: Patients with SMI with QRISK recorded in the last 12m | D118: Patients with Mental Health with QRISK recorded in the last 12m
A119: % SMI Register | B119: ="%"&B118 -> %CSPMH. 01.03 QRisk Recorded (12m) | C119: % SMI Register | D119: % Mental Health Register
A120: Patients with SMI with QRISK 20% or higher in the last 12m | B120: CSPMH. 01.03.02 Qrisk>=20 (12m) | C120: Patients with SMI with QRISK 20% or higher in the last 12m | D120: Patients with Mental Health with QRISK 20% or higher in the last 12m
A121: % patients with QRISK recorded 20% or higher | B121: ="%"&B120 -> %CSPMH. 01.03.02 Qrisk>=20 (12m) | C121: % patients with QRISK recorded 20% or higher | D121: % patients with QRISK recorded
A122: Patients with SMI with BP & QRisk on the same day in the last 12m | B122: CSPMH. 01.03.01 BP recorded on same day as QRisk (12m) | C122: Patients with SMI with BP & QRisk on the same day in the last 12m | D122: Patients with Mental Health with BP & QRisk on the same day in the last 12m
A123: % Patients with SMI with BP & QRisk on the same day in the last 12m | B123: ="%"&B122 -> %CSPMH. 01.03.01 BP recorded on same day as QRisk (12m) | C123: % Patients with SMI with BP & QRisk on the same day in the last 12m | D123: % Mental Health Register
B124: CKD
A125: No. of patients on CKD register | B125: LDP.08 CKD Register | C125: No. of patients on CKD register | D125: No. of patients on CKD register
A126: % List Size | B126: ="%"&B125 -> %LDP.08 CKD Register | C126: % List Size | D126: % List Size
A127: BP Recorded (last 12m) | B127: LDP.08.03 CKD and BP Recorded (last 12 m) | C127: BP Recorded (last 12m) | D127: BP Recorded (last 12m)
A128: % CKD register | B128: ="%"&B127 -> %LDP.08.03 CKD and BP Recorded (last 12 m) | C128: % CKD register | D128: % CKD register
A129: BP ≤ 140/90 | B129: LDP.08.01 CKD and BP less than 140/90 (last 12 m) | C129: BP ≤ 140/90 | D129: BP < 140/90
A130: % CKD register | B130: ="%"&B129 -> %LDP.08.01 CKD and BP less than 140/90 (last 12 m) | C130: % CKD register | D130: % CKD register
A131: No of patients with new diagnosis of CKD (last 6m) | B131: LDP.08.02 CKD Diagnosed (Last 6m) | C131: No of patients with new diagnosis of CKD (last 6m) | D131: No of patients with new diagnosis of CKD (last 6m)
A132: % CKD register | B132: ="%"&B131 -> %LDP.08.02 CKD Diagnosed (Last 6m) | C132: % CKD register | D132: % CKD register
B133: COPD
B134: LDP.09 COPD Register | C134: No. of patients on COPD register
B135: ="%"&B134 -> %LDP.09 COPD Register | C135: % List Size
B136: LDP.09.01 Patients with severe or very severe COPD (FEV1<50) | C136: No of patients with severe or very severe COPD (FEV1<50)
B137: ="%"&B136 -> %LDP.09.01 Patients with severe or very severe COPD (FEV1<50) | C137: % COPD register
B138: LDP.09.02 Patients with smoking status recorded (last 12m) or never smoked | C138: No. of COPD Patients with smoking status recorded (last 12m) or never smoked
B139: ="%"&B138 -> %LDP.09.02 Patients with smoking status recorded (last 12m) or never smoked | C139: % COPD
B140: LDP.09.03 COPD patients recorded as a Smoker | C140: No. of COPD patients recorded as a Smoker
B141: ="%"&B140 -> %LDP.09.03 COPD patients recorded as a Smoker | C141: % COPD
B142: LDP.09.04 COPD Patients who are current smokers & referred to the Stop Smoking C | C142: No. of COPD Patients who are current smokers & referred to the Stop Smoking Clinic (12m)
B143: ="%"&B142 -> %LDP.09.04 COPD Patients who are current smokers & referred to the Stop Smoking C | C143: % of current COPD smokers
B144: LDP.09.05 No of COPD with flu vaccination (From August 2018) | C144: No of COPD with flu vaccination (From August 2022)
B145: ="%"&B144 -> %LDP.09.05 No of COPD with flu vaccination (From August 2018) | C145: % of COPD register
B146: LDP.09.06 No of COPD with pneumococcal vaccination ever | C146: No of COPD with pneumococcal vaccination ever
B147: ="%"&B146 -> %LDP.09.06 No of COPD with pneumococcal vaccination ever | C147: % of COPD register
B148: LDP.09.07 No of COPD patients referred to pulmonary rehab ever | C148: No of COPD patients referred to pulmonary rehab ever
B149: ="%"&B148 -> %LDP.09.07 No of COPD patients referred to pulmonary rehab ever | C149: % of COPD register

Sheet General Health
C1: 01. Listsize | D1: =INDEX('Control Panel'!$B$3:$B$17,COLUMN(D1)-COLUMN($C$1)+1) -> LDP.01: Aged 16yrs+ | E1: =INDEX('Control Panel'!$B$3:$B$17,COLUMN(E1)-COLUMN($C$1)+1) -> %LDP.01: Aged 16yrs+ | F1: =INDEX('Control Panel'!$B$3:$B$17,COLUMN(F1)-COLUMN($C$1)+1) -> LDP.01.01: Obesity BMI recorded (last 12m) | G1: =INDEX('Control Panel'!$B$3:$B$17,COLUMN(G1)-COLUMN($C$1)+1) -> %LDP.01.01: Obesity BMI recorded (last 12m) | H1: =INDEX('Control Panel'!$B$3:$B$17,COLUMN(H1)-COLUMN($C$1)+1) -> LDP.01.01.02: Obesity BMI between 30-35 (last 12m) | I1: =INDEX('Control Panel'!$B$3:$B$17,COLUMN(I1)-COLUMN($C$1)+1) -> %LDP.01.01.02: Obesity BMI between 30-35 (last 12m) | J1: =INDEX('Control Panel'!$B$3:$B$17,COLUMN(J1)-COLUMN($C$1)+1) -> LDP.01.01.01: Obesity BMI more than or equal to 35 less than 40 (last 12m) | K1: =INDEX('Control Panel'!$B$3:$B$17,COLUMN(K1)-COLUMN($C$1)+1) -> %LDP.01.01.01: Obesity BMI more than or equal to 35 less than 40 (last 12m) | L1: =INDEX('Control Panel'!$B$3:$B$17,COLUMN(L1)-COLUMN($C$1)+1) -> LDP.01.01.03: Obesity BMI equal to or over 40 (last 12m) | M1: =INDEX('Control Panel'!$B$3:$B$17,COLUMN(M1)-COLUMN($C$1)+1) -> %LDP.01.01.03: Obesity BMI equal to or over 40 (last 12m) | N1: =INDEX('Control Panel'!$B$3:$B$17,COLUMN(N1)-COLUMN($C$1)+1) -> LDP.01.02: Smoking Status (last 12m) or Never Smoked (25yrs+) | O1: =INDEX('Control Panel'!$B$3:$B$17,COLUMN(O1)-COLUMN($C$1)+1) -> %LDP.01.02: Smoking Status (last 12m) or Never Smoked (25yrs+) | P1: =INDEX('Control Panel'!$B$3:$B$17,COLUMN(P1)-COLUMN($C$1)+1) -> LDP.01.03: Current Smoker (last 12m) | Q1: =INDEX('Control Panel'!$B$3:$B$17,COLUMN(Q1)-COLUMN($C$1)+1) -> %LDP.01.03: Current Smoker (last 12m)
C2: Redbridge - Practice Clinical Trends (LDP) Report
B3: =VLOOKUP(C3,'Control Panel'!O16:P27,2,FALSE) -> 2023-04-01 | C3: March 2023 | D3: =VLOOKUP(C3,'Control Panel'!O16:P27,2,FALSE) -> 2023-04-01
B4: 2019-07-01 | C4: ='Control Panel'!B2 -> General Health
A5: Home | B5: 2019-10-01 | C5: =VLOOKUP(C1,'Control Panel'!$B$3:$C$132,2,FALSE) -> List Size | D5: =VLOOKUP(D1,'Control Panel'!$B$3:$D$132,3,FALSE) -> Age 16+ | E5: =VLOOKUP(E1,'Control Panel'!$B$3:$D$132,3,FALSE) -> % list size | F5: =VLOOKUP(F1,'Control Panel'!$B$3:$D$132,3,FALSE) -> 16+ and BMI (last 12m) | G5: =VLOOKUP(G1,'Control Panel'!$B$3:$D$132,3,FALSE) -> % 16+ | H5: =VLOOKUP(H1,'Control Panel'!$B$3:$D$132,3,FALSE) -> BMI ≥30 & <35 | I5: =VLOOKUP(I1,'Control Panel'!$B$3:$D$132,3,FALSE) -> % 16+ | J5: =VLOOKUP(J1,'Control Panel'!$B$3:$D$132,3,FALSE) -> BMI ≥ 35 & <40 | K5: =VLOOKUP(K1,'Control Panel'!$B$3:$D$132,3,FALSE) -> %16+ | L5: =VLOOKUP(L1,'Control Panel'!$B$3:$D$132,3,FALSE) -> BMI ≥ 40 | M5: =VLOOKUP(M1,'Control Panel'!$B$3:$D$132,3,FALSE) -> %16+ | N5: =VLOOKUP(N1,'Control Panel'!$B$3:$D$132,3,FALSE) -> Smoking status (last 12m) incl. never smoked | O5: =VLOOKUP(O1,'Control Panel'!$B$3:$D$132,3,FALSE) -> % 16+ | P5: =VLOOKUP(P1,'Control Panel'!$B$3:$D$132,3,FALSE) -> Age 16+ and current smoker (last 12m) | Q5: =VLOOKUP(Q1,'Control Panel'!$B$3:$D$132,3,FALSE) -> % 16+
A6: Practice Name | C6: =SUM(C7:C43) -> 299982 | D6: =SUM(D7:D43) -> 239073 | E6: =IFERROR(D6/C6,"N/A") -> 0.797 | F6: =SUM(F7:F43) -> 70331 | G6: =IFERROR(F6/D6,"N/A") -> 0.294 | H6: =SUM(H7:H43) -> 12662 | I6: =IFERROR(H6/D6,"N/A") -> 0.053 | J6: =SUM(J7:J43) -> 4530 | K6: =IFERROR(J6/D6,"N/A") -> 0.019 | L6: =SUM(L7:L43) -> 2553 | M6: =IFERROR(L6/D6,"N/A") -> 0.011 | N6: =SUM(N7:N43) -> 163316 | O6: =IFERROR(N6/D6,"N/A") -> 0.683 | P6: =SUM(P7:P43) -> 10073 | Q6: =IFERROR(P6/D6,"N/A") -> 0.042
A7: Drive Surgery | B7: F86652 | C7: =SUMIFS(OFFSET(REL_D,,MATCH(C$1,IND,0)-2),REL_D,$D$3,OrgID,$B7) -> 7307 | D7: 5691 | E7: =IFERROR(D7/$C7,"N/A") -> 0.779 | F7: =SUMIFS(OFFSET(REL_D,,MATCH(F$1,IND,0)-2),REL_D,$D$3,OrgID,$B7) -> 2061 | G7: =IFERROR(F7/$D7,"N/A") -> 0.362 | H7: =SUMIFS(OFFSET(REL_D,,MATCH(H$1,IND,0)-2),REL_D,$D$3,OrgID,$B7) -> 383 | I7: =IFERROR(H7/$D7,"N/A") -> 0.067 | J7: =SUMIFS(OFFSET(REL_D,,MATCH(J$1,IND,0)-2),REL_D,$D$3,OrgID,$B7) -> 149 | K7: =IFERROR(J7/$D7,"N/A") -> 0.026 | L7: =SUMIFS(OFFSET(REL_D,,MATCH(L$1,IND,0)-2),REL_D,$D$3,OrgID,$B7) -> 72 | M7: =IFERROR(L7/$D7,"N/A") -> 0.013 | N7: =SUMIFS(OFFSET(REL_D,,MATCH(N$1,IND,0)-2),REL_D,$D$3,OrgID,$B7) -> 4223 | O7: =IFERROR(N7/$D7,"N/A") -> 0.742 | P7: =SUMIFS(OFFSET(REL_D,,MATCH(P$1,IND,0)-2),REL_D,$D$3,OrgID,$B7) -> 228 | Q7: =IFERROR(P7/$D7,"N/A") -> 0.04
A8: St Clements Surgery | B8: F86702 | C8: 5187 | D8: 4038 | E8: 0.778 | F8: 1230 | G8: 0.305 | H8: 234 | I8: 0.058 | J8: 90 | K8: 0.022 | L8: 65 | M8: 0.016 | N8: 2951 | O8: 0.731 | P8: 104 | Q8: 0.026
A9: Granville Medical Centre | B9: Y00918 | C9: 6594 | D9: 5289 | E9: 0.802 | F9: 2327 | G9: 0.44 | H9: 420 | I9: 0.079 | J9: 156 | K9: 0.029 | L9: 62 | M9: 0.012 | N9: 4139 | O9: 0.783 | P9: 240 | Q9: 0.045
A10: Balfour Road Surgery | B10: F86042 | C10: 6272 | D10: 4637 | E10: 0.739 | F10: 2150 | G10: 0.464 | H10: 397 | I10: 0.086 | J10: 107 | K10: 0.023 | L10: 44 | M10: 0.009 | N10: 3664 | O10: 0.79 | P10: 230 | Q10: 0.05
A11: Cranbrook Surgery | B11: F86698 | C11: 5433 | D11: 4283 | E11: 0.788 | F11: 1999 | G11: 0.467 | H11: 301 | I11: 0.07 | J11: 110 | K11: 0.026 | L11: 51 | M11: 0.012 | N11: 3575 | O11: 0.835 | P11: 258 | Q11: 0.06
A12: Gants Hill Medical Centre | B12: F86008 | C12: 11595 | D12: 9395 | E12: 0.81 | F12: 3222 | G12: 0.343 | H12: 549 | I12: 0.058 | J12: 154 | K12: 0.016 | L12: 86 | M12: 0.009 | N12: 6786 | O12: 0.722 | P12: 389 | Q12: 0.041
A13: Redbridge Surgery | B13: F86703 | C13: 3846 | D13: 3072 | E13: 0.799 | F13: 824 | G13: 0.268 | H13: 148 | I13: 0.048 | J13: 44 | K13: 0.014 | L13: 15 | M13: 0.005 | N13: 2165 | O13: 0.705 | P13: 65 | Q13: 0.021
A14: York Road Surgery | B14: F86657 | C14: 8313 | D14: 6795 | E14: 0.817 | F14: 1585 | G14: 0.233 | H14: 321 | I14: 0.047 | J14: 113 | K14: 0.017 | L14: 58 | M14: 0.009 | N14: 4401 | O14: 0.648 | P14: 350 | Q14: 0.052
A15: Kenwood Medical Centre | B15: F86081 | C15: 6456 | D15: 5233 | E15: 0.811 | F15: 1626 | G15: 0.311 | H15: 247 | I15: 0.047 | J15: 93 | K15: 0.018 | L15: 45 | M15: 0.009 | N15: 3935 | O15: 0.752 | P15: 186 | Q15: 0.036
A16: Eastern Avenue Medical Centre | B16: F86083 | C16: 6785 | D16: 5734 | E16: 0.845 | F16: 1233 | G16: 0.215 | H16: 223 | I16: 0.039 | J16: 89 | K16: 0.016 | L16: 27 | M16: 0.005 | N16: 3968 | O16: 0.692 | P16: 107 | Q16: 0.019
A17: Fullwell Avenue Surgery | B17: F86612 | C17: 3321 | D17: 2662 | E17: 0.802 | F17: 805 | G17: 0.302 | H17: 174 | I17: 0.065 | J17: 68 | K17: 0.026 | L17: 41 | M17: 0.015 | N17: 1868 | O17: 0.702 | P17: 127 | Q17: 0.048
A18: Heathcote Primary Care Centre | B18: F86624 | C18: 3123 | D18: 2559 | E18: 0.819 | F18: 818 | G18: 0.32 | H18: 156 | I18: 0.061 | J18: 68 | K18: 0.027 | L18: 34 | M18: 0.013 | N18: 1820 | O18: 0.711 | P18: 68 | Q18: 0.027
A19: Fencepiece Road Medical Practice | B19: F86707 | C19: 6752 | D19: 5358 | E19: 0.794 | F19: 1059 | G19: 0.198 | H19: 211 | I19: 0.039 | J19: 90 | K19: 0.017 | L19: 59 | M19: 0.011 | N19: 3626 | O19: 0.677 | P19: 252 | Q19: 0.047
A20: The Willows Practice | B20: F86057 | C20: 6539 | D20: 5226 | E20: 0.799 | F20: 1470 | G20: 0.281 | H20: 273 | I20: 0.052 | J20: 114 | K20: 0.022 | L20: 73 | M20: 0.014 | N20: 3514 | O20: 0.672 | P20: 351 | Q20: 0.067
A21: Forest Edge Practice | B21: F86007 | C21: 13645 | D21: 10694 | E21: 0.784 | F21: 2893 | G21: 0.271 | H21: 598 | I21: 0.056 | J21: 225 | K21: 0.021 | L21: 161 | M21: 0.015 | N21: 7165 | O21: 0.67 | P21: 784 | Q21: 0.073
A22: The Palms Medical Centre | B22: F86009 | C22: 7579 | D22: 6370 | E22: 0.84 | F22: 1228 | G22: 0.193 | H22: 234 | I22: 0.037 | J22: 100 | K22: 0.016 | L22: 67 | M22: 0.011 | N22: 4233 | O22: 0.665 | P22: 185 | Q22: 0.029
A23: Goodmayes Medical Centre | B23: F86087 | C23: 7655 | D23: 6018 | E23: 0.786 | F23: 1511 | G23: 0.251 | H23: 286 | I23: 0.048 | J23: 91 | K23: 0.015 | L23: 56 | M23: 0.009 | N23: 3992 | O23: 0.663 | P23: 238 | Q23: 0.04
A24: Seven Kings Practice | B24: F86637 | C24: =SUMIFS(OFFSET(REL_D,,MATCH(C$1,IND,0)-2),REL_D,$D$3,OrgID,$B24) -> 4919 | D24: 4016 | E24: 0.816 | F24: 1153 | G24: 0.287 | H24: 225 | I24: 0.056 | J24: 90 | K24: 0.022 | L24: 49 | M24: 0.012 | N24: 2808 | O24: 0.699 | P24: 134 | Q24: 0.033
A25: Doctor's House | B25: Y00090 | C25: 8284 | D25: 6588 | E25: 0.795 | F25: 2358 | G25: 0.358 | H25: 459 | I25: 0.07 | J25: 147 | K25: 0.022 | L25: 85 | M25: 0.013 | N25: 4809 | O25: 0.73 | P25: 400 | Q25: 0.061
A26: Green Lane, Goodmayes Medical practice | B26: F86034 | C26: 6160 | D26: 4803 | E26: 0.78 | F26: 1014 | G26: 0.211 | H26: 200 | I26: 0.042 | J26: 85 | K26: 0.018 | L26: 49 | M26: 0.01 | N26: 3224 | O26: 0.671 | P26: 204 | Q26: 0.042
A27: Castleton Road Surgery | B27: F86642 | C27: 5102 | D27: 3942 | E27: 0.773 | F27: 921 | G27: 0.234 | H27: 188 | I27: 0.048 | J27: 68 | K27: 0.017 | L27: 37 | M27: 0.009 | N27: 2424 | O27: 0.615 | P27: 119 | Q27: 0.03
A28: Chadwell Heath Surgery | B28: F86028 | C28: 10693 | D28: 8093 | E28: 0.757 | F28: 2168 | G28: 0.268 | H28: 418 | I28: 0.052 | J28: 181 | K28: 0.022 | L28: 91 | M28: 0.011 | N28: 5337 | O28: 0.659 | P28: 213 | Q28: 0.026
A29: Grove Surgery | B29: Y00155 | C29: 9909 | D29: 7749 | E29: 0.782 | F29: 2752 | G29: 0.355 | H29: 500 | I29: 0.065 | J29: 136 | K29: 0.018 | L29: 102 | M29: 0.013 | N29: 5106 | O29: 0.659 | P29: 368 | Q29: 0.047
A30: Broadway Surgery | B30: F86013 | C30: 7137 | D30: 5865 | E30: 0.822 | F30: 2895 | G30: 0.494 | H30: 372 | I30: 0.063 | J30: 119 | K30: 0.02 | L30: 71 | M30: 0.012 | N30: 4013 | O30: 0.684 | P30: 272 | Q30: 0.046
A31: The Evergreen Practice | B31: F86023 | C31: 9914 | D31: 8177 | E31: 0.825 | F31: 2041 | G31: 0.25 | H31: 273 | I31: 0.033 | J31: 101 | K31: 0.012 | L31: 55 | M31: 0.007 | N31: 5935 | O31: 0.726 | P31: 360 | Q31: 0.044
A32: Wanstead Place Surgery | B32: F86032 | C32: 9341 | D32: 7543 | E32: 0.808 | F32: 1855 | G32: 0.246 | H32: 290 | I32: 0.038 | J32: 87 | K32: 0.012 | L32: 44 | M32: 0.006 | N32: 5125 | O32: 0.679 | P32: 203 | Q32: 0.027
A33: Aldersbrook Medical Centre | B33: F86731 | C33: 4630 | D33: 3663 | E33: =IFERROR(D33/$C33,"N/A") -> 0.791 | F33: 1086 | G33: =IFERROR(F33/$D33,"N/A") -> 0.296 | H33: 183 | I33: =IFERROR(H33/$D33,"N/A") -> 0.05 | J33: 81 | K33: =IFERROR(J33/$D33,"N/A") -> 0.022 | L33: 59 | M33: =IFERROR(L33/$D33,"N/A") -> 0.016 | N33: 2501 | O33: =IFERROR(N33/$D33,"N/A") -> 0.683 | P33: 173 | Q33: =IFERROR(P33/$D33,"N/A") -> 0.047
A34: Southdene Surgery | B34: F86066 | C34: 7923 | D34: 6434 | E34: 0.812 | F34: 1898 | G34: 0.295 | H34: 320 | I34: 0.05 | J34: 112 | K34: 0.017 | L34: 70 | M34: 0.011 | N34: 4549 | O34: 0.707 | P34: 277 | Q34: 0.043
A35: Shrubberies Medical Centre | B35: F86641 | C35: 7939 | D35: 6194 | E35: 0.78 | F35: 1968 | G35: 0.318 | H35: 313 | I35: 0.051 | J35: 125 | K35: 0.02 | L35: 47 | M35: 0.008 | N35: 4595 | O35: 0.742 | P35: 262 | Q35: 0.042
A36: Glebelands Practice | B36: F86020 | C36: 5830 | D36: 4811 | E36: =IFERROR(D36/$C36,"N/A") -> 0.825 | F36: 1605 | G36: =IFERROR(F36/$D36,"N/A") -> 0.334 | H36: 270 | I36: =IFERROR(H36/$D36,"N/A") -> 0.056 | J36: 95 | K36: =IFERROR(J36/$D36,"N/A") -> 0.02 | L36: 46 | M36: =IFERROR(L36/$D36,"N/A") -> 0.01 | N36: 3719 | O36: =IFERROR(N36/$D36,"N/A") -> 0.773 | P36: 201 | Q36: =IFERROR(P36/$D36,"N/A") -> 0.042
A37: Elmhurst Practice | B37: F86064 | C37: 4777 | D37: 3937 | E37: =IFERROR(D37/$C37,"N/A") -> 0.824 | F37: 1152 | G37: =IFERROR(F37/$D37,"N/A") -> 0.293 | H37: 205 | I37: =IFERROR(H37/$D37,"N/A") -> 0.052 | J37: 83 | K37: =IFERROR(J37/$D37,"N/A") -> 0.021 | L37: 35 | M37: =IFERROR(L37/$D37,"N/A") -> 0.009 | N37: 2804 | O37: =IFERROR(N37/$D37,"N/A") -> 0.712 | P37: 148 | Q37: =IFERROR(P37/$D37,"N/A") -> 0.038
A38: Clayhall Clinic | B38: F86691 | C38: =SUMIFS(OFFSET(REL_D,,MATCH(C$1,IND,0)-2),REL_D,$D$3,OrgID,$B38) -> 10968 | D38: 8811 | E38: 0.803 | F38: 3253 | G38: 0.369 | H38: 630 | I38: 0.072 | J38: 209 | K38: 0.024 | L38: 104 | M38: 0.012 | N38: 6222 | O38: 0.706 | P38: 467 | Q38: 0.053
A39: Rydal Practice | B39: F86012 | C39: 9531 | D39: 8113 | E39: 0.851 | F39: 2484 | G39: 0.306 | H39: 376 | I39: 0.046 | J39: 142 | K39: 0.018 | L39: 85 | M39: 0.01 | N39: 5852 | O39: 0.721 | P39: 320 | Q39: 0.039
A40: Queen Mary Practice | B40: F86658 | C40: 5508 | D40: 4322 | E40: 0.785 | F40: 1062 | G40: 0.246 | H40: 174 | I40: 0.04 | J40: 78 | K40: 0.018 | L40: 47 | M40: 0.011 | N40: 2782 | O40: 0.644 | P40: 149 | Q40: 0.034
A41: Ilford Medical Centre | B41: F86022 | C41: 14570 | D41: 11675 | E41: 0.801 | F41: 3251 | G41: 0.278 | H41: 556 | I41: 0.048 | J41: 203 | K41: 0.017 | L41: 101 | M41: 0.009 | N41: 8027 | O41: 0.688 | P41: 494 | Q41: 0.042
A42: The Practice Loxford | B42: Y02987 | C42: 29566 | D42: 23051 | E42: 0.78 | F42: 4885 | G42: 0.212 | H42: 1037 | I42: 0.045 | J42: 348 | K42: 0.015 | L42: 254 | M42: 0.011 | N42: 11756 | O42: 0.51 | P42: 876 | Q42: 0.038
A43: Mathukias Surgery | B43: F86692 | C43: 10879 | D43: 8232 | E43: =IFERROR(D43/$C43,"N/A") -> 0.757 | F43: 2489 | G43: =IFERROR(F43/$D43,"N/A") -> 0.302 | H43: 518 | I43: =IFERROR(H43/$D43,"N/A") -> 0.063 | J43: 179 | K43: =IFERROR(J43/$D43,"N/A") -> 0.022 | L43: 106 | M43: =IFERROR(L43/$D43,"N/A") -> 0.013 | N43: 5703 | O43: =IFERROR(N43/$D43,"N/A") -> 0.693 | P43: 271 | Q43: =IFERROR(P43/$D43,"N/A") -> 0.033
A44: Ilford Lane Surgery | B44: F86082 | C44: 6018 | D44: 4905 | E44: =IFERROR(D44/$C44,"N/A") -> 0.815 | F44: 2503 | G44: =IFERROR(F44/$D44,"N/A") -> 0.51 | H44: 532 | I44: =IFERROR(H44/$D44,"N/A") -> 0.108 | J44: 169 | K44: =IFERROR(J44/$D44,"N/A") -> 0.034 | L44: 90 | M44: =IFERROR(L44/$D44,"N/A") -> 0.018 | N44: 3433 | O44: =IFERROR(N44/$D44,"N/A") -> 0.7 | P44: 303 | Q44: =IFERROR(P44/$D44,"N/A") -> 0.062
A45: Oak Tree Medical Practice | B45: F86025 | C45: 17240 | D45: 13679 | E45: 0.793 | F45: 3699 | G45: 0.27 | H45: 681 | I45: 0.05 | J45: 246 | K45: 0.018 | L45: 112 | M45: 0.008 | N45: 8747 | O45: 0.639 | P45: 638 | Q45: 0.047
A46: Hainault Surgery | B46: F86085 | C46: 3501 | D46: 2873 | E46: 0.821 | F46: 854 | G46: 0.297 | H46: 136 | I46: 0.047 | J46: 56 | K46: 0.019 | L46: 38 | M46: 0.013 | N46: 1739 | O46: 0.605 | P46: 145 | Q46: 0.05
A47: Fullwell Cross Medical Centre | B47: F86010 | C47: 15648 | D47: 12659 | E47: 0.809 | F47: 3305 | G47: 0.261 | H47: 636 | I47: 0.05 | J47: 231 | K47: 0.018 | L47: 135 | M47: 0.011 | N47: 7650 | O47: 0.604 | P47: 558 | Q47: 0.044
A48: Newbury Group Practice | B48: F86060 | C48: 15728 | D48: 12335 | E48: 0.784 | F48: 3715 | G48: 0.301 | H48: 677 | I48: 0.055 | J48: 235 | K48: 0.019 | L48: 131 | M48: 0.011 | N48: 7974 | O48: 0.646 | P48: 382 | Q48: 0.031

Sheet Hypertension
C1: 01. Listsize | D1: =INDEX('Control Panel'!$B$19:$B$24,COLUMN(D1)-COLUMN($D$1)+1) -> LDP.02: Hypertension Register | E1: =INDEX('Control Panel'!$B$19:$B$24,COLUMN(E1)-COLUMN($D$1)+1) -> %LDP.02: Hypertension Register | F1: =INDEX('Control Panel'!$B$19:$B$24,COLUMN(F1)-COLUMN($D$1)+1) -> LDP.02.02: Hypertension BP recorded (last 12m) | G1: =INDEX('Control Panel'!$B$19:$B$24,COLUMN(G1)-COLUMN($D$1)+1) -> %LDP.02.02: Hypertension BP recorded (last 12m) | H1: =INDEX('Control Panel'!$B$19:$B$24,COLUMN(H1)-COLUMN($D$1)+1) -> LDP.02.01: Hypertension and BP < 140/90 (age under 80) < 150/90 (Age 80+) | I1: =INDEX('Control Panel'!$B$19:$B$24,COLUMN(I1)-COLUMN($D$1)+1) -> %LDP.02.01: Hypertension and BP < 140/90 (age under 80) < 150/90 (Age 80+)
C2: Redbridge - Practice Clinical Trends (LDP) Report
B3: =VLOOKUP(C3,'Control Panel'!O16:P27,2,FALSE) -> 2023-04-01 | C3: March 2023 | D3: =VLOOKUP(C3,'Control Panel'!O16:P27,2,FALSE) -> 2023-04-01
B4: 2019-07-01 | C4: ='Control Panel'!B18 -> Hypertension
A5: Home | B5: 2019-10-01 | C5: =VLOOKUP(C1,'Control Panel'!$B$3:$C$132,2,FALSE) -> List Size | D5: =VLOOKUP(D1,'Control Panel'!$B$3:$D$132,3,FALSE) -> Hypertension Register | E5: =VLOOKUP(E1,'Control Panel'!$B$3:$D$132,3,FALSE) -> % list size | F5: =VLOOKUP(F1,'Control Panel'!$B$3:$D$132,3,FALSE) -> Hypertension and BP (last 12m) | G5: =VLOOKUP(G1,'Control Panel'!$B$3:$D$132,3,FALSE) -> % Hypertension Register | H5: =VLOOKUP(H1,'Control Panel'!$B$3:$D$132,3,FALSE) -> Hypertension and BP < 140/90 (Patients aged under 80) < 150/90 ( Aged 80 and over) (last 12m) | I5: =VLOOKUP(I1,'Control Panel'!$B$3:$D$132,3,FALSE) -> % Hypertension Register
A6: Practice Name | C6: =SUM(C7:C43) -> 299982 | D6: =SUM(D7:D43) -> 35747 | E6: =IFERROR(D6/C6,"N/A") -> 0.119 | F6: =SUM(F7:F43) -> 30148 | G6: =IFERROR(F6/D6,"N/A") -> 0.843 | H6: =SUM(H7:H43) -> 20474 | I6: =IFERROR(H6/D6,"N/A") -> 0.573
A7: Drive Surgery | B7: F86652 | C7: =SUMIFS(OFFSET(REL_D,,MATCH(C$1,IND,0)-2),REL_D,$D$3,OrgID,$B7) -> 7307 | D7: 941 | E7: =IFERROR(D7/C7,"N/A") -> 0.129 | F7: =SUMIFS(OFFSET(REL_D,,MATCH(F$1,IND,0)-2),REL_D,$D$3,OrgID,$B7) -> 854 | G7: =IFERROR(F7/D7,"N/A") -> 0.908 | H7: =SUMIFS(OFFSET(REL_D,,MATCH(H$1,IND,0)-2),REL_D,$D$3,OrgID,$B7) -> 584 | I7: =IFERROR(H7/D7,"N/A") -> 0.621
A8: St Clements Surgery | B8: F86702 | C8: 5187 | D8: 693 | E8: 0.134 | F8: 644 | G8: 0.929 | H8: 400 | I8: 0.577
A9: Granville Medical Centre | B9: Y00918 | C9: 6594 | D9: 836 | E9: 0.127 | F9: 679 | G9: 0.812 | H9: 452 | I9: 0.541
A10: Balfour Road Surgery | B10: F86042 | C10: 6272 | D10: 636 | E10: 0.101 | F10: 552 | G10: 0.868 | H10: 460 | I10: 0.723
A11: Cranbrook Surgery | B11: F86698 | C11: 5433 | D11: 650 | E11: 0.12 | F11: 610 | G11: 0.938 | H11: 415 | I11: 0.638
A12: Gants Hill Medical Centre | B12: F86008 | C12: 11595 | D12: 1360 | E12: 0.117 | F12: 1189 | G12: 0.874 | H12: 759 | I12: 0.558
A13: Redbridge Surgery | B13: F86703 | C13: 3846 | D13: 542 | E13: 0.141 | F13: 438 | G13: 0.808 | H13: 290 | I13: 0.535
A14: York Road Surgery | B14: F86657 | C14: 8313 | D14: 784 | E14: 0.094 | F14: 684 | G14: 0.872 | H14: 549 | I14: 0.7
A15: Kenwood Medical Centre | B15: F86081 | C15: 6456 | D15: 949 | E15: 0.147 | F15: 851 | G15: 0.897 | H15: 579 | I15: 0.61
A16: Eastern Avenue Medical Centre | B16: F86083 | C16: 6785 | D16: 1138 | E16: 0.168 | F16: 735 | G16: 0.646 | H16: 524 | I16: 0.46
A17: Fullwell Avenue Surgery | B17: F86612 | C17: 3321 | D17: 501 | E17: 0.151 | F17: 384 | G17: 0.766 | H17: 273 | I17: 0.545
A18: Heathcote Primary Care Centre | B18: F86624 | C18: 3123 | D18: 400 | E18: 0.128 | F18: 375 | G18: 0.938 | H18: 273 | I18: 0.683
A19: Fencepiece Road Medical Practice | B19: F86707 | C19: 6752 | D19: 668 | E19: 0.099 | F19: 573 | G19: 0.858 | H19: 425 | I19: 0.636
A20: The Willows Practice | B20: F86057 | C20: 6539 | D20: 880 | E20: 0.135 | F20: 734 | G20: 0.834 | H20: 476 | I20: 0.541
A21: Forest Edge Practice | B21: F86007 | C21: 13645 | D21: 1842 | E21: 0.135 | F21: 1550 | G21: 0.841 | H21: 932 | I21: 0.506
A22: The Palms Medical Centre | B22: F86009 | C22: 7579 | D22: 972 | E22: 0.128 | F22: 593 | G22: 0.61 | H22: 405 | I22: 0.417
A23: Goodmayes Medical Centre | B23: F86087 | C23: 7655 | D23: 876 | E23: 0.114 | F23: 756 | G23: 0.863 | H23: 543 | I23: 0.62
A24: Seven Kings Practice | B24: F86637 | C24: =SUMIFS(OFFSET(REL_D,,MATCH(C$1,IND,0)-2),REL_D,$D$3,OrgID,$B24) -> 4919 | D24: 618 | E24: 0.126 | F24: 539 | G24: 0.872 | H24: 378 | I24: 0.612
A25: Doctor's House | B25: Y00090 | C25: 8284 | D25: 1042 | E25: 0.126 | F25: 943 | G25: 0.905 | H25: 697 | I25: 0.669
A26: Green Lane, Goodmayes Medical practice | B26: F86034 | C26: 6160 | D26: 768 | E26: 0.125 | F26: 686 | G26: 0.893 | H26: 465 | I26: 0.605
A27: Castleton Road Surgery | B27: F86642 | C27: 5102 | D27: 538 | E27: 0.105 | F27: 482 | G27: 0.896 | H27: 332 | I27: 0.617
A28: Chadwell Heath Surgery | B28: F86028 | C28: 10693 | D28: 1155 | E28: 0.108 | F28: 952 | G28: 0.824 | H28: 567 | I28: 0.491
A29: Grove Surgery | B29: Y00155 | C29: 9909 | D29: 940 | E29: 0.095 | F29: 769 | G29: 0.818 | H29: 511 | I29: 0.544
A30: Broadway Surgery | B30: F86013 | C30: 7137 | D30: 709 | E30: 0.099 | F30: 585 | G30: 0.825 | H30: 435 | I30: 0.614
A31: The Evergreen Practice | B31: F86023 | C31: 9914 | D31: 1382 | E31: 0.139 | F31: 1120 | G31: 0.81 | H31: 709 | I31: 0.513
A32: Wanstead Place Surgery | B32: F86032 | C32: 9341 | D32: 1214 | E32: 0.13 | F32: 802 | G32: 0.661 | H32: 485 | I32: 0.4
A33: Aldersbrook Medical Centre | B33: F86731 | C33: 4630 | D33: 553 | E33: 0.119 | F33: 491 | G33: 0.888 | H33: 346 | I33: 0.626
A34: Southdene Surgery | B34: F86066 | C34: 7923 | D34: 945 | E34: 0.119 | F34: 801 | G34: 0.848 | H34: 543 | I34: 0.575
A35: Shrubberies Medical Centre | B35: F86641 | C35: 7939 | D35: 798 | E35: 0.101 | F35: 757 | G35: 0.949 | H35: 553 | I35: 0.693
A36: Glebelands Practice | B36: F86020 | C36: 5830 | D36: 825 | E36: 0.142 | F36: 771 | G36: 0.935 | H36: 510 | I36: 0.618
A37: Elmhurst Practice | B37: F86064 | C37: 4777 | D37: 673 | E37: =IFERROR(D37/C37,"N/A") -> 0.141 | F37: 609 | G37: =IFERROR(F37/D37,"N/A") -> 0.905 | H37: 376 | I37: =IFERROR(H37/D37,"N/A") -> 0.559
A38: Clayhall Clinic | B38: F86691 | C38: =SUMIFS(OFFSET(REL_D,,MATCH(C$1,IND,0)-2),REL_D,$D$3,OrgID,$B38) -> 10968 | D38: 1679 | E38: 0.153 | F38: 1416 | G38: 0.843 | H38: 985 | I38: 0.587
A39: Rydal Practice | B39: F86012 | C39: 9531 | D39: 1354 | E39: 0.142 | F39: 1256 | G39: 0.928 | H39: 724 | I39: 0.535
A40: Queen Mary Practice | B40: F86658 | C40: 5508 | D40: 613 | E40: 0.111 | F40: 488 | G40: 0.796 | H40: 333 | I40: 0.543
A41: Ilford Medical Centre | B41: F86022 | C41: 14570 | D41: 1724 | E41: =IFERROR(D41/C41,"N/A") -> 0.118 | F41: 1470 | G41: =IFERROR(F41/D41,"N/A") -> 0.853 | H41: 1087 | I41: =IFERROR(H41/D41,"N/A") -> 0.631
A42: The Practice Loxford | B42: Y02987 | C42: 29566 | D42: 2330 | E42: =IFERROR(D42/C42,"N/A") -> 0.079 | F42: 1956 | G42: =IFERROR(F42/D42,"N/A") -> 0.839 | H42: 1397 | I42: =IFERROR(H42/D42,"N/A") -> 0.6
A43: Mathukias Surgery | B43: F86692 | C43: 10879 | D43: 1219 | E43: =IFERROR(D43/C43,"N/A") -> 0.112 | F43: 1054 | G43: =IFERROR(F43/D43,"N/A") -> 0.865 | H43: 702 | I43: =IFERROR(H43/D43,"N/A") -> 0.576
A44: Ilford Lane Surgery | B44: F86082 | C44: 6018 | D44: 844 | E44: =IFERROR(D44/C44,"N/A") -> 0.14 | F44: 784 | G44: =IFERROR(F44/D44,"N/A") -> 0.929 | H44: 632 | I44: =IFERROR(H44/D44,"N/A") -> 0.749
A45: Oak Tree Medical Practice | B45: F86025 | C45: 17240 | D45: 1601 | E45: 0.093 | F45: 1383 | G45: 0.864 | H45: 913 | I45: 0.57
A46: Hainault Surgery | B46: F86085 | C46: 3501 | D46: 369 | E46: 0.105 | F46: 330 | G46: 0.894 | H46: 223 | I46: 0.604
A47: Fullwell Cross Medical Centre | B47: F86010 | C47: 15648 | D47: 1744 | E47: 0.111 | F47: 1558 | G47: 0.893 | H47: 1099 | I47: 0.63
A48: Newbury Group Practice | B48: F86060 | C48: 15728 | D48: 1642 | E48: 0.104 | F48: 1490 | G48: 0.907 | H48: 1082 | I48: 0.659

Sheet CHD
C1: 01. Listsize | D1: =INDEX('Control Panel'!$B$26:$B$39,COLUMN(D1)-COLUMN($D$1)+1) -> LDP.03: CHD Register | E1: =INDEX('Control Panel'!$B$26:$B$39,COLUMN(E1)-COLUMN($D$1)+1) -> %LDP.03: CHD Register | F1: =INDEX('Control Panel'!$B$26:$B$39,COLUMN(F1)-COLUMN($D$1)+1) -> LDP.03.04: CHD Cholesterol recorded (last 12m) | G1: =INDEX('Control Panel'!$B$26:$B$39,COLUMN(G1)-COLUMN($D$1)+1) -> %LDP.03.04: CHD Cholesterol recorded (last 12m) | H1: =INDEX('Control Panel'!$B$26:$B$39,COLUMN(H1)-COLUMN($D$1)+1) -> LDP.03.01: CHD Chol less than 5mmol (last 12m) | I1: =INDEX('Control Panel'!$B$26:$B$39,COLUMN(I1)-COLUMN($D$1)+1) -> %LDP.03.01: CHD Chol less than 5mmol (last 12m) | J1: =INDEX('Control Panel'!$B$26:$B$39,COLUMN(J1)-COLUMN($D$1)+1) -> LDP.03.02: CHD BP less than or equal 150/90 (last 9m) | K1: =INDEX('Control Panel'!$B$26:$B$39,COLUMN(K1)-COLUMN($D$1)+1) -> %LDP.03.02: CHD BP less than or equal 150/90 (last 9m)
C2: Redbridge - Practice Clinical Trends (LDP) Report
B3: =VLOOKUP(C3,'Control Panel'!O16:P27,2,FALSE) -> 2023-04-01 | C3: March 2023 | D3: =VLOOKUP(C3,'Control Panel'!O16:P27,2,FALSE) -> 2023-04-01
B4: 2019-07-01 | C4: ='Control Panel'!B25 -> CHD
A5: Home | B5: 2019-10-01 | C5: =VLOOKUP(C1,'Control Panel'!$B$3:$C$132,2,FALSE) -> List Size | D5: =VLOOKUP(D1,'Control Panel'!$B$3:$D$132,3,FALSE) -> CHD register | E5: =VLOOKUP(E1,'Control Panel'!$B$3:$D$132,3,FALSE) -> % list size | F5: =VLOOKUP(F1,'Control Panel'!$B$3:$D$132,3,FALSE) -> Cholesterol (last 12m) | G5: =VLOOKUP(G1,'Control Panel'!$B$3:$D$132,3,FALSE) -> % CHD register | H5: =VLOOKUP(H1,'Control Panel'!$B$3:$D$132,3,FALSE) -> Cholesterol < 5 (last 12m) | I5: =VLOOKUP(I1,'Control Panel'!$B$3:$D$132,3,FALSE) -> % CHD register | J5: =VLOOKUP(J1,'Control Panel'!$B$3:$D$132,3,FALSE) -> BP ≤ 150/90 (last 9m) | K5: =VLOOKUP(K1,'Control Panel'!$B$3:$D$132,3,FALSE) -> % CHD register
A6: Practice Name | C6: =SUM(C7:C43) -> 299982 | D6: =SUM(D7:D43) -> 6401 | E6: =IFERROR(D6/C6,"N/A") -> 0.021 | F6: =SUM(F7:F43) -> 1241 | G6: =IFERROR(F6/D6,"N/A") -> 0.194 | H6: =SUM(H7:H43) -> 1048 | I6: =IFERROR(H6/D6,"N/A") -> 0.164 | J6: =SUM(J7:J43) -> 3952 | K6: =IFERROR(J6/D6,"N/A") -> 0.617
A7: Drive Surgery | B7: F86652 | C7: =SUMIFS(OFFSET(REL_D,,MATCH(C$1,IND,0)-2),REL_D,$D$3,OrgID,$B7) -> 7307 | D7: 207 | E7: =IFERROR(D7/C7,"N/A") -> 0.028 | F7: =SUMIFS(OFFSET(REL_D,,MATCH(F$1,IND,0)-2),REL_D,$D$3,OrgID,$B7) -> 12 | G7: =IFERROR(F7/$D7,"N/A") -> 0.058 | H7: =SUMIFS(OFFSET(REL_D,,MATCH(H$1,IND,0)-2),REL_D,$D$3,OrgID,$B7) -> 12 | I7: =IFERROR(H7/$D7,"N/A") -> 0.058 | J7: =SUMIFS(OFFSET(REL_D,,MATCH(J$1,IND,0)-2),REL_D,$D$3,OrgID,$B7) -> 142 | K7: =IFERROR(J7/$D7,"N/A") -> 0.686
A8: St Clements Surgery | B8: F86702 | C8: 5187 | D8: 120 | E8: 0.023 | F8: 8 | G8: 0.067 | H8: 5 | I8: 0.042 | J8: 80 | K8: 0.667
A9: Granville Medical Centre | B9: Y00918 | C9: 6594 | D9: 208 | E9: 0.032 | F9: 10 | G9: 0.048 | H9: 8 | I9: 0.038 | J9: 134 | K9: 0.644
A10: Balfour Road Surgery | B10: F86042 | C10: 6272 | D10: 85 | E10: 0.014 | F10: 7 | G10: 0.082 | H10: 7 | I10: 0.082 | J10: 63 | K10: 0.741
A11: Cranbrook Surgery | B11: F86698 | C11: 5433 | D11: 117 | E11: 0.022 | F11: 16 | G11: 0.137 | H11: 16 | I11: 0.137 | J11: 68 | K11: 0.581
A12: Gants Hill Medical Centre | B12: F86008 | C12: 11595 | D12: 272 | E12: 0.023 | F12: 22 | G12: 0.081 | H12: 18 | I12: 0.066 | J12: 163 | K12: 0.599
A13: Redbridge Surgery | B13: F86703 | C13: 3846 | D13: 90 | E13: 0.023 | F13: 3 | G13: 0.033 | H13: 3 | I13: 0.033 | J13: 53 | K13: 0.589
A14: York Road Surgery | B14: F86657 | C14: 8313 | D14: 131 | E14: 0.016 | F14: 1 | G14: 0.008 | H14: 0 | I14: 0 | J14: 88 | K14: 0.672
A15: Kenwood Medical Centre | B15: F86081 | C15: 6456 | D15: 161 | E15: 0.025 | F15: 5 | G15: 0.031 | H15: 5 | I15: 0.031 | J15: 107 | K15: 0.665
A16: Eastern Avenue Medical Centre | B16: F86083 | C16: 6785 | D16: 241 | E16: 0.036 | F16: 17 | G16: 0.071 | H16: 16 | I16: 0.066 | J16: 138 | K16: 0.573
A17: Fullwell Avenue Surgery | B17: F86612 | C17: 3321 | D17: 93 | E17: 0.028 | F17: 6 | G17: 0.065 | H17: 4 | I17: 0.043 | J17: 58 | K17: 0.624
A18: Heathcote Primary Care Centre | B18: F86624 | C18: 3123 | D18: 78 | E18: 0.025 | F18: 13 | G18: 0.167 | H18: 11 | I18: 0.141 | J18: 44 | K18: 0.564
A19: Fencepiece Road Medical Practice | B19: F86707 | C19: 6752 | D19: 140 | E19: 0.021 | F19: 10 | G19: 0.071 | H19: 7 | I19: 0.05 | J19: 102 | K19: 0.729
A20: The Willows Practice | B20: F86057 | C20: 6539 | D20: 202 | E20: 0.031 | F20: 5 | G20: 0.025 | H20: 3 | I20: 0.015 | J20: 106 | K20: 0.525
A21: Forest Edge Practice | B21: F86007 | C21: 13645 | D21: 284 | E21: 0.021 | F21: 5 | G21: 0.018 | H21: 5 | I21: 0.018 | J21: 180 | K21: 0.634
A22: The Palms Medical Centre | B22: F86009 | C22: 7579 | D22: 166 | E22: 0.022 | F22: 1 | G22: 0.006 | H22: 1 | I22: 0.006 | J22: 92 | K22: 0.554
A23: Goodmayes Medical Centre | B23: F86087 | C23: 7655 | D23: 149 | E23: 0.019 | F23: 6 | G23: 0.04 | H23: 5 | I23: 0.034 | J23: 99 | K23: 0.664
A24: Seven Kings Practice | B24: F86637 | C24: =SUMIFS(OFFSET(REL_D,,MATCH(C$1,IND,0)-2),REL_D,$D$3,OrgID,$B24) -> 4919 | D24: 130 | E24: 0.026 | F24: 4 | G24: 0.031 | H24: 4 | I24: 0.031 | J24: 84 | K24: 0.646
A25: Doctor's House | B25: Y00090 | C25: 8284 | D25: 219 | E25: 0.026 | F25: 7 | G25: 0.032 | H25: 6 | I25: 0.027 | J25: 147 | K25: 0.671
A26: Green Lane, Goodmayes Medical practice | B26: F86034 | C26: 6160 | D26: 157 | E26: 0.025 | F26: 5 | G26: 0.032 | H26: 3 | I26: 0.019 | J26: 103 | K26: 0.656
A27: Castleton Road Surgery | B27: F86642 | C27: 5102 | D27: 106 | E27: 0.021 | F27: 0 | G27: 0 | H27: 0 | I27: 0 | J27: 70 | K27: 0.66
A28: Chadwell Heath Surgery | B28: F86028 | C28: 10693 | D28: 194 | E28: 0.018 | F28: 1 | G28: 0.005 | H28: 0 | I28: 0 | J28: 108 | K28: 0.557
A29: Grove Surgery | B29: Y00155 | C29: 9909 | D29: 130 | E29: 0.013 | F29: 0 | G29: 0 | H29: 0 | I29: 0 | J29: 87 | K29: 0.669
A30: Broadway Surgery | B30: F86013 | C30: 7137 | D30: 128 | E30: 0.018 | F30: 76 | G30: 0.594 | H30: 64 | I30: 0.5 | J30: 66 | K30: 0.516
A31: The Evergreen Practice | B31: F86023 | C31: 9914 | D31: 198 | E31: 0.02 | F31: 141 | G31: 0.712 | H31: 118 | I31: 0.596 | J31: 101 | K31: 0.51
A32: Wanstead Place Surgery | B32: F86032 | C32: 9341 | D32: 247 | E32: 0.026 | F32: 139 | G32: 0.563 | H32: 118 | I32: 0.478 | J32: 94 | K32: 0.381
A33: Aldersbrook Medical Centre | B33: F86731 | C33: 4630 | D33: 97 | E33: 0.021 | F33: 67 | G33: 0.691 | H33: 58 | I33: 0.598 | J33: 65 | K33: 0.67
A34: Southdene Surgery | B34: F86066 | C34: 7923 | D34: 151 | E34: 0.019 | F34: 107 | G34: 0.709 | H34: 92 | I34: 0.609 | J34: 86 | K34: 0.57
A35: Shrubberies Medical Centre | B35: F86641 | C35: 7939 | D35: 131 | E35: 0.017 | F35: 99 | G35: 0.756 | H35: 81 | I35: 0.618 | J35: 94 | K35: 0.718
A36: Glebelands Practice | B36: F86020 | C36: 5830 | D36: 130 | E36: =IFERROR(D36/C36,"N/A") -> 0.022 | F36: 94 | G36: =IFERROR(F36/$D36,"N/A") -> 0.723 | H36: 83 | I36: =IFERROR(H36/$D36,"N/A") -> 0.638 | J36: 73 | K36: 0.562
A37: Elmhurst Practice | B37: F86064 | C37: 4777 | D37: 96 | E37: =IFERROR(D37/C37,"N/A") -> 0.02 | F37: 48 | G37: =IFERROR(F37/$D37,"N/A") -> 0.5 | H37: 41 | I37: =IFERROR(H37/$D37,"N/A") -> 0.427 | J37: 64 | K37: =IFERROR(J37/$D37,"N/A") -> 0.667
A38: Clayhall Clinic | B38: F86691 | C38: =SUMIFS(OFFSET(REL_D,,MATCH(C$1,IND,0)-2),REL_D,$D$3,OrgID,$B38) -> 10968 | D38: 298 | E38: 0.027 | F38: 93 | G38: 0.312 | H38: 84 | I38: 0.282 | J38: 174 | K38: 0.584
A39: Rydal Practice | B39: F86012 | C39: 9531 | D39: 258 | E39: 0.027 | F39: 141 | G39: 0.547 | H39: 117 | I39: 0.453 | J39: 149 | K39: 0.578
A40: Queen Mary Practice | B40: F86658 | C40: 5508 | D40: 95 | E40: 0.017 | F40: 12 | G40: 0.126 | H40: 7 | I40: 0.074 | J40: 52 | K40: 0.547
A41: Ilford Medical Centre | B41: F86022 | C41: 14570 | D41: 330 | E41: 0.023 | F41: 9 | G41: 0.027 | H41: 7 | I41: 0.021 | J41: 232 | K41: 0.703
A42: The Practice Loxford | B42: Y02987 | C42: 29566 | D42: 316 | E42: =IFERROR(D42/C42,"N/A") -> 0.011 | F42: 21 | G42: =IFERROR(F42/$D42,"N/A") -> 0.066 | H42: 17 | I42: =IFERROR(H42/$D42,"N/A") -> 0.054 | J42: 217 | K42: =IFERROR(J42/$D42,"N/A") -> 0.687
A43: Mathukias Surgery | B43: F86692 | C43: 10879 | D43: 246 | E43: =IFERROR(D43/C43,"N/A") -> 0.023 | F43: 30 | G43: =IFERROR(F43/$D43,"N/A") -> 0.122 | H43: 22 | I43: =IFERROR(H43/$D43,"N/A") -> 0.089 | J43: 169 | K43: =IFERROR(J43/$D43,"N/A") -> 0.687
A44: Ilford Lane Surgery | B44: F86082 | C44: 6018 | D44: 174 | E44: =IFERROR(D44/C44,"N/A") -> 0.029 | F44: 0 | G44: =IFERROR(F44/$D44,"N/A") -> 0 | H44: 0 | I44: =IFERROR(H44/$D44,"N/A") -> 0 | J44: 118 | K44: =IFERROR(J44/$D44,"N/A") -> 0.678
A45: Oak Tree Medical Practice | B45: F86025 | C45: 17240 | D45: 339 | E45: 0.02 | F45: 15 | G45: 0.044 | H45: 10 | I45: 0.029 | J45: 225 | K45: 0.664
A46: Hainault Surgery | B46: F86085 | C46: 3501 | D46: 78 | E46: 0.022 | F46: 6 | G46: 0.077 | H46: 6 | I46: 0.077 | J46: 53 | K46: 0.679
A47: Fullwell Cross Medical Centre | B47: F86010 | C47: 15648 | D47: 375 | E47: 0.024 | F47: 9 | G47: 0.024 | H47: 6 | I47: 0.016 | J47: 221 | K47: 0.589
A48: Newbury Group Practice | B48: F86060 | C48: 15728 | D48: 318 | E48: 0.02 | F48: 8 | G48: 0.025 | H48: 8 | I48: 0.025 | J48: 201 | K48: 0.632

Sheet Stroke
C1: 01. Listsize | D1: LDP.10 Stroke or TIA register | E1: %LDP.10 Stroke or TIA register | F1: LDP.10.01: Stroke/TIA BP recorded (last 12m) | G1: %LDP.10.01: Stroke/TIA BP recorded (last 12m) | H1: LDP.10.02 Patients on Stroke/TIA register with BP <140/90 (12m) | I1: %LDP.10.02 Patients on Stroke/TIA register with BP <140/90 (12m)
C2: Redbridge - Practice Clinical Trends (LDP) Report
B3: =VLOOKUP(C3,'Control Panel'!O16:P27,2,FALSE) -> 2023-04-01 | C3: March 2023 | D3: =VLOOKUP(C3,'Control Panel'!O16:P27,2,FALSE) -> 2023-04-01
B4: 2019-07-01 | C4: ='Control Panel'!B41 -> Stroke/TIA
A5: Home | B5: 2019-10-01 | C5: =VLOOKUP(C1,'Control Panel'!$B$3:$C$132,2,FALSE) -> List Size | D5: =VLOOKUP(D1,'Control Panel'!$B$3:$D$132,3,FALSE) -> Stroke/TIA register | E5: =VLOOKUP(E1,'Control Panel'!$B$3:$D$132,3,FALSE) -> % list size | F5: =VLOOKUP(F1,'Control Panel'!$B$3:$D$132,3,FALSE) -> Patients on Stroke/TIA register with BP recorded | G5: =VLOOKUP(G1,'Control Panel'!$B$3:$D$132,3,FALSE) -> % of stroke register | H5: =VLOOKUP(H1,'Control Panel'!$B$3:$D$132,3,FALSE) -> Patients on Stroke/TIA register with BP <140/90 (12m) | I5: =VLOOKUP(I1,'Control Panel'!$B$3:$D$132,3,FALSE) -> % of stroke register
A6: Practice Name | C6: =SUM(C7:C43) -> 299982 | D6: =SUM(D7:D43) -> 3097 | E6: =IFERROR(D6/C6,"N/A") -> 0.01 | F6: =SUM(F7:F43) -> 2736 | G6: =IFERROR(F6/D6,"N/A") -> 0.883 | H6: =SUM(H7:H43) -> 2021 | I6: =IFERROR(H6/D6,"N/A") -> 0.653
A7: Drive Surgery | B7: F86652 | C7: =SUMIFS(OFFSET(REL_D,,MATCH(C$1,IND,0)-2),REL_D,$D$3,OrgID,$B7) -> 7307 | D7: 86 | E7: =IFERROR(D7/C7,"N/A") -> 0.012 | F7: =SUMIFS(OFFSET(REL_D,,MATCH(F$1,IND,0)-2),REL_D,$D$3,OrgID,$B7) -> 84 | G7: =IFERROR(F7/D7,"N/A") -> 0.977 | H7: =SUMIFS(OFFSET(REL_D,,MATCH(H$1,IND,0)-2),REL_D,$D$3,OrgID,$B7) -> 63 | I7: =IFERROR(H7/D7,"N/A") -> 0.733
A8: St Clements Surgery | B8: F86702 | C8: 5187 | D8: 62 | E8: 0.012 | F8: 58 | G8: 0.935 | H8: 38 | I8: 0.613
A9: Granville Medical Centre | B9: Y00918 | C9: 6594 | D9: 76 | E9: 0.012 | F9: 70 | G9: 0.921 | H9: 55 | I9: 0.724
A10: Balfour Road Surgery | B10: F86042 | C10: 6272 | D10: 36 | E10: 0.006 | F10: 33 | G10: 0.917 | H10: 29 | I10: 0.806
A11: Cranbrook Surgery | B11: F86698 | C11: 5433 | D11: 40 | E11: 0.007 | F11: 39 | G11: 0.975 | H11: 33 | I11: 0.825
A12: Gants Hill Medical Centre | B12: F86008 | C12: 11595 | D12: 114 | E12: 0.01 | F12: 110 | G12: 0.965 | H12: 86 | I12: 0.754
A13: Redbridge Surgery | B13: F86703 | C13: 3846 | D13: 43 | E13: 0.011 | F13: 38 | G13: 0.884 | H13: 25 | I13: 0.581
A14: York Road Surgery | B14: F86657 | C14: 8313 | D14: 54 | E14: 0.006 | F14: 49 | G14: 0.907 | H14: 39 | I14: 0.722
A15: Kenwood Medical Centre | B15: F86081 | C15: 6456 | D15: 55 | E15: 0.009 | F15: 50 | G15: 0.909 | H15: 40 | I15: 0.727
A16: Eastern Avenue Medical Centre | B16: F86083 | C16: 6785 | D16: 75 | E16: 0.011 | F16: 57 | G16: 0.76 | H16: 44 | I16: 0.587
A17: Fullwell Avenue Surgery | B17: F86612 | C17: 3321 | D17: 50 | E17: 0.015 | F17: 39 | G17: 0.78 | H17: 33 | I17: 0.66
A18: Heathcote Primary Care Centre | B18: F86624 | C18: 3123 | D18: 30 | E18: 0.01 | F18: 29 | G18: 0.967 | H18: 28 | I18: 0.933
A19: Fencepiece Road Medical Practice | B19: F86707 | C19: 6752 | D19: 41 | E19: 0.006 | F19: 39 | G19: 0.951 | H19: 36 | I19: 0.878
A20: The Willows Practice | B20: F86057 | C20: 6539 | D20: 83 | E20: 0.013 | F20: 76 | G20: 0.916 | H20: 58 | I20: 0.699
A21: Forest Edge Practice | B21: F86007 | C21: 13645 | D21: 175 | E21: 0.013 | F21: 158 | G21: 0.903 | H21: 106 | I21: 0.606
A22: The Palms Medical Centre | B22: F86009 | C22: 7579 | D22: 62 | E22: 0.008 | F22: 39 | G22: 0.629 | H22: 28 | I22: 0.452
A23: Goodmayes Medical Centre | B23: F86087 | C23: 7655 | D23: 54 | E23: 0.007 | F23: 48 | G23: 0.889 | H23: 28 | I23: 0.519
A24: Seven Kings Practice | B24: F86637 | C24: =SUMIFS(OFFSET(REL_D,,MATCH(C$1,IND,0)-2),REL_D,$D$3,OrgID,$B24) -> 4919 | D24: 80 | E24: 0.016 | F24: 75 | G24: 0.938 | H24: 58 | I24: 0.725
A25: Doctor's House | B25: Y00090 | C25: 8284 | D25: 106 | E25: 0.013 | F25: 98 | G25: 0.925 | H25: 66 | I25: 0.623
A26: Green Lane, Goodmayes Medical practice | B26: F86034 | C26: 6160 | D26: 58 | E26: 0.009 | F26: 53 | G26: 0.914 | H26: 34 | I26: 0.586
A27: Castleton Road Surgery | B27: F86642 | C27: 5102 | D27: 45 | E27: 0.009 | F27: 37 | G27: 0.822 | H27: 26 | I27: 0.578
A28: Chadwell Heath Surgery | B28: F86028 | C28: 10693 | D28: 109 | E28: 0.01 | F28: 83 | G28: 0.761 | H28: 56 | I28: 0.514
A29: Grove Surgery | B29: Y00155 | C29: 9909 | D29: 88 | E29: 0.009 | F29: 77 | G29: 0.875 | H29: 47 | I29: 0.534
A30: Broadway Surgery | B30: F86013 | C30: 7137 | D30: 86 | E30: 0.012 | F30: 72 | G30: 0.837 | H30: 54 | I30: 0.628
A31: The Evergreen Practice | B31: F86023 | C31: 9914 | D31: 156 | E31: 0.016 | F31: 139 | G31: 0.891 | H31: 110 | I31: 0.705
A32: Wanstead Place Surgery | B32: F86032 | C32: 9341 | D32: 132 | E32: 0.014 | F32: 97 | G32: 0.735 | H32: 74 | I32: 0.561
A33: Aldersbrook Medical Centre | B33: F86731 | C33: 4630 | D33: 63 | E33: 0.014 | F33: 58 | G33: 0.921 | H33: 46 | I33: 0.73
A34: Southdene Surgery | B34: F86066 | C34: 7923 | D34: 97 | E34: 0.012 | F34: 83 | G34: 0.856 | H34: 63 | I34: 0.649
A35: Shrubberies Medical Centre | B35: F86641 | C35: 7939 | D35: 82 | E35: 0.01 | F35: 76 | G35: 0.927 | H35: 60 | I35: 0.732
A36: Glebelands Practice | B36: F86020 | C36: 5830 | D36: 63 | E36: 0.011 | F36: 60 | G36: 0.952 | H36: 52 | I36: 0.825
A37: Elmhurst Practice | B37: F86064 | C37: 4777 | D37: 56 | E37: =IFERROR(D37/C37,"N/A") -> 0.012 | F37: 51 | G37: =IFERROR(F37/D37,"N/A") -> 0.911 | H37: 39 | I37: =IFERROR(H37/D37,"N/A") -> 0.696
A38: Clayhall Clinic | B38: F86691 | C38: =SUMIFS(OFFSET(REL_D,,MATCH(C$1,IND,0)-2),REL_D,$D$3,OrgID,$B38) -> 10968 | D38: 133 | E38: 0.012 | F38: 115 | G38: 0.865 | H38: 87 | I38: 0.654
A39: Rydal Practice | B39: F86012 | C39: 9531 | D39: 129 | E39: 0.014 | F39: 121 | G39: 0.938 | H39: 81 | I39: 0.628
A40: Queen Mary Practice | B40: F86658 | C40: 5508 | D40: 49 | E40: 0.009 | F40: 40 | G40: 0.816 | H40: 34 | I40: 0.694
A41: Ilford Medical Centre | B41: F86022 | C41: 14570 | D41: 174 | E41: 0.012 | F41: 155 | G41: 0.891 | H41: 119 | I41: 0.684
A42: The Practice Loxford | B42: Y02987 | C42: 29566 | D42: 177 | E42: 0.006 | F42: 156 | G42: 0.881 | H42: 115 | I42: 0.65
A43: Mathukias Surgery | B43: F86692 | C43: 10879 | D43: 78 | E43: =IFERROR(D43/C43,"N/A") -> 0.007 | F43: 74 | G43: =IFERROR(F43/D43,"N/A") -> 0.949 | H43: 31 | I43: =IFERROR(H43/D43,"N/A") -> 0.397
A44: Ilford Lane Surgery | B44: F86082 | C44: 6018 | D44: 73 | E44: =IFERROR(D44/C44,"N/A") -> 0.012 | F44: 71 | G44: =IFERROR(F44/D44,"N/A") -> 0.973 | H44: 59 | I44: =IFERROR(H44/D44,"N/A") -> 0.808
A45: Oak Tree Medical Practice | B45: F86025 | C45: 17240 | D45: 163 | E45: 0.009 | F45: 151 | G45: 0.926 | H45: 103 | I45: 0.632
A46: Hainault Surgery | B46: F86085 | C46: 3501 | D46: 33 | E46: 0.009 | F46: 28 | G46: 0.848 | H46: 18 | I46: 0.545
A47: Fullwell Cross Medical Centre | B47: F86010 | C47: 15648 | D47: 154 | E47: 0.01 | F47: 136 | G47: 0.883 | H47: 102 | I47: 0.662
A48: Newbury Group Practice | B48: F86060 | C48: 15728 | D48: 147 | E48: 0.009 | F48: 137 | G48: 0.932 | H48: 105 | I48: 0.714

Sheet CVD Risk
C1: 01. Listsize | D1: =INDEX('Control Panel'!$B$49:$B$55,COLUMN(D1)-COLUMN($D$1)+1) -> LDP.05: CVD 25-84yrs (excl CVD) | E1: =INDEX('Control Panel'!$B$49:$B$55,COLUMN(E1)-COLUMN($D$1)+1) -> LDP.05.02: Cardiovascular Risk Score Done (5y) | F1: =INDEX('Control Panel'!$B$49:$B$55,COLUMN(F1)-COLUMN($D$1)+1) -> %LDP.05.02: Cardiovascular Risk Score Done (5y) | G1: =INDEX('Control Panel'!$B$49:$B$55,COLUMN(G1)-COLUMN($D$1)+1) -> LDP.05.01: CVD QRISK greater than or equal 20% | H1: =INDEX('Control Panel'!$B$49:$B$55,COLUMN(H1)-COLUMN($D$1)+1) -> %LDP.05.01: CVD QRISK greater than or equal 20% | I1: =INDEX('Control Panel'!$B$49:$B$55,COLUMN(I1)-COLUMN($D$1)+1) -> LDP.05.01.01: CVD Proxy Annual Review (last 12m) | J1: =INDEX('Control Panel'!$B$49:$B$55,COLUMN(J1)-COLUMN($D$1)+1) -> %LDP.05.01.01: CVD Proxy Annual Review (last 12m)
C2: Redbridge - Practice Clinical Trends (LDP) Report
B3: =VLOOKUP(C3,'Control Panel'!O16:P27,2,FALSE) -> 2023-04-01 | C3: March 2023 | D3: =VLOOKUP(C3,'Control Panel'!O16:P27,2,FALSE) -> 2023-04-01
B4: 2019-07-01 | C4: ='Control Panel'!B48 -> CVD Risk
A5: Home | B5: 2019-10-01 | C5: =VLOOKUP(C1,'Control Panel'!$B$3:$C$132,2,FALSE) -> List Size | D5: =VLOOKUP(D1,'Control Panel'!$B$3:$D$132,3,FALSE) -> Aged 25 to 84 (exc CVD) | E5: =VLOOKUP(E1,'Control Panel'!$B$3:$D$132,3,FALSE) -> QRISK recorded (5 years) | F5: =VLOOKUP(F1,'Control Panel'!$B$3:$D$132,3,FALSE) -> % of patients aged 25 to 84 (exc CVD) | G5: =VLOOKUP(G1,'Control Panel'!$B$3:$D$132,3,FALSE) -> QRISK ≥ 20% | H5: =VLOOKUP(H1,'Control Panel'!$B$3:$D$132,3,FALSE) -> % QRISK Score recorded | I5: =VLOOKUP(I1,'Control Panel'!$B$3:$D$132,3,FALSE) -> QRISK ≥ 20% and proxy review (BP and Chol last 12m) | J5: =VLOOKUP(J1,'Control Panel'!$B$3:$D$132,3,FALSE) -> % Patients with QRISK ≥ 20%
A6: Practice Name | C6: =SUM(C7:C43) -> 299982 | D6: =SUM(D7:D43) -> 177240 | E6: =SUM(E7:E43) -> 58795 | F6: =IFERROR(E6/D6,"N/A") -> 0.332 | G6: =SUM(G7:G43) -> 11242 | H6: =IFERROR(G6/E6,"N/A") -> 0.191 | I6: =SUM(I7:I43) -> 1862 | J6: =IFERROR(I6/G6,"N/A") -> 0.166
A7: Drive Surgery | B7: F86652 | C7: =SUMIFS(OFFSET(REL_D,,MATCH(C$1,IND,0)-2),REL_D,$D$3,OrgID,$B7) -> 7307 | D7: 4484 | E7: 1646 | F7: =IFERROR(E7/$D7,"N/A") -> 0.367 | G7: =SUMIFS(OFFSET(REL_D,,MATCH(G$1,IND,0)-2),REL_D,$D$3,OrgID,$B7) -> 457 | H7: =IFERROR(G7/$E7,"N/A") -> 0.278 | I7: =SUMIFS(OFFSET(REL_D,,MATCH(I$1,IND,0)-2),REL_D,$D$3,OrgID,$B7) -> 14 | J7: =IFERROR(I7/$G7,"N/A") -> 0.031
A8: St Clements Surgery | B8: F86702 | C8: 5187 | D8: 3267 | E8: 983 | F8: 0.301 | G8: 249 | H8: 0.253 | I8: 8 | J8: 0.032
A9: Granville Medical Centre | B9: Y00918 | C9: 6594 | D9: 4299 | E9: 1397 | F9: 0.325 | G9: 326 | H9: 0.233 | I9: 9 | J9: 0.028
A10: Balfour Road Surgery | B10: F86042 | C10: 6272 | D10: 3822 | E10: 1996 | F10: 0.522 | G10: 388 | H10: 0.194 | I10: 14 | J10: 0.036
A11: Cranbrook Surgery | B11: F86698 | C11: 5433 | D11: 3472 | E11: 1113 | F11: 0.321 | G11: 225 | H11: 0.202 | I11: 18 | J11: 0.08
A12: Gants Hill Medical Centre | B12: F86008 | C12: 11595 | D12: 7515 | E12: 2264 | F12: 0.301 | G12: 500 | H12: 0.221 | I12: 22 | J12: 0.044
A13: Redbridge Surgery | B13: F86703 | C13: 3846 | D13: 2368 | E13: 489 | F13: 0.207 | G13: 125 | H13: 0.256 | I13: 7 | J13: 0.056
A14: York Road Surgery | B14: F86657 | C14: 8313 | D14: 157 | E14: 15 | F14: 0.096 | G14: 5 | H14: 0.333 | I14: 0 | J14: 0
A15: Kenwood Medical Centre | B15: F86081 | C15: 6456 | D15: 4204 | E15: 1721 | F15: 0.409 | G15: 345 | H15: 0.2 | I15: 7 | J15: 0.02
A16: Eastern Avenue Medical Centre | B16: F86083 | C16: 6785 | D16: 4571 | E16: 746 | F16: 0.163 | G16: 218 | H16: 0.292 | I16: 13 | J16: 0.06
A17: Fullwell Avenue Surgery | B17: F86612 | C17: 3321 | D17: 2122 | E17: 711 | F17: 0.335 | G17: 211 | H17: 0.297 | I17: 8 | J17: 0.038
A18: Heathcote Primary Care Centre | B18: F86624 | C18: 3123 | D18: 2048 | E18: 285 | F18: 0.139 | G18: 91 | H18: 0.319 | I18: 8 | J18: 0.088
A19: Fencepiece Road Medical Practice | B19: F86707 | C19: 6752 | D19: 4341 | E19: 822 | F19: 0.189 | G19: 224 | H19: 0.273 | I19: 13 | J19: 0.058
A20: The Willows Practice | B20: F86057 | C20: 6539 | D20: 4242 | E20: 871 | F20: 0.205 | G20: 184 | H20: 0.211 | I20: 10 | J20: 0.054
A21: Forest Edge Practice | B21: F86007 | C21: 13645 | D21: 8826 | E21: 2272 | F21: 0.257 | G21: 462 | H21: 0.203 | I21: 7 | J21: 0.015
A22: The Palms Medical Centre | B22: F86009 | C22: 7579 | D22: 5134 | E22: 1783 | F22: 0.347 | G22: 301 | H22: 0.169 | I22: 4 | J22: 0.013
A23: Goodmayes Medical Centre | B23: F86087 | C23: 7655 | D23: 4819 | E23: 1061 | F23: 0.22 | G23: 305 | H23: 0.287 | I23: 7 | J23: 0.023
A24: Seven Kings Practice | B24: F86637 | C24: =SUMIFS(OFFSET(REL_D,,MATCH(C$1,IND,0)-2),REL_D,$D$3,OrgID,$B24) -> 4919 | D24: 3226 | E24: 869 | F24: 0.269 | G24: 218 | H24: 0.251 | I24: 5 | J24: 0.023
A25: Doctor's House | B25: Y00090 | C25: 8284 | D25: 5152 | E25: 1780 | F25: 0.345 | G25: 336 | H25: 0.189 | I25: 7 | J25: 0.021
A26: Green Lane, Goodmayes Medical practice | B26: F86034 | C26: 6160 | D26: 3759 | E26: 839 | F26: 0.223 | G26: 239 | H26: 0.285 | I26: 10 | J26: 0.042
A27: Castleton Road Surgery | B27: F86642 | C27: 5102 | D27: 3179 | E27: 1150 | F27: 0.362 | G27: 229 | H27: 0.199 | I27: 1 | J27: 0.004
A28: Chadwell Heath Surgery | B28: F86028 | C28: 10693 | D28: 6389 | E28: 5523 | F28: 0.864 | G28: 485 | H28: 0.088 | I28: 11 | J28: 0.023
A29: Grove Surgery | B29: Y00155 | C29: 9909 | D29: 186 | E29: 36 | F29: 0.194 | G29: 26 | H29: 0.722 | I29: 0 | J29: 0
A30: Broadway Surgery | B30: F86013 | C30: 7137 | D30: 178 | E30: 36 | F30: 0.202 | G30: 19 | H30: 0.528 | I30: 19 | J30: 1
A31: The Evergreen Practice | B31: F86023 | C31: 9914 | D31: 6876 | E31: 1750 | F31: 0.255 | G31: 384 | H31: 0.219 | I31: 193 | J31: 0.503
A32: Wanstead Place Surgery | B32: F86032 | C32: 9341 | D32: 6365 | E32: 1638 | F32: 0.257 | G32: 245 | H32: 0.15 | I32: 111 | J32: 0.453
A33: Aldersbrook Medical Centre | B33: F86731 | C33: 4630 | D33: 3055 | E33: 1510 | F33: 0.494 | G33: 198 | H33: 0.131 | I33: 127 | J33: 0.641
A34: Southdene Surgery | B34: F86066 | C34: 7923 | D34: 5384 | E34: 1878 | F34: 0.349 | G34: 312 | H34: 0.166 | I34: 209 | J34: 0.67
A35: Shrubberies Medical Centre | B35: F86641 | C35: 7939 | D35: 5400 | E35: 1778 | F35: 0.329 | G35: 189 | H35: 0.106 | I35: 147 | J35: 0.778
A36: Glebelands Practice | B36: F86020 | C36: 5830 | D36: 4132 | E36: 1491 | F36: =IFERROR(E36/$D36,"N/A") -> 0.361 | G36: 296 | H36: =IFERROR(G36/$E36,"N/A") -> 0.199 | I36: 186 | J36: =IFERROR(I36/$G36,"N/A") -> 0.628
A37: Elmhurst Practice | B37: F86064 | C37: 4777 | D37: 3236 | E37: 1424 | F37: =IFERROR(E37/$D37,"N/A") -> 0.44 | G37: 222 | H37: =IFERROR(G37/$E37,"N/A") -> 0.156 | I37: 115 | J37: =IFERROR(I37/$G37,"N/A") -> 0.518
A38: Clayhall Clinic | B38: F86691 | C38: =SUMIFS(OFFSET(REL_D,,MATCH(C$1,IND,0)-2),REL_D,$D$3,OrgID,$B38) -> 10968 | D38: 6911 | E38: 2884 | F38: 0.417 | G38: 548 | H38: 0.19 | I38: 168 | J38: 0.307
A39: Rydal Practice | B39: F86012 | C39: 9531 | D39: 6545 | E39: 1921 | F39: 0.294 | G39: 380 | H39: 0.198 | I39: 214 | J39: 0.563
A40: Queen Mary Practice | B40: F86658 | C40: 5508 | D40: 3656 | E40: 1052 | F40: 0.288 | G40: 211 | H40: 0.201 | I40: 21 | J40: 0.1
A41: Ilford Medical Centre | B41: F86022 | C41: 14570 | D41: 9291 | E41: 3351 | F41: 0.361 | G41: 658 | H41: 0.196 | I41: 6 | J41: 0.009
A42: The Practice Loxford | B42: Y02987 | C42: 29566 | D42: 18196 | E42: 5271 | F42: 0.29 | G42: 794 | H42: 0.151 | I42: 37 | J42: 0.047
A43: Mathukias Surgery | B43: F86692 | C43: 10879 | D43: 6433 | E43: 2439 | F43: =IFERROR(E43/$D43,"N/A") -> 0.379 | G43: 637 | H43: =IFERROR(G43/$E43,"N/A") -> 0.261 | I43: 106 | J43: =IFERROR(I43/$G43,"N/A") -> 0.166
A44: Ilford Lane Surgery | B44: F86082 | C44: 6018 | D44: 221 | E44: 49 | F44: =IFERROR(E44/$D44,"N/A") -> 0.222 | G44: 28 | H44: =IFERROR(G44/$E44,"N/A") -> 0.571 | I44: 0 | J44: =IFERROR(I44/$G44,"N/A") -> 0
A45: Oak Tree Medical Practice | B45: F86025 | C45: 17240 | D45: 435 | E45: 38 | F45: 0.087 | G45: 13 | H45: 0.342 | I45: 4 | J45: 0.308
A46: Hainault Surgery | B46: F86085 | C46: 3501 | D46: 2322 | E46: 480 | F46: 0.207 | G46: 111 | H46: 0.231 | I46: 7 | J46: 0.063
A47: Fullwell Cross Medical Centre | B47: F86010 | C47: 15648 | D47: 10233 | E47: 7262 | F47: 0.71 | G47: 843 | H47: 0.116 | I47: 25 | J47: 0.03
A48: Newbury Group Practice | B48: F86060 | C48: 15728 | D48: 9903 | E48: 3827 | F48: 0.386 | G48: 799 | H48: 0.209 | I48: 30 | J48: 0.038

Sheet Diabetes
C1: 01. Listsize | D1: ='Control Panel'!B57 -> LDP.04: Diabetes Register | E1: =INDEX('Control Panel'!$B$57:$B$106,COLUMN(E1)-COLUMN($D$1)+1) -> %LDP.04: Diabetes Register | F1: ='Control Panel'!B61 -> LDP.04.11: Diabetes and BP in last 12 months | G1: ='Control Panel'!B62 -> %LDP.04.11: Diabetes and BP in last 12 months | H1: ='Control Panel'!B63 -> LDP.04.09: Diabetes BP less than 145/85 (last 12m) | I1: ='Control Panel'!B64 -> %LDP.04.09: Diabetes BP less than 145/85 (last 12m) | J1: ='Control Panel'!B67 -> LDP.04.08: Diabetes Chol less than 5mmol (last 12m) | K1: ='Control Panel'!B68 -> %LDP.04.08: Diabetes Chol less than 5mmol (last 12m) | L1: ='Control Panel'!B69 -> LDP.04.01: Diabetes HbA1c <7.5% OR <59mmol (last 12m) | M1: ='Control Panel'!B70 -> %LDP.04.01: Diabetes HbA1c <7.5% OR <59mmol (last 12m) | N1: ='Control Panel'!B81 -> LDP.04.07: Diabetes Influenza Vaccinations (From August 2018) | O1: ='Control Panel'!B82 -> %LDP.04.07: Diabetes Influenza Vaccinations (From August 2018)
C2: Redbridge - Practice Clinical Trends (LDP) Report
B3: =VLOOKUP(C3,'Control Panel'!O16:P27,2,FALSE) -> 2023-04-01 | C3: March 2023 | D3: =VLOOKUP(C3,'Control Panel'!O16:P27,2,FALSE) -> 2023-04-01
B4: 2019-07-01 | C4: ='Control Panel'!B56 -> Diabetes
A5: Home | B5: 2019-10-01 | C5: =VLOOKUP(C1,'Control Panel'!$B$3:$C$132,2,FALSE) -> List Size | D5: Diabetes register | E5: % List size | F5: BP (last 12m) | G5: % Diabetes Register | H5: BP < 145/85 (last 12m) | I5: % Diabetes Register | J5: Cholesterol < 5mmols (last 12m) | K5: % Diabetes Register | L5: HbA1c < 59 (last 12m) | M5: % Diabetes register | N5: Flu jab (From August 2022) | O5: % Diabetes Register
A6: Practice Name | C6: =SUM(C7:C43) -> 299982 | D6: =SUM(D7:D43) -> 21786 | E6: =IFERROR(D6/C6,"N/A") -> 0.073 | F6: =SUM(F7:F43) -> 19806 | G6: =IFERROR(F6/D6,"N/A") -> 0.909 | H6: =SUM(H7:H43) -> 16364 | I6: =IFERROR(H6/D6,"N/A") -> 0.751 | J6: =SUM(J7:J43) -> 2717 | K6: =IFERROR(J6/D6,"N/A") -> 0.125 | L6: =SUM(L7:L43) -> 10850 | M6: =IFERROR(L6/D6,"N/A") -> 0.498 | N6: =SUM(N7:N43) -> 14514 | O6: =IFERROR(N6/D6,"N/A") -> 0.666
A7: Drive Surgery | B7: F86652 | C7: =SUMIFS(OFFSET(REL_D,,MATCH(C$1,IND,0)-2),REL_D,$D$3,OrgID,$B7) -> 7307 | D7: 703 | E7: =IFERROR(D7/C7,"N/A") -> 0.096 | F7: =SUMIFS(OFFSET(REL_D,,MATCH(F$1,IND,0)-2),REL_D,$D$3,OrgID,$B7) -> 678 | G7: =IFERROR(F7/$D7,"N/A") -> 0.964 | H7: =SUMIFS(OFFSET(REL_D,,MATCH(H$1,IND,0)-2),REL_D,$D$3,OrgID,$B7) -> 586 | I7: =IFERROR(H7/$D7,"N/A") -> 0.834 | J7: =SUMIFS(OFFSET(REL_D,,MATCH(J$1,IND,0)-2),REL_D,$D$3,OrgID,$B7) -> 28 | K7: =IFERROR(J7/$D7,"N/A") -> 0.04 | L7: =SUMIFS(OFFSET(REL_D,,MATCH(L$1,IND,0)-2),REL_D,$D$3,OrgID,$B7) -> 427 | M7: =IFERROR(L7/$D7,"N/A") -> 0.607 | N7: =SUMIFS(OFFSET(REL_D,,MATCH(N$1,IND,0)-2),REL_D,$D$3,OrgID,$B7) -> 442 | O7: =IFERROR(N7/$D7,"N/A") -> 0.629
A8: St Clements Surgery | B8: F86702 | C8: 5187 | D8: 465 | E8: 0.09 | F8: 456 | G8: 0.981 | H8: 375 | I8: 0.806 | J8: 16 | K8: 0.034 | L8: 281 | M8: 0.604 | N8: 273 | O8: 0.587
A9: Granville Medical Centre | B9: Y00918 | C9: 6594 | D9: 706 | E9: 0.107 | F9: 642 | G9: 0.909 | H9: 553 | I9: 0.783 | J9: 33 | K9: 0.047 | L9: 361 | M9: 0.511 | N9: 510 | O9: 0.722
A10: Balfour Road Surgery | B10: F86042 | C10: 6272 | D10: 542 | E10: 0.086 | F10: 498 | G10: 0.919 | H10: 474 | I10: 0.875 | J10: 21 | K10: 0.039 | L10: 307 | M10: 0.566 | N10: 402 | O10: 0.742
A11: Cranbrook Surgery | B11: F86698 | C11: 5433 | D11: 622 | E11: 0.114 | F11: 605 | G11: 0.973 | H11: 506 | I11: 0.814 | J11: 50 | K11: 0.08 | L11: 398 | M11: 0.64 | N11: 491 | O11: 0.789
A12: Gants Hill Medical Centre | B12: F86008 | C12: 11595 | D12: 846 | E12: 0.073 | F12: 787 | G12: 0.93 | H12: 640 | I12: 0.757 | J12: 39 | K12: 0.046 | L12: 451 | M12: 0.533 | N12: 587 | O12: 0.694
A13: Redbridge Surgery | B13: F86703 | C13: 3846 | D13: 342 | E13: 0.089 | F13: 307 | G13: 0.898 | H13: 229 | I13: 0.67 | J13: 14 | K13: 0.041 | L13: 147 | M13: 0.43 | N13: 217 | O13: 0.635
A14: York Road Surgery | B14: F86657 | C14: 8313 | D14: 649 | E14: 0.078 | F14: 606 | G14: 0.934 | H14: 504 | I14: 0.777 | J14: 1 | K14: 0.002 | L14: 0 | M14: 0 | N14: 476 | O14: 0.733
A15: Kenwood Medical Centre | B15: F86081 | C15: 6456 | D15: 638 | E15: 0.099 | F15: 581 | G15: 0.911 | H15: 479 | I15: 0.751 | J15: 34 | K15: 0.053 | L15: 361 | M15: 0.566 | N15: 479 | O15: 0.751
A16: Eastern Avenue Medical Centre | B16: F86083 | C16: 6785 | D16: 749 | E16: 0.11 | F16: 561 | G16: 0.749 | H16: 461 | I16: 0.615 | J16: 42 | K16: 0.056 | L16: 341 | M16: 0.455 | N16: 496 | O16: 0.662
A17: Fullwell Avenue Surgery | B17: F86612 | C17: 3321 | D17: 297 | E17: 0.089 | F17: 281 | G17: 0.946 | H17: 232 | I17: 0.781 | J17: 16 | K17: 0.054 | L17: 171 | M17: 0.576 | N17: 230 | O17: 0.774
A18: Heathcote Primary Care Centre | B18: F86624 | C18: 3123 | D18: 269 | E18: 0.086 | F18: 257 | G18: 0.955 | H18: 233 | I18: 0.866 | J18: 27 | K18: 0.1 | L18: 160 | M18: 0.595 | N18: 212 | O18: 0.788
A19: Fencepiece Road Medical Practice | B19: F86707 | C19: 6752 | D19: 421 | E19: 0.062 | F19: 395 | G19: 0.938 | H19: 344 | I19: 0.817 | J19: 25 | K19: 0.059 | L19: 189 | M19: 0.449 | N19: 283 | O19: 0.672
A20: The Willows Practice | B20: F86057 | C20: 6539 | D20: 452 | E20: 0.069 | F20: 400 | G20: 0.885 | H20: 297 | I20: 0.657 | J20: 7 | K20: 0.015 | L20: 214 | M20: 0.473 | N20: 251 | O20: 0.555
A21: Forest Edge Practice | B21: F86007 | C21: 13645 | D21: 777 | E21: 0.057 | F21: 690 | G21: 0.888 | H21: 533 | I21: 0.686 | J21: 19 | K21: 0.024 | L21: 360 | M21: 0.463 | N21: 498 | O21: 0.641
A22: The Palms Medical Centre | B22: F86009 | C22: 7579 | D22: 673 | E22: 0.089 | F22: 503 | G22: 0.747 | H22: 375 | I22: 0.557 | J22: 7 | K22: 0.01 | L22: 335 | M22: 0.498 | N22: 460 | O22: 0.684
A23: Goodmayes Medical Centre | B23: F86087 | C23: 7655 | D23: 673 | E23: 0.088 | F23: 583 | G23: 0.866 | H23: 460 | I23: 0.684 | J23: 13 | K23: 0.019 | L23: 363 | M23: 0.539 | N23: 459 | O23: 0.682
A24: Seven Kings Practice | B24: F86637 | C24: =SUMIFS(OFFSET(REL_D,,MATCH(C$1,IND,0)-2),REL_D,$D$3,OrgID,$B24) -> 4919 | D24: 458 | E24: 0.093 | F24: 433 | G24: 0.945 | H24: 373 | I24: 0.814 | J24: 15 | K24: 0.033 | L24: 250 | M24: 0.546 | N24: 331 | O24: 0.723
A25: Doctor's House | B25: Y00090 | C25: 8284 | D25: 707 | E25: 0.085 | F25: 684 | G25: 0.967 | H25: 602 | I25: 0.851 | J25: 12 | K25: 0.017 | L25: 393 | M25: 0.556 | N25: 538 | O25: 0.761
A26: Green Lane, Goodmayes Medical practice | B26: F86034 | C26: 6160 | D26: 486 | E26: 0.079 | F26: 455 | G26: 0.936 | H26: 369 | I26: 0.759 | J26: 7 | K26: 0.014 | L26: 253 | M26: 0.521 | N26: 314 | O26: 0.646
A27: Castleton Road Surgery | B27: F86642 | C27: 5102 | D27: 458 | E27: 0.09 | F27: 421 | G27: 0.919 | H27: 314 | I27: 0.686 | J27: 3 | K27: 0.007 | L27: 229 | M27: 0.5 | N27: 225 | O27: 0.491
A28: Chadwell Heath Surgery | B28: F86028 | C28: 10693 | D28: 863 | E28: 0.081 | F28: 762 | G28: 0.883 | H28: 560 | I28: 0.649 | J28: 16 | K28: 0.019 | L28: 397 | M28: 0.46 | N28: 547 | O28: 0.634
A29: Grove Surgery | B29: Y00155 | C29: 9909 | D29: 670 | E29: 0.068 | F29: 606 | G29: 0.904 | H29: 548 | I29: 0.818 | J29: 5 | K29: 0.007 | L29: 2 | M29: 0.003 | N29: 414 | O29: 0.618
A30: Broadway Surgery | B30: F86013 | C30: 7137 | D30: 293 | E30: 0.041 | F30: 252 | G30: 0.86 | H30: 189 | I30: 0.645 | J30: 156 | K30: 0.532 | L30: 6 | M30: 0.02 | N30: 201 | O30: 0.686
A31: The Evergreen Practice | B31: F86023 | C31: 9914 | D31: 419 | E31: 0.042 | F31: 374 | G31: 0.893 | H31: 305 | I31: 0.728 | J31: 265 | K31: 0.632 | L31: 268 | M31: 0.64 | N31: 304 | O31: 0.726
A32: Wanstead Place Surgery | B32: F86032 | C32: 9341 | D32: 427 | E32: 0.046 | F32: 325 | G32: 0.761 | H32: 267 | I32: 0.625 | J32: 201 | K32: 0.471 | L32: 193 | M32: 0.452 | N32: 282 | O32: 0.66
A33: Aldersbrook Medical Centre | B33: F86731 | C33: 4630 | D33: 241 | E33: 0.052 | F33: 221 | G33: 0.917 | H33: 193 | I33: 0.801 | J33: 171 | K33: 0.71 | L33: 150 | M33: 0.622 | N33: 178 | O33: 0.739
A34: Southdene Surgery | B34: F86066 | C34: 7923 | D34: 371 | E34: 0.047 | F34: 330 | G34: 0.889 | H34: 253 | I34: 0.682 | J34: 204 | K34: 0.55 | L34: 214 | M34: 0.577 | N34: 243 | O34: 0.655
A35: Shrubberies Medical Centre | B35: F86641 | C35: 7939 | D35: 310 | E35: 0.039 | F35: 295 | G35: 0.952 | H35: 246 | I35: 0.794 | J35: 199 | K35: 0.642 | L35: 201 | M35: 0.648 | N35: 234 | O35: 0.755
A36: Glebelands Practice | B36: F86020 | C36: 5830 | D36: 241 | E36: 0.041 | F36: 238 | G36: 0.988 | H36: 189 | I36: 0.784 | J36: 185 | K36: 0.768 | L36: 142 | M36: 0.589 | N36: 187 | O36: 0.776
A37: Elmhurst Practice | B37: F86064 | C37: 4777 | D37: 245 | E37: =IFERROR(D37/C37,"N/A") -> 0.051 | F37: 235 | G37: =IFERROR(F37/$D37,"N/A") -> 0.959 | H37: 186 | I37: =IFERROR(H37/$D37,"N/A") -> 0.759 | J37: 123 | K37: =IFERROR(J37/$D37,"N/A") -> 0.502 | L37: 141 | M37: =IFERROR(L37/$D37,"N/A") -> 0.576 | N37: 188 | O37: =IFERROR(N37/$D37,"N/A") -> 0.767
A38: Clayhall Clinic | B38: F86691 | C38: =SUMIFS(OFFSET(REL_D,,MATCH(C$1,IND,0)-2),REL_D,$D$3,OrgID,$B38) -> 10968 | D38: 940 | E38: 0.086 | F38: 855 | G38: 0.91 | H38: 750 | I38: 0.798 | J38: 219 | K38: 0.233 | L38: 534 | M38: 0.568 | N38: 565 | O38: 0.601
A39: Rydal Practice | B39: F86012 | C39: 9531 | D39: 479 | E39: 0.05 | F39: 466 | G39: 0.973 | H39: 402 | I39: 0.839 | J39: 289 | K39: 0.603 | L39: 295 | M39: 0.616 | N39: 333 | O39: 0.695
A40: Queen Mary Practice | B40: F86658 | C40: 5508 | D40: 329 | E40: 0.06 | F40: 295 | G40: 0.897 | H40: 264 | I40: 0.802 | J40: 47 | K40: 0.143 | L40: 215 | M40: 0.653 | N40: 231 | O40: 0.702
A41: Ilford Medical Centre | B41: F86022 | C41: 14570 | D41: 1317 | E41: 0.09 | F41: 1187 | G41: 0.901 | H41: 1034 | I41: 0.785 | J41: 16 | K41: 0.012 | L41: 714 | M41: 0.542 | N41: 758 | O41: 0.576
A42: The Practice Loxford | B42: Y02987 | C42: 29566 | D42: 1595 | E42: 0.054 | F42: 1508 | G42: 0.945 | H42: 1319 | I42: 0.827 | J42: 46 | K42: 0.029 | L42: 852 | M42: 0.534 | N42: 967 | O42: 0.606
A43: Mathukias Surgery | B43: F86692 | C43: 10879 | D43: 1113 | E43: =IFERROR(D43/C43,"N/A") -> 0.102 | F43: 1034 | G43: =IFERROR(F43/$D43,"N/A") -> 0.929 | H43: 720 | I43: =IFERROR(H43/$D43,"N/A") -> 0.647 | J43: 146 | K43: =IFERROR(J43/$D43,"N/A") -> 0.131 | L43: 535 | M43: =IFERROR(L43/$D43,"N/A") -> 0.481 | N43: 708 | O43: =IFERROR(N43/$D43,"N/A") -> 0.636
A44: Ilford Lane Surgery | B44: F86082 | C44: 6018 | D44: 641 | E44: =IFERROR(D44/C44,"N/A") -> 0.107 | F44: 611 | G44: =IFERROR(F44/$D44,"N/A") -> 0.953 | H44: 511 | I44: =IFERROR(H44/$D44,"N/A") -> 0.797 | J44: 2 | K44: =IFERROR(J44/$D44,"N/A") -> 0.003 | L44: 0 | M44: =IFERROR(L44/$D44,"N/A") -> 0 | N44: 411 | O44: =IFERROR(N44/$D44,"N/A") -> 0.641
A45: Oak Tree Medical Practice | B45: F86025 | C45: 17240 | D45: 1224 | E45: 0.071 | F45: 1102 | G45: 0.9 | H45: 968 | I45: 0.791 | J45: 45 | K45: 0.037 | L45: 1 | M45: 0.001 | N45: 677 | O45: 0.553
A46: Hainault Surgery | B46: F86085 | C46: 3501 | D46: 272 | E46: 0.078 | F46: 246 | G46: 0.904 | H46: 187 | I46: 0.688 | J46: 20 | K46: 0.074 | L46: 154 | M46: 0.566 | N46: 189 | O46: 0.695
A47: Fullwell Cross Medical Centre | B47: F86010 | C47: 15648 | D47: 1148 | E47: 0.073 | F47: 1041 | G47: 0.907 | H47: 909 | I47: 0.792 | J47: 25 | K47: 0.022 | L47: 573 | M47: 0.499 | N47: 787 | O47: 0.686
A48: Newbury Group Practice | B48: F86060 | C48: 15728 | D48: 1467 | E48: 0.093 | F48: 1369 | G48: 0.933 | H48: 1164 | I48: 0.793 | J48: 37 | K48: 0.025 | L48: 804 | M48: 0.548 | N48: 971 | O48: 0.662

Sheet Mental Health
